Workbook

Sheet Option 1 (hidden)
E2: Annual rates based on 21-23 CSM - $ per sqft per year - State Agency tenants only | K2: "Add-on" CSM charges | O2: Biennial Revenue For Building
C3: By Building | E3: Rent | F3: Debt | G3: Campus Contracts | H3: Total "Rent and Related" | I3: Current Lease Rates | K3: Security on Campus | L3: Parking - Goes to 045 | N3: RSF | O3: Rent | P3: Debt | Q3: Security | R3: Campus Contracts | S3: Total | U3: Parking - Goes to 045
C4: F6121 | D4: Cherberg | E4: =HLOOKUP(C4,#REF!,111,FALSE) ->  | F4: =HLOOKUP(C4,#REF!,111,FALSE) ->  | G4: =HLOOKUP(C4,#REF!,111,FALSE) ->  | H4: =SUM(E4:G4) ->  | I4: N/A | K4: =HLOOKUP(C4,#REF!,111,FALSE) ->  | L4: =HLOOKUP(C4,#REF!,111,FALSE) ->  | N4: =HLOOKUP(C4,#REF!,109,FALSE) ->  | O4: =$N4*E4*2 ->  | P4: =$N4*F4*2 ->  | Q4: =$N4*K4*2 ->  | R4: =$N4*G4*2 ->  | S4: =SUM(O4:R4) ->  | U4: =$N4*L4*2 -> 
C5: F6122 | D5: O'Brien | E5: =HLOOKUP(C5,#REF!,111,FALSE) ->  | F5: =HLOOKUP(C5,#REF!,111,FALSE) ->  | G5: =HLOOKUP(C5,#REF!,111,FALSE) ->  | H5: =SUM(E5:G5) ->  | I5: N/A | K5: =HLOOKUP(C5,#REF!,111,FALSE) ->  | L5: =HLOOKUP(C5,#REF!,111,FALSE) ->  | N5: =HLOOKUP(C5,#REF!,109,FALSE) ->  | S5: =SUM(O5:R5) ->  | U5: =$N5*L5*2 -> 
C6: F6123 | D6: Legislative | E6: =HLOOKUP(C6,#REF!,111,FALSE) ->  | F6: =HLOOKUP(C6,#REF!,111,FALSE) ->  | G6: =HLOOKUP(C6,#REF!,111,FALSE) ->  | I6: N/A | K6: =HLOOKUP(C6,#REF!,111,FALSE) ->  | L6: =HLOOKUP(C6,#REF!,111,FALSE) ->  | N6: =HLOOKUP(C6,#REF!,109,FALSE) -> 
C7: F6124 | D7: Pritchard | E7: =HLOOKUP(C7,#REF!,111,FALSE) ->  | F7: =HLOOKUP(C7,#REF!,111,FALSE) ->  | G7: =HLOOKUP(C7,#REF!,111,FALSE) ->  | I7: N/A | K7: =HLOOKUP(C7,#REF!,111,FALSE) ->  | L7: =HLOOKUP(C7,#REF!,111,FALSE) ->  | N7: =HLOOKUP(C7,#REF!,109,FALSE) -> 
C8: F6125 | D8: HLB | E8: =HLOOKUP(C8,#REF!,111,FALSE) ->  | F8: =HLOOKUP(C8,#REF!,111,FALSE) ->  | G8: =HLOOKUP(C8,#REF!,111,FALSE) ->  | I8: N/A | K8: =HLOOKUP(C8,#REF!,111,FALSE) ->  | L8: =HLOOKUP(C8,#REF!,111,FALSE) ->  | N8: =HLOOKUP(C8,#REF!,109,FALSE) -> 
C9: F6126 | D9: OB2 | E9: =HLOOKUP(C9,#REF!,111,FALSE) ->  | F9: =HLOOKUP(C9,#REF!,111,FALSE) ->  | G9: =HLOOKUP(C9,#REF!,111,FALSE) ->  | I9: N/A | K9: =HLOOKUP(C9,#REF!,111,FALSE) ->  | L9: =HLOOKUP(C9,#REF!,111,FALSE) ->  | N9: =HLOOKUP(C9,#REF!,109,FALSE) -> 
C10: F6127 | D10: Archives | E10: =HLOOKUP(C10,#REF!,111,FALSE) ->  | F10: =HLOOKUP(C10,#REF!,111,FALSE) ->  | G10: =HLOOKUP(C10,#REF!,111,FALSE) ->  | I10: N/A | K10: =HLOOKUP(C10,#REF!,111,FALSE) ->  | L10: =HLOOKUP(C10,#REF!,111,FALSE) ->  | N10: =HLOOKUP(C10,#REF!,109,FALSE) -> 
C11: F6129 | D11: NRB | E11: =HLOOKUP(C11,#REF!,111,FALSE) ->  | F11: =HLOOKUP(C11,#REF!,111,FALSE) ->  | G11: =HLOOKUP(C11,#REF!,111,FALSE) ->  | I11: N/A | K11: =HLOOKUP(C11,#REF!,111,FALSE) ->  | L11: =HLOOKUP(C11,#REF!,111,FALSE) ->  | N11: =HLOOKUP(C11,#REF!,109,FALSE) -> 
C12: F612A | D12: Emp Sec | E12: =HLOOKUP(C12,#REF!,111,FALSE) ->  | F12: =HLOOKUP(C12,#REF!,111,FALSE) ->  | G12: =HLOOKUP(C12,#REF!,111,FALSE) ->  | I12: N/A | K12: =HLOOKUP(C12,#REF!,111,FALSE) ->  | L12: =HLOOKUP(C12,#REF!,111,FALSE) ->  | N12: =HLOOKUP(C12,#REF!,109,FALSE) -> 
C13: F612C | D13: Transportation | E13: =HLOOKUP(C13,#REF!,111,FALSE) ->  | F13: =HLOOKUP(C13,#REF!,111,FALSE) ->  | G13: =HLOOKUP(C13,#REF!,111,FALSE) ->  | I13: N/A | K13: =HLOOKUP(C13,#REF!,111,FALSE) ->  | L13: =HLOOKUP(C13,#REF!,111,FALSE) ->  | N13: =HLOOKUP(C13,#REF!,109,FALSE) -> 
C14: F612E | D14: Insurance | E14: =HLOOKUP(C14,#REF!,111,FALSE) ->  | F14: =HLOOKUP(C14,#REF!,111,FALSE) ->  | G14: =HLOOKUP(C14,#REF!,111,FALSE) ->  | I14: N/A | K14: =HLOOKUP(C14,#REF!,111,FALSE) ->  | L14: =HLOOKUP(C14,#REF!,111,FALSE) ->  | N14: =HLOOKUP(C14,#REF!,109,FALSE) -> 
C15: F612H | D15: Old Cap | E15: =HLOOKUP(C15,#REF!,111,FALSE) ->  | F15: =HLOOKUP(C15,#REF!,111,FALSE) ->  | G15: =HLOOKUP(C15,#REF!,111,FALSE) ->  | I15: N/A | K15: =HLOOKUP(C15,#REF!,111,FALSE) ->  | L15: =HLOOKUP(C15,#REF!,111,FALSE) ->  | N15: =HLOOKUP(C15,#REF!,109,FALSE) -> 
C16: F612J | D16: TOJ | E16: =HLOOKUP(C16,#REF!,111,FALSE) ->  | F16: =HLOOKUP(C16,#REF!,111,FALSE) ->  | G16: =HLOOKUP(C16,#REF!,111,FALSE) ->  | I16: N/A | K16: =HLOOKUP(C16,#REF!,111,FALSE) ->  | L16: =HLOOKUP(C16,#REF!,111,FALSE) ->  | N16: =HLOOKUP(C16,#REF!,109,FALSE) -> 
C17: F612K | D17: Newhouse | E17: =HLOOKUP(C17,#REF!,111,FALSE) ->  | F17: =HLOOKUP(C17,#REF!,111,FALSE) ->  | G17: =HLOOKUP(C17,#REF!,111,FALSE) ->  | I17: N/A | K17: =HLOOKUP(C17,#REF!,111,FALSE) ->  | L17: =HLOOKUP(C17,#REF!,111,FALSE) ->  | N17: =HLOOKUP(C17,#REF!,109,FALSE) -> 
C18: F6131 | D18: Modular Bldg | E18: =HLOOKUP(C18,#REF!,111,FALSE) ->  | F18: =HLOOKUP(C18,#REF!,111,FALSE) ->  | G18: =HLOOKUP(C18,#REF!,111,FALSE) ->  | I18: =VLOOKUP(C18,'[2]Building Compare'!$C$20:$G$30,5,FALSE) -> 5.466588388 | K18: =HLOOKUP(C18,#REF!,111,FALSE) ->  | L18: =HLOOKUP(C18,#REF!,111,FALSE) ->  | N18: =HLOOKUP(C18,#REF!,109,FALSE) -> 
C19: F6132 | D19: Isabella Bush | E19: =HLOOKUP(C19,#REF!,111,FALSE) ->  | F19: =HLOOKUP(C19,#REF!,111,FALSE) ->  | G19: =HLOOKUP(C19,#REF!,111,FALSE) ->  | I19: =VLOOKUP(C19,'[2]Building Compare'!$C$20:$G$30,5,FALSE) -> 9.317033898 | K19: =HLOOKUP(C19,#REF!,111,FALSE) ->  | L19: =HLOOKUP(C19,#REF!,111,FALSE) ->  | N19: =HLOOKUP(C19,#REF!,109,FALSE) -> 
C20: F6133 | D20: 1007 Washington | E20: =HLOOKUP(C20,#REF!,111,FALSE) ->  | F20: =HLOOKUP(C20,#REF!,111,FALSE) ->  | G20: =HLOOKUP(C20,#REF!,111,FALSE) ->  | I20: =VLOOKUP(C20,'[2]Building Compare'!$C$20:$G$30,5,FALSE) -> 6 | K20: =HLOOKUP(C20,#REF!,111,FALSE) ->  | L20: =HLOOKUP(C20,#REF!,111,FALSE) ->  | N20: =HLOOKUP(C20,#REF!,109,FALSE) -> 
C21: F6134 | D21: 120 E Union Avenue | E21: =HLOOKUP(C21,#REF!,111,FALSE) ->  | F21: =HLOOKUP(C21,#REF!,111,FALSE) ->  | G21: =HLOOKUP(C21,#REF!,111,FALSE) ->  | I21: N/A | K21: =HLOOKUP(C21,#REF!,111,FALSE) ->  | L21: =HLOOKUP(C21,#REF!,111,FALSE) ->  | N21: =HLOOKUP(C21,#REF!,109,FALSE) -> 
C22: F613D | D22: Capital Court | E22: =HLOOKUP(C22,#REF!,111,FALSE) ->  | F22: =HLOOKUP(C22,#REF!,111,FALSE) ->  | G22: =HLOOKUP(C22,#REF!,111,FALSE) ->  | I22: =VLOOKUP(C22,'[2]Building Compare'!$C$20:$G$30,5,FALSE) -> 28.43784911 | K22: =HLOOKUP(C22,#REF!,111,FALSE) ->  | L22: =HLOOKUP(C22,#REF!,111,FALSE) ->  | N22: =HLOOKUP(C22,#REF!,109,FALSE) -> 
C23: F613E | D23: James Dolliver Building | E23: =HLOOKUP(C23,#REF!,111,FALSE) ->  | F23: =HLOOKUP(C23,#REF!,111,FALSE) ->  | G23: =HLOOKUP(C23,#REF!,111,FALSE) ->  | I23: =VLOOKUP(C23,'[2]Building Compare'!$C$20:$G$30,5,FALSE) -> 25.66588235 | K23: =HLOOKUP(C23,#REF!,111,FALSE) ->  | L23: =HLOOKUP(C23,#REF!,111,FALSE) ->  | N23: =HLOOKUP(C23,#REF!,109,FALSE) -> 
C24: F613G | D24: 1068 WA Street SE (ST Farm) | E24: =HLOOKUP(C24,#REF!,111,FALSE) ->  | F24: =HLOOKUP(C24,#REF!,111,FALSE) ->  | G24: =HLOOKUP(C24,#REF!,111,FALSE) ->  | I24: =VLOOKUP(C24,'[2]Building Compare'!$C$20:$G$30,5,FALSE) -> 16.28070175 | K24: =HLOOKUP(C24,#REF!,111,FALSE) ->  | L24: =HLOOKUP(C24,#REF!,111,FALSE) ->  | N24: =HLOOKUP(C24,#REF!,109,FALSE) -> 
C25: F613H | D25: 232 Perry Street | E25: =HLOOKUP(C25,#REF!,111,FALSE) ->  | F25: =HLOOKUP(C25,#REF!,111,FALSE) ->  | G25: =HLOOKUP(C25,#REF!,111,FALSE) ->  | I25: N/A | K25: =HLOOKUP(C25,#REF!,111,FALSE) ->  | L25: =HLOOKUP(C25,#REF!,111,FALSE) ->  | N25: =HLOOKUP(C25,#REF!,109,FALSE) -> 
C26: F613i | D26: 208 11th Avenue SE (Pro Arts) | E26: =HLOOKUP(C26,#REF!,111,FALSE) ->  | F26: =HLOOKUP(C26,#REF!,111,FALSE) ->  | G26: =HLOOKUP(C26,#REF!,111,FALSE) ->  | I26: N/A | K26: =HLOOKUP(C26,#REF!,111,FALSE) ->  | L26: =HLOOKUP(C26,#REF!,111,FALSE) ->  | N26: =HLOOKUP(C26,#REF!,109,FALSE) -> 
C27: F613K | D27: Press Houses Ayer(White); Carlyon(Blue) | E27: =HLOOKUP(C27,#REF!,111,FALSE) ->  | F27: =HLOOKUP(C27,#REF!,111,FALSE) ->  | G27: =HLOOKUP(C27,#REF!,111,FALSE) ->  | I27: N/A | K27: =HLOOKUP(C27,#REF!,111,FALSE) ->  | L27: =HLOOKUP(C27,#REF!,111,FALSE) ->  | N27: =HLOOKUP(C27,#REF!,109,FALSE) -> 
C28: F613L | D28: Visitor Center | E28: =HLOOKUP(C28,#REF!,111,FALSE) ->  | F28: =HLOOKUP(C28,#REF!,111,FALSE) ->  | G28: =HLOOKUP(C28,#REF!,111,FALSE) ->  | I28: N/A | K28: =HLOOKUP(C28,#REF!,111,FALSE) ->  | L28: =HLOOKUP(C28,#REF!,111,FALSE) ->  | N28: =HLOOKUP(C28,#REF!,109,FALSE) -> 
C29: F613M | D29: Helen Sommers | E29: =HLOOKUP(C29,#REF!,111,FALSE) ->  | F29: =HLOOKUP(C29,#REF!,111,FALSE) ->  | G29: =HLOOKUP(C29,#REF!,111,FALSE) ->  | I29: =VLOOKUP(C29,'[2]Building Compare'!$C$20:$G$30,5,FALSE) -> 32.0368515 | K29: =HLOOKUP(C29,#REF!,111,FALSE) ->  | L29: =HLOOKUP(C29,#REF!,111,FALSE) ->  | N29: =HLOOKUP(C29,#REF!,109,FALSE) -> 
C30: F6141 | D30: Kelso Building | E30: =HLOOKUP(C30,#REF!,111,FALSE) ->  | F30: =HLOOKUP(C30,#REF!,111,FALSE) ->  | G30: =HLOOKUP(C30,#REF!,111,FALSE) ->  | I30: =VLOOKUP(C30,'[2]Building Compare'!$C$20:$G$30,5,FALSE) -> 19.77534276 | K30: =HLOOKUP(C30,#REF!,111,FALSE) ->  | L30: =HLOOKUP(C30,#REF!,111,FALSE) ->  | N30: =HLOOKUP(C30,#REF!,109,FALSE) -> 
C31: F6142 | D31: Yakima Building | E31: =HLOOKUP(C31,#REF!,111,FALSE) ->  | F31: =HLOOKUP(C31,#REF!,111,FALSE) ->  | G31: =HLOOKUP(C31,#REF!,111,FALSE) ->  | I31: =VLOOKUP(C31,'[2]Building Compare'!$C$20:$G$30,5,FALSE) -> 19 | K31: =HLOOKUP(C31,#REF!,111,FALSE) ->  | L31: =HLOOKUP(C31,#REF!,111,FALSE) ->  | N31: =HLOOKUP(C31,#REF!,109,FALSE) -> 
C32: F6143 | D32: Alaska Street | E32: =HLOOKUP(C32,#REF!,111,FALSE) ->  | F32: =HLOOKUP(C32,#REF!,111,FALSE) ->  | G32: =HLOOKUP(C32,#REF!,111,FALSE) ->  | I32: =VLOOKUP(C32,'[2]Building Compare'!$C$20:$G$30,5,FALSE) -> 5.102567124 | K32: =HLOOKUP(C32,#REF!,111,FALSE) ->  | L32: =HLOOKUP(C32,#REF!,111,FALSE) ->  | N32: =HLOOKUP(C32,#REF!,109,FALSE) -> 
C33: F6144 | D33: Tacoma Rhodes | E33: =HLOOKUP(C33,#REF!,111,FALSE) ->  | F33: =HLOOKUP(C33,#REF!,111,FALSE) ->  | G33: =HLOOKUP(C33,#REF!,111,FALSE) ->  | I33: =VLOOKUP(C33,'[2]Building Compare'!$C$20:$G$30,5,FALSE) -> 21.92814716 | K33: =HLOOKUP(C33,#REF!,111,FALSE) ->  | L33: =HLOOKUP(C33,#REF!,111,FALSE) ->  | N33: =HLOOKUP(C33,#REF!,109,FALSE) -> 
O34: =SUM(O4:O33) ->  | P34: =SUM(P4:P33) -> 

Sheet Rent lookup by Agency
A1: VIEW | C1: =LEFT(C4,3) -> 011
A2: VIEW | C2: Rent Related Costs in the Central Service Model | R2: Department of Enterprise Services
A3: VIEW | C3: Agency
A4: VIEW | C4: 011 - House of Representatives | F4: ç Select Agency Here
A5: VIEW | E5: Fiscal Year 24 | M5: Fiscal Year 25
A6: VIEW | C6: Building | D6: occupied RSF | F6: Rent CSM | G6: Fin Cost Recovery CSM | H6: Campus Contracts CSM (bldg) | I6: TOTAL RENT Annual Cost | J6: Monthly Charge | K6: Rent Rate/RSF | M6: Rent CSM | N6: Fin Cost Recovery CSM | O6: Campus Contracts CSM (bldg) | P6: TOTAL RENT Annual Cost | Q6: Monthly Charge | R6: Rent Rate/RSF
A7: =IF(D7=0,"HIDE","VIEW") -> HIDE | C7: Cherberg | D7: =VLOOKUP($C$1,RSF!$A$3:$AJ$108,MATCH($C7,RSF!$A$3:$AK$3,0),FALSE) -> 0 | F7: =SUMIFS(Dollars!$F:$F,Dollars!$E:$E,'Rent lookup by Agency'!F$6,Dollars!$C:$C,'Rent lookup by Agency'!$C7,Dollars!$A:$A,'Rent lookup by Agency'!$C$1) -> 0 | G7: =SUMIFS(Dollars!$F:$F,Dollars!$E:$E,'Rent lookup by Agency'!G$6,Dollars!$C:$C,'Rent lookup by Agency'!$C7,Dollars!$A:$A,'Rent lookup by Agency'!$C$1) -> 0 | H7: =SUMIFS(Dollars!$F:$F,Dollars!$E:$E,'Rent lookup by Agency'!H$6,Dollars!$C:$C,'Rent lookup by Agency'!$C7,Dollars!$A:$A,'Rent lookup by Agency'!$C$1) -> 0 | I7: =SUM(F7:H7) -> 0 | J7: =I7/12 -> 0 | K7: =IFERROR(I7/D7,0) -> 0 | M7: =SUMIFS(Dollars!$G:$G,Dollars!$E:$E,'Rent lookup by Agency'!M$6,Dollars!$C:$C,'Rent lookup by Agency'!$C7,Dollars!$A:$A,'Rent lookup by Agency'!$C$1) -> 0 | N7: =SUMIFS(Dollars!$G:$G,Dollars!$E:$E,'Rent lookup by Agency'!N$6,Dollars!$C:$C,'Rent lookup by Agency'!$C7,Dollars!$A:$A,'Rent lookup by Agency'!$C$1) -> 0 | O7: =SUMIFS(Dollars!$G:$G,Dollars!$E:$E,'Rent lookup by Agency'!O$6,Dollars!$C:$C,'Rent lookup by Agency'!$C7,Dollars!$A:$A,'Rent lookup by Agency'!$C$1) -> 0 | P7: =SUM(M7:O7) -> 0 | Q7: =P7/12 -> 0 | R7: =IFERROR(P7/D7,0) -> 0
A8: =IF(D8=0,"HIDE","VIEW") -> VIEW | C8: O'Brien | D8: =VLOOKUP($C$1,RSF!$A$3:$AJ$108,MATCH($C8,RSF!$A$3:$AK$3,0),FALSE) -> 78594 | F8: =SUMIFS(Dollars!$F:$F,Dollars!$E:$E,'Rent lookup by Agency'!F$6,Dollars!$C:$C,'Rent lookup by Agency'!$C8,Dollars!$A:$A,'Rent lookup by Agency'!$C$1) -> 506196.562 | G8: =SUMIFS(Dollars!$F:$F,Dollars!$E:$E,'Rent lookup by Agency'!G$6,Dollars!$C:$C,'Rent lookup by Agency'!$C8,Dollars!$A:$A,'Rent lookup by Agency'!$C$1) -> 0 | H8: =SUMIFS(Dollars!$F:$F,Dollars!$E:$E,'Rent lookup by Agency'!H$6,Dollars!$C:$C,'Rent lookup by Agency'!$C8,Dollars!$A:$A,'Rent lookup by Agency'!$C$1) -> 28493.64591 | I8: =SUM(F8:H8) -> 534690.208 | J8: =I8/12 -> 44557.51733 | K8: 6.803193729 | M8: =SUMIFS(Dollars!$G:$G,Dollars!$E:$E,'Rent lookup by Agency'!M$6,Dollars!$C:$C,'Rent lookup by Agency'!$C8,Dollars!$A:$A,'Rent lookup by Agency'!$C$1) -> 512676.8045 | N8: =SUMIFS(Dollars!$G:$G,Dollars!$E:$E,'Rent lookup by Agency'!N$6,Dollars!$C:$C,'Rent lookup by Agency'!$C8,Dollars!$A:$A,'Rent lookup by Agency'!$C$1) -> 0 | O8: =SUMIFS(Dollars!$G:$G,Dollars!$E:$E,'Rent lookup by Agency'!O$6,Dollars!$C:$C,'Rent lookup by Agency'!$C8,Dollars!$A:$A,'Rent lookup by Agency'!$C$1) -> 28493.64591 | P8: =SUM(M8:O8) -> 541170.4504 | Q8: =P8/12 -> 45097.53753 | R8: 6.885645856
A9: VIEW | C9: Legislative | D9: =VLOOKUP($C$1,RSF!$A$3:$AJ$108,MATCH($C9,RSF!$A$3:$AK$3,0),FALSE) -> 45304 | F9: =SUMIFS(Dollars!$F:$F,Dollars!$E:$E,'Rent lookup by Agency'!F$6,Dollars!$C:$C,'Rent lookup by Agency'!$C9,Dollars!$A:$A,'Rent lookup by Agency'!$C$1) -> 976839.2672 | G9: =SUMIFS(Dollars!$F:$F,Dollars!$E:$E,'Rent lookup by Agency'!G$6,Dollars!$C:$C,'Rent lookup by Agency'!$C9,Dollars!$A:$A,'Rent lookup by Agency'!$C$1) -> 0 | H9: =SUMIFS(Dollars!$F:$F,Dollars!$E:$E,'Rent lookup by Agency'!H$6,Dollars!$C:$C,'Rent lookup by Agency'!$C9,Dollars!$A:$A,'Rent lookup by Agency'!$C$1) -> 30563.33053 | I9: 1007402.598 | J9: 83950.21648 | K9: 22.23650445 | M9: =SUMIFS(Dollars!$G:$G,Dollars!$E:$E,'Rent lookup by Agency'!M$6,Dollars!$C:$C,'Rent lookup by Agency'!$C9,Dollars!$A:$A,'Rent lookup by Agency'!$C$1) -> 989344.5977 | N9: =SUMIFS(Dollars!$G:$G,Dollars!$E:$E,'Rent lookup by Agency'!N$6,Dollars!$C:$C,'Rent lookup by Agency'!$C9,Dollars!$A:$A,'Rent lookup by Agency'!$C$1) -> 0 | O9: =SUMIFS(Dollars!$G:$G,Dollars!$E:$E,'Rent lookup by Agency'!O$6,Dollars!$C:$C,'Rent lookup by Agency'!$C9,Dollars!$A:$A,'Rent lookup by Agency'!$C$1) -> 30563.33053 | P9: 1019907.928 | Q9: 84992.32735 | R9: 22.51253594
A10: HIDE | C10: Pritchard | D10: =VLOOKUP($C$1,RSF!$A$3:$AJ$108,MATCH($C10,RSF!$A$3:$AK$3,0),FALSE) -> 0 | F10: =SUMIFS(Dollars!$F:$F,Dollars!$E:$E,'Rent lookup by Agency'!F$6,Dollars!$C:$C,'Rent lookup by Agency'!$C10,Dollars!$A:$A,'Rent lookup by Agency'!$C$1) -> 0 | G10: =SUMIFS(Dollars!$F:$F,Dollars!$E:$E,'Rent lookup by Agency'!G$6,Dollars!$C:$C,'Rent lookup by Agency'!$C10,Dollars!$A:$A,'Rent lookup by Agency'!$C$1) -> 0 | H10: =SUMIFS(Dollars!$F:$F,Dollars!$E:$E,'Rent lookup by Agency'!H$6,Dollars!$C:$C,'Rent lookup by Agency'!$C10,Dollars!$A:$A,'Rent lookup by Agency'!$C$1) -> 0 | I10: 0 | J10: 0 | K10: 0 | M10: =SUMIFS(Dollars!$G:$G,Dollars!$E:$E,'Rent lookup by Agency'!M$6,Dollars!$C:$C,'Rent lookup by Agency'!$C10,Dollars!$A:$A,'Rent lookup by Agency'!$C$1) -> 0 | N10: =SUMIFS(Dollars!$G:$G,Dollars!$E:$E,'Rent lookup by Agency'!N$6,Dollars!$C:$C,'Rent lookup by Agency'!$C10,Dollars!$A:$A,'Rent lookup by Agency'!$C$1) -> 0 | O10: =SUMIFS(Dollars!$G:$G,Dollars!$E:$E,'Rent lookup by Agency'!O$6,Dollars!$C:$C,'Rent lookup by Agency'!$C10,Dollars!$A:$A,'Rent lookup by Agency'!$C$1) -> 0 | P10: 0 | Q10: 0 | R10: 0
A11: HIDE | C11: HLB | D11: =VLOOKUP($C$1,RSF!$A$3:$AJ$108,MATCH($C11,RSF!$A$3:$AK$3,0),FALSE) -> 0 | F11: =SUMIFS(Dollars!$F:$F,Dollars!$E:$E,'Rent lookup by Agency'!F$6,Dollars!$C:$C,'Rent lookup by Agency'!$C11,Dollars!$A:$A,'Rent lookup by Agency'!$C$1) -> 0 | G11: =SUMIFS(Dollars!$F:$F,Dollars!$E:$E,'Rent lookup by Agency'!G$6,Dollars!$C:$C,'Rent lookup by Agency'!$C11,Dollars!$A:$A,'Rent lookup by Agency'!$C$1) -> 0 | H11: =SUMIFS(Dollars!$F:$F,Dollars!$E:$E,'Rent lookup by Agency'!H$6,Dollars!$C:$C,'Rent lookup by Agency'!$C11,Dollars!$A:$A,'Rent lookup by Agency'!$C$1) -> 0 | I11: 0 | J11: 0 | K11: 0 | M11: =SUMIFS(Dollars!$G:$G,Dollars!$E:$E,'Rent lookup by Agency'!M$6,Dollars!$C:$C,'Rent lookup by Agency'!$C11,Dollars!$A:$A,'Rent lookup by Agency'!$C$1) -> 0 | N11: =SUMIFS(Dollars!$G:$G,Dollars!$E:$E,'Rent lookup by Agency'!N$6,Dollars!$C:$C,'Rent lookup by Agency'!$C11,Dollars!$A:$A,'Rent lookup by Agency'!$C$1) -> 0 | O11: =SUMIFS(Dollars!$G:$G,Dollars!$E:$E,'Rent lookup by Agency'!O$6,Dollars!$C:$C,'Rent lookup by Agency'!$C11,Dollars!$A:$A,'Rent lookup by Agency'!$C$1) -> 0 | P11: 0 | Q11: 0 | R11: 0
A12: HIDE | C12: OB2 | D12: =VLOOKUP($C$1,RSF!$A$3:$AJ$108,MATCH($C12,RSF!$A$3:$AK$3,0),FALSE) -> 0 | F12: =SUMIFS(Dollars!$F:$F,Dollars!$E:$E,'Rent lookup by Agency'!F$6,Dollars!$C:$C,'Rent lookup by Agency'!$C12,Dollars!$A:$A,'Rent lookup by Agency'!$C$1) -> 0 | G12: =SUMIFS(Dollars!$F:$F,Dollars!$E:$E,'Rent lookup by Agency'!G$6,Dollars!$C:$C,'Rent lookup by Agency'!$C12,Dollars!$A:$A,'Rent lookup by Agency'!$C$1) -> 0 | H12: =SUMIFS(Dollars!$F:$F,Dollars!$E:$E,'Rent lookup by Agency'!H$6,Dollars!$C:$C,'Rent lookup by Agency'!$C12,Dollars!$A:$A,'Rent lookup by Agency'!$C$1) -> 0 | I12: 0 | J12: 0 | K12: 0 | M12: =SUMIFS(Dollars!$G:$G,Dollars!$E:$E,'Rent lookup by Agency'!M$6,Dollars!$C:$C,'Rent lookup by Agency'!$C12,Dollars!$A:$A,'Rent lookup by Agency'!$C$1) -> 0 | N12: =SUMIFS(Dollars!$G:$G,Dollars!$E:$E,'Rent lookup by Agency'!N$6,Dollars!$C:$C,'Rent lookup by Agency'!$C12,Dollars!$A:$A,'Rent lookup by Agency'!$C$1) -> 0 | O12: =SUMIFS(Dollars!$G:$G,Dollars!$E:$E,'Rent lookup by Agency'!O$6,Dollars!$C:$C,'Rent lookup by Agency'!$C12,Dollars!$A:$A,'Rent lookup by Agency'!$C$1) -> 0 | P12: 0 | Q12: 0 | R12: 0
A13: HIDE | C13: Archives | D13: =VLOOKUP($C$1,RSF!$A$3:$AJ$108,MATCH($C13,RSF!$A$3:$AK$3,0),FALSE) -> 0 | F13: =SUMIFS(Dollars!$F:$F,Dollars!$E:$E,'Rent lookup by Agency'!F$6,Dollars!$C:$C,'Rent lookup by Agency'!$C13,Dollars!$A:$A,'Rent lookup by Agency'!$C$1) -> 0 | G13: =SUMIFS(Dollars!$F:$F,Dollars!$E:$E,'Rent lookup by Agency'!G$6,Dollars!$C:$C,'Rent lookup by Agency'!$C13,Dollars!$A:$A,'Rent lookup by Agency'!$C$1) -> 0 | H13: =SUMIFS(Dollars!$F:$F,Dollars!$E:$E,'Rent lookup by Agency'!H$6,Dollars!$C:$C,'Rent lookup by Agency'!$C13,Dollars!$A:$A,'Rent lookup by Agency'!$C$1) -> 0 | I13: 0 | J13: 0 | K13: 0 | M13: =SUMIFS(Dollars!$G:$G,Dollars!$E:$E,'Rent lookup by Agency'!M$6,Dollars!$C:$C,'Rent lookup by Agency'!$C13,Dollars!$A:$A,'Rent lookup by Agency'!$C$1) -> 0 | N13: =SUMIFS(Dollars!$G:$G,Dollars!$E:$E,'Rent lookup by Agency'!N$6,Dollars!$C:$C,'Rent lookup by Agency'!$C13,Dollars!$A:$A,'Rent lookup by Agency'!$C$1) -> 0 | O13: =SUMIFS(Dollars!$G:$G,Dollars!$E:$E,'Rent lookup by Agency'!O$6,Dollars!$C:$C,'Rent lookup by Agency'!$C13,Dollars!$A:$A,'Rent lookup by Agency'!$C$1) -> 0 | P13: 0 | Q13: 0 | R13: 0
A14: HIDE | C14: NRB | D14: =VLOOKUP($C$1,RSF!$A$3:$AJ$108,MATCH($C14,RSF!$A$3:$AK$3,0),FALSE) -> 0 | F14: =SUMIFS(Dollars!$F:$F,Dollars!$E:$E,'Rent lookup by Agency'!F$6,Dollars!$C:$C,'Rent lookup by Agency'!$C14,Dollars!$A:$A,'Rent lookup by Agency'!$C$1) -> 0 | G14: =SUMIFS(Dollars!$F:$F,Dollars!$E:$E,'Rent lookup by Agency'!G$6,Dollars!$C:$C,'Rent lookup by Agency'!$C14,Dollars!$A:$A,'Rent lookup by Agency'!$C$1) -> 0 | H14: =SUMIFS(Dollars!$F:$F,Dollars!$E:$E,'Rent lookup by Agency'!H$6,Dollars!$C:$C,'Rent lookup by Agency'!$C14,Dollars!$A:$A,'Rent lookup by Agency'!$C$1) -> 0 | I14: 0 | J14: 0 | K14: 0 | M14: =SUMIFS(Dollars!$G:$G,Dollars!$E:$E,'Rent lookup by Agency'!M$6,Dollars!$C:$C,'Rent lookup by Agency'!$C14,Dollars!$A:$A,'Rent lookup by Agency'!$C$1) -> 0 | N14: =SUMIFS(Dollars!$G:$G,Dollars!$E:$E,'Rent lookup by Agency'!N$6,Dollars!$C:$C,'Rent lookup by Agency'!$C14,Dollars!$A:$A,'Rent lookup by Agency'!$C$1) -> 0 | O14: =SUMIFS(Dollars!$G:$G,Dollars!$E:$E,'Rent lookup by Agency'!O$6,Dollars!$C:$C,'Rent lookup by Agency'!$C14,Dollars!$A:$A,'Rent lookup by Agency'!$C$1) -> 0 | P14: 0 | Q14: 0 | R14: 0
A15: HIDE | C15: Emp Sec | D15: =VLOOKUP($C$1,RSF!$A$3:$AJ$108,MATCH($C15,RSF!$A$3:$AK$3,0),FALSE) -> 0 | F15: =SUMIFS(Dollars!$F:$F,Dollars!$E:$E,'Rent lookup by Agency'!F$6,Dollars!$C:$C,'Rent lookup by Agency'!$C15,Dollars!$A:$A,'Rent lookup by Agency'!$C$1) -> 0 | G15: =SUMIFS(Dollars!$F:$F,Dollars!$E:$E,'Rent lookup by Agency'!G$6,Dollars!$C:$C,'Rent lookup by Agency'!$C15,Dollars!$A:$A,'Rent lookup by Agency'!$C$1) -> 0 | H15: =SUMIFS(Dollars!$F:$F,Dollars!$E:$E,'Rent lookup by Agency'!H$6,Dollars!$C:$C,'Rent lookup by Agency'!$C15,Dollars!$A:$A,'Rent lookup by Agency'!$C$1) -> 0 | I15: 0 | J15: 0 | K15: 0 | M15: =SUMIFS(Dollars!$G:$G,Dollars!$E:$E,'Rent lookup by Agency'!M$6,Dollars!$C:$C,'Rent lookup by Agency'!$C15,Dollars!$A:$A,'Rent lookup by Agency'!$C$1) -> 0 | N15: =SUMIFS(Dollars!$G:$G,Dollars!$E:$E,'Rent lookup by Agency'!N$6,Dollars!$C:$C,'Rent lookup by Agency'!$C15,Dollars!$A:$A,'Rent lookup by Agency'!$C$1) -> 0 | O15: =SUMIFS(Dollars!$G:$G,Dollars!$E:$E,'Rent lookup by Agency'!O$6,Dollars!$C:$C,'Rent lookup by Agency'!$C15,Dollars!$A:$A,'Rent lookup by Agency'!$C$1) -> 0 | P15: 0 | Q15: 0 | R15: 0
A16: HIDE | C16: Transportation | D16: =VLOOKUP($C$1,RSF!$A$3:$AJ$108,MATCH($C16,RSF!$A$3:$AK$3,0),FALSE) -> 0 | F16: =SUMIFS(Dollars!$F:$F,Dollars!$E:$E,'Rent lookup by Agency'!F$6,Dollars!$C:$C,'Rent lookup by Agency'!$C16,Dollars!$A:$A,'Rent lookup by Agency'!$C$1) -> 0 | G16: =SUMIFS(Dollars!$F:$F,Dollars!$E:$E,'Rent lookup by Agency'!G$6,Dollars!$C:$C,'Rent lookup by Agency'!$C16,Dollars!$A:$A,'Rent lookup by Agency'!$C$1) -> 0 | H16: =SUMIFS(Dollars!$F:$F,Dollars!$E:$E,'Rent lookup by Agency'!H$6,Dollars!$C:$C,'Rent lookup by Agency'!$C16,Dollars!$A:$A,'Rent lookup by Agency'!$C$1) -> 0 | I16: 0 | J16: 0 | K16: 0 | M16: =SUMIFS(Dollars!$G:$G,Dollars!$E:$E,'Rent lookup by Agency'!M$6,Dollars!$C:$C,'Rent lookup by Agency'!$C16,Dollars!$A:$A,'Rent lookup by Agency'!$C$1) -> 0 | N16: =SUMIFS(Dollars!$G:$G,Dollars!$E:$E,'Rent lookup by Agency'!N$6,Dollars!$C:$C,'Rent lookup by Agency'!$C16,Dollars!$A:$A,'Rent lookup by Agency'!$C$1) -> 0 | O16: =SUMIFS(Dollars!$G:$G,Dollars!$E:$E,'Rent lookup by Agency'!O$6,Dollars!$C:$C,'Rent lookup by Agency'!$C16,Dollars!$A:$A,'Rent lookup by Agency'!$C$1) -> 0 | P16: 0 | Q16: 0 | R16: 0
A17: HIDE | C17: Insurance | D17: =VLOOKUP($C$1,RSF!$A$3:$AJ$108,MATCH($C17,RSF!$A$3:$AK$3,0),FALSE) -> 0 | F17: =SUMIFS(Dollars!$F:$F,Dollars!$E:$E,'Rent lookup by Agency'!F$6,Dollars!$C:$C,'Rent lookup by Agency'!$C17,Dollars!$A:$A,'Rent lookup by Agency'!$C$1) -> 0 | G17: =SUMIFS(Dollars!$F:$F,Dollars!$E:$E,'Rent lookup by Agency'!G$6,Dollars!$C:$C,'Rent lookup by Agency'!$C17,Dollars!$A:$A,'Rent lookup by Agency'!$C$1) -> 0 | H17: =SUMIFS(Dollars!$F:$F,Dollars!$E:$E,'Rent lookup by Agency'!H$6,Dollars!$C:$C,'Rent lookup by Agency'!$C17,Dollars!$A:$A,'Rent lookup by Agency'!$C$1) -> 0 | I17: 0 | J17: 0 | K17: 0 | M17: =SUMIFS(Dollars!$G:$G,Dollars!$E:$E,'Rent lookup by Agency'!M$6,Dollars!$C:$C,'Rent lookup by Agency'!$C17,Dollars!$A:$A,'Rent lookup by Agency'!$C$1) -> 0 | N17: =SUMIFS(Dollars!$G:$G,Dollars!$E:$E,'Rent lookup by Agency'!N$6,Dollars!$C:$C,'Rent lookup by Agency'!$C17,Dollars!$A:$A,'Rent lookup by Agency'!$C$1) -> 0 | O17: =SUMIFS(Dollars!$G:$G,Dollars!$E:$E,'Rent lookup by Agency'!O$6,Dollars!$C:$C,'Rent lookup by Agency'!$C17,Dollars!$A:$A,'Rent lookup by Agency'!$C$1) -> 0 | P17: 0 | Q17: 0 | R17: 0
A18: HIDE | C18: Old Cap | D18: =VLOOKUP($C$1,RSF!$A$3:$AJ$108,MATCH($C18,RSF!$A$3:$AK$3,0),FALSE) -> 0 | F18: =SUMIFS(Dollars!$F:$F,Dollars!$E:$E,'Rent lookup by Agency'!F$6,Dollars!$C:$C,'Rent lookup by Agency'!$C18,Dollars!$A:$A,'Rent lookup by Agency'!$C$1) -> 0 | G18: =SUMIFS(Dollars!$F:$F,Dollars!$E:$E,'Rent lookup by Agency'!G$6,Dollars!$C:$C,'Rent lookup by Agency'!$C18,Dollars!$A:$A,'Rent lookup by Agency'!$C$1) -> 0 | H18: =SUMIFS(Dollars!$F:$F,Dollars!$E:$E,'Rent lookup by Agency'!H$6,Dollars!$C:$C,'Rent lookup by Agency'!$C18,Dollars!$A:$A,'Rent lookup by Agency'!$C$1) -> 0 | I18: 0 | J18: 0 | K18: 0 | M18: =SUMIFS(Dollars!$G:$G,Dollars!$E:$E,'Rent lookup by Agency'!M$6,Dollars!$C:$C,'Rent lookup by Agency'!$C18,Dollars!$A:$A,'Rent lookup by Agency'!$C$1) -> 0 | N18: =SUMIFS(Dollars!$G:$G,Dollars!$E:$E,'Rent lookup by Agency'!N$6,Dollars!$C:$C,'Rent lookup by Agency'!$C18,Dollars!$A:$A,'Rent lookup by Agency'!$C$1) -> 0 | O18: =SUMIFS(Dollars!$G:$G,Dollars!$E:$E,'Rent lookup by Agency'!O$6,Dollars!$C:$C,'Rent lookup by Agency'!$C18,Dollars!$A:$A,'Rent lookup by Agency'!$C$1) -> 0 | P18: 0 | Q18: 0 | R18: 0
A19: HIDE | C19: TOJ | D19: =VLOOKUP($C$1,RSF!$A$3:$AJ$108,MATCH($C19,RSF!$A$3:$AK$3,0),FALSE) -> 0 | F19: =SUMIFS(Dollars!$F:$F,Dollars!$E:$E,'Rent lookup by Agency'!F$6,Dollars!$C:$C,'Rent lookup by Agency'!$C19,Dollars!$A:$A,'Rent lookup by Agency'!$C$1) -> 0 | G19: =SUMIFS(Dollars!$F:$F,Dollars!$E:$E,'Rent lookup by Agency'!G$6,Dollars!$C:$C,'Rent lookup by Agency'!$C19,Dollars!$A:$A,'Rent lookup by Agency'!$C$1) -> 0 | H19: =SUMIFS(Dollars!$F:$F,Dollars!$E:$E,'Rent lookup by Agency'!H$6,Dollars!$C:$C,'Rent lookup by Agency'!$C19,Dollars!$A:$A,'Rent lookup by Agency'!$C$1) -> 0 | I19: 0 | J19: 0 | K19: 0 | M19: =SUMIFS(Dollars!$G:$G,Dollars!$E:$E,'Rent lookup by Agency'!M$6,Dollars!$C:$C,'Rent lookup by Agency'!$C19,Dollars!$A:$A,'Rent lookup by Agency'!$C$1) -> 0 | N19: =SUMIFS(Dollars!$G:$G,Dollars!$E:$E,'Rent lookup by Agency'!N$6,Dollars!$C:$C,'Rent lookup by Agency'!$C19,Dollars!$A:$A,'Rent lookup by Agency'!$C$1) -> 0 | O19: =SUMIFS(Dollars!$G:$G,Dollars!$E:$E,'Rent lookup by Agency'!O$6,Dollars!$C:$C,'Rent lookup by Agency'!$C19,Dollars!$A:$A,'Rent lookup by Agency'!$C$1) -> 0 | P19: 0 | Q19: 0 | R19: 0
A20: HIDE | C20: Newhouse | D20: =VLOOKUP($C$1,RSF!$A$3:$AJ$108,MATCH($C20,RSF!$A$3:$AK$3,0),FALSE) -> 0 | F20: =SUMIFS(Dollars!$F:$F,Dollars!$E:$E,'Rent lookup by Agency'!F$6,Dollars!$C:$C,'Rent lookup by Agency'!$C20,Dollars!$A:$A,'Rent lookup by Agency'!$C$1) -> 0 | G20: =SUMIFS(Dollars!$F:$F,Dollars!$E:$E,'Rent lookup by Agency'!G$6,Dollars!$C:$C,'Rent lookup by Agency'!$C20,Dollars!$A:$A,'Rent lookup by Agency'!$C$1) -> 0 | H20: =SUMIFS(Dollars!$F:$F,Dollars!$E:$E,'Rent lookup by Agency'!H$6,Dollars!$C:$C,'Rent lookup by Agency'!$C20,Dollars!$A:$A,'Rent lookup by Agency'!$C$1) -> 0 | I20: 0 | J20: 0 | K20: 0 | M20: =SUMIFS(Dollars!$G:$G,Dollars!$E:$E,'Rent lookup by Agency'!M$6,Dollars!$C:$C,'Rent lookup by Agency'!$C20,Dollars!$A:$A,'Rent lookup by Agency'!$C$1) -> 0 | N20: =SUMIFS(Dollars!$G:$G,Dollars!$E:$E,'Rent lookup by Agency'!N$6,Dollars!$C:$C,'Rent lookup by Agency'!$C20,Dollars!$A:$A,'Rent lookup by Agency'!$C$1) -> 0 | O20: =SUMIFS(Dollars!$G:$G,Dollars!$E:$E,'Rent lookup by Agency'!O$6,Dollars!$C:$C,'Rent lookup by Agency'!$C20,Dollars!$A:$A,'Rent lookup by Agency'!$C$1) -> 0 | P20: 0 | Q20: 0 | R20: 0
A21: HIDE | C21: Modular Bldg | D21: =VLOOKUP($C$1,RSF!$A$3:$AJ$108,MATCH($C21,RSF!$A$3:$AK$3,0),FALSE) -> 0 | F21: =SUMIFS(Dollars!$F:$F,Dollars!$E:$E,'Rent lookup by Agency'!F$6,Dollars!$C:$C,'Rent lookup by Agency'!$C21,Dollars!$A:$A,'Rent lookup by Agency'!$C$1) -> 0 | G21: =SUMIFS(Dollars!$F:$F,Dollars!$E:$E,'Rent lookup by Agency'!G$6,Dollars!$C:$C,'Rent lookup by Agency'!$C21,Dollars!$A:$A,'Rent lookup by Agency'!$C$1) -> 0 | H21: =SUMIFS(Dollars!$F:$F,Dollars!$E:$E,'Rent lookup by Agency'!H$6,Dollars!$C:$C,'Rent lookup by Agency'!$C21,Dollars!$A:$A,'Rent lookup by Agency'!$C$1) -> 0 | I21: 0 | J21: 0 | K21: 0 | M21: =SUMIFS(Dollars!$G:$G,Dollars!$E:$E,'Rent lookup by Agency'!M$6,Dollars!$C:$C,'Rent lookup by Agency'!$C21,Dollars!$A:$A,'Rent lookup by Agency'!$C$1) -> 0 | N21: =SUMIFS(Dollars!$G:$G,Dollars!$E:$E,'Rent lookup by Agency'!N$6,Dollars!$C:$C,'Rent lookup by Agency'!$C21,Dollars!$A:$A,'Rent lookup by Agency'!$C$1) -> 0 | O21: =SUMIFS(Dollars!$G:$G,Dollars!$E:$E,'Rent lookup by Agency'!O$6,Dollars!$C:$C,'Rent lookup by Agency'!$C21,Dollars!$A:$A,'Rent lookup by Agency'!$C$1) -> 0 | P21: 0 | Q21: 0 | R21: 0
A22: HIDE | C22: Isabella Bush | D22: =VLOOKUP($C$1,RSF!$A$3:$AJ$108,MATCH($C22,RSF!$A$3:$AK$3,0),FALSE) -> 0 | F22: =SUMIFS(Dollars!$F:$F,Dollars!$E:$E,'Rent lookup by Agency'!F$6,Dollars!$C:$C,'Rent lookup by Agency'!$C22,Dollars!$A:$A,'Rent lookup by Agency'!$C$1) -> 0 | G22: =SUMIFS(Dollars!$F:$F,Dollars!$E:$E,'Rent lookup by Agency'!G$6,Dollars!$C:$C,'Rent lookup by Agency'!$C22,Dollars!$A:$A,'Rent lookup by Agency'!$C$1) -> 0 | H22: =SUMIFS(Dollars!$F:$F,Dollars!$E:$E,'Rent lookup by Agency'!H$6,Dollars!$C:$C,'Rent lookup by Agency'!$C22,Dollars!$A:$A,'Rent lookup by Agency'!$C$1) -> 0 | I22: 0 | J22: 0 | K22: 0 | M22: =SUMIFS(Dollars!$G:$G,Dollars!$E:$E,'Rent lookup by Agency'!M$6,Dollars!$C:$C,'Rent lookup by Agency'!$C22,Dollars!$A:$A,'Rent lookup by Agency'!$C$1) -> 0 | N22: =SUMIFS(Dollars!$G:$G,Dollars!$E:$E,'Rent lookup by Agency'!N$6,Dollars!$C:$C,'Rent lookup by Agency'!$C22,Dollars!$A:$A,'Rent lookup by Agency'!$C$1) -> 0 | O22: =SUMIFS(Dollars!$G:$G,Dollars!$E:$E,'Rent lookup by Agency'!O$6,Dollars!$C:$C,'Rent lookup by Agency'!$C22,Dollars!$A:$A,'Rent lookup by Agency'!$C$1) -> 0 | P22: 0 | Q22: 0 | R22: 0
A23: HIDE | C23: 1007 Washington | D23: =VLOOKUP($C$1,RSF!$A$3:$AJ$108,MATCH($C23,RSF!$A$3:$AK$3,0),FALSE) -> 0 | F23: =SUMIFS(Dollars!$F:$F,Dollars!$E:$E,'Rent lookup by Agency'!F$6,Dollars!$C:$C,'Rent lookup by Agency'!$C23,Dollars!$A:$A,'Rent lookup by Agency'!$C$1) -> 0 | G23: =SUMIFS(Dollars!$F:$F,Dollars!$E:$E,'Rent lookup by Agency'!G$6,Dollars!$C:$C,'Rent lookup by Agency'!$C23,Dollars!$A:$A,'Rent lookup by Agency'!$C$1) -> 0 | H23: =SUMIFS(Dollars!$F:$F,Dollars!$E:$E,'Rent lookup by Agency'!H$6,Dollars!$C:$C,'Rent lookup by Agency'!$C23,Dollars!$A:$A,'Rent lookup by Agency'!$C$1) -> 0 | I23: 0 | J23: 0 | K23: 0 | M23: =SUMIFS(Dollars!$G:$G,Dollars!$E:$E,'Rent lookup by Agency'!M$6,Dollars!$C:$C,'Rent lookup by Agency'!$C23,Dollars!$A:$A,'Rent lookup by Agency'!$C$1) -> 0 | N23: =SUMIFS(Dollars!$G:$G,Dollars!$E:$E,'Rent lookup by Agency'!N$6,Dollars!$C:$C,'Rent lookup by Agency'!$C23,Dollars!$A:$A,'Rent lookup by Agency'!$C$1) -> 0 | O23: =SUMIFS(Dollars!$G:$G,Dollars!$E:$E,'Rent lookup by Agency'!O$6,Dollars!$C:$C,'Rent lookup by Agency'!$C23,Dollars!$A:$A,'Rent lookup by Agency'!$C$1) -> 0 | P23: 0 | Q23: 0 | R23: 0
A24: HIDE | C24: 120 E Union Avenue | D24: =VLOOKUP($C$1,RSF!$A$3:$AJ$108,MATCH($C24,RSF!$A$3:$AK$3,0),FALSE) -> 0 | F24: =SUMIFS(Dollars!$F:$F,Dollars!$E:$E,'Rent lookup by Agency'!F$6,Dollars!$C:$C,'Rent lookup by Agency'!$C24,Dollars!$A:$A,'Rent lookup by Agency'!$C$1) -> 0 | G24: =SUMIFS(Dollars!$F:$F,Dollars!$E:$E,'Rent lookup by Agency'!G$6,Dollars!$C:$C,'Rent lookup by Agency'!$C24,Dollars!$A:$A,'Rent lookup by Agency'!$C$1) -> 0 | H24: =SUMIFS(Dollars!$F:$F,Dollars!$E:$E,'Rent lookup by Agency'!H$6,Dollars!$C:$C,'Rent lookup by Agency'!$C24,Dollars!$A:$A,'Rent lookup by Agency'!$C$1) -> 0 | I24: 0 | J24: 0 | K24: 0 | M24: =SUMIFS(Dollars!$G:$G,Dollars!$E:$E,'Rent lookup by Agency'!M$6,Dollars!$C:$C,'Rent lookup by Agency'!$C24,Dollars!$A:$A,'Rent lookup by Agency'!$C$1) -> 0 | N24: =SUMIFS(Dollars!$G:$G,Dollars!$E:$E,'Rent lookup by Agency'!N$6,Dollars!$C:$C,'Rent lookup by Agency'!$C24,Dollars!$A:$A,'Rent lookup by Agency'!$C$1) -> 0 | O24: =SUMIFS(Dollars!$G:$G,Dollars!$E:$E,'Rent lookup by Agency'!O$6,Dollars!$C:$C,'Rent lookup by Agency'!$C24,Dollars!$A:$A,'Rent lookup by Agency'!$C$1) -> 0 | P24: 0 | Q24: 0 | R24: 0
A25: HIDE | C25: Capital Court | D25: =VLOOKUP($C$1,RSF!$A$3:$AJ$108,MATCH($C25,RSF!$A$3:$AK$3,0),FALSE) -> 0 | F25: =SUMIFS(Dollars!$F:$F,Dollars!$E:$E,'Rent lookup by Agency'!F$6,Dollars!$C:$C,'Rent lookup by Agency'!$C25,Dollars!$A:$A,'Rent lookup by Agency'!$C$1) -> 0 | G25: =SUMIFS(Dollars!$F:$F,Dollars!$E:$E,'Rent lookup by Agency'!G$6,Dollars!$C:$C,'Rent lookup by Agency'!$C25,Dollars!$A:$A,'Rent lookup by Agency'!$C$1) -> 0 | H25: =SUMIFS(Dollars!$F:$F,Dollars!$E:$E,'Rent lookup by Agency'!H$6,Dollars!$C:$C,'Rent lookup by Agency'!$C25,Dollars!$A:$A,'Rent lookup by Agency'!$C$1) -> 0 | I25: 0 | J25: 0 | K25: 0 | M25: =SUMIFS(Dollars!$G:$G,Dollars!$E:$E,'Rent lookup by Agency'!M$6,Dollars!$C:$C,'Rent lookup by Agency'!$C25,Dollars!$A:$A,'Rent lookup by Agency'!$C$1) -> 0 | N25: =SUMIFS(Dollars!$G:$G,Dollars!$E:$E,'Rent lookup by Agency'!N$6,Dollars!$C:$C,'Rent lookup by Agency'!$C25,Dollars!$A:$A,'Rent lookup by Agency'!$C$1) -> 0 | O25: =SUMIFS(Dollars!$G:$G,Dollars!$E:$E,'Rent lookup by Agency'!O$6,Dollars!$C:$C,'Rent lookup by Agency'!$C25,Dollars!$A:$A,'Rent lookup by Agency'!$C$1) -> 0 | P25: 0 | Q25: 0 | R25: 0
A26: HIDE | C26: James Dolliver Building | D26: =VLOOKUP($C$1,RSF!$A$3:$AJ$108,MATCH($C26,RSF!$A$3:$AK$3,0),FALSE) -> 0 | F26: =SUMIFS(Dollars!$F:$F,Dollars!$E:$E,'Rent lookup by Agency'!F$6,Dollars!$C:$C,'Rent lookup by Agency'!$C26,Dollars!$A:$A,'Rent lookup by Agency'!$C$1) -> 0 | G26: =SUMIFS(Dollars!$F:$F,Dollars!$E:$E,'Rent lookup by Agency'!G$6,Dollars!$C:$C,'Rent lookup by Agency'!$C26,Dollars!$A:$A,'Rent lookup by Agency'!$C$1) -> 0 | H26: =SUMIFS(Dollars!$F:$F,Dollars!$E:$E,'Rent lookup by Agency'!H$6,Dollars!$C:$C,'Rent lookup by Agency'!$C26,Dollars!$A:$A,'Rent lookup by Agency'!$C$1) -> 0 | I26: 0 | J26: 0 | K26: 0 | M26: =SUMIFS(Dollars!$G:$G,Dollars!$E:$E,'Rent lookup by Agency'!M$6,Dollars!$C:$C,'Rent lookup by Agency'!$C26,Dollars!$A:$A,'Rent lookup by Agency'!$C$1) -> 0 | N26: =SUMIFS(Dollars!$G:$G,Dollars!$E:$E,'Rent lookup by Agency'!N$6,Dollars!$C:$C,'Rent lookup by Agency'!$C26,Dollars!$A:$A,'Rent lookup by Agency'!$C$1) -> 0 | O26: =SUMIFS(Dollars!$G:$G,Dollars!$E:$E,'Rent lookup by Agency'!O$6,Dollars!$C:$C,'Rent lookup by Agency'!$C26,Dollars!$A:$A,'Rent lookup by Agency'!$C$1) -> 0 | P26: 0 | Q26: 0 | R26: 0
A27: HIDE | C27: Undeveloped Properties | D27: =VLOOKUP($C$1,RSF!$A$3:$AJ$108,MATCH($C27,RSF!$A$3:$AK$3,0),FALSE) -> 0 | F27: =SUMIFS(Dollars!$F:$F,Dollars!$E:$E,'Rent lookup by Agency'!F$6,Dollars!$C:$C,'Rent lookup by Agency'!$C27,Dollars!$A:$A,'Rent lookup by Agency'!$C$1) -> 0 | G27: =SUMIFS(Dollars!$F:$F,Dollars!$E:$E,'Rent lookup by Agency'!G$6,Dollars!$C:$C,'Rent lookup by Agency'!$C27,Dollars!$A:$A,'Rent lookup by Agency'!$C$1) -> 0 | H27: =SUMIFS(Dollars!$F:$F,Dollars!$E:$E,'Rent lookup by Agency'!H$6,Dollars!$C:$C,'Rent lookup by Agency'!$C27,Dollars!$A:$A,'Rent lookup by Agency'!$C$1) -> 0 | I27: 0 | J27: 0 | K27: 0 | M27: =SUMIFS(Dollars!$G:$G,Dollars!$E:$E,'Rent lookup by Agency'!M$6,Dollars!$C:$C,'Rent lookup by Agency'!$C27,Dollars!$A:$A,'Rent lookup by Agency'!$C$1) -> 0 | N27: =SUMIFS(Dollars!$G:$G,Dollars!$E:$E,'Rent lookup by Agency'!N$6,Dollars!$C:$C,'Rent lookup by Agency'!$C27,Dollars!$A:$A,'Rent lookup by Agency'!$C$1) -> 0 | O27: =SUMIFS(Dollars!$G:$G,Dollars!$E:$E,'Rent lookup by Agency'!O$6,Dollars!$C:$C,'Rent lookup by Agency'!$C27,Dollars!$A:$A,'Rent lookup by Agency'!$C$1) -> 0 | P27: 0 | Q27: 0 | R27: 0
A28: HIDE | C28: 1068 WA Street SE (ST Farm) | D28: =VLOOKUP($C$1,RSF!$A$3:$AJ$108,MATCH($C28,RSF!$A$3:$AK$3,0),FALSE) -> 0 | F28: =SUMIFS(Dollars!$F:$F,Dollars!$E:$E,'Rent lookup by Agency'!F$6,Dollars!$C:$C,'Rent lookup by Agency'!$C28,Dollars!$A:$A,'Rent lookup by Agency'!$C$1) -> 0 | G28: =SUMIFS(Dollars!$F:$F,Dollars!$E:$E,'Rent lookup by Agency'!G$6,Dollars!$C:$C,'Rent lookup by Agency'!$C28,Dollars!$A:$A,'Rent lookup by Agency'!$C$1) -> 0 | H28: =SUMIFS(Dollars!$F:$F,Dollars!$E:$E,'Rent lookup by Agency'!H$6,Dollars!$C:$C,'Rent lookup by Agency'!$C28,Dollars!$A:$A,'Rent lookup by Agency'!$C$1) -> 0 | I28: 0 | J28: 0 | K28: 0 | M28: =SUMIFS(Dollars!$G:$G,Dollars!$E:$E,'Rent lookup by Agency'!M$6,Dollars!$C:$C,'Rent lookup by Agency'!$C28,Dollars!$A:$A,'Rent lookup by Agency'!$C$1) -> 0 | N28: =SUMIFS(Dollars!$G:$G,Dollars!$E:$E,'Rent lookup by Agency'!N$6,Dollars!$C:$C,'Rent lookup by Agency'!$C28,Dollars!$A:$A,'Rent lookup by Agency'!$C$1) -> 0 | O28: =SUMIFS(Dollars!$G:$G,Dollars!$E:$E,'Rent lookup by Agency'!O$6,Dollars!$C:$C,'Rent lookup by Agency'!$C28,Dollars!$A:$A,'Rent lookup by Agency'!$C$1) -> 0 | P28: 0 | Q28: 0 | R28: 0
A29: HIDE | C29: 232 Perry Street | D29: =VLOOKUP($C$1,RSF!$A$3:$AJ$108,MATCH($C29,RSF!$A$3:$AK$3,0),FALSE) -> 0 | F29: =SUMIFS(Dollars!$F:$F,Dollars!$E:$E,'Rent lookup by Agency'!F$6,Dollars!$C:$C,'Rent lookup by Agency'!$C29,Dollars!$A:$A,'Rent lookup by Agency'!$C$1) -> 0 | G29: =SUMIFS(Dollars!$F:$F,Dollars!$E:$E,'Rent lookup by Agency'!G$6,Dollars!$C:$C,'Rent lookup by Agency'!$C29,Dollars!$A:$A,'Rent lookup by Agency'!$C$1) -> 0 | H29: =SUMIFS(Dollars!$F:$F,Dollars!$E:$E,'Rent lookup by Agency'!H$6,Dollars!$C:$C,'Rent lookup by Agency'!$C29,Dollars!$A:$A,'Rent lookup by Agency'!$C$1) -> 0 | I29: 0 | J29: 0 | K29: 0 | M29: =SUMIFS(Dollars!$G:$G,Dollars!$E:$E,'Rent lookup by Agency'!M$6,Dollars!$C:$C,'Rent lookup by Agency'!$C29,Dollars!$A:$A,'Rent lookup by Agency'!$C$1) -> 0 | N29: =SUMIFS(Dollars!$G:$G,Dollars!$E:$E,'Rent lookup by Agency'!N$6,Dollars!$C:$C,'Rent lookup by Agency'!$C29,Dollars!$A:$A,'Rent lookup by Agency'!$C$1) -> 0 | O29: =SUMIFS(Dollars!$G:$G,Dollars!$E:$E,'Rent lookup by Agency'!O$6,Dollars!$C:$C,'Rent lookup by Agency'!$C29,Dollars!$A:$A,'Rent lookup by Agency'!$C$1) -> 0 | P29: 0 | Q29: 0 | R29: 0
A30: HIDE | C30: 208 11th Avenue SE (Pro Arts) | D30: =VLOOKUP($C$1,RSF!$A$3:$AJ$108,MATCH($C30,RSF!$A$3:$AK$3,0),FALSE) -> 0 | F30: =SUMIFS(Dollars!$F:$F,Dollars!$E:$E,'Rent lookup by Agency'!F$6,Dollars!$C:$C,'Rent lookup by Agency'!$C30,Dollars!$A:$A,'Rent lookup by Agency'!$C$1) -> 0 | G30: =SUMIFS(Dollars!$F:$F,Dollars!$E:$E,'Rent lookup by Agency'!G$6,Dollars!$C:$C,'Rent lookup by Agency'!$C30,Dollars!$A:$A,'Rent lookup by Agency'!$C$1) -> 0 | H30: =SUMIFS(Dollars!$F:$F,Dollars!$E:$E,'Rent lookup by Agency'!H$6,Dollars!$C:$C,'Rent lookup by Agency'!$C30,Dollars!$A:$A,'Rent lookup by Agency'!$C$1) -> 0 | I30: 0 | J30: 0 | K30: 0 | M30: =SUMIFS(Dollars!$G:$G,Dollars!$E:$E,'Rent lookup by Agency'!M$6,Dollars!$C:$C,'Rent lookup by Agency'!$C30,Dollars!$A:$A,'Rent lookup by Agency'!$C$1) -> 0 | N30: =SUMIFS(Dollars!$G:$G,Dollars!$E:$E,'Rent lookup by Agency'!N$6,Dollars!$C:$C,'Rent lookup by Agency'!$C30,Dollars!$A:$A,'Rent lookup by Agency'!$C$1) -> 0 | O30: =SUMIFS(Dollars!$G:$G,Dollars!$E:$E,'Rent lookup by Agency'!O$6,Dollars!$C:$C,'Rent lookup by Agency'!$C30,Dollars!$A:$A,'Rent lookup by Agency'!$C$1) -> 0 | P30: 0 | Q30: 0 | R30: 0
A31: HIDE | C31: Press Houses Ayer(White); Carlyon(Blue) | D31: =VLOOKUP($C$1,RSF!$A$3:$AJ$108,MATCH($C31,RSF!$A$3:$AK$3,0),FALSE) -> 0 | F31: =SUMIFS(Dollars!$F:$F,Dollars!$E:$E,'Rent lookup by Agency'!F$6,Dollars!$C:$C,'Rent lookup by Agency'!$C31,Dollars!$A:$A,'Rent lookup by Agency'!$C$1) -> 0 | G31: =SUMIFS(Dollars!$F:$F,Dollars!$E:$E,'Rent lookup by Agency'!G$6,Dollars!$C:$C,'Rent lookup by Agency'!$C31,Dollars!$A:$A,'Rent lookup by Agency'!$C$1) -> 0 | H31: =SUMIFS(Dollars!$F:$F,Dollars!$E:$E,'Rent lookup by Agency'!H$6,Dollars!$C:$C,'Rent lookup by Agency'!$C31,Dollars!$A:$A,'Rent lookup by Agency'!$C$1) -> 0 | I31: 0 | J31: 0 | K31: 0 | M31: =SUMIFS(Dollars!$G:$G,Dollars!$E:$E,'Rent lookup by Agency'!M$6,Dollars!$C:$C,'Rent lookup by Agency'!$C31,Dollars!$A:$A,'Rent lookup by Agency'!$C$1) -> 0 | N31: =SUMIFS(Dollars!$G:$G,Dollars!$E:$E,'Rent lookup by Agency'!N$6,Dollars!$C:$C,'Rent lookup by Agency'!$C31,Dollars!$A:$A,'Rent lookup by Agency'!$C$1) -> 0 | O31: =SUMIFS(Dollars!$G:$G,Dollars!$E:$E,'Rent lookup by Agency'!O$6,Dollars!$C:$C,'Rent lookup by Agency'!$C31,Dollars!$A:$A,'Rent lookup by Agency'!$C$1) -> 0 | P31: 0 | Q31: 0 | R31: 0
A32: HIDE | C32: Visitor Center | D32: =VLOOKUP($C$1,RSF!$A$3:$AJ$108,MATCH($C32,RSF!$A$3:$AK$3,0),FALSE) -> 0 | F32: =SUMIFS(Dollars!$F:$F,Dollars!$E:$E,'Rent lookup by Agency'!F$6,Dollars!$C:$C,'Rent lookup by Agency'!$C32,Dollars!$A:$A,'Rent lookup by Agency'!$C$1) -> 0 | G32: =SUMIFS(Dollars!$F:$F,Dollars!$E:$E,'Rent lookup by Agency'!G$6,Dollars!$C:$C,'Rent lookup by Agency'!$C32,Dollars!$A:$A,'Rent lookup by Agency'!$C$1) -> 0 | H32: =SUMIFS(Dollars!$F:$F,Dollars!$E:$E,'Rent lookup by Agency'!H$6,Dollars!$C:$C,'Rent lookup by Agency'!$C32,Dollars!$A:$A,'Rent lookup by Agency'!$C$1) -> 0 | I32: 0 | J32: 0 | K32: 0 | M32: =SUMIFS(Dollars!$G:$G,Dollars!$E:$E,'Rent lookup by Agency'!M$6,Dollars!$C:$C,'Rent lookup by Agency'!$C32,Dollars!$A:$A,'Rent lookup by Agency'!$C$1) -> 0 | N32: =SUMIFS(Dollars!$G:$G,Dollars!$E:$E,'Rent lookup by Agency'!N$6,Dollars!$C:$C,'Rent lookup by Agency'!$C32,Dollars!$A:$A,'Rent lookup by Agency'!$C$1) -> 0 | O32: =SUMIFS(Dollars!$G:$G,Dollars!$E:$E,'Rent lookup by Agency'!O$6,Dollars!$C:$C,'Rent lookup by Agency'!$C32,Dollars!$A:$A,'Rent lookup by Agency'!$C$1) -> 0 | P32: 0 | Q32: 0 | R32: 0
A33: HIDE | C33: Helen Sommers | D33: =VLOOKUP($C$1,RSF!$A$3:$AJ$108,MATCH($C33,RSF!$A$3:$AK$3,0),FALSE) -> 0 | F33: =SUMIFS(Dollars!$F:$F,Dollars!$E:$E,'Rent lookup by Agency'!F$6,Dollars!$C:$C,'Rent lookup by Agency'!$C33,Dollars!$A:$A,'Rent lookup by Agency'!$C$1) -> 0 | G33: =SUMIFS(Dollars!$F:$F,Dollars!$E:$E,'Rent lookup by Agency'!G$6,Dollars!$C:$C,'Rent lookup by Agency'!$C33,Dollars!$A:$A,'Rent lookup by Agency'!$C$1) -> 0 | H33: =SUMIFS(Dollars!$F:$F,Dollars!$E:$E,'Rent lookup by Agency'!H$6,Dollars!$C:$C,'Rent lookup by Agency'!$C33,Dollars!$A:$A,'Rent lookup by Agency'!$C$1) -> 0 | I33: 0 | J33: 0 | K33: 0 | M33: =SUMIFS(Dollars!$G:$G,Dollars!$E:$E,'Rent lookup by Agency'!M$6,Dollars!$C:$C,'Rent lookup by Agency'!$C33,Dollars!$A:$A,'Rent lookup by Agency'!$C$1) -> 0 | N33: =SUMIFS(Dollars!$G:$G,Dollars!$E:$E,'Rent lookup by Agency'!N$6,Dollars!$C:$C,'Rent lookup by Agency'!$C33,Dollars!$A:$A,'Rent lookup by Agency'!$C$1) -> 0 | O33: =SUMIFS(Dollars!$G:$G,Dollars!$E:$E,'Rent lookup by Agency'!O$6,Dollars!$C:$C,'Rent lookup by Agency'!$C33,Dollars!$A:$A,'Rent lookup by Agency'!$C$1) -> 0 | P33: 0 | Q33: 0 | R33: 0
A34: HIDE | C34: Kelso Building | D34: =VLOOKUP($C$1,RSF!$A$3:$AJ$108,MATCH($C34,RSF!$A$3:$AK$3,0),FALSE) -> 0 | F34: =SUMIFS(Dollars!$F:$F,Dollars!$E:$E,'Rent lookup by Agency'!F$6,Dollars!$C:$C,'Rent lookup by Agency'!$C34,Dollars!$A:$A,'Rent lookup by Agency'!$C$1) -> 0 | G34: =SUMIFS(Dollars!$F:$F,Dollars!$E:$E,'Rent lookup by Agency'!G$6,Dollars!$C:$C,'Rent lookup by Agency'!$C34,Dollars!$A:$A,'Rent lookup by Agency'!$C$1) -> 0 | H34: =SUMIFS(Dollars!$F:$F,Dollars!$E:$E,'Rent lookup by Agency'!H$6,Dollars!$C:$C,'Rent lookup by Agency'!$C34,Dollars!$A:$A,'Rent lookup by Agency'!$C$1) -> 0 | I34: 0 | J34: 0 | K34: 0 | M34: =SUMIFS(Dollars!$G:$G,Dollars!$E:$E,'Rent lookup by Agency'!M$6,Dollars!$C:$C,'Rent lookup by Agency'!$C34,Dollars!$A:$A,'Rent lookup by Agency'!$C$1) -> 0 | N34: =SUMIFS(Dollars!$G:$G,Dollars!$E:$E,'Rent lookup by Agency'!N$6,Dollars!$C:$C,'Rent lookup by Agency'!$C34,Dollars!$A:$A,'Rent lookup by Agency'!$C$1) -> 0 | O34: =SUMIFS(Dollars!$G:$G,Dollars!$E:$E,'Rent lookup by Agency'!O$6,Dollars!$C:$C,'Rent lookup by Agency'!$C34,Dollars!$A:$A,'Rent lookup by Agency'!$C$1) -> 0 | P34: 0 | Q34: 0 | R34: 0
A35: HIDE | C35: Yakima Building | D35: =VLOOKUP($C$1,RSF!$A$3:$AJ$108,MATCH($C35,RSF!$A$3:$AK$3,0),FALSE) -> 0 | F35: =SUMIFS(Dollars!$F:$F,Dollars!$E:$E,'Rent lookup by Agency'!F$6,Dollars!$C:$C,'Rent lookup by Agency'!$C35,Dollars!$A:$A,'Rent lookup by Agency'!$C$1) -> 0 | G35: =SUMIFS(Dollars!$F:$F,Dollars!$E:$E,'Rent lookup by Agency'!G$6,Dollars!$C:$C,'Rent lookup by Agency'!$C35,Dollars!$A:$A,'Rent lookup by Agency'!$C$1) -> 0 | H35: =SUMIFS(Dollars!$F:$F,Dollars!$E:$E,'Rent lookup by Agency'!H$6,Dollars!$C:$C,'Rent lookup by Agency'!$C35,Dollars!$A:$A,'Rent lookup by Agency'!$C$1) -> 0 | I35: 0 | J35: 0 | K35: 0 | M35: =SUMIFS(Dollars!$G:$G,Dollars!$E:$E,'Rent lookup by Agency'!M$6,Dollars!$C:$C,'Rent lookup by Agency'!$C35,Dollars!$A:$A,'Rent lookup by Agency'!$C$1) -> 0 | N35: =SUMIFS(Dollars!$G:$G,Dollars!$E:$E,'Rent lookup by Agency'!N$6,Dollars!$C:$C,'Rent lookup by Agency'!$C35,Dollars!$A:$A,'Rent lookup by Agency'!$C$1) -> 0 | O35: =SUMIFS(Dollars!$G:$G,Dollars!$E:$E,'Rent lookup by Agency'!O$6,Dollars!$C:$C,'Rent lookup by Agency'!$C35,Dollars!$A:$A,'Rent lookup by Agency'!$C$1) -> 0 | P35: 0 | Q35: 0 | R35: 0
A36: HIDE | C36: Alaska Street | D36: =VLOOKUP($C$1,RSF!$A$3:$AJ$108,MATCH($C36,RSF!$A$3:$AK$3,0),FALSE) -> 0 | F36: =SUMIFS(Dollars!$F:$F,Dollars!$E:$E,'Rent lookup by Agency'!F$6,Dollars!$C:$C,'Rent lookup by Agency'!$C36,Dollars!$A:$A,'Rent lookup by Agency'!$C$1) -> 0 | G36: =SUMIFS(Dollars!$F:$F,Dollars!$E:$E,'Rent lookup by Agency'!G$6,Dollars!$C:$C,'Rent lookup by Agency'!$C36,Dollars!$A:$A,'Rent lookup by Agency'!$C$1) -> 0 | H36: =SUMIFS(Dollars!$F:$F,Dollars!$E:$E,'Rent lookup by Agency'!H$6,Dollars!$C:$C,'Rent lookup by Agency'!$C36,Dollars!$A:$A,'Rent lookup by Agency'!$C$1) -> 0 | I36: 0 | J36: 0 | K36: 0 | M36: =SUMIFS(Dollars!$G:$G,Dollars!$E:$E,'Rent lookup by Agency'!M$6,Dollars!$C:$C,'Rent lookup by Agency'!$C36,Dollars!$A:$A,'Rent lookup by Agency'!$C$1) -> 0 | N36: =SUMIFS(Dollars!$G:$G,Dollars!$E:$E,'Rent lookup by Agency'!N$6,Dollars!$C:$C,'Rent lookup by Agency'!$C36,Dollars!$A:$A,'Rent lookup by Agency'!$C$1) -> 0 | O36: =SUMIFS(Dollars!$G:$G,Dollars!$E:$E,'Rent lookup by Agency'!O$6,Dollars!$C:$C,'Rent lookup by Agency'!$C36,Dollars!$A:$A,'Rent lookup by Agency'!$C$1) -> 0 | P36: 0 | Q36: 0 | R36: 0
A37: HIDE | C37: Tacoma Rhodes | D37: =VLOOKUP($C$1,RSF!$A$3:$AJ$108,MATCH($C37,RSF!$A$3:$AK$3,0),FALSE) -> 0 | F37: =SUMIFS(Dollars!$F:$F,Dollars!$E:$E,'Rent lookup by Agency'!F$6,Dollars!$C:$C,'Rent lookup by Agency'!$C37,Dollars!$A:$A,'Rent lookup by Agency'!$C$1) -> 0 | G37: =SUMIFS(Dollars!$F:$F,Dollars!$E:$E,'Rent lookup by Agency'!G$6,Dollars!$C:$C,'Rent lookup by Agency'!$C37,Dollars!$A:$A,'Rent lookup by Agency'!$C$1) -> 0 | H37: =SUMIFS(Dollars!$F:$F,Dollars!$E:$E,'Rent lookup by Agency'!H$6,Dollars!$C:$C,'Rent lookup by Agency'!$C37,Dollars!$A:$A,'Rent lookup by Agency'!$C$1) -> 0 | I37: 0 | J37: 0 | K37: 0 | M37: =SUMIFS(Dollars!$G:$G,Dollars!$E:$E,'Rent lookup by Agency'!M$6,Dollars!$C:$C,'Rent lookup by Agency'!$C37,Dollars!$A:$A,'Rent lookup by Agency'!$C$1) -> 0 | N37: =SUMIFS(Dollars!$G:$G,Dollars!$E:$E,'Rent lookup by Agency'!N$6,Dollars!$C:$C,'Rent lookup by Agency'!$C37,Dollars!$A:$A,'Rent lookup by Agency'!$C$1) -> 0 | O37: =SUMIFS(Dollars!$G:$G,Dollars!$E:$E,'Rent lookup by Agency'!O$6,Dollars!$C:$C,'Rent lookup by Agency'!$C37,Dollars!$A:$A,'Rent lookup by Agency'!$C$1) -> 0 | P37: 0 | Q37: 0 | R37: 0
A38: VIEW | C38: TOTAL | D38: =SUM(D7:D37) -> 123898 | E38: =SUM(E7:E37) -> 0 | F38: 1483035.829 | G38: 0 | H38: 59056.97643 | I38: 1542092.806 | J38: 128507.7338 | K38: =I38/D38 -> 12.44647053 | M38: =SUM(M7:M37) -> 1502021.402 | N38: =SUM(N7:N37) -> 0 | O38: =SUM(O7:O37) -> 59056.97643 | P38: =SUM(P7:P37) -> 1561078.379 | Q38: =SUM(Q7:Q37) -> 130089.8649 | R38: =P38/D38 -> 12.59970604
A39: VIEW
A40: VIEW | C40: Notes:
A41: =IF(D37=0,"HIDE","VIEW") -> HIDE | C41: o Tacoma Rhodes: This building was recently sold to private ownership. DES will work with OFM to have this building removed from the CSM in the Supplemental 22 Budget.
A42: VIEW | C42: o Campus Contracts (CC) is invoiced in three parts:
A43: VIEW | C43: 1) CC Bldg pays for CC services within the buildings (see rent tab)
A44: VIEW | C44: 2) CC Parking pays for CC services within parking garages and lots (see Other Facility Related Costs tab)
A45: VIEW | C45: 3) CC PHF pays for CC services in public & historic spaces (see Other Facility Related Costs tab) Note* Public and Historic Facilities may not be eligible for Federal Funding or Reimbursement
A46: VIEW | C46: o Facilities and Services charges for the House (011), Senate (012), LSS (037), LSC (038) and Statute Law (040) for traditionally "on-campus" buildings are funded by an appropriation to DES and will not be invoiced.
A47: VIEW | C47: o Rent Abatement was provided for DSB (Agency 315) Deli spaces , and will not be invoiced.
A48: VIEW
A49: VIEW | I49: Prepared by DES Budget, Finance Division. For question relating to CSM charges from DES, please contact DesBudget@des.wa.gov
A50: VIEW
A51: VIEW
A52: VIEW
A53: VIEW
A54: VIEW
A55: VIEW
A56: VIEW
A57: VIEW
A58: VIEW
A59: VIEW
A60: VIEW
A61: VIEW
A62: VIEW
A63: VIEW
A64: VIEW
A65: VIEW
A66: VIEW
A67: VIEW
A68: VIEW
A69: VIEW
A70: VIEW
A71: VIEW
A72: VIEW
A73: VIEW
A74: VIEW
A75: VIEW
A76: VIEW
A77: VIEW
A78: VIEW
A79: VIEW
A80: VIEW
A81: VIEW
A82: VIEW
A83: VIEW
A84: VIEW
A85: VIEW
A86: VIEW
A87: VIEW
A88: VIEW
A89: VIEW
A90: VIEW
A91: VIEW
A92: VIEW
A93: VIEW
A94: VIEW
A95: VIEW
A96: VIEW
A97: VIEW
A98: VIEW
A99: VIEW
A100: VIEW
A101: VIEW
A102: VIEW
A103: VIEW
A104: VIEW
A105: VIEW
A106: VIEW
A107: VIEW
A108: VIEW
A109: VIEW
A110: VIEW
A111: VIEW
A112: VIEW
A113: VIEW
A114: VIEW
A115: VIEW
A116: VIEW
A117: VIEW
A118: VIEW
A119: VIEW
A120: VIEW
A121: VIEW
A122: VIEW
A123: VIEW
A124: VIEW
A125: VIEW
A126: VIEW
A127: VIEW
A128: VIEW
A129: VIEW
A130: VIEW
A131: VIEW
A132: VIEW
A133: VIEW
A134: VIEW
A135: VIEW
A136: VIEW
A137: VIEW
A138: VIEW
A139: VIEW
A140: VIEW
A141: VIEW
A142: VIEW
A143: VIEW
A144: VIEW
A145: VIEW
A146: VIEW
A147: VIEW
A148: VIEW
A149: VIEW
A150: VIEW
A151: VIEW
A152: VIEW
A153: VIEW
A154: VIEW
A155: VIEW
A156: VIEW
A157: VIEW
A158: VIEW
A159: VIEW
A160: VIEW
A161: VIEW
A162: VIEW
A163: VIEW
A164: VIEW
A165: VIEW
A166: VIEW
A167: VIEW
A168: VIEW
A169: VIEW
A170: VIEW
A171: VIEW
A172: VIEW
A173: VIEW
A174: VIEW
A175: VIEW
A176: VIEW
A177: VIEW
A178: VIEW
A179: VIEW
A180: VIEW
A181: VIEW
A182: VIEW
A183: VIEW
A184: VIEW
A185: VIEW
A186: VIEW
A187: VIEW
A188: VIEW
A189: VIEW
A190: VIEW
A191: VIEW
A192: VIEW
A193: VIEW
A194: VIEW
A195: VIEW
A196: VIEW
A197: VIEW
A198: VIEW
A199: VIEW
A200: VIEW
... 84 more rows

Sheet Rent lookup by Building
A1: VIEW
A2: VIEW | C2: Occupancy by Building in the Central Service Model | R2: Department of Enterprise Services
A3: VIEW | C3: Building
A4: VIEW | C4: Cherberg | F4: ç Select Building Here
A5: VIEW | E5: Fiscal Year 24 | M5: Fiscal Year 25
A6: VIEW | C6: Agency | D6: occupied RSF | F6: Rent CSM | G6: Fin Cost Recovery CSM | H6: Campus Contracts CSM (bldg) | I6: TOTAL RENT Annual Cost | J6: Monthly Charge | K6: Rent Rate/RSF | M6: Rent CSM | N6: Fin Cost Recovery CSM | O6: Campus Contracts CSM (bldg) | P6: TOTAL RENT Annual Cost | Q6: Monthly Charge | R6: Rent Rate/RSF
A7: =IF(D7=0,"HIDE","VIEW") -> HIDE | B7: =LEFT(C7,3) -> 011 | C7: 011 - House of Representatives | D7: =SUMIFS('RSF List'!C:C,'RSF List'!B:B,'Rent lookup by Building'!$C$4,'RSF List'!A:A,LEFT('Rent lookup by Building'!C7,3)) -> 0 | F7: =SUMIFS(Dollars!$F$2:$F$1188,Dollars!$A$2:$A$1188,'Rent lookup by Building'!$B7,Dollars!$E$2:$E$1188,'Rent lookup by Building'!F$6,Dollars!$C$2:$C$1188,'Rent lookup by Building'!$C$4) -> 0 | G7: =SUMIFS(Dollars!$F$2:$F$1188,Dollars!$A$2:$A$1188,'Rent lookup by Building'!$B7,Dollars!$E$2:$E$1188,'Rent lookup by Building'!G$6,Dollars!$C$2:$C$1188,'Rent lookup by Building'!$C$4) -> 0 | H7: =SUMIFS(Dollars!$F$2:$F$1188,Dollars!$A$2:$A$1188,'Rent lookup by Building'!$B7,Dollars!$E$2:$E$1188,'Rent lookup by Building'!H$6,Dollars!$C$2:$C$1188,'Rent lookup by Building'!$C$4) -> 0 | I7: =SUM(F7:H7) -> 0 | J7: =I7/12 -> 0 | K7: =IFERROR(I7/D7,0) -> 0 | M7: =SUMIFS(Dollars!$G$2:$G$1188,Dollars!$A$2:$A$1188,'Rent lookup by Building'!$B7,Dollars!$E$2:$E$1188,'Rent lookup by Building'!M$6,Dollars!$C$2:$C$1188,'Rent lookup by Building'!$C$4) -> 0 | N7: =SUMIFS(Dollars!$G$2:$G$1188,Dollars!$A$2:$A$1188,'Rent lookup by Building'!$B7,Dollars!$E$2:$E$1188,'Rent lookup by Building'!N$6,Dollars!$C$2:$C$1188,'Rent lookup by Building'!$C$4) -> 0 | O7: =SUMIFS(Dollars!$G$2:$G$1188,Dollars!$A$2:$A$1188,'Rent lookup by Building'!$B7,Dollars!$E$2:$E$1188,'Rent lookup by Building'!O$6,Dollars!$C$2:$C$1188,'Rent lookup by Building'!$C$4) -> 0 | P7: =SUM(M7:O7) -> 0 | Q7: =P7/12 -> 0 | R7: =IFERROR(P7/D7,0) -> 0
A8: =IF(D8=0,"HIDE","VIEW") -> VIEW | B8: =LEFT(C8,3) -> 012 | C8: 012 - Senate | D8: =SUMIFS('RSF List'!C:C,'RSF List'!B:B,'Rent lookup by Building'!$C$4,'RSF List'!A:A,LEFT('Rent lookup by Building'!C8,3)) -> 77281 | F8: =SUMIFS(Dollars!$F$2:$F$1188,Dollars!$A$2:$A$1188,'Rent lookup by Building'!$B8,Dollars!$E$2:$E$1188,'Rent lookup by Building'!F$6,Dollars!$C$2:$C$1188,'Rent lookup by Building'!$C$4) -> 1157203.275 | G8: =SUMIFS(Dollars!$F$2:$F$1188,Dollars!$A$2:$A$1188,'Rent lookup by Building'!$B8,Dollars!$E$2:$E$1188,'Rent lookup by Building'!G$6,Dollars!$C$2:$C$1188,'Rent lookup by Building'!$C$4) -> 0 | H8: =SUMIFS(Dollars!$F$2:$F$1188,Dollars!$A$2:$A$1188,'Rent lookup by Building'!$B8,Dollars!$E$2:$E$1188,'Rent lookup by Building'!H$6,Dollars!$C$2:$C$1188,'Rent lookup by Building'!$C$4) -> 35396.86806 | I8: =SUM(F8:H8) -> 1192600.143 | J8: =I8/12 -> 99383.34528 | K8: =IFERROR(I8/D8,0) -> 15.43199678 | M8: =SUMIFS(Dollars!$G$2:$G$1188,Dollars!$A$2:$A$1188,'Rent lookup by Building'!$B8,Dollars!$E$2:$E$1188,'Rent lookup by Building'!M$6,Dollars!$C$2:$C$1188,'Rent lookup by Building'!$C$4) -> 1172017.595 | N8: =SUMIFS(Dollars!$G$2:$G$1188,Dollars!$A$2:$A$1188,'Rent lookup by Building'!$B8,Dollars!$E$2:$E$1188,'Rent lookup by Building'!N$6,Dollars!$C$2:$C$1188,'Rent lookup by Building'!$C$4) -> 0 | O8: =SUMIFS(Dollars!$G$2:$G$1188,Dollars!$A$2:$A$1188,'Rent lookup by Building'!$B8,Dollars!$E$2:$E$1188,'Rent lookup by Building'!O$6,Dollars!$C$2:$C$1188,'Rent lookup by Building'!$C$4) -> 35396.86806 | P8: =SUM(M8:O8) -> 1207414.463 | Q8: =P8/12 -> 100617.8719 | R8: =IFERROR(P8/D8,0) -> 15.62369099
A9: HIDE | B9: 013 | C9: 013 - Joint Transportation Committee | D9: =SUMIFS('RSF List'!C:C,'RSF List'!B:B,'Rent lookup by Building'!$C$4,'RSF List'!A:A,LEFT('Rent lookup by Building'!C9,3)) -> 0 | F9: =SUMIFS(Dollars!$F$2:$F$1188,Dollars!$A$2:$A$1188,'Rent lookup by Building'!$B9,Dollars!$E$2:$E$1188,'Rent lookup by Building'!F$6,Dollars!$C$2:$C$1188,'Rent lookup by Building'!$C$4) -> 0 | G9: =SUMIFS(Dollars!$F$2:$F$1188,Dollars!$A$2:$A$1188,'Rent lookup by Building'!$B9,Dollars!$E$2:$E$1188,'Rent lookup by Building'!G$6,Dollars!$C$2:$C$1188,'Rent lookup by Building'!$C$4) -> 0 | H9: =SUMIFS(Dollars!$F$2:$F$1188,Dollars!$A$2:$A$1188,'Rent lookup by Building'!$B9,Dollars!$E$2:$E$1188,'Rent lookup by Building'!H$6,Dollars!$C$2:$C$1188,'Rent lookup by Building'!$C$4) -> 0 | I9: 0 | J9: 0 | K9: 0 | M9: =SUMIFS(Dollars!$G$2:$G$1188,Dollars!$A$2:$A$1188,'Rent lookup by Building'!$B9,Dollars!$E$2:$E$1188,'Rent lookup by Building'!M$6,Dollars!$C$2:$C$1188,'Rent lookup by Building'!$C$4) -> 0 | N9: =SUMIFS(Dollars!$G$2:$G$1188,Dollars!$A$2:$A$1188,'Rent lookup by Building'!$B9,Dollars!$E$2:$E$1188,'Rent lookup by Building'!N$6,Dollars!$C$2:$C$1188,'Rent lookup by Building'!$C$4) -> 0 | O9: =SUMIFS(Dollars!$G$2:$G$1188,Dollars!$A$2:$A$1188,'Rent lookup by Building'!$B9,Dollars!$E$2:$E$1188,'Rent lookup by Building'!O$6,Dollars!$C$2:$C$1188,'Rent lookup by Building'!$C$4) -> 0 | P9: 0 | Q9: 0 | R9: 0
A10: HIDE | B10: 014 | C10: 014 - Joint Legislative Audit and Review Committee | D10: =SUMIFS('RSF List'!C:C,'RSF List'!B:B,'Rent lookup by Building'!$C$4,'RSF List'!A:A,LEFT('Rent lookup by Building'!C10,3)) -> 0 | F10: =SUMIFS(Dollars!$F$2:$F$1188,Dollars!$A$2:$A$1188,'Rent lookup by Building'!$B10,Dollars!$E$2:$E$1188,'Rent lookup by Building'!F$6,Dollars!$C$2:$C$1188,'Rent lookup by Building'!$C$4) -> 0 | G10: =SUMIFS(Dollars!$F$2:$F$1188,Dollars!$A$2:$A$1188,'Rent lookup by Building'!$B10,Dollars!$E$2:$E$1188,'Rent lookup by Building'!G$6,Dollars!$C$2:$C$1188,'Rent lookup by Building'!$C$4) -> 0 | H10: =SUMIFS(Dollars!$F$2:$F$1188,Dollars!$A$2:$A$1188,'Rent lookup by Building'!$B10,Dollars!$E$2:$E$1188,'Rent lookup by Building'!H$6,Dollars!$C$2:$C$1188,'Rent lookup by Building'!$C$4) -> 0 | I10: 0 | J10: 0 | K10: 0 | M10: =SUMIFS(Dollars!$G$2:$G$1188,Dollars!$A$2:$A$1188,'Rent lookup by Building'!$B10,Dollars!$E$2:$E$1188,'Rent lookup by Building'!M$6,Dollars!$C$2:$C$1188,'Rent lookup by Building'!$C$4) -> 0 | N10: =SUMIFS(Dollars!$G$2:$G$1188,Dollars!$A$2:$A$1188,'Rent lookup by Building'!$B10,Dollars!$E$2:$E$1188,'Rent lookup by Building'!N$6,Dollars!$C$2:$C$1188,'Rent lookup by Building'!$C$4) -> 0 | O10: =SUMIFS(Dollars!$G$2:$G$1188,Dollars!$A$2:$A$1188,'Rent lookup by Building'!$B10,Dollars!$E$2:$E$1188,'Rent lookup by Building'!O$6,Dollars!$C$2:$C$1188,'Rent lookup by Building'!$C$4) -> 0 | P10: 0 | Q10: 0 | R10: 0
A11: HIDE | B11: 020 | C11: 020 - Legislative Evaluation and Accountability Program Committee | D11: =SUMIFS('RSF List'!C:C,'RSF List'!B:B,'Rent lookup by Building'!$C$4,'RSF List'!A:A,LEFT('Rent lookup by Building'!C11,3)) -> 0 | F11: =SUMIFS(Dollars!$F$2:$F$1188,Dollars!$A$2:$A$1188,'Rent lookup by Building'!$B11,Dollars!$E$2:$E$1188,'Rent lookup by Building'!F$6,Dollars!$C$2:$C$1188,'Rent lookup by Building'!$C$4) -> 0 | G11: =SUMIFS(Dollars!$F$2:$F$1188,Dollars!$A$2:$A$1188,'Rent lookup by Building'!$B11,Dollars!$E$2:$E$1188,'Rent lookup by Building'!G$6,Dollars!$C$2:$C$1188,'Rent lookup by Building'!$C$4) -> 0 | H11: =SUMIFS(Dollars!$F$2:$F$1188,Dollars!$A$2:$A$1188,'Rent lookup by Building'!$B11,Dollars!$E$2:$E$1188,'Rent lookup by Building'!H$6,Dollars!$C$2:$C$1188,'Rent lookup by Building'!$C$4) -> 0 | I11: 0 | J11: 0 | K11: 0 | M11: =SUMIFS(Dollars!$G$2:$G$1188,Dollars!$A$2:$A$1188,'Rent lookup by Building'!$B11,Dollars!$E$2:$E$1188,'Rent lookup by Building'!M$6,Dollars!$C$2:$C$1188,'Rent lookup by Building'!$C$4) -> 0 | N11: =SUMIFS(Dollars!$G$2:$G$1188,Dollars!$A$2:$A$1188,'Rent lookup by Building'!$B11,Dollars!$E$2:$E$1188,'Rent lookup by Building'!N$6,Dollars!$C$2:$C$1188,'Rent lookup by Building'!$C$4) -> 0 | O11: =SUMIFS(Dollars!$G$2:$G$1188,Dollars!$A$2:$A$1188,'Rent lookup by Building'!$B11,Dollars!$E$2:$E$1188,'Rent lookup by Building'!O$6,Dollars!$C$2:$C$1188,'Rent lookup by Building'!$C$4) -> 0 | P11: 0 | Q11: 0 | R11: 0
A12: HIDE | B12: 035 | C12: 035 - Office of the State Actuary | D12: =SUMIFS('RSF List'!C:C,'RSF List'!B:B,'Rent lookup by Building'!$C$4,'RSF List'!A:A,LEFT('Rent lookup by Building'!C12,3)) -> 0 | F12: =SUMIFS(Dollars!$F$2:$F$1188,Dollars!$A$2:$A$1188,'Rent lookup by Building'!$B12,Dollars!$E$2:$E$1188,'Rent lookup by Building'!F$6,Dollars!$C$2:$C$1188,'Rent lookup by Building'!$C$4) -> 0 | G12: =SUMIFS(Dollars!$F$2:$F$1188,Dollars!$A$2:$A$1188,'Rent lookup by Building'!$B12,Dollars!$E$2:$E$1188,'Rent lookup by Building'!G$6,Dollars!$C$2:$C$1188,'Rent lookup by Building'!$C$4) -> 0 | H12: =SUMIFS(Dollars!$F$2:$F$1188,Dollars!$A$2:$A$1188,'Rent lookup by Building'!$B12,Dollars!$E$2:$E$1188,'Rent lookup by Building'!H$6,Dollars!$C$2:$C$1188,'Rent lookup by Building'!$C$4) -> 0 | I12: 0 | J12: 0 | K12: 0 | M12: =SUMIFS(Dollars!$G$2:$G$1188,Dollars!$A$2:$A$1188,'Rent lookup by Building'!$B12,Dollars!$E$2:$E$1188,'Rent lookup by Building'!M$6,Dollars!$C$2:$C$1188,'Rent lookup by Building'!$C$4) -> 0 | N12: =SUMIFS(Dollars!$G$2:$G$1188,Dollars!$A$2:$A$1188,'Rent lookup by Building'!$B12,Dollars!$E$2:$E$1188,'Rent lookup by Building'!N$6,Dollars!$C$2:$C$1188,'Rent lookup by Building'!$C$4) -> 0 | O12: =SUMIFS(Dollars!$G$2:$G$1188,Dollars!$A$2:$A$1188,'Rent lookup by Building'!$B12,Dollars!$E$2:$E$1188,'Rent lookup by Building'!O$6,Dollars!$C$2:$C$1188,'Rent lookup by Building'!$C$4) -> 0 | P12: 0 | Q12: 0 | R12: 0
A13: HIDE | B13: 037 | C13: 037 - Office of Legislative Support Services | D13: =SUMIFS('RSF List'!C:C,'RSF List'!B:B,'Rent lookup by Building'!$C$4,'RSF List'!A:A,LEFT('Rent lookup by Building'!C13,3)) -> 0 | F13: =SUMIFS(Dollars!$F$2:$F$1188,Dollars!$A$2:$A$1188,'Rent lookup by Building'!$B13,Dollars!$E$2:$E$1188,'Rent lookup by Building'!F$6,Dollars!$C$2:$C$1188,'Rent lookup by Building'!$C$4) -> 0 | G13: =SUMIFS(Dollars!$F$2:$F$1188,Dollars!$A$2:$A$1188,'Rent lookup by Building'!$B13,Dollars!$E$2:$E$1188,'Rent lookup by Building'!G$6,Dollars!$C$2:$C$1188,'Rent lookup by Building'!$C$4) -> 0 | H13: =SUMIFS(Dollars!$F$2:$F$1188,Dollars!$A$2:$A$1188,'Rent lookup by Building'!$B13,Dollars!$E$2:$E$1188,'Rent lookup by Building'!H$6,Dollars!$C$2:$C$1188,'Rent lookup by Building'!$C$4) -> 0 | I13: 0 | J13: 0 | K13: 0 | M13: =SUMIFS(Dollars!$G$2:$G$1188,Dollars!$A$2:$A$1188,'Rent lookup by Building'!$B13,Dollars!$E$2:$E$1188,'Rent lookup by Building'!M$6,Dollars!$C$2:$C$1188,'Rent lookup by Building'!$C$4) -> 0 | N13: =SUMIFS(Dollars!$G$2:$G$1188,Dollars!$A$2:$A$1188,'Rent lookup by Building'!$B13,Dollars!$E$2:$E$1188,'Rent lookup by Building'!N$6,Dollars!$C$2:$C$1188,'Rent lookup by Building'!$C$4) -> 0 | O13: =SUMIFS(Dollars!$G$2:$G$1188,Dollars!$A$2:$A$1188,'Rent lookup by Building'!$B13,Dollars!$E$2:$E$1188,'Rent lookup by Building'!O$6,Dollars!$C$2:$C$1188,'Rent lookup by Building'!$C$4) -> 0 | P13: 0 | Q13: 0 | R13: 0
A14: HIDE | B14: 038 | C14: 038 - Joint Legislative Systems Committee | D14: =SUMIFS('RSF List'!C:C,'RSF List'!B:B,'Rent lookup by Building'!$C$4,'RSF List'!A:A,LEFT('Rent lookup by Building'!C14,3)) -> 0 | F14: =SUMIFS(Dollars!$F$2:$F$1188,Dollars!$A$2:$A$1188,'Rent lookup by Building'!$B14,Dollars!$E$2:$E$1188,'Rent lookup by Building'!F$6,Dollars!$C$2:$C$1188,'Rent lookup by Building'!$C$4) -> 0 | G14: =SUMIFS(Dollars!$F$2:$F$1188,Dollars!$A$2:$A$1188,'Rent lookup by Building'!$B14,Dollars!$E$2:$E$1188,'Rent lookup by Building'!G$6,Dollars!$C$2:$C$1188,'Rent lookup by Building'!$C$4) -> 0 | H14: =SUMIFS(Dollars!$F$2:$F$1188,Dollars!$A$2:$A$1188,'Rent lookup by Building'!$B14,Dollars!$E$2:$E$1188,'Rent lookup by Building'!H$6,Dollars!$C$2:$C$1188,'Rent lookup by Building'!$C$4) -> 0 | I14: 0 | J14: 0 | K14: 0 | M14: =SUMIFS(Dollars!$G$2:$G$1188,Dollars!$A$2:$A$1188,'Rent lookup by Building'!$B14,Dollars!$E$2:$E$1188,'Rent lookup by Building'!M$6,Dollars!$C$2:$C$1188,'Rent lookup by Building'!$C$4) -> 0 | N14: =SUMIFS(Dollars!$G$2:$G$1188,Dollars!$A$2:$A$1188,'Rent lookup by Building'!$B14,Dollars!$E$2:$E$1188,'Rent lookup by Building'!N$6,Dollars!$C$2:$C$1188,'Rent lookup by Building'!$C$4) -> 0 | O14: =SUMIFS(Dollars!$G$2:$G$1188,Dollars!$A$2:$A$1188,'Rent lookup by Building'!$B14,Dollars!$E$2:$E$1188,'Rent lookup by Building'!O$6,Dollars!$C$2:$C$1188,'Rent lookup by Building'!$C$4) -> 0 | P14: 0 | Q14: 0 | R14: 0
A15: HIDE | B15: 040 | C15: 040 - Statute Law Committee (Code Revisor) | D15: =SUMIFS('RSF List'!C:C,'RSF List'!B:B,'Rent lookup by Building'!$C$4,'RSF List'!A:A,LEFT('Rent lookup by Building'!C15,3)) -> 0 | F15: =SUMIFS(Dollars!$F$2:$F$1188,Dollars!$A$2:$A$1188,'Rent lookup by Building'!$B15,Dollars!$E$2:$E$1188,'Rent lookup by Building'!F$6,Dollars!$C$2:$C$1188,'Rent lookup by Building'!$C$4) -> 0 | G15: =SUMIFS(Dollars!$F$2:$F$1188,Dollars!$A$2:$A$1188,'Rent lookup by Building'!$B15,Dollars!$E$2:$E$1188,'Rent lookup by Building'!G$6,Dollars!$C$2:$C$1188,'Rent lookup by Building'!$C$4) -> 0 | H15: =SUMIFS(Dollars!$F$2:$F$1188,Dollars!$A$2:$A$1188,'Rent lookup by Building'!$B15,Dollars!$E$2:$E$1188,'Rent lookup by Building'!H$6,Dollars!$C$2:$C$1188,'Rent lookup by Building'!$C$4) -> 0 | I15: 0 | J15: 0 | K15: 0 | M15: =SUMIFS(Dollars!$G$2:$G$1188,Dollars!$A$2:$A$1188,'Rent lookup by Building'!$B15,Dollars!$E$2:$E$1188,'Rent lookup by Building'!M$6,Dollars!$C$2:$C$1188,'Rent lookup by Building'!$C$4) -> 0 | N15: =SUMIFS(Dollars!$G$2:$G$1188,Dollars!$A$2:$A$1188,'Rent lookup by Building'!$B15,Dollars!$E$2:$E$1188,'Rent lookup by Building'!N$6,Dollars!$C$2:$C$1188,'Rent lookup by Building'!$C$4) -> 0 | O15: =SUMIFS(Dollars!$G$2:$G$1188,Dollars!$A$2:$A$1188,'Rent lookup by Building'!$B15,Dollars!$E$2:$E$1188,'Rent lookup by Building'!O$6,Dollars!$C$2:$C$1188,'Rent lookup by Building'!$C$4) -> 0 | P15: 0 | Q15: 0 | R15: 0
A16: HIDE | B16: 045 | C16: 045 - Supreme Court | D16: =SUMIFS('RSF List'!C:C,'RSF List'!B:B,'Rent lookup by Building'!$C$4,'RSF List'!A:A,LEFT('Rent lookup by Building'!C16,3)) -> 0 | F16: =SUMIFS(Dollars!$F$2:$F$1188,Dollars!$A$2:$A$1188,'Rent lookup by Building'!$B16,Dollars!$E$2:$E$1188,'Rent lookup by Building'!F$6,Dollars!$C$2:$C$1188,'Rent lookup by Building'!$C$4) -> 0 | G16: =SUMIFS(Dollars!$F$2:$F$1188,Dollars!$A$2:$A$1188,'Rent lookup by Building'!$B16,Dollars!$E$2:$E$1188,'Rent lookup by Building'!G$6,Dollars!$C$2:$C$1188,'Rent lookup by Building'!$C$4) -> 0 | H16: =SUMIFS(Dollars!$F$2:$F$1188,Dollars!$A$2:$A$1188,'Rent lookup by Building'!$B16,Dollars!$E$2:$E$1188,'Rent lookup by Building'!H$6,Dollars!$C$2:$C$1188,'Rent lookup by Building'!$C$4) -> 0 | I16: 0 | J16: 0 | K16: 0 | M16: =SUMIFS(Dollars!$G$2:$G$1188,Dollars!$A$2:$A$1188,'Rent lookup by Building'!$B16,Dollars!$E$2:$E$1188,'Rent lookup by Building'!M$6,Dollars!$C$2:$C$1188,'Rent lookup by Building'!$C$4) -> 0 | N16: =SUMIFS(Dollars!$G$2:$G$1188,Dollars!$A$2:$A$1188,'Rent lookup by Building'!$B16,Dollars!$E$2:$E$1188,'Rent lookup by Building'!N$6,Dollars!$C$2:$C$1188,'Rent lookup by Building'!$C$4) -> 0 | O16: =SUMIFS(Dollars!$G$2:$G$1188,Dollars!$A$2:$A$1188,'Rent lookup by Building'!$B16,Dollars!$E$2:$E$1188,'Rent lookup by Building'!O$6,Dollars!$C$2:$C$1188,'Rent lookup by Building'!$C$4) -> 0 | P16: 0 | Q16: 0 | R16: 0
A17: HIDE | B17: 046 | C17: 046 - Law Library | D17: =SUMIFS('RSF List'!C:C,'RSF List'!B:B,'Rent lookup by Building'!$C$4,'RSF List'!A:A,LEFT('Rent lookup by Building'!C17,3)) -> 0 | F17: =SUMIFS(Dollars!$F$2:$F$1188,Dollars!$A$2:$A$1188,'Rent lookup by Building'!$B17,Dollars!$E$2:$E$1188,'Rent lookup by Building'!F$6,Dollars!$C$2:$C$1188,'Rent lookup by Building'!$C$4) -> 0 | G17: =SUMIFS(Dollars!$F$2:$F$1188,Dollars!$A$2:$A$1188,'Rent lookup by Building'!$B17,Dollars!$E$2:$E$1188,'Rent lookup by Building'!G$6,Dollars!$C$2:$C$1188,'Rent lookup by Building'!$C$4) -> 0 | H17: =SUMIFS(Dollars!$F$2:$F$1188,Dollars!$A$2:$A$1188,'Rent lookup by Building'!$B17,Dollars!$E$2:$E$1188,'Rent lookup by Building'!H$6,Dollars!$C$2:$C$1188,'Rent lookup by Building'!$C$4) -> 0 | I17: 0 | J17: 0 | K17: 0 | M17: =SUMIFS(Dollars!$G$2:$G$1188,Dollars!$A$2:$A$1188,'Rent lookup by Building'!$B17,Dollars!$E$2:$E$1188,'Rent lookup by Building'!M$6,Dollars!$C$2:$C$1188,'Rent lookup by Building'!$C$4) -> 0 | N17: =SUMIFS(Dollars!$G$2:$G$1188,Dollars!$A$2:$A$1188,'Rent lookup by Building'!$B17,Dollars!$E$2:$E$1188,'Rent lookup by Building'!N$6,Dollars!$C$2:$C$1188,'Rent lookup by Building'!$C$4) -> 0 | O17: =SUMIFS(Dollars!$G$2:$G$1188,Dollars!$A$2:$A$1188,'Rent lookup by Building'!$B17,Dollars!$E$2:$E$1188,'Rent lookup by Building'!O$6,Dollars!$C$2:$C$1188,'Rent lookup by Building'!$C$4) -> 0 | P17: 0 | Q17: 0 | R17: 0
A18: HIDE | B18: 048 | C18: 048 - Court of Appeals | D18: =SUMIFS('RSF List'!C:C,'RSF List'!B:B,'Rent lookup by Building'!$C$4,'RSF List'!A:A,LEFT('Rent lookup by Building'!C18,3)) -> 0 | F18: =SUMIFS(Dollars!$F$2:$F$1188,Dollars!$A$2:$A$1188,'Rent lookup by Building'!$B18,Dollars!$E$2:$E$1188,'Rent lookup by Building'!F$6,Dollars!$C$2:$C$1188,'Rent lookup by Building'!$C$4) -> 0 | G18: =SUMIFS(Dollars!$F$2:$F$1188,Dollars!$A$2:$A$1188,'Rent lookup by Building'!$B18,Dollars!$E$2:$E$1188,'Rent lookup by Building'!G$6,Dollars!$C$2:$C$1188,'Rent lookup by Building'!$C$4) -> 0 | H18: =SUMIFS(Dollars!$F$2:$F$1188,Dollars!$A$2:$A$1188,'Rent lookup by Building'!$B18,Dollars!$E$2:$E$1188,'Rent lookup by Building'!H$6,Dollars!$C$2:$C$1188,'Rent lookup by Building'!$C$4) -> 0 | I18: 0 | J18: 0 | K18: 0 | M18: =SUMIFS(Dollars!$G$2:$G$1188,Dollars!$A$2:$A$1188,'Rent lookup by Building'!$B18,Dollars!$E$2:$E$1188,'Rent lookup by Building'!M$6,Dollars!$C$2:$C$1188,'Rent lookup by Building'!$C$4) -> 0 | N18: =SUMIFS(Dollars!$G$2:$G$1188,Dollars!$A$2:$A$1188,'Rent lookup by Building'!$B18,Dollars!$E$2:$E$1188,'Rent lookup by Building'!N$6,Dollars!$C$2:$C$1188,'Rent lookup by Building'!$C$4) -> 0 | O18: =SUMIFS(Dollars!$G$2:$G$1188,Dollars!$A$2:$A$1188,'Rent lookup by Building'!$B18,Dollars!$E$2:$E$1188,'Rent lookup by Building'!O$6,Dollars!$C$2:$C$1188,'Rent lookup by Building'!$C$4) -> 0 | P18: 0 | Q18: 0 | R18: 0
A19: HIDE | B19: 050 | C19: 050 - Commission on Judicial Conduct | D19: =SUMIFS('RSF List'!C:C,'RSF List'!B:B,'Rent lookup by Building'!$C$4,'RSF List'!A:A,LEFT('Rent lookup by Building'!C19,3)) -> 0 | F19: =SUMIFS(Dollars!$F$2:$F$1188,Dollars!$A$2:$A$1188,'Rent lookup by Building'!$B19,Dollars!$E$2:$E$1188,'Rent lookup by Building'!F$6,Dollars!$C$2:$C$1188,'Rent lookup by Building'!$C$4) -> 0 | G19: =SUMIFS(Dollars!$F$2:$F$1188,Dollars!$A$2:$A$1188,'Rent lookup by Building'!$B19,Dollars!$E$2:$E$1188,'Rent lookup by Building'!G$6,Dollars!$C$2:$C$1188,'Rent lookup by Building'!$C$4) -> 0 | H19: =SUMIFS(Dollars!$F$2:$F$1188,Dollars!$A$2:$A$1188,'Rent lookup by Building'!$B19,Dollars!$E$2:$E$1188,'Rent lookup by Building'!H$6,Dollars!$C$2:$C$1188,'Rent lookup by Building'!$C$4) -> 0 | I19: 0 | J19: 0 | K19: 0 | M19: =SUMIFS(Dollars!$G$2:$G$1188,Dollars!$A$2:$A$1188,'Rent lookup by Building'!$B19,Dollars!$E$2:$E$1188,'Rent lookup by Building'!M$6,Dollars!$C$2:$C$1188,'Rent lookup by Building'!$C$4) -> 0 | N19: =SUMIFS(Dollars!$G$2:$G$1188,Dollars!$A$2:$A$1188,'Rent lookup by Building'!$B19,Dollars!$E$2:$E$1188,'Rent lookup by Building'!N$6,Dollars!$C$2:$C$1188,'Rent lookup by Building'!$C$4) -> 0 | O19: =SUMIFS(Dollars!$G$2:$G$1188,Dollars!$A$2:$A$1188,'Rent lookup by Building'!$B19,Dollars!$E$2:$E$1188,'Rent lookup by Building'!O$6,Dollars!$C$2:$C$1188,'Rent lookup by Building'!$C$4) -> 0 | P19: 0 | Q19: 0 | R19: 0
A20: HIDE | B20: 055 | C20: 055 - Administrative Office of the Courts | D20: =SUMIFS('RSF List'!C:C,'RSF List'!B:B,'Rent lookup by Building'!$C$4,'RSF List'!A:A,LEFT('Rent lookup by Building'!C20,3)) -> 0 | F20: =SUMIFS(Dollars!$F$2:$F$1188,Dollars!$A$2:$A$1188,'Rent lookup by Building'!$B20,Dollars!$E$2:$E$1188,'Rent lookup by Building'!F$6,Dollars!$C$2:$C$1188,'Rent lookup by Building'!$C$4) -> 0 | G20: =SUMIFS(Dollars!$F$2:$F$1188,Dollars!$A$2:$A$1188,'Rent lookup by Building'!$B20,Dollars!$E$2:$E$1188,'Rent lookup by Building'!G$6,Dollars!$C$2:$C$1188,'Rent lookup by Building'!$C$4) -> 0 | H20: =SUMIFS(Dollars!$F$2:$F$1188,Dollars!$A$2:$A$1188,'Rent lookup by Building'!$B20,Dollars!$E$2:$E$1188,'Rent lookup by Building'!H$6,Dollars!$C$2:$C$1188,'Rent lookup by Building'!$C$4) -> 0 | I20: 0 | J20: 0 | K20: 0 | M20: =SUMIFS(Dollars!$G$2:$G$1188,Dollars!$A$2:$A$1188,'Rent lookup by Building'!$B20,Dollars!$E$2:$E$1188,'Rent lookup by Building'!M$6,Dollars!$C$2:$C$1188,'Rent lookup by Building'!$C$4) -> 0 | N20: =SUMIFS(Dollars!$G$2:$G$1188,Dollars!$A$2:$A$1188,'Rent lookup by Building'!$B20,Dollars!$E$2:$E$1188,'Rent lookup by Building'!N$6,Dollars!$C$2:$C$1188,'Rent lookup by Building'!$C$4) -> 0 | O20: =SUMIFS(Dollars!$G$2:$G$1188,Dollars!$A$2:$A$1188,'Rent lookup by Building'!$B20,Dollars!$E$2:$E$1188,'Rent lookup by Building'!O$6,Dollars!$C$2:$C$1188,'Rent lookup by Building'!$C$4) -> 0 | P20: 0 | Q20: 0 | R20: 0
A21: HIDE | B21: 056 | C21: 056 - Office of Public Defense | D21: =SUMIFS('RSF List'!C:C,'RSF List'!B:B,'Rent lookup by Building'!$C$4,'RSF List'!A:A,LEFT('Rent lookup by Building'!C21,3)) -> 0 | F21: =SUMIFS(Dollars!$F$2:$F$1188,Dollars!$A$2:$A$1188,'Rent lookup by Building'!$B21,Dollars!$E$2:$E$1188,'Rent lookup by Building'!F$6,Dollars!$C$2:$C$1188,'Rent lookup by Building'!$C$4) -> 0 | G21: =SUMIFS(Dollars!$F$2:$F$1188,Dollars!$A$2:$A$1188,'Rent lookup by Building'!$B21,Dollars!$E$2:$E$1188,'Rent lookup by Building'!G$6,Dollars!$C$2:$C$1188,'Rent lookup by Building'!$C$4) -> 0 | H21: =SUMIFS(Dollars!$F$2:$F$1188,Dollars!$A$2:$A$1188,'Rent lookup by Building'!$B21,Dollars!$E$2:$E$1188,'Rent lookup by Building'!H$6,Dollars!$C$2:$C$1188,'Rent lookup by Building'!$C$4) -> 0 | I21: 0 | J21: 0 | K21: 0 | M21: =SUMIFS(Dollars!$G$2:$G$1188,Dollars!$A$2:$A$1188,'Rent lookup by Building'!$B21,Dollars!$E$2:$E$1188,'Rent lookup by Building'!M$6,Dollars!$C$2:$C$1188,'Rent lookup by Building'!$C$4) -> 0 | N21: =SUMIFS(Dollars!$G$2:$G$1188,Dollars!$A$2:$A$1188,'Rent lookup by Building'!$B21,Dollars!$E$2:$E$1188,'Rent lookup by Building'!N$6,Dollars!$C$2:$C$1188,'Rent lookup by Building'!$C$4) -> 0 | O21: =SUMIFS(Dollars!$G$2:$G$1188,Dollars!$A$2:$A$1188,'Rent lookup by Building'!$B21,Dollars!$E$2:$E$1188,'Rent lookup by Building'!O$6,Dollars!$C$2:$C$1188,'Rent lookup by Building'!$C$4) -> 0 | P21: 0 | Q21: 0 | R21: 0
A22: HIDE | B22: 057 | C22: 057 - Office of Civil Legal Aid | D22: =SUMIFS('RSF List'!C:C,'RSF List'!B:B,'Rent lookup by Building'!$C$4,'RSF List'!A:A,LEFT('Rent lookup by Building'!C22,3)) -> 0 | F22: =SUMIFS(Dollars!$F$2:$F$1188,Dollars!$A$2:$A$1188,'Rent lookup by Building'!$B22,Dollars!$E$2:$E$1188,'Rent lookup by Building'!F$6,Dollars!$C$2:$C$1188,'Rent lookup by Building'!$C$4) -> 0 | G22: =SUMIFS(Dollars!$F$2:$F$1188,Dollars!$A$2:$A$1188,'Rent lookup by Building'!$B22,Dollars!$E$2:$E$1188,'Rent lookup by Building'!G$6,Dollars!$C$2:$C$1188,'Rent lookup by Building'!$C$4) -> 0 | H22: =SUMIFS(Dollars!$F$2:$F$1188,Dollars!$A$2:$A$1188,'Rent lookup by Building'!$B22,Dollars!$E$2:$E$1188,'Rent lookup by Building'!H$6,Dollars!$C$2:$C$1188,'Rent lookup by Building'!$C$4) -> 0 | I22: 0 | J22: 0 | K22: 0 | M22: =SUMIFS(Dollars!$G$2:$G$1188,Dollars!$A$2:$A$1188,'Rent lookup by Building'!$B22,Dollars!$E$2:$E$1188,'Rent lookup by Building'!M$6,Dollars!$C$2:$C$1188,'Rent lookup by Building'!$C$4) -> 0 | N22: =SUMIFS(Dollars!$G$2:$G$1188,Dollars!$A$2:$A$1188,'Rent lookup by Building'!$B22,Dollars!$E$2:$E$1188,'Rent lookup by Building'!N$6,Dollars!$C$2:$C$1188,'Rent lookup by Building'!$C$4) -> 0 | O22: =SUMIFS(Dollars!$G$2:$G$1188,Dollars!$A$2:$A$1188,'Rent lookup by Building'!$B22,Dollars!$E$2:$E$1188,'Rent lookup by Building'!O$6,Dollars!$C$2:$C$1188,'Rent lookup by Building'!$C$4) -> 0 | P22: 0 | Q22: 0 | R22: 0
A23: HIDE | B23: 075 | C23: 075 - Office of the Governor | D23: =SUMIFS('RSF List'!C:C,'RSF List'!B:B,'Rent lookup by Building'!$C$4,'RSF List'!A:A,LEFT('Rent lookup by Building'!C23,3)) -> 0 | F23: =SUMIFS(Dollars!$F$2:$F$1188,Dollars!$A$2:$A$1188,'Rent lookup by Building'!$B23,Dollars!$E$2:$E$1188,'Rent lookup by Building'!F$6,Dollars!$C$2:$C$1188,'Rent lookup by Building'!$C$4) -> 0 | G23: =SUMIFS(Dollars!$F$2:$F$1188,Dollars!$A$2:$A$1188,'Rent lookup by Building'!$B23,Dollars!$E$2:$E$1188,'Rent lookup by Building'!G$6,Dollars!$C$2:$C$1188,'Rent lookup by Building'!$C$4) -> 0 | H23: =SUMIFS(Dollars!$F$2:$F$1188,Dollars!$A$2:$A$1188,'Rent lookup by Building'!$B23,Dollars!$E$2:$E$1188,'Rent lookup by Building'!H$6,Dollars!$C$2:$C$1188,'Rent lookup by Building'!$C$4) -> 0 | I23: 0 | J23: 0 | K23: 0 | M23: =SUMIFS(Dollars!$G$2:$G$1188,Dollars!$A$2:$A$1188,'Rent lookup by Building'!$B23,Dollars!$E$2:$E$1188,'Rent lookup by Building'!M$6,Dollars!$C$2:$C$1188,'Rent lookup by Building'!$C$4) -> 0 | N23: =SUMIFS(Dollars!$G$2:$G$1188,Dollars!$A$2:$A$1188,'Rent lookup by Building'!$B23,Dollars!$E$2:$E$1188,'Rent lookup by Building'!N$6,Dollars!$C$2:$C$1188,'Rent lookup by Building'!$C$4) -> 0 | O23: =SUMIFS(Dollars!$G$2:$G$1188,Dollars!$A$2:$A$1188,'Rent lookup by Building'!$B23,Dollars!$E$2:$E$1188,'Rent lookup by Building'!O$6,Dollars!$C$2:$C$1188,'Rent lookup by Building'!$C$4) -> 0 | P23: 0 | Q23: 0 | R23: 0
A24: HIDE | B24: 080 | C24: 080 - Office of Lieutenant Governor | D24: =SUMIFS('RSF List'!C:C,'RSF List'!B:B,'Rent lookup by Building'!$C$4,'RSF List'!A:A,LEFT('Rent lookup by Building'!C24,3)) -> 0 | F24: =SUMIFS(Dollars!$F$2:$F$1188,Dollars!$A$2:$A$1188,'Rent lookup by Building'!$B24,Dollars!$E$2:$E$1188,'Rent lookup by Building'!F$6,Dollars!$C$2:$C$1188,'Rent lookup by Building'!$C$4) -> 0 | G24: =SUMIFS(Dollars!$F$2:$F$1188,Dollars!$A$2:$A$1188,'Rent lookup by Building'!$B24,Dollars!$E$2:$E$1188,'Rent lookup by Building'!G$6,Dollars!$C$2:$C$1188,'Rent lookup by Building'!$C$4) -> 0 | H24: =SUMIFS(Dollars!$F$2:$F$1188,Dollars!$A$2:$A$1188,'Rent lookup by Building'!$B24,Dollars!$E$2:$E$1188,'Rent lookup by Building'!H$6,Dollars!$C$2:$C$1188,'Rent lookup by Building'!$C$4) -> 0 | I24: 0 | J24: 0 | K24: 0 | M24: =SUMIFS(Dollars!$G$2:$G$1188,Dollars!$A$2:$A$1188,'Rent lookup by Building'!$B24,Dollars!$E$2:$E$1188,'Rent lookup by Building'!M$6,Dollars!$C$2:$C$1188,'Rent lookup by Building'!$C$4) -> 0 | N24: =SUMIFS(Dollars!$G$2:$G$1188,Dollars!$A$2:$A$1188,'Rent lookup by Building'!$B24,Dollars!$E$2:$E$1188,'Rent lookup by Building'!N$6,Dollars!$C$2:$C$1188,'Rent lookup by Building'!$C$4) -> 0 | O24: =SUMIFS(Dollars!$G$2:$G$1188,Dollars!$A$2:$A$1188,'Rent lookup by Building'!$B24,Dollars!$E$2:$E$1188,'Rent lookup by Building'!O$6,Dollars!$C$2:$C$1188,'Rent lookup by Building'!$C$4) -> 0 | P24: 0 | Q24: 0 | R24: 0
A25: HIDE | B25: 082 | C25: 082 - Public Disclosure Commission | D25: =SUMIFS('RSF List'!C:C,'RSF List'!B:B,'Rent lookup by Building'!$C$4,'RSF List'!A:A,LEFT('Rent lookup by Building'!C25,3)) -> 0 | F25: =SUMIFS(Dollars!$F$2:$F$1188,Dollars!$A$2:$A$1188,'Rent lookup by Building'!$B25,Dollars!$E$2:$E$1188,'Rent lookup by Building'!F$6,Dollars!$C$2:$C$1188,'Rent lookup by Building'!$C$4) -> 0 | G25: =SUMIFS(Dollars!$F$2:$F$1188,Dollars!$A$2:$A$1188,'Rent lookup by Building'!$B25,Dollars!$E$2:$E$1188,'Rent lookup by Building'!G$6,Dollars!$C$2:$C$1188,'Rent lookup by Building'!$C$4) -> 0 | H25: =SUMIFS(Dollars!$F$2:$F$1188,Dollars!$A$2:$A$1188,'Rent lookup by Building'!$B25,Dollars!$E$2:$E$1188,'Rent lookup by Building'!H$6,Dollars!$C$2:$C$1188,'Rent lookup by Building'!$C$4) -> 0 | I25: 0 | J25: 0 | K25: 0 | M25: =SUMIFS(Dollars!$G$2:$G$1188,Dollars!$A$2:$A$1188,'Rent lookup by Building'!$B25,Dollars!$E$2:$E$1188,'Rent lookup by Building'!M$6,Dollars!$C$2:$C$1188,'Rent lookup by Building'!$C$4) -> 0 | N25: =SUMIFS(Dollars!$G$2:$G$1188,Dollars!$A$2:$A$1188,'Rent lookup by Building'!$B25,Dollars!$E$2:$E$1188,'Rent lookup by Building'!N$6,Dollars!$C$2:$C$1188,'Rent lookup by Building'!$C$4) -> 0 | O25: =SUMIFS(Dollars!$G$2:$G$1188,Dollars!$A$2:$A$1188,'Rent lookup by Building'!$B25,Dollars!$E$2:$E$1188,'Rent lookup by Building'!O$6,Dollars!$C$2:$C$1188,'Rent lookup by Building'!$C$4) -> 0 | P25: 0 | Q25: 0 | R25: 0
A26: HIDE | B26: 085 | C26: 085 - Office of the Secretary of State | D26: =SUMIFS('RSF List'!C:C,'RSF List'!B:B,'Rent lookup by Building'!$C$4,'RSF List'!A:A,LEFT('Rent lookup by Building'!C26,3)) -> 0 | F26: =SUMIFS(Dollars!$F$2:$F$1188,Dollars!$A$2:$A$1188,'Rent lookup by Building'!$B26,Dollars!$E$2:$E$1188,'Rent lookup by Building'!F$6,Dollars!$C$2:$C$1188,'Rent lookup by Building'!$C$4) -> 0 | G26: =SUMIFS(Dollars!$F$2:$F$1188,Dollars!$A$2:$A$1188,'Rent lookup by Building'!$B26,Dollars!$E$2:$E$1188,'Rent lookup by Building'!G$6,Dollars!$C$2:$C$1188,'Rent lookup by Building'!$C$4) -> 0 | H26: =SUMIFS(Dollars!$F$2:$F$1188,Dollars!$A$2:$A$1188,'Rent lookup by Building'!$B26,Dollars!$E$2:$E$1188,'Rent lookup by Building'!H$6,Dollars!$C$2:$C$1188,'Rent lookup by Building'!$C$4) -> 0 | I26: 0 | J26: 0 | K26: 0 | M26: =SUMIFS(Dollars!$G$2:$G$1188,Dollars!$A$2:$A$1188,'Rent lookup by Building'!$B26,Dollars!$E$2:$E$1188,'Rent lookup by Building'!M$6,Dollars!$C$2:$C$1188,'Rent lookup by Building'!$C$4) -> 0 | N26: =SUMIFS(Dollars!$G$2:$G$1188,Dollars!$A$2:$A$1188,'Rent lookup by Building'!$B26,Dollars!$E$2:$E$1188,'Rent lookup by Building'!N$6,Dollars!$C$2:$C$1188,'Rent lookup by Building'!$C$4) -> 0 | O26: =SUMIFS(Dollars!$G$2:$G$1188,Dollars!$A$2:$A$1188,'Rent lookup by Building'!$B26,Dollars!$E$2:$E$1188,'Rent lookup by Building'!O$6,Dollars!$C$2:$C$1188,'Rent lookup by Building'!$C$4) -> 0 | P26: 0 | Q26: 0 | R26: 0
A27: HIDE | B27: 086 | C27: 086 - Governor's Office of Indian Affairs | D27: =SUMIFS('RSF List'!C:C,'RSF List'!B:B,'Rent lookup by Building'!$C$4,'RSF List'!A:A,LEFT('Rent lookup by Building'!C27,3)) -> 0 | F27: =SUMIFS(Dollars!$F$2:$F$1188,Dollars!$A$2:$A$1188,'Rent lookup by Building'!$B27,Dollars!$E$2:$E$1188,'Rent lookup by Building'!F$6,Dollars!$C$2:$C$1188,'Rent lookup by Building'!$C$4) -> 0 | G27: =SUMIFS(Dollars!$F$2:$F$1188,Dollars!$A$2:$A$1188,'Rent lookup by Building'!$B27,Dollars!$E$2:$E$1188,'Rent lookup by Building'!G$6,Dollars!$C$2:$C$1188,'Rent lookup by Building'!$C$4) -> 0 | H27: =SUMIFS(Dollars!$F$2:$F$1188,Dollars!$A$2:$A$1188,'Rent lookup by Building'!$B27,Dollars!$E$2:$E$1188,'Rent lookup by Building'!H$6,Dollars!$C$2:$C$1188,'Rent lookup by Building'!$C$4) -> 0 | I27: 0 | J27: 0 | K27: 0 | M27: =SUMIFS(Dollars!$G$2:$G$1188,Dollars!$A$2:$A$1188,'Rent lookup by Building'!$B27,Dollars!$E$2:$E$1188,'Rent lookup by Building'!M$6,Dollars!$C$2:$C$1188,'Rent lookup by Building'!$C$4) -> 0 | N27: =SUMIFS(Dollars!$G$2:$G$1188,Dollars!$A$2:$A$1188,'Rent lookup by Building'!$B27,Dollars!$E$2:$E$1188,'Rent lookup by Building'!N$6,Dollars!$C$2:$C$1188,'Rent lookup by Building'!$C$4) -> 0 | O27: =SUMIFS(Dollars!$G$2:$G$1188,Dollars!$A$2:$A$1188,'Rent lookup by Building'!$B27,Dollars!$E$2:$E$1188,'Rent lookup by Building'!O$6,Dollars!$C$2:$C$1188,'Rent lookup by Building'!$C$4) -> 0 | P27: =SUM(M27:O27) -> 0 | Q27: 0 | R27: =IFERROR(P27/D27,0) -> 0
A28: HIDE | B28: 087 | C28: 087 - Commission on Asian Pacific American Affairs | D28: =SUMIFS('RSF List'!C:C,'RSF List'!B:B,'Rent lookup by Building'!$C$4,'RSF List'!A:A,LEFT('Rent lookup by Building'!C28,3)) -> 0 | F28: =SUMIFS(Dollars!$F$2:$F$1188,Dollars!$A$2:$A$1188,'Rent lookup by Building'!$B28,Dollars!$E$2:$E$1188,'Rent lookup by Building'!F$6,Dollars!$C$2:$C$1188,'Rent lookup by Building'!$C$4) -> 0 | G28: =SUMIFS(Dollars!$F$2:$F$1188,Dollars!$A$2:$A$1188,'Rent lookup by Building'!$B28,Dollars!$E$2:$E$1188,'Rent lookup by Building'!G$6,Dollars!$C$2:$C$1188,'Rent lookup by Building'!$C$4) -> 0 | H28: =SUMIFS(Dollars!$F$2:$F$1188,Dollars!$A$2:$A$1188,'Rent lookup by Building'!$B28,Dollars!$E$2:$E$1188,'Rent lookup by Building'!H$6,Dollars!$C$2:$C$1188,'Rent lookup by Building'!$C$4) -> 0 | I28: 0 | J28: 0 | K28: 0 | M28: =SUMIFS(Dollars!$G$2:$G$1188,Dollars!$A$2:$A$1188,'Rent lookup by Building'!$B28,Dollars!$E$2:$E$1188,'Rent lookup by Building'!M$6,Dollars!$C$2:$C$1188,'Rent lookup by Building'!$C$4) -> 0 | N28: =SUMIFS(Dollars!$G$2:$G$1188,Dollars!$A$2:$A$1188,'Rent lookup by Building'!$B28,Dollars!$E$2:$E$1188,'Rent lookup by Building'!N$6,Dollars!$C$2:$C$1188,'Rent lookup by Building'!$C$4) -> 0 | O28: =SUMIFS(Dollars!$G$2:$G$1188,Dollars!$A$2:$A$1188,'Rent lookup by Building'!$B28,Dollars!$E$2:$E$1188,'Rent lookup by Building'!O$6,Dollars!$C$2:$C$1188,'Rent lookup by Building'!$C$4) -> 0 | P28: 0 | Q28: 0 | R28: 0
A29: HIDE | B29: 090 | C29: 090 - Office of State Treasurer | D29: =SUMIFS('RSF List'!C:C,'RSF List'!B:B,'Rent lookup by Building'!$C$4,'RSF List'!A:A,LEFT('Rent lookup by Building'!C29,3)) -> 0 | F29: =SUMIFS(Dollars!$F$2:$F$1188,Dollars!$A$2:$A$1188,'Rent lookup by Building'!$B29,Dollars!$E$2:$E$1188,'Rent lookup by Building'!F$6,Dollars!$C$2:$C$1188,'Rent lookup by Building'!$C$4) -> 0 | G29: =SUMIFS(Dollars!$F$2:$F$1188,Dollars!$A$2:$A$1188,'Rent lookup by Building'!$B29,Dollars!$E$2:$E$1188,'Rent lookup by Building'!G$6,Dollars!$C$2:$C$1188,'Rent lookup by Building'!$C$4) -> 0 | H29: =SUMIFS(Dollars!$F$2:$F$1188,Dollars!$A$2:$A$1188,'Rent lookup by Building'!$B29,Dollars!$E$2:$E$1188,'Rent lookup by Building'!H$6,Dollars!$C$2:$C$1188,'Rent lookup by Building'!$C$4) -> 0 | I29: 0 | J29: 0 | K29: 0 | M29: =SUMIFS(Dollars!$G$2:$G$1188,Dollars!$A$2:$A$1188,'Rent lookup by Building'!$B29,Dollars!$E$2:$E$1188,'Rent lookup by Building'!M$6,Dollars!$C$2:$C$1188,'Rent lookup by Building'!$C$4) -> 0 | N29: =SUMIFS(Dollars!$G$2:$G$1188,Dollars!$A$2:$A$1188,'Rent lookup by Building'!$B29,Dollars!$E$2:$E$1188,'Rent lookup by Building'!N$6,Dollars!$C$2:$C$1188,'Rent lookup by Building'!$C$4) -> 0 | O29: =SUMIFS(Dollars!$G$2:$G$1188,Dollars!$A$2:$A$1188,'Rent lookup by Building'!$B29,Dollars!$E$2:$E$1188,'Rent lookup by Building'!O$6,Dollars!$C$2:$C$1188,'Rent lookup by Building'!$C$4) -> 0 | P29: 0 | Q29: 0 | R29: 0
A30: HIDE | B30: 095 | C30: 095 - Office of State Auditor | D30: =SUMIFS('RSF List'!C:C,'RSF List'!B:B,'Rent lookup by Building'!$C$4,'RSF List'!A:A,LEFT('Rent lookup by Building'!C30,3)) -> 0 | F30: =SUMIFS(Dollars!$F$2:$F$1188,Dollars!$A$2:$A$1188,'Rent lookup by Building'!$B30,Dollars!$E$2:$E$1188,'Rent lookup by Building'!F$6,Dollars!$C$2:$C$1188,'Rent lookup by Building'!$C$4) -> 0 | G30: =SUMIFS(Dollars!$F$2:$F$1188,Dollars!$A$2:$A$1188,'Rent lookup by Building'!$B30,Dollars!$E$2:$E$1188,'Rent lookup by Building'!G$6,Dollars!$C$2:$C$1188,'Rent lookup by Building'!$C$4) -> 0 | H30: =SUMIFS(Dollars!$F$2:$F$1188,Dollars!$A$2:$A$1188,'Rent lookup by Building'!$B30,Dollars!$E$2:$E$1188,'Rent lookup by Building'!H$6,Dollars!$C$2:$C$1188,'Rent lookup by Building'!$C$4) -> 0 | I30: 0 | J30: 0 | K30: 0 | M30: =SUMIFS(Dollars!$G$2:$G$1188,Dollars!$A$2:$A$1188,'Rent lookup by Building'!$B30,Dollars!$E$2:$E$1188,'Rent lookup by Building'!M$6,Dollars!$C$2:$C$1188,'Rent lookup by Building'!$C$4) -> 0 | N30: =SUMIFS(Dollars!$G$2:$G$1188,Dollars!$A$2:$A$1188,'Rent lookup by Building'!$B30,Dollars!$E$2:$E$1188,'Rent lookup by Building'!N$6,Dollars!$C$2:$C$1188,'Rent lookup by Building'!$C$4) -> 0 | O30: =SUMIFS(Dollars!$G$2:$G$1188,Dollars!$A$2:$A$1188,'Rent lookup by Building'!$B30,Dollars!$E$2:$E$1188,'Rent lookup by Building'!O$6,Dollars!$C$2:$C$1188,'Rent lookup by Building'!$C$4) -> 0 | P30: 0 | Q30: 0 | R30: 0
A31: HIDE | B31: 099 | C31: 099 - Citizens' Commission on Salaries for Elected Officials | D31: =SUMIFS('RSF List'!C:C,'RSF List'!B:B,'Rent lookup by Building'!$C$4,'RSF List'!A:A,LEFT('Rent lookup by Building'!C31,3)) -> 0 | F31: =SUMIFS(Dollars!$F$2:$F$1188,Dollars!$A$2:$A$1188,'Rent lookup by Building'!$B31,Dollars!$E$2:$E$1188,'Rent lookup by Building'!F$6,Dollars!$C$2:$C$1188,'Rent lookup by Building'!$C$4) -> 0 | G31: =SUMIFS(Dollars!$F$2:$F$1188,Dollars!$A$2:$A$1188,'Rent lookup by Building'!$B31,Dollars!$E$2:$E$1188,'Rent lookup by Building'!G$6,Dollars!$C$2:$C$1188,'Rent lookup by Building'!$C$4) -> 0 | H31: =SUMIFS(Dollars!$F$2:$F$1188,Dollars!$A$2:$A$1188,'Rent lookup by Building'!$B31,Dollars!$E$2:$E$1188,'Rent lookup by Building'!H$6,Dollars!$C$2:$C$1188,'Rent lookup by Building'!$C$4) -> 0 | I31: 0 | J31: 0 | K31: 0 | M31: =SUMIFS(Dollars!$G$2:$G$1188,Dollars!$A$2:$A$1188,'Rent lookup by Building'!$B31,Dollars!$E$2:$E$1188,'Rent lookup by Building'!M$6,Dollars!$C$2:$C$1188,'Rent lookup by Building'!$C$4) -> 0 | N31: =SUMIFS(Dollars!$G$2:$G$1188,Dollars!$A$2:$A$1188,'Rent lookup by Building'!$B31,Dollars!$E$2:$E$1188,'Rent lookup by Building'!N$6,Dollars!$C$2:$C$1188,'Rent lookup by Building'!$C$4) -> 0 | O31: =SUMIFS(Dollars!$G$2:$G$1188,Dollars!$A$2:$A$1188,'Rent lookup by Building'!$B31,Dollars!$E$2:$E$1188,'Rent lookup by Building'!O$6,Dollars!$C$2:$C$1188,'Rent lookup by Building'!$C$4) -> 0 | P31: 0 | Q31: 0 | R31: 0
A32: HIDE | B32: 100 | C32: 100 - Office of Attorney General | D32: =SUMIFS('RSF List'!C:C,'RSF List'!B:B,'Rent lookup by Building'!$C$4,'RSF List'!A:A,LEFT('Rent lookup by Building'!C32,3)) -> 0 | F32: =SUMIFS(Dollars!$F$2:$F$1188,Dollars!$A$2:$A$1188,'Rent lookup by Building'!$B32,Dollars!$E$2:$E$1188,'Rent lookup by Building'!F$6,Dollars!$C$2:$C$1188,'Rent lookup by Building'!$C$4) -> 0 | G32: =SUMIFS(Dollars!$F$2:$F$1188,Dollars!$A$2:$A$1188,'Rent lookup by Building'!$B32,Dollars!$E$2:$E$1188,'Rent lookup by Building'!G$6,Dollars!$C$2:$C$1188,'Rent lookup by Building'!$C$4) -> 0 | H32: =SUMIFS(Dollars!$F$2:$F$1188,Dollars!$A$2:$A$1188,'Rent lookup by Building'!$B32,Dollars!$E$2:$E$1188,'Rent lookup by Building'!H$6,Dollars!$C$2:$C$1188,'Rent lookup by Building'!$C$4) -> 0 | I32: 0 | J32: 0 | K32: 0 | M32: =SUMIFS(Dollars!$G$2:$G$1188,Dollars!$A$2:$A$1188,'Rent lookup by Building'!$B32,Dollars!$E$2:$E$1188,'Rent lookup by Building'!M$6,Dollars!$C$2:$C$1188,'Rent lookup by Building'!$C$4) -> 0 | N32: =SUMIFS(Dollars!$G$2:$G$1188,Dollars!$A$2:$A$1188,'Rent lookup by Building'!$B32,Dollars!$E$2:$E$1188,'Rent lookup by Building'!N$6,Dollars!$C$2:$C$1188,'Rent lookup by Building'!$C$4) -> 0 | O32: =SUMIFS(Dollars!$G$2:$G$1188,Dollars!$A$2:$A$1188,'Rent lookup by Building'!$B32,Dollars!$E$2:$E$1188,'Rent lookup by Building'!O$6,Dollars!$C$2:$C$1188,'Rent lookup by Building'!$C$4) -> 0 | P32: 0 | Q32: 0 | R32: 0
A33: HIDE | B33: 101 | C33: 101 - Caseload Forecast Council | D33: =SUMIFS('RSF List'!C:C,'RSF List'!B:B,'Rent lookup by Building'!$C$4,'RSF List'!A:A,LEFT('Rent lookup by Building'!C33,3)) -> 0 | F33: =SUMIFS(Dollars!$F$2:$F$1188,Dollars!$A$2:$A$1188,'Rent lookup by Building'!$B33,Dollars!$E$2:$E$1188,'Rent lookup by Building'!F$6,Dollars!$C$2:$C$1188,'Rent lookup by Building'!$C$4) -> 0 | G33: =SUMIFS(Dollars!$F$2:$F$1188,Dollars!$A$2:$A$1188,'Rent lookup by Building'!$B33,Dollars!$E$2:$E$1188,'Rent lookup by Building'!G$6,Dollars!$C$2:$C$1188,'Rent lookup by Building'!$C$4) -> 0 | H33: =SUMIFS(Dollars!$F$2:$F$1188,Dollars!$A$2:$A$1188,'Rent lookup by Building'!$B33,Dollars!$E$2:$E$1188,'Rent lookup by Building'!H$6,Dollars!$C$2:$C$1188,'Rent lookup by Building'!$C$4) -> 0 | I33: 0 | J33: 0 | K33: 0 | M33: =SUMIFS(Dollars!$G$2:$G$1188,Dollars!$A$2:$A$1188,'Rent lookup by Building'!$B33,Dollars!$E$2:$E$1188,'Rent lookup by Building'!M$6,Dollars!$C$2:$C$1188,'Rent lookup by Building'!$C$4) -> 0 | N33: =SUMIFS(Dollars!$G$2:$G$1188,Dollars!$A$2:$A$1188,'Rent lookup by Building'!$B33,Dollars!$E$2:$E$1188,'Rent lookup by Building'!N$6,Dollars!$C$2:$C$1188,'Rent lookup by Building'!$C$4) -> 0 | O33: =SUMIFS(Dollars!$G$2:$G$1188,Dollars!$A$2:$A$1188,'Rent lookup by Building'!$B33,Dollars!$E$2:$E$1188,'Rent lookup by Building'!O$6,Dollars!$C$2:$C$1188,'Rent lookup by Building'!$C$4) -> 0 | P33: 0 | Q33: 0 | R33: 0
A34: HIDE | B34: 102 | C34: 102 - Department of Financial Institutions | D34: =SUMIFS('RSF List'!C:C,'RSF List'!B:B,'Rent lookup by Building'!$C$4,'RSF List'!A:A,LEFT('Rent lookup by Building'!C34,3)) -> 0 | F34: =SUMIFS(Dollars!$F$2:$F$1188,Dollars!$A$2:$A$1188,'Rent lookup by Building'!$B34,Dollars!$E$2:$E$1188,'Rent lookup by Building'!F$6,Dollars!$C$2:$C$1188,'Rent lookup by Building'!$C$4) -> 0 | G34: =SUMIFS(Dollars!$F$2:$F$1188,Dollars!$A$2:$A$1188,'Rent lookup by Building'!$B34,Dollars!$E$2:$E$1188,'Rent lookup by Building'!G$6,Dollars!$C$2:$C$1188,'Rent lookup by Building'!$C$4) -> 0 | H34: =SUMIFS(Dollars!$F$2:$F$1188,Dollars!$A$2:$A$1188,'Rent lookup by Building'!$B34,Dollars!$E$2:$E$1188,'Rent lookup by Building'!H$6,Dollars!$C$2:$C$1188,'Rent lookup by Building'!$C$4) -> 0 | I34: 0 | J34: 0 | K34: 0 | M34: =SUMIFS(Dollars!$G$2:$G$1188,Dollars!$A$2:$A$1188,'Rent lookup by Building'!$B34,Dollars!$E$2:$E$1188,'Rent lookup by Building'!M$6,Dollars!$C$2:$C$1188,'Rent lookup by Building'!$C$4) -> 0 | N34: =SUMIFS(Dollars!$G$2:$G$1188,Dollars!$A$2:$A$1188,'Rent lookup by Building'!$B34,Dollars!$E$2:$E$1188,'Rent lookup by Building'!N$6,Dollars!$C$2:$C$1188,'Rent lookup by Building'!$C$4) -> 0 | O34: =SUMIFS(Dollars!$G$2:$G$1188,Dollars!$A$2:$A$1188,'Rent lookup by Building'!$B34,Dollars!$E$2:$E$1188,'Rent lookup by Building'!O$6,Dollars!$C$2:$C$1188,'Rent lookup by Building'!$C$4) -> 0 | P34: 0 | Q34: 0 | R34: 0
A35: HIDE | B35: 103 | C35: 103 - Department of Commerce | D35: =SUMIFS('RSF List'!C:C,'RSF List'!B:B,'Rent lookup by Building'!$C$4,'RSF List'!A:A,LEFT('Rent lookup by Building'!C35,3)) -> 0 | F35: =SUMIFS(Dollars!$F$2:$F$1188,Dollars!$A$2:$A$1188,'Rent lookup by Building'!$B35,Dollars!$E$2:$E$1188,'Rent lookup by Building'!F$6,Dollars!$C$2:$C$1188,'Rent lookup by Building'!$C$4) -> 0 | G35: =SUMIFS(Dollars!$F$2:$F$1188,Dollars!$A$2:$A$1188,'Rent lookup by Building'!$B35,Dollars!$E$2:$E$1188,'Rent lookup by Building'!G$6,Dollars!$C$2:$C$1188,'Rent lookup by Building'!$C$4) -> 0 | H35: =SUMIFS(Dollars!$F$2:$F$1188,Dollars!$A$2:$A$1188,'Rent lookup by Building'!$B35,Dollars!$E$2:$E$1188,'Rent lookup by Building'!H$6,Dollars!$C$2:$C$1188,'Rent lookup by Building'!$C$4) -> 0 | I35: 0 | J35: 0 | K35: 0 | M35: =SUMIFS(Dollars!$G$2:$G$1188,Dollars!$A$2:$A$1188,'Rent lookup by Building'!$B35,Dollars!$E$2:$E$1188,'Rent lookup by Building'!M$6,Dollars!$C$2:$C$1188,'Rent lookup by Building'!$C$4) -> 0 | N35: =SUMIFS(Dollars!$G$2:$G$1188,Dollars!$A$2:$A$1188,'Rent lookup by Building'!$B35,Dollars!$E$2:$E$1188,'Rent lookup by Building'!N$6,Dollars!$C$2:$C$1188,'Rent lookup by Building'!$C$4) -> 0 | O35: =SUMIFS(Dollars!$G$2:$G$1188,Dollars!$A$2:$A$1188,'Rent lookup by Building'!$B35,Dollars!$E$2:$E$1188,'Rent lookup by Building'!O$6,Dollars!$C$2:$C$1188,'Rent lookup by Building'!$C$4) -> 0 | P35: 0 | Q35: 0 | R35: 0
A36: HIDE | B36: 104 | C36: 104 - Economic and Revenue Forecast Council | D36: =SUMIFS('RSF List'!C:C,'RSF List'!B:B,'Rent lookup by Building'!$C$4,'RSF List'!A:A,LEFT('Rent lookup by Building'!C36,3)) -> 0 | F36: =SUMIFS(Dollars!$F$2:$F$1188,Dollars!$A$2:$A$1188,'Rent lookup by Building'!$B36,Dollars!$E$2:$E$1188,'Rent lookup by Building'!F$6,Dollars!$C$2:$C$1188,'Rent lookup by Building'!$C$4) -> 0 | G36: =SUMIFS(Dollars!$F$2:$F$1188,Dollars!$A$2:$A$1188,'Rent lookup by Building'!$B36,Dollars!$E$2:$E$1188,'Rent lookup by Building'!G$6,Dollars!$C$2:$C$1188,'Rent lookup by Building'!$C$4) -> 0 | H36: =SUMIFS(Dollars!$F$2:$F$1188,Dollars!$A$2:$A$1188,'Rent lookup by Building'!$B36,Dollars!$E$2:$E$1188,'Rent lookup by Building'!H$6,Dollars!$C$2:$C$1188,'Rent lookup by Building'!$C$4) -> 0 | I36: 0 | J36: 0 | K36: 0 | M36: =SUMIFS(Dollars!$G$2:$G$1188,Dollars!$A$2:$A$1188,'Rent lookup by Building'!$B36,Dollars!$E$2:$E$1188,'Rent lookup by Building'!M$6,Dollars!$C$2:$C$1188,'Rent lookup by Building'!$C$4) -> 0 | N36: =SUMIFS(Dollars!$G$2:$G$1188,Dollars!$A$2:$A$1188,'Rent lookup by Building'!$B36,Dollars!$E$2:$E$1188,'Rent lookup by Building'!N$6,Dollars!$C$2:$C$1188,'Rent lookup by Building'!$C$4) -> 0 | O36: =SUMIFS(Dollars!$G$2:$G$1188,Dollars!$A$2:$A$1188,'Rent lookup by Building'!$B36,Dollars!$E$2:$E$1188,'Rent lookup by Building'!O$6,Dollars!$C$2:$C$1188,'Rent lookup by Building'!$C$4) -> 0 | P36: 0 | Q36: 0 | R36: 0
A37: HIDE | B37: 105 | C37: 105 - Office of Financial Management | D37: =SUMIFS('RSF List'!C:C,'RSF List'!B:B,'Rent lookup by Building'!$C$4,'RSF List'!A:A,LEFT('Rent lookup by Building'!C37,3)) -> 0 | F37: =SUMIFS(Dollars!$F$2:$F$1188,Dollars!$A$2:$A$1188,'Rent lookup by Building'!$B37,Dollars!$E$2:$E$1188,'Rent lookup by Building'!F$6,Dollars!$C$2:$C$1188,'Rent lookup by Building'!$C$4) -> 0 | G37: =SUMIFS(Dollars!$F$2:$F$1188,Dollars!$A$2:$A$1188,'Rent lookup by Building'!$B37,Dollars!$E$2:$E$1188,'Rent lookup by Building'!G$6,Dollars!$C$2:$C$1188,'Rent lookup by Building'!$C$4) -> 0 | H37: =SUMIFS(Dollars!$F$2:$F$1188,Dollars!$A$2:$A$1188,'Rent lookup by Building'!$B37,Dollars!$E$2:$E$1188,'Rent lookup by Building'!H$6,Dollars!$C$2:$C$1188,'Rent lookup by Building'!$C$4) -> 0 | I37: 0 | J37: 0 | K37: 0 | M37: =SUMIFS(Dollars!$G$2:$G$1188,Dollars!$A$2:$A$1188,'Rent lookup by Building'!$B37,Dollars!$E$2:$E$1188,'Rent lookup by Building'!M$6,Dollars!$C$2:$C$1188,'Rent lookup by Building'!$C$4) -> 0 | N37: =SUMIFS(Dollars!$G$2:$G$1188,Dollars!$A$2:$A$1188,'Rent lookup by Building'!$B37,Dollars!$E$2:$E$1188,'Rent lookup by Building'!N$6,Dollars!$C$2:$C$1188,'Rent lookup by Building'!$C$4) -> 0 | O37: =SUMIFS(Dollars!$G$2:$G$1188,Dollars!$A$2:$A$1188,'Rent lookup by Building'!$B37,Dollars!$E$2:$E$1188,'Rent lookup by Building'!O$6,Dollars!$C$2:$C$1188,'Rent lookup by Building'!$C$4) -> 0 | P37: 0 | Q37: 0 | R37: 0
A38: HIDE | B38: 107 | C38: 107 - Washington State Health Care Authority | D38: =SUMIFS('RSF List'!C:C,'RSF List'!B:B,'Rent lookup by Building'!$C$4,'RSF List'!A:A,LEFT('Rent lookup by Building'!C38,3)) -> 0 | E38: =SUM(E7:E37) -> 0 | F38: =SUMIFS(Dollars!$F$2:$F$1188,Dollars!$A$2:$A$1188,'Rent lookup by Building'!$B38,Dollars!$E$2:$E$1188,'Rent lookup by Building'!F$6,Dollars!$C$2:$C$1188,'Rent lookup by Building'!$C$4) -> 0 | G38: =SUMIFS(Dollars!$F$2:$F$1188,Dollars!$A$2:$A$1188,'Rent lookup by Building'!$B38,Dollars!$E$2:$E$1188,'Rent lookup by Building'!G$6,Dollars!$C$2:$C$1188,'Rent lookup by Building'!$C$4) -> 0 | H38: =SUMIFS(Dollars!$F$2:$F$1188,Dollars!$A$2:$A$1188,'Rent lookup by Building'!$B38,Dollars!$E$2:$E$1188,'Rent lookup by Building'!H$6,Dollars!$C$2:$C$1188,'Rent lookup by Building'!$C$4) -> 0 | I38: =SUM(F38:H38) -> 0 | J38: 0 | K38: =IFERROR(I38/D38,0) -> 0 | M38: =SUMIFS(Dollars!$G$2:$G$1188,Dollars!$A$2:$A$1188,'Rent lookup by Building'!$B38,Dollars!$E$2:$E$1188,'Rent lookup by Building'!M$6,Dollars!$C$2:$C$1188,'Rent lookup by Building'!$C$4) -> 0 | N38: =SUMIFS(Dollars!$G$2:$G$1188,Dollars!$A$2:$A$1188,'Rent lookup by Building'!$B38,Dollars!$E$2:$E$1188,'Rent lookup by Building'!N$6,Dollars!$C$2:$C$1188,'Rent lookup by Building'!$C$4) -> 0 | O38: =SUMIFS(Dollars!$G$2:$G$1188,Dollars!$A$2:$A$1188,'Rent lookup by Building'!$B38,Dollars!$E$2:$E$1188,'Rent lookup by Building'!O$6,Dollars!$C$2:$C$1188,'Rent lookup by Building'!$C$4) -> 0 | P38: 0 | Q38: 0 | R38: 0
A39: HIDE | B39: 110 | C39: 110 - Office of Administrative Hearings | D39: =SUMIFS('RSF List'!C:C,'RSF List'!B:B,'Rent lookup by Building'!$C$4,'RSF List'!A:A,LEFT('Rent lookup by Building'!C39,3)) -> 0 | F39: =SUMIFS(Dollars!$F$2:$F$1188,Dollars!$A$2:$A$1188,'Rent lookup by Building'!$B39,Dollars!$E$2:$E$1188,'Rent lookup by Building'!F$6,Dollars!$C$2:$C$1188,'Rent lookup by Building'!$C$4) -> 0 | G39: =SUMIFS(Dollars!$F$2:$F$1188,Dollars!$A$2:$A$1188,'Rent lookup by Building'!$B39,Dollars!$E$2:$E$1188,'Rent lookup by Building'!G$6,Dollars!$C$2:$C$1188,'Rent lookup by Building'!$C$4) -> 0 | H39: =SUMIFS(Dollars!$F$2:$F$1188,Dollars!$A$2:$A$1188,'Rent lookup by Building'!$B39,Dollars!$E$2:$E$1188,'Rent lookup by Building'!H$6,Dollars!$C$2:$C$1188,'Rent lookup by Building'!$C$4) -> 0 | I39: =SUM(F39:H39) -> 0 | J39: 0 | K39: =IFERROR(I39/D39,0) -> 0 | M39: =SUMIFS(Dollars!$G$2:$G$1188,Dollars!$A$2:$A$1188,'Rent lookup by Building'!$B39,Dollars!$E$2:$E$1188,'Rent lookup by Building'!M$6,Dollars!$C$2:$C$1188,'Rent lookup by Building'!$C$4) -> 0 | N39: =SUMIFS(Dollars!$G$2:$G$1188,Dollars!$A$2:$A$1188,'Rent lookup by Building'!$B39,Dollars!$E$2:$E$1188,'Rent lookup by Building'!N$6,Dollars!$C$2:$C$1188,'Rent lookup by Building'!$C$4) -> 0 | O39: =SUMIFS(Dollars!$G$2:$G$1188,Dollars!$A$2:$A$1188,'Rent lookup by Building'!$B39,Dollars!$E$2:$E$1188,'Rent lookup by Building'!O$6,Dollars!$C$2:$C$1188,'Rent lookup by Building'!$C$4) -> 0 | P39: =SUM(M39:O39) -> 0 | Q39: 0 | R39: =IFERROR(P39/D39,0) -> 0
A40: HIDE | B40: 116 | C40: 116 - State Lottery | D40: =SUMIFS('RSF List'!C:C,'RSF List'!B:B,'Rent lookup by Building'!$C$4,'RSF List'!A:A,LEFT('Rent lookup by Building'!C40,3)) -> 0 | F40: =SUMIFS(Dollars!$F$2:$F$1188,Dollars!$A$2:$A$1188,'Rent lookup by Building'!$B40,Dollars!$E$2:$E$1188,'Rent lookup by Building'!F$6,Dollars!$C$2:$C$1188,'Rent lookup by Building'!$C$4) -> 0 | G40: =SUMIFS(Dollars!$F$2:$F$1188,Dollars!$A$2:$A$1188,'Rent lookup by Building'!$B40,Dollars!$E$2:$E$1188,'Rent lookup by Building'!G$6,Dollars!$C$2:$C$1188,'Rent lookup by Building'!$C$4) -> 0 | H40: =SUMIFS(Dollars!$F$2:$F$1188,Dollars!$A$2:$A$1188,'Rent lookup by Building'!$B40,Dollars!$E$2:$E$1188,'Rent lookup by Building'!H$6,Dollars!$C$2:$C$1188,'Rent lookup by Building'!$C$4) -> 0 | I40: 0 | J40: 0 | K40: 0 | M40: =SUMIFS(Dollars!$G$2:$G$1188,Dollars!$A$2:$A$1188,'Rent lookup by Building'!$B40,Dollars!$E$2:$E$1188,'Rent lookup by Building'!M$6,Dollars!$C$2:$C$1188,'Rent lookup by Building'!$C$4) -> 0 | N40: =SUMIFS(Dollars!$G$2:$G$1188,Dollars!$A$2:$A$1188,'Rent lookup by Building'!$B40,Dollars!$E$2:$E$1188,'Rent lookup by Building'!N$6,Dollars!$C$2:$C$1188,'Rent lookup by Building'!$C$4) -> 0 | O40: =SUMIFS(Dollars!$G$2:$G$1188,Dollars!$A$2:$A$1188,'Rent lookup by Building'!$B40,Dollars!$E$2:$E$1188,'Rent lookup by Building'!O$6,Dollars!$C$2:$C$1188,'Rent lookup by Building'!$C$4) -> 0 | P40: 0 | Q40: 0 | R40: 0
A41: HIDE | B41: 117 | C41: 117 - Washington State Gambling Commission | D41: =SUMIFS('RSF List'!C:C,'RSF List'!B:B,'Rent lookup by Building'!$C$4,'RSF List'!A:A,LEFT('Rent lookup by Building'!C41,3)) -> 0 | F41: =SUMIFS(Dollars!$F$2:$F$1188,Dollars!$A$2:$A$1188,'Rent lookup by Building'!$B41,Dollars!$E$2:$E$1188,'Rent lookup by Building'!F$6,Dollars!$C$2:$C$1188,'Rent lookup by Building'!$C$4) -> 0 | G41: =SUMIFS(Dollars!$F$2:$F$1188,Dollars!$A$2:$A$1188,'Rent lookup by Building'!$B41,Dollars!$E$2:$E$1188,'Rent lookup by Building'!G$6,Dollars!$C$2:$C$1188,'Rent lookup by Building'!$C$4) -> 0 | H41: =SUMIFS(Dollars!$F$2:$F$1188,Dollars!$A$2:$A$1188,'Rent lookup by Building'!$B41,Dollars!$E$2:$E$1188,'Rent lookup by Building'!H$6,Dollars!$C$2:$C$1188,'Rent lookup by Building'!$C$4) -> 0 | I41: 0 | J41: 0 | K41: 0 | M41: =SUMIFS(Dollars!$G$2:$G$1188,Dollars!$A$2:$A$1188,'Rent lookup by Building'!$B41,Dollars!$E$2:$E$1188,'Rent lookup by Building'!M$6,Dollars!$C$2:$C$1188,'Rent lookup by Building'!$C$4) -> 0 | N41: =SUMIFS(Dollars!$G$2:$G$1188,Dollars!$A$2:$A$1188,'Rent lookup by Building'!$B41,Dollars!$E$2:$E$1188,'Rent lookup by Building'!N$6,Dollars!$C$2:$C$1188,'Rent lookup by Building'!$C$4) -> 0 | O41: =SUMIFS(Dollars!$G$2:$G$1188,Dollars!$A$2:$A$1188,'Rent lookup by Building'!$B41,Dollars!$E$2:$E$1188,'Rent lookup by Building'!O$6,Dollars!$C$2:$C$1188,'Rent lookup by Building'!$C$4) -> 0 | P41: 0 | Q41: 0 | R41: 0
A42: HIDE | B42: 118 | C42: 118 - Commission on Hispanic Affairs | D42: =SUMIFS('RSF List'!C:C,'RSF List'!B:B,'Rent lookup by Building'!$C$4,'RSF List'!A:A,LEFT('Rent lookup by Building'!C42,3)) -> 0 | F42: =SUMIFS(Dollars!$F$2:$F$1188,Dollars!$A$2:$A$1188,'Rent lookup by Building'!$B42,Dollars!$E$2:$E$1188,'Rent lookup by Building'!F$6,Dollars!$C$2:$C$1188,'Rent lookup by Building'!$C$4) -> 0 | G42: =SUMIFS(Dollars!$F$2:$F$1188,Dollars!$A$2:$A$1188,'Rent lookup by Building'!$B42,Dollars!$E$2:$E$1188,'Rent lookup by Building'!G$6,Dollars!$C$2:$C$1188,'Rent lookup by Building'!$C$4) -> 0 | H42: =SUMIFS(Dollars!$F$2:$F$1188,Dollars!$A$2:$A$1188,'Rent lookup by Building'!$B42,Dollars!$E$2:$E$1188,'Rent lookup by Building'!H$6,Dollars!$C$2:$C$1188,'Rent lookup by Building'!$C$4) -> 0 | I42: 0 | J42: 0 | K42: 0 | M42: =SUMIFS(Dollars!$G$2:$G$1188,Dollars!$A$2:$A$1188,'Rent lookup by Building'!$B42,Dollars!$E$2:$E$1188,'Rent lookup by Building'!M$6,Dollars!$C$2:$C$1188,'Rent lookup by Building'!$C$4) -> 0 | N42: =SUMIFS(Dollars!$G$2:$G$1188,Dollars!$A$2:$A$1188,'Rent lookup by Building'!$B42,Dollars!$E$2:$E$1188,'Rent lookup by Building'!N$6,Dollars!$C$2:$C$1188,'Rent lookup by Building'!$C$4) -> 0 | O42: =SUMIFS(Dollars!$G$2:$G$1188,Dollars!$A$2:$A$1188,'Rent lookup by Building'!$B42,Dollars!$E$2:$E$1188,'Rent lookup by Building'!O$6,Dollars!$C$2:$C$1188,'Rent lookup by Building'!$C$4) -> 0 | P42: 0 | Q42: 0 | R42: 0
A43: HIDE | B43: 119 | C43: 119 - Commission on African-American Affairs | D43: =SUMIFS('RSF List'!C:C,'RSF List'!B:B,'Rent lookup by Building'!$C$4,'RSF List'!A:A,LEFT('Rent lookup by Building'!C43,3)) -> 0 | F43: =SUMIFS(Dollars!$F$2:$F$1188,Dollars!$A$2:$A$1188,'Rent lookup by Building'!$B43,Dollars!$E$2:$E$1188,'Rent lookup by Building'!F$6,Dollars!$C$2:$C$1188,'Rent lookup by Building'!$C$4) -> 0 | G43: =SUMIFS(Dollars!$F$2:$F$1188,Dollars!$A$2:$A$1188,'Rent lookup by Building'!$B43,Dollars!$E$2:$E$1188,'Rent lookup by Building'!G$6,Dollars!$C$2:$C$1188,'Rent lookup by Building'!$C$4) -> 0 | H43: =SUMIFS(Dollars!$F$2:$F$1188,Dollars!$A$2:$A$1188,'Rent lookup by Building'!$B43,Dollars!$E$2:$E$1188,'Rent lookup by Building'!H$6,Dollars!$C$2:$C$1188,'Rent lookup by Building'!$C$4) -> 0 | I43: 0 | J43: 0 | K43: 0 | M43: =SUMIFS(Dollars!$G$2:$G$1188,Dollars!$A$2:$A$1188,'Rent lookup by Building'!$B43,Dollars!$E$2:$E$1188,'Rent lookup by Building'!M$6,Dollars!$C$2:$C$1188,'Rent lookup by Building'!$C$4) -> 0 | N43: =SUMIFS(Dollars!$G$2:$G$1188,Dollars!$A$2:$A$1188,'Rent lookup by Building'!$B43,Dollars!$E$2:$E$1188,'Rent lookup by Building'!N$6,Dollars!$C$2:$C$1188,'Rent lookup by Building'!$C$4) -> 0 | O43: =SUMIFS(Dollars!$G$2:$G$1188,Dollars!$A$2:$A$1188,'Rent lookup by Building'!$B43,Dollars!$E$2:$E$1188,'Rent lookup by Building'!O$6,Dollars!$C$2:$C$1188,'Rent lookup by Building'!$C$4) -> 0 | P43: 0 | Q43: 0 | R43: 0
A44: HIDE | B44: 120 | C44: 120 - Human Rights Commission | D44: =SUMIFS('RSF List'!C:C,'RSF List'!B:B,'Rent lookup by Building'!$C$4,'RSF List'!A:A,LEFT('Rent lookup by Building'!C44,3)) -> 0 | F44: =SUMIFS(Dollars!$F$2:$F$1188,Dollars!$A$2:$A$1188,'Rent lookup by Building'!$B44,Dollars!$E$2:$E$1188,'Rent lookup by Building'!F$6,Dollars!$C$2:$C$1188,'Rent lookup by Building'!$C$4) -> 0 | G44: =SUMIFS(Dollars!$F$2:$F$1188,Dollars!$A$2:$A$1188,'Rent lookup by Building'!$B44,Dollars!$E$2:$E$1188,'Rent lookup by Building'!G$6,Dollars!$C$2:$C$1188,'Rent lookup by Building'!$C$4) -> 0 | H44: =SUMIFS(Dollars!$F$2:$F$1188,Dollars!$A$2:$A$1188,'Rent lookup by Building'!$B44,Dollars!$E$2:$E$1188,'Rent lookup by Building'!H$6,Dollars!$C$2:$C$1188,'Rent lookup by Building'!$C$4) -> 0 | I44: 0 | J44: 0 | K44: 0 | M44: =SUMIFS(Dollars!$G$2:$G$1188,Dollars!$A$2:$A$1188,'Rent lookup by Building'!$B44,Dollars!$E$2:$E$1188,'Rent lookup by Building'!M$6,Dollars!$C$2:$C$1188,'Rent lookup by Building'!$C$4) -> 0 | N44: =SUMIFS(Dollars!$G$2:$G$1188,Dollars!$A$2:$A$1188,'Rent lookup by Building'!$B44,Dollars!$E$2:$E$1188,'Rent lookup by Building'!N$6,Dollars!$C$2:$C$1188,'Rent lookup by Building'!$C$4) -> 0 | O44: =SUMIFS(Dollars!$G$2:$G$1188,Dollars!$A$2:$A$1188,'Rent lookup by Building'!$B44,Dollars!$E$2:$E$1188,'Rent lookup by Building'!O$6,Dollars!$C$2:$C$1188,'Rent lookup by Building'!$C$4) -> 0 | P44: 0 | Q44: 0 | R44: 0
A45: HIDE | B45: 124 | C45: 124 - Department of Retirement Systems | D45: =SUMIFS('RSF List'!C:C,'RSF List'!B:B,'Rent lookup by Building'!$C$4,'RSF List'!A:A,LEFT('Rent lookup by Building'!C45,3)) -> 0 | F45: =SUMIFS(Dollars!$F$2:$F$1188,Dollars!$A$2:$A$1188,'Rent lookup by Building'!$B45,Dollars!$E$2:$E$1188,'Rent lookup by Building'!F$6,Dollars!$C$2:$C$1188,'Rent lookup by Building'!$C$4) -> 0 | G45: =SUMIFS(Dollars!$F$2:$F$1188,Dollars!$A$2:$A$1188,'Rent lookup by Building'!$B45,Dollars!$E$2:$E$1188,'Rent lookup by Building'!G$6,Dollars!$C$2:$C$1188,'Rent lookup by Building'!$C$4) -> 0 | H45: =SUMIFS(Dollars!$F$2:$F$1188,Dollars!$A$2:$A$1188,'Rent lookup by Building'!$B45,Dollars!$E$2:$E$1188,'Rent lookup by Building'!H$6,Dollars!$C$2:$C$1188,'Rent lookup by Building'!$C$4) -> 0 | I45: 0 | J45: 0 | K45: 0 | M45: =SUMIFS(Dollars!$G$2:$G$1188,Dollars!$A$2:$A$1188,'Rent lookup by Building'!$B45,Dollars!$E$2:$E$1188,'Rent lookup by Building'!M$6,Dollars!$C$2:$C$1188,'Rent lookup by Building'!$C$4) -> 0 | N45: =SUMIFS(Dollars!$G$2:$G$1188,Dollars!$A$2:$A$1188,'Rent lookup by Building'!$B45,Dollars!$E$2:$E$1188,'Rent lookup by Building'!N$6,Dollars!$C$2:$C$1188,'Rent lookup by Building'!$C$4) -> 0 | O45: =SUMIFS(Dollars!$G$2:$G$1188,Dollars!$A$2:$A$1188,'Rent lookup by Building'!$B45,Dollars!$E$2:$E$1188,'Rent lookup by Building'!O$6,Dollars!$C$2:$C$1188,'Rent lookup by Building'!$C$4) -> 0 | P45: 0 | Q45: 0 | R45: 0
A46: HIDE | B46: 126 | C46: 126 - State Investment Board | D46: =SUMIFS('RSF List'!C:C,'RSF List'!B:B,'Rent lookup by Building'!$C$4,'RSF List'!A:A,LEFT('Rent lookup by Building'!C46,3)) -> 0 | F46: =SUMIFS(Dollars!$F$2:$F$1188,Dollars!$A$2:$A$1188,'Rent lookup by Building'!$B46,Dollars!$E$2:$E$1188,'Rent lookup by Building'!F$6,Dollars!$C$2:$C$1188,'Rent lookup by Building'!$C$4) -> 0 | G46: =SUMIFS(Dollars!$F$2:$F$1188,Dollars!$A$2:$A$1188,'Rent lookup by Building'!$B46,Dollars!$E$2:$E$1188,'Rent lookup by Building'!G$6,Dollars!$C$2:$C$1188,'Rent lookup by Building'!$C$4) -> 0 | H46: =SUMIFS(Dollars!$F$2:$F$1188,Dollars!$A$2:$A$1188,'Rent lookup by Building'!$B46,Dollars!$E$2:$E$1188,'Rent lookup by Building'!H$6,Dollars!$C$2:$C$1188,'Rent lookup by Building'!$C$4) -> 0 | I46: 0 | J46: 0 | K46: 0 | M46: =SUMIFS(Dollars!$G$2:$G$1188,Dollars!$A$2:$A$1188,'Rent lookup by Building'!$B46,Dollars!$E$2:$E$1188,'Rent lookup by Building'!M$6,Dollars!$C$2:$C$1188,'Rent lookup by Building'!$C$4) -> 0 | N46: =SUMIFS(Dollars!$G$2:$G$1188,Dollars!$A$2:$A$1188,'Rent lookup by Building'!$B46,Dollars!$E$2:$E$1188,'Rent lookup by Building'!N$6,Dollars!$C$2:$C$1188,'Rent lookup by Building'!$C$4) -> 0 | O46: =SUMIFS(Dollars!$G$2:$G$1188,Dollars!$A$2:$A$1188,'Rent lookup by Building'!$B46,Dollars!$E$2:$E$1188,'Rent lookup by Building'!O$6,Dollars!$C$2:$C$1188,'Rent lookup by Building'!$C$4) -> 0 | P46: 0 | Q46: 0 | R46: 0
A47: HIDE | B47: 140 | C47: 140 - Department of Revenue | D47: =SUMIFS('RSF List'!C:C,'RSF List'!B:B,'Rent lookup by Building'!$C$4,'RSF List'!A:A,LEFT('Rent lookup by Building'!C47,3)) -> 0 | F47: =SUMIFS(Dollars!$F$2:$F$1188,Dollars!$A$2:$A$1188,'Rent lookup by Building'!$B47,Dollars!$E$2:$E$1188,'Rent lookup by Building'!F$6,Dollars!$C$2:$C$1188,'Rent lookup by Building'!$C$4) -> 0 | G47: =SUMIFS(Dollars!$F$2:$F$1188,Dollars!$A$2:$A$1188,'Rent lookup by Building'!$B47,Dollars!$E$2:$E$1188,'Rent lookup by Building'!G$6,Dollars!$C$2:$C$1188,'Rent lookup by Building'!$C$4) -> 0 | H47: =SUMIFS(Dollars!$F$2:$F$1188,Dollars!$A$2:$A$1188,'Rent lookup by Building'!$B47,Dollars!$E$2:$E$1188,'Rent lookup by Building'!H$6,Dollars!$C$2:$C$1188,'Rent lookup by Building'!$C$4) -> 0 | I47: 0 | J47: 0 | K47: 0 | M47: =SUMIFS(Dollars!$G$2:$G$1188,Dollars!$A$2:$A$1188,'Rent lookup by Building'!$B47,Dollars!$E$2:$E$1188,'Rent lookup by Building'!M$6,Dollars!$C$2:$C$1188,'Rent lookup by Building'!$C$4) -> 0 | N47: =SUMIFS(Dollars!$G$2:$G$1188,Dollars!$A$2:$A$1188,'Rent lookup by Building'!$B47,Dollars!$E$2:$E$1188,'Rent lookup by Building'!N$6,Dollars!$C$2:$C$1188,'Rent lookup by Building'!$C$4) -> 0 | O47: =SUMIFS(Dollars!$G$2:$G$1188,Dollars!$A$2:$A$1188,'Rent lookup by Building'!$B47,Dollars!$E$2:$E$1188,'Rent lookup by Building'!O$6,Dollars!$C$2:$C$1188,'Rent lookup by Building'!$C$4) -> 0 | P47: 0 | Q47: 0 | R47: 0
A48: HIDE | B48: 142 | C48: 142 - Board of Tax Appeals | D48: =SUMIFS('RSF List'!C:C,'RSF List'!B:B,'Rent lookup by Building'!$C$4,'RSF List'!A:A,LEFT('Rent lookup by Building'!C48,3)) -> 0 | F48: =SUMIFS(Dollars!$F$2:$F$1188,Dollars!$A$2:$A$1188,'Rent lookup by Building'!$B48,Dollars!$E$2:$E$1188,'Rent lookup by Building'!F$6,Dollars!$C$2:$C$1188,'Rent lookup by Building'!$C$4) -> 0 | G48: =SUMIFS(Dollars!$F$2:$F$1188,Dollars!$A$2:$A$1188,'Rent lookup by Building'!$B48,Dollars!$E$2:$E$1188,'Rent lookup by Building'!G$6,Dollars!$C$2:$C$1188,'Rent lookup by Building'!$C$4) -> 0 | H48: =SUMIFS(Dollars!$F$2:$F$1188,Dollars!$A$2:$A$1188,'Rent lookup by Building'!$B48,Dollars!$E$2:$E$1188,'Rent lookup by Building'!H$6,Dollars!$C$2:$C$1188,'Rent lookup by Building'!$C$4) -> 0 | I48: 0 | J48: 0 | K48: 0 | M48: =SUMIFS(Dollars!$G$2:$G$1188,Dollars!$A$2:$A$1188,'Rent lookup by Building'!$B48,Dollars!$E$2:$E$1188,'Rent lookup by Building'!M$6,Dollars!$C$2:$C$1188,'Rent lookup by Building'!$C$4) -> 0 | N48: =SUMIFS(Dollars!$G$2:$G$1188,Dollars!$A$2:$A$1188,'Rent lookup by Building'!$B48,Dollars!$E$2:$E$1188,'Rent lookup by Building'!N$6,Dollars!$C$2:$C$1188,'Rent lookup by Building'!$C$4) -> 0 | O48: =SUMIFS(Dollars!$G$2:$G$1188,Dollars!$A$2:$A$1188,'Rent lookup by Building'!$B48,Dollars!$E$2:$E$1188,'Rent lookup by Building'!O$6,Dollars!$C$2:$C$1188,'Rent lookup by Building'!$C$4) -> 0 | P48: 0 | Q48: 0 | R48: 0
A49: HIDE | B49: 147 | C49: 147 - Office of Minority and Women's Business Enterprises | D49: =SUMIFS('RSF List'!C:C,'RSF List'!B:B,'Rent lookup by Building'!$C$4,'RSF List'!A:A,LEFT('Rent lookup by Building'!C49,3)) -> 0 | F49: =SUMIFS(Dollars!$F$2:$F$1188,Dollars!$A$2:$A$1188,'Rent lookup by Building'!$B49,Dollars!$E$2:$E$1188,'Rent lookup by Building'!F$6,Dollars!$C$2:$C$1188,'Rent lookup by Building'!$C$4) -> 0 | G49: =SUMIFS(Dollars!$F$2:$F$1188,Dollars!$A$2:$A$1188,'Rent lookup by Building'!$B49,Dollars!$E$2:$E$1188,'Rent lookup by Building'!G$6,Dollars!$C$2:$C$1188,'Rent lookup by Building'!$C$4) -> 0 | H49: =SUMIFS(Dollars!$F$2:$F$1188,Dollars!$A$2:$A$1188,'Rent lookup by Building'!$B49,Dollars!$E$2:$E$1188,'Rent lookup by Building'!H$6,Dollars!$C$2:$C$1188,'Rent lookup by Building'!$C$4) -> 0 | I49: 0 | J49: 0 | K49: 0 | M49: =SUMIFS(Dollars!$G$2:$G$1188,Dollars!$A$2:$A$1188,'Rent lookup by Building'!$B49,Dollars!$E$2:$E$1188,'Rent lookup by Building'!M$6,Dollars!$C$2:$C$1188,'Rent lookup by Building'!$C$4) -> 0 | N49: =SUMIFS(Dollars!$G$2:$G$1188,Dollars!$A$2:$A$1188,'Rent lookup by Building'!$B49,Dollars!$E$2:$E$1188,'Rent lookup by Building'!N$6,Dollars!$C$2:$C$1188,'Rent lookup by Building'!$C$4) -> 0 | O49: =SUMIFS(Dollars!$G$2:$G$1188,Dollars!$A$2:$A$1188,'Rent lookup by Building'!$B49,Dollars!$E$2:$E$1188,'Rent lookup by Building'!O$6,Dollars!$C$2:$C$1188,'Rent lookup by Building'!$C$4) -> 0 | P49: 0 | Q49: 0 | R49: 0
A50: HIDE | B50: 160 | C50: 160 - Office of Insurance Commissioner | D50: =SUMIFS('RSF List'!C:C,'RSF List'!B:B,'Rent lookup by Building'!$C$4,'RSF List'!A:A,LEFT('Rent lookup by Building'!C50,3)) -> 0 | F50: =SUMIFS(Dollars!$F$2:$F$1188,Dollars!$A$2:$A$1188,'Rent lookup by Building'!$B50,Dollars!$E$2:$E$1188,'Rent lookup by Building'!F$6,Dollars!$C$2:$C$1188,'Rent lookup by Building'!$C$4) -> 0 | G50: =SUMIFS(Dollars!$F$2:$F$1188,Dollars!$A$2:$A$1188,'Rent lookup by Building'!$B50,Dollars!$E$2:$E$1188,'Rent lookup by Building'!G$6,Dollars!$C$2:$C$1188,'Rent lookup by Building'!$C$4) -> 0 | H50: =SUMIFS(Dollars!$F$2:$F$1188,Dollars!$A$2:$A$1188,'Rent lookup by Building'!$B50,Dollars!$E$2:$E$1188,'Rent lookup by Building'!H$6,Dollars!$C$2:$C$1188,'Rent lookup by Building'!$C$4) -> 0 | I50: 0 | J50: 0 | K50: 0 | M50: =SUMIFS(Dollars!$G$2:$G$1188,Dollars!$A$2:$A$1188,'Rent lookup by Building'!$B50,Dollars!$E$2:$E$1188,'Rent lookup by Building'!M$6,Dollars!$C$2:$C$1188,'Rent lookup by Building'!$C$4) -> 0 | N50: =SUMIFS(Dollars!$G$2:$G$1188,Dollars!$A$2:$A$1188,'Rent lookup by Building'!$B50,Dollars!$E$2:$E$1188,'Rent lookup by Building'!N$6,Dollars!$C$2:$C$1188,'Rent lookup by Building'!$C$4) -> 0 | O50: =SUMIFS(Dollars!$G$2:$G$1188,Dollars!$A$2:$A$1188,'Rent lookup by Building'!$B50,Dollars!$E$2:$E$1188,'Rent lookup by Building'!O$6,Dollars!$C$2:$C$1188,'Rent lookup by Building'!$C$4) -> 0 | P50: 0 | Q50: 0 | R50: 0
A51: HIDE | B51: 163 | C51: 163 - Consolidated Technology Services | D51: =SUMIFS('RSF List'!C:C,'RSF List'!B:B,'Rent lookup by Building'!$C$4,'RSF List'!A:A,LEFT('Rent lookup by Building'!C51,3)) -> 0 | F51: =SUMIFS(Dollars!$F$2:$F$1188,Dollars!$A$2:$A$1188,'Rent lookup by Building'!$B51,Dollars!$E$2:$E$1188,'Rent lookup by Building'!F$6,Dollars!$C$2:$C$1188,'Rent lookup by Building'!$C$4) -> 0 | G51: =SUMIFS(Dollars!$F$2:$F$1188,Dollars!$A$2:$A$1188,'Rent lookup by Building'!$B51,Dollars!$E$2:$E$1188,'Rent lookup by Building'!G$6,Dollars!$C$2:$C$1188,'Rent lookup by Building'!$C$4) -> 0 | H51: =SUMIFS(Dollars!$F$2:$F$1188,Dollars!$A$2:$A$1188,'Rent lookup by Building'!$B51,Dollars!$E$2:$E$1188,'Rent lookup by Building'!H$6,Dollars!$C$2:$C$1188,'Rent lookup by Building'!$C$4) -> 0 | I51: 0 | J51: 0 | K51: 0 | M51: =SUMIFS(Dollars!$G$2:$G$1188,Dollars!$A$2:$A$1188,'Rent lookup by Building'!$B51,Dollars!$E$2:$E$1188,'Rent lookup by Building'!M$6,Dollars!$C$2:$C$1188,'Rent lookup by Building'!$C$4) -> 0 | N51: =SUMIFS(Dollars!$G$2:$G$1188,Dollars!$A$2:$A$1188,'Rent lookup by Building'!$B51,Dollars!$E$2:$E$1188,'Rent lookup by Building'!N$6,Dollars!$C$2:$C$1188,'Rent lookup by Building'!$C$4) -> 0 | O51: =SUMIFS(Dollars!$G$2:$G$1188,Dollars!$A$2:$A$1188,'Rent lookup by Building'!$B51,Dollars!$E$2:$E$1188,'Rent lookup by Building'!O$6,Dollars!$C$2:$C$1188,'Rent lookup by Building'!$C$4) -> 0 | P51: 0 | Q51: 0 | R51: 0
A52: HIDE | B52: 165 | C52: 165 - Board of Accountancy | D52: =SUMIFS('RSF List'!C:C,'RSF List'!B:B,'Rent lookup by Building'!$C$4,'RSF List'!A:A,LEFT('Rent lookup by Building'!C52,3)) -> 0 | F52: =SUMIFS(Dollars!$F$2:$F$1188,Dollars!$A$2:$A$1188,'Rent lookup by Building'!$B52,Dollars!$E$2:$E$1188,'Rent lookup by Building'!F$6,Dollars!$C$2:$C$1188,'Rent lookup by Building'!$C$4) -> 0 | G52: =SUMIFS(Dollars!$F$2:$F$1188,Dollars!$A$2:$A$1188,'Rent lookup by Building'!$B52,Dollars!$E$2:$E$1188,'Rent lookup by Building'!G$6,Dollars!$C$2:$C$1188,'Rent lookup by Building'!$C$4) -> 0 | H52: =SUMIFS(Dollars!$F$2:$F$1188,Dollars!$A$2:$A$1188,'Rent lookup by Building'!$B52,Dollars!$E$2:$E$1188,'Rent lookup by Building'!H$6,Dollars!$C$2:$C$1188,'Rent lookup by Building'!$C$4) -> 0 | I52: 0 | J52: 0 | K52: 0 | M52: =SUMIFS(Dollars!$G$2:$G$1188,Dollars!$A$2:$A$1188,'Rent lookup by Building'!$B52,Dollars!$E$2:$E$1188,'Rent lookup by Building'!M$6,Dollars!$C$2:$C$1188,'Rent lookup by Building'!$C$4) -> 0 | N52: =SUMIFS(Dollars!$G$2:$G$1188,Dollars!$A$2:$A$1188,'Rent lookup by Building'!$B52,Dollars!$E$2:$E$1188,'Rent lookup by Building'!N$6,Dollars!$C$2:$C$1188,'Rent lookup by Building'!$C$4) -> 0 | O52: =SUMIFS(Dollars!$G$2:$G$1188,Dollars!$A$2:$A$1188,'Rent lookup by Building'!$B52,Dollars!$E$2:$E$1188,'Rent lookup by Building'!O$6,Dollars!$C$2:$C$1188,'Rent lookup by Building'!$C$4) -> 0 | P52: 0 | Q52: 0 | R52: 0
A53: HIDE | B53: 166 | C53: 166 - Brd Prof Eng Land Surveyors | D53: =SUMIFS('RSF List'!C:C,'RSF List'!B:B,'Rent lookup by Building'!$C$4,'RSF List'!A:A,LEFT('Rent lookup by Building'!C53,3)) -> 0 | F53: =SUMIFS(Dollars!$F$2:$F$1188,Dollars!$A$2:$A$1188,'Rent lookup by Building'!$B53,Dollars!$E$2:$E$1188,'Rent lookup by Building'!F$6,Dollars!$C$2:$C$1188,'Rent lookup by Building'!$C$4) -> 0 | G53: =SUMIFS(Dollars!$F$2:$F$1188,Dollars!$A$2:$A$1188,'Rent lookup by Building'!$B53,Dollars!$E$2:$E$1188,'Rent lookup by Building'!G$6,Dollars!$C$2:$C$1188,'Rent lookup by Building'!$C$4) -> 0 | H53: =SUMIFS(Dollars!$F$2:$F$1188,Dollars!$A$2:$A$1188,'Rent lookup by Building'!$B53,Dollars!$E$2:$E$1188,'Rent lookup by Building'!H$6,Dollars!$C$2:$C$1188,'Rent lookup by Building'!$C$4) -> 0 | I53: 0 | J53: 0 | K53: 0 | M53: =SUMIFS(Dollars!$G$2:$G$1188,Dollars!$A$2:$A$1188,'Rent lookup by Building'!$B53,Dollars!$E$2:$E$1188,'Rent lookup by Building'!M$6,Dollars!$C$2:$C$1188,'Rent lookup by Building'!$C$4) -> 0 | N53: =SUMIFS(Dollars!$G$2:$G$1188,Dollars!$A$2:$A$1188,'Rent lookup by Building'!$B53,Dollars!$E$2:$E$1188,'Rent lookup by Building'!N$6,Dollars!$C$2:$C$1188,'Rent lookup by Building'!$C$4) -> 0 | O53: =SUMIFS(Dollars!$G$2:$G$1188,Dollars!$A$2:$A$1188,'Rent lookup by Building'!$B53,Dollars!$E$2:$E$1188,'Rent lookup by Building'!O$6,Dollars!$C$2:$C$1188,'Rent lookup by Building'!$C$4) -> 0 | P53: 0 | Q53: 0 | R53: 0
A54: HIDE | B54: 167 | C54: 167 - Forensic Investigations Council | D54: =SUMIFS('RSF List'!C:C,'RSF List'!B:B,'Rent lookup by Building'!$C$4,'RSF List'!A:A,LEFT('Rent lookup by Building'!C54,3)) -> 0 | F54: =SUMIFS(Dollars!$F$2:$F$1188,Dollars!$A$2:$A$1188,'Rent lookup by Building'!$B54,Dollars!$E$2:$E$1188,'Rent lookup by Building'!F$6,Dollars!$C$2:$C$1188,'Rent lookup by Building'!$C$4) -> 0 | G54: =SUMIFS(Dollars!$F$2:$F$1188,Dollars!$A$2:$A$1188,'Rent lookup by Building'!$B54,Dollars!$E$2:$E$1188,'Rent lookup by Building'!G$6,Dollars!$C$2:$C$1188,'Rent lookup by Building'!$C$4) -> 0 | H54: =SUMIFS(Dollars!$F$2:$F$1188,Dollars!$A$2:$A$1188,'Rent lookup by Building'!$B54,Dollars!$E$2:$E$1188,'Rent lookup by Building'!H$6,Dollars!$C$2:$C$1188,'Rent lookup by Building'!$C$4) -> 0 | I54: 0 | J54: 0 | K54: 0 | M54: =SUMIFS(Dollars!$G$2:$G$1188,Dollars!$A$2:$A$1188,'Rent lookup by Building'!$B54,Dollars!$E$2:$E$1188,'Rent lookup by Building'!M$6,Dollars!$C$2:$C$1188,'Rent lookup by Building'!$C$4) -> 0 | N54: =SUMIFS(Dollars!$G$2:$G$1188,Dollars!$A$2:$A$1188,'Rent lookup by Building'!$B54,Dollars!$E$2:$E$1188,'Rent lookup by Building'!N$6,Dollars!$C$2:$C$1188,'Rent lookup by Building'!$C$4) -> 0 | O54: =SUMIFS(Dollars!$G$2:$G$1188,Dollars!$A$2:$A$1188,'Rent lookup by Building'!$B54,Dollars!$E$2:$E$1188,'Rent lookup by Building'!O$6,Dollars!$C$2:$C$1188,'Rent lookup by Building'!$C$4) -> 0 | P54: 0 | Q54: 0 | R54: 0
A55: HIDE | B55: 179 | C55: 179 - Department of Enterprise Services | D55: =SUMIFS('RSF List'!C:C,'RSF List'!B:B,'Rent lookup by Building'!$C$4,'RSF List'!A:A,LEFT('Rent lookup by Building'!C55,3)) -> 0 | F55: =SUMIFS(Dollars!$F$2:$F$1188,Dollars!$A$2:$A$1188,'Rent lookup by Building'!$B55,Dollars!$E$2:$E$1188,'Rent lookup by Building'!F$6,Dollars!$C$2:$C$1188,'Rent lookup by Building'!$C$4) -> 0 | G55: =SUMIFS(Dollars!$F$2:$F$1188,Dollars!$A$2:$A$1188,'Rent lookup by Building'!$B55,Dollars!$E$2:$E$1188,'Rent lookup by Building'!G$6,Dollars!$C$2:$C$1188,'Rent lookup by Building'!$C$4) -> 0 | H55: =SUMIFS(Dollars!$F$2:$F$1188,Dollars!$A$2:$A$1188,'Rent lookup by Building'!$B55,Dollars!$E$2:$E$1188,'Rent lookup by Building'!H$6,Dollars!$C$2:$C$1188,'Rent lookup by Building'!$C$4) -> 0 | I55: 0 | J55: 0 | K55: 0 | M55: =SUMIFS(Dollars!$G$2:$G$1188,Dollars!$A$2:$A$1188,'Rent lookup by Building'!$B55,Dollars!$E$2:$E$1188,'Rent lookup by Building'!M$6,Dollars!$C$2:$C$1188,'Rent lookup by Building'!$C$4) -> 0 | N55: =SUMIFS(Dollars!$G$2:$G$1188,Dollars!$A$2:$A$1188,'Rent lookup by Building'!$B55,Dollars!$E$2:$E$1188,'Rent lookup by Building'!N$6,Dollars!$C$2:$C$1188,'Rent lookup by Building'!$C$4) -> 0 | O55: =SUMIFS(Dollars!$G$2:$G$1188,Dollars!$A$2:$A$1188,'Rent lookup by Building'!$B55,Dollars!$E$2:$E$1188,'Rent lookup by Building'!O$6,Dollars!$C$2:$C$1188,'Rent lookup by Building'!$C$4) -> 0 | P55: 0 | Q55: 0 | R55: 0
A56: HIDE | B56: 185 | C56: 185 - Horse Racing Commission | D56: =SUMIFS('RSF List'!C:C,'RSF List'!B:B,'Rent lookup by Building'!$C$4,'RSF List'!A:A,LEFT('Rent lookup by Building'!C56,3)) -> 0 | F56: =SUMIFS(Dollars!$F$2:$F$1188,Dollars!$A$2:$A$1188,'Rent lookup by Building'!$B56,Dollars!$E$2:$E$1188,'Rent lookup by Building'!F$6,Dollars!$C$2:$C$1188,'Rent lookup by Building'!$C$4) -> 0 | G56: =SUMIFS(Dollars!$F$2:$F$1188,Dollars!$A$2:$A$1188,'Rent lookup by Building'!$B56,Dollars!$E$2:$E$1188,'Rent lookup by Building'!G$6,Dollars!$C$2:$C$1188,'Rent lookup by Building'!$C$4) -> 0 | H56: =SUMIFS(Dollars!$F$2:$F$1188,Dollars!$A$2:$A$1188,'Rent lookup by Building'!$B56,Dollars!$E$2:$E$1188,'Rent lookup by Building'!H$6,Dollars!$C$2:$C$1188,'Rent lookup by Building'!$C$4) -> 0 | I56: 0 | J56: 0 | K56: 0 | M56: =SUMIFS(Dollars!$G$2:$G$1188,Dollars!$A$2:$A$1188,'Rent lookup by Building'!$B56,Dollars!$E$2:$E$1188,'Rent lookup by Building'!M$6,Dollars!$C$2:$C$1188,'Rent lookup by Building'!$C$4) -> 0 | N56: =SUMIFS(Dollars!$G$2:$G$1188,Dollars!$A$2:$A$1188,'Rent lookup by Building'!$B56,Dollars!$E$2:$E$1188,'Rent lookup by Building'!N$6,Dollars!$C$2:$C$1188,'Rent lookup by Building'!$C$4) -> 0 | O56: =SUMIFS(Dollars!$G$2:$G$1188,Dollars!$A$2:$A$1188,'Rent lookup by Building'!$B56,Dollars!$E$2:$E$1188,'Rent lookup by Building'!O$6,Dollars!$C$2:$C$1188,'Rent lookup by Building'!$C$4) -> 0 | P56: 0 | Q56: 0 | R56: 0
A57: HIDE | B57: 190 | C57: 190 - Board of Industrial Insurance Appeals | D57: =SUMIFS('RSF List'!C:C,'RSF List'!B:B,'Rent lookup by Building'!$C$4,'RSF List'!A:A,LEFT('Rent lookup by Building'!C57,3)) -> 0 | F57: =SUMIFS(Dollars!$F$2:$F$1188,Dollars!$A$2:$A$1188,'Rent lookup by Building'!$B57,Dollars!$E$2:$E$1188,'Rent lookup by Building'!F$6,Dollars!$C$2:$C$1188,'Rent lookup by Building'!$C$4) -> 0 | G57: =SUMIFS(Dollars!$F$2:$F$1188,Dollars!$A$2:$A$1188,'Rent lookup by Building'!$B57,Dollars!$E$2:$E$1188,'Rent lookup by Building'!G$6,Dollars!$C$2:$C$1188,'Rent lookup by Building'!$C$4) -> 0 | H57: =SUMIFS(Dollars!$F$2:$F$1188,Dollars!$A$2:$A$1188,'Rent lookup by Building'!$B57,Dollars!$E$2:$E$1188,'Rent lookup by Building'!H$6,Dollars!$C$2:$C$1188,'Rent lookup by Building'!$C$4) -> 0 | I57: 0 | J57: 0 | K57: 0 | M57: =SUMIFS(Dollars!$G$2:$G$1188,Dollars!$A$2:$A$1188,'Rent lookup by Building'!$B57,Dollars!$E$2:$E$1188,'Rent lookup by Building'!M$6,Dollars!$C$2:$C$1188,'Rent lookup by Building'!$C$4) -> 0 | N57: =SUMIFS(Dollars!$G$2:$G$1188,Dollars!$A$2:$A$1188,'Rent lookup by Building'!$B57,Dollars!$E$2:$E$1188,'Rent lookup by Building'!N$6,Dollars!$C$2:$C$1188,'Rent lookup by Building'!$C$4) -> 0 | O57: =SUMIFS(Dollars!$G$2:$G$1188,Dollars!$A$2:$A$1188,'Rent lookup by Building'!$B57,Dollars!$E$2:$E$1188,'Rent lookup by Building'!O$6,Dollars!$C$2:$C$1188,'Rent lookup by Building'!$C$4) -> 0 | P57: 0 | Q57: 0 | R57: 0
A58: HIDE | B58: 195 | C58: 195 - Liquor Control Board | D58: =SUMIFS('RSF List'!C:C,'RSF List'!B:B,'Rent lookup by Building'!$C$4,'RSF List'!A:A,LEFT('Rent lookup by Building'!C58,3)) -> 0 | F58: =SUMIFS(Dollars!$F$2:$F$1188,Dollars!$A$2:$A$1188,'Rent lookup by Building'!$B58,Dollars!$E$2:$E$1188,'Rent lookup by Building'!F$6,Dollars!$C$2:$C$1188,'Rent lookup by Building'!$C$4) -> 0 | G58: =SUMIFS(Dollars!$F$2:$F$1188,Dollars!$A$2:$A$1188,'Rent lookup by Building'!$B58,Dollars!$E$2:$E$1188,'Rent lookup by Building'!G$6,Dollars!$C$2:$C$1188,'Rent lookup by Building'!$C$4) -> 0 | H58: =SUMIFS(Dollars!$F$2:$F$1188,Dollars!$A$2:$A$1188,'Rent lookup by Building'!$B58,Dollars!$E$2:$E$1188,'Rent lookup by Building'!H$6,Dollars!$C$2:$C$1188,'Rent lookup by Building'!$C$4) -> 0 | I58: 0 | J58: 0 | K58: 0 | M58: =SUMIFS(Dollars!$G$2:$G$1188,Dollars!$A$2:$A$1188,'Rent lookup by Building'!$B58,Dollars!$E$2:$E$1188,'Rent lookup by Building'!M$6,Dollars!$C$2:$C$1188,'Rent lookup by Building'!$C$4) -> 0 | N58: =SUMIFS(Dollars!$G$2:$G$1188,Dollars!$A$2:$A$1188,'Rent lookup by Building'!$B58,Dollars!$E$2:$E$1188,'Rent lookup by Building'!N$6,Dollars!$C$2:$C$1188,'Rent lookup by Building'!$C$4) -> 0 | O58: =SUMIFS(Dollars!$G$2:$G$1188,Dollars!$A$2:$A$1188,'Rent lookup by Building'!$B58,Dollars!$E$2:$E$1188,'Rent lookup by Building'!O$6,Dollars!$C$2:$C$1188,'Rent lookup by Building'!$C$4) -> 0 | P58: 0 | Q58: 0 | R58: 0
A59: HIDE | B59: 205 | C59: 205 - Board of Pilotage Commissioners | D59: =SUMIFS('RSF List'!C:C,'RSF List'!B:B,'Rent lookup by Building'!$C$4,'RSF List'!A:A,LEFT('Rent lookup by Building'!C59,3)) -> 0 | F59: =SUMIFS(Dollars!$F$2:$F$1188,Dollars!$A$2:$A$1188,'Rent lookup by Building'!$B59,Dollars!$E$2:$E$1188,'Rent lookup by Building'!F$6,Dollars!$C$2:$C$1188,'Rent lookup by Building'!$C$4) -> 0 | G59: =SUMIFS(Dollars!$F$2:$F$1188,Dollars!$A$2:$A$1188,'Rent lookup by Building'!$B59,Dollars!$E$2:$E$1188,'Rent lookup by Building'!G$6,Dollars!$C$2:$C$1188,'Rent lookup by Building'!$C$4) -> 0 | H59: =SUMIFS(Dollars!$F$2:$F$1188,Dollars!$A$2:$A$1188,'Rent lookup by Building'!$B59,Dollars!$E$2:$E$1188,'Rent lookup by Building'!H$6,Dollars!$C$2:$C$1188,'Rent lookup by Building'!$C$4) -> 0 | I59: 0 | J59: 0 | K59: 0 | M59: =SUMIFS(Dollars!$G$2:$G$1188,Dollars!$A$2:$A$1188,'Rent lookup by Building'!$B59,Dollars!$E$2:$E$1188,'Rent lookup by Building'!M$6,Dollars!$C$2:$C$1188,'Rent lookup by Building'!$C$4) -> 0 | N59: =SUMIFS(Dollars!$G$2:$G$1188,Dollars!$A$2:$A$1188,'Rent lookup by Building'!$B59,Dollars!$E$2:$E$1188,'Rent lookup by Building'!N$6,Dollars!$C$2:$C$1188,'Rent lookup by Building'!$C$4) -> 0 | O59: =SUMIFS(Dollars!$G$2:$G$1188,Dollars!$A$2:$A$1188,'Rent lookup by Building'!$B59,Dollars!$E$2:$E$1188,'Rent lookup by Building'!O$6,Dollars!$C$2:$C$1188,'Rent lookup by Building'!$C$4) -> 0 | P59: 0 | Q59: 0 | R59: 0
A60: HIDE | B60: 215 | C60: 215 - Utilities and Transportation Commission | D60: =SUMIFS('RSF List'!C:C,'RSF List'!B:B,'Rent lookup by Building'!$C$4,'RSF List'!A:A,LEFT('Rent lookup by Building'!C60,3)) -> 0 | F60: =SUMIFS(Dollars!$F$2:$F$1188,Dollars!$A$2:$A$1188,'Rent lookup by Building'!$B60,Dollars!$E$2:$E$1188,'Rent lookup by Building'!F$6,Dollars!$C$2:$C$1188,'Rent lookup by Building'!$C$4) -> 0 | G60: =SUMIFS(Dollars!$F$2:$F$1188,Dollars!$A$2:$A$1188,'Rent lookup by Building'!$B60,Dollars!$E$2:$E$1188,'Rent lookup by Building'!G$6,Dollars!$C$2:$C$1188,'Rent lookup by Building'!$C$4) -> 0 | H60: =SUMIFS(Dollars!$F$2:$F$1188,Dollars!$A$2:$A$1188,'Rent lookup by Building'!$B60,Dollars!$E$2:$E$1188,'Rent lookup by Building'!H$6,Dollars!$C$2:$C$1188,'Rent lookup by Building'!$C$4) -> 0 | I60: 0 | J60: 0 | K60: 0 | M60: =SUMIFS(Dollars!$G$2:$G$1188,Dollars!$A$2:$A$1188,'Rent lookup by Building'!$B60,Dollars!$E$2:$E$1188,'Rent lookup by Building'!M$6,Dollars!$C$2:$C$1188,'Rent lookup by Building'!$C$4) -> 0 | N60: =SUMIFS(Dollars!$G$2:$G$1188,Dollars!$A$2:$A$1188,'Rent lookup by Building'!$B60,Dollars!$E$2:$E$1188,'Rent lookup by Building'!N$6,Dollars!$C$2:$C$1188,'Rent lookup by Building'!$C$4) -> 0 | O60: =SUMIFS(Dollars!$G$2:$G$1188,Dollars!$A$2:$A$1188,'Rent lookup by Building'!$B60,Dollars!$E$2:$E$1188,'Rent lookup by Building'!O$6,Dollars!$C$2:$C$1188,'Rent lookup by Building'!$C$4) -> 0 | P60: 0 | Q60: 0 | R60: 0
A61: HIDE | B61: 220 | C61: 220 - Board for Volunteer Firefighters and Reserve Officers | D61: =SUMIFS('RSF List'!C:C,'RSF List'!B:B,'Rent lookup by Building'!$C$4,'RSF List'!A:A,LEFT('Rent lookup by Building'!C61,3)) -> 0 | F61: =SUMIFS(Dollars!$F$2:$F$1188,Dollars!$A$2:$A$1188,'Rent lookup by Building'!$B61,Dollars!$E$2:$E$1188,'Rent lookup by Building'!F$6,Dollars!$C$2:$C$1188,'Rent lookup by Building'!$C$4) -> 0 | G61: =SUMIFS(Dollars!$F$2:$F$1188,Dollars!$A$2:$A$1188,'Rent lookup by Building'!$B61,Dollars!$E$2:$E$1188,'Rent lookup by Building'!G$6,Dollars!$C$2:$C$1188,'Rent lookup by Building'!$C$4) -> 0 | H61: =SUMIFS(Dollars!$F$2:$F$1188,Dollars!$A$2:$A$1188,'Rent lookup by Building'!$B61,Dollars!$E$2:$E$1188,'Rent lookup by Building'!H$6,Dollars!$C$2:$C$1188,'Rent lookup by Building'!$C$4) -> 0 | I61: 0 | J61: 0 | K61: 0 | M61: =SUMIFS(Dollars!$G$2:$G$1188,Dollars!$A$2:$A$1188,'Rent lookup by Building'!$B61,Dollars!$E$2:$E$1188,'Rent lookup by Building'!M$6,Dollars!$C$2:$C$1188,'Rent lookup by Building'!$C$4) -> 0 | N61: =SUMIFS(Dollars!$G$2:$G$1188,Dollars!$A$2:$A$1188,'Rent lookup by Building'!$B61,Dollars!$E$2:$E$1188,'Rent lookup by Building'!N$6,Dollars!$C$2:$C$1188,'Rent lookup by Building'!$C$4) -> 0 | O61: =SUMIFS(Dollars!$G$2:$G$1188,Dollars!$A$2:$A$1188,'Rent lookup by Building'!$B61,Dollars!$E$2:$E$1188,'Rent lookup by Building'!O$6,Dollars!$C$2:$C$1188,'Rent lookup by Building'!$C$4) -> 0 | P61: 0 | Q61: 0 | R61: 0
A62: HIDE | B62: 225 | C62: 225 - Washington State Patrol | D62: =SUMIFS('RSF List'!C:C,'RSF List'!B:B,'Rent lookup by Building'!$C$4,'RSF List'!A:A,LEFT('Rent lookup by Building'!C62,3)) -> 0 | F62: =SUMIFS(Dollars!$F$2:$F$1188,Dollars!$A$2:$A$1188,'Rent lookup by Building'!$B62,Dollars!$E$2:$E$1188,'Rent lookup by Building'!F$6,Dollars!$C$2:$C$1188,'Rent lookup by Building'!$C$4) -> 0 | G62: =SUMIFS(Dollars!$F$2:$F$1188,Dollars!$A$2:$A$1188,'Rent lookup by Building'!$B62,Dollars!$E$2:$E$1188,'Rent lookup by Building'!G$6,Dollars!$C$2:$C$1188,'Rent lookup by Building'!$C$4) -> 0 | H62: =SUMIFS(Dollars!$F$2:$F$1188,Dollars!$A$2:$A$1188,'Rent lookup by Building'!$B62,Dollars!$E$2:$E$1188,'Rent lookup by Building'!H$6,Dollars!$C$2:$C$1188,'Rent lookup by Building'!$C$4) -> 0 | I62: 0 | J62: 0 | K62: 0 | M62: =SUMIFS(Dollars!$G$2:$G$1188,Dollars!$A$2:$A$1188,'Rent lookup by Building'!$B62,Dollars!$E$2:$E$1188,'Rent lookup by Building'!M$6,Dollars!$C$2:$C$1188,'Rent lookup by Building'!$C$4) -> 0 | N62: =SUMIFS(Dollars!$G$2:$G$1188,Dollars!$A$2:$A$1188,'Rent lookup by Building'!$B62,Dollars!$E$2:$E$1188,'Rent lookup by Building'!N$6,Dollars!$C$2:$C$1188,'Rent lookup by Building'!$C$4) -> 0 | O62: =SUMIFS(Dollars!$G$2:$G$1188,Dollars!$A$2:$A$1188,'Rent lookup by Building'!$B62,Dollars!$E$2:$E$1188,'Rent lookup by Building'!O$6,Dollars!$C$2:$C$1188,'Rent lookup by Building'!$C$4) -> 0 | P62: 0 | Q62: 0 | R62: 0
A63: HIDE | B63: 227 | C63: 227 - Criminal Justice Training Commission | D63: =SUMIFS('RSF List'!C:C,'RSF List'!B:B,'Rent lookup by Building'!$C$4,'RSF List'!A:A,LEFT('Rent lookup by Building'!C63,3)) -> 0 | F63: =SUMIFS(Dollars!$F$2:$F$1188,Dollars!$A$2:$A$1188,'Rent lookup by Building'!$B63,Dollars!$E$2:$E$1188,'Rent lookup by Building'!F$6,Dollars!$C$2:$C$1188,'Rent lookup by Building'!$C$4) -> 0 | G63: =SUMIFS(Dollars!$F$2:$F$1188,Dollars!$A$2:$A$1188,'Rent lookup by Building'!$B63,Dollars!$E$2:$E$1188,'Rent lookup by Building'!G$6,Dollars!$C$2:$C$1188,'Rent lookup by Building'!$C$4) -> 0 | H63: =SUMIFS(Dollars!$F$2:$F$1188,Dollars!$A$2:$A$1188,'Rent lookup by Building'!$B63,Dollars!$E$2:$E$1188,'Rent lookup by Building'!H$6,Dollars!$C$2:$C$1188,'Rent lookup by Building'!$C$4) -> 0 | I63: 0 | J63: 0 | K63: 0 | M63: =SUMIFS(Dollars!$G$2:$G$1188,Dollars!$A$2:$A$1188,'Rent lookup by Building'!$B63,Dollars!$E$2:$E$1188,'Rent lookup by Building'!M$6,Dollars!$C$2:$C$1188,'Rent lookup by Building'!$C$4) -> 0 | N63: =SUMIFS(Dollars!$G$2:$G$1188,Dollars!$A$2:$A$1188,'Rent lookup by Building'!$B63,Dollars!$E$2:$E$1188,'Rent lookup by Building'!N$6,Dollars!$C$2:$C$1188,'Rent lookup by Building'!$C$4) -> 0 | O63: =SUMIFS(Dollars!$G$2:$G$1188,Dollars!$A$2:$A$1188,'Rent lookup by Building'!$B63,Dollars!$E$2:$E$1188,'Rent lookup by Building'!O$6,Dollars!$C$2:$C$1188,'Rent lookup by Building'!$C$4) -> 0 | P63: 0 | Q63: 0 | R63: 0
A64: HIDE | B64: 228 | C64: 228 - Traffic Safety Commission | D64: =SUMIFS('RSF List'!C:C,'RSF List'!B:B,'Rent lookup by Building'!$C$4,'RSF List'!A:A,LEFT('Rent lookup by Building'!C64,3)) -> 0 | F64: =SUMIFS(Dollars!$F$2:$F$1188,Dollars!$A$2:$A$1188,'Rent lookup by Building'!$B64,Dollars!$E$2:$E$1188,'Rent lookup by Building'!F$6,Dollars!$C$2:$C$1188,'Rent lookup by Building'!$C$4) -> 0 | G64: =SUMIFS(Dollars!$F$2:$F$1188,Dollars!$A$2:$A$1188,'Rent lookup by Building'!$B64,Dollars!$E$2:$E$1188,'Rent lookup by Building'!G$6,Dollars!$C$2:$C$1188,'Rent lookup by Building'!$C$4) -> 0 | H64: =SUMIFS(Dollars!$F$2:$F$1188,Dollars!$A$2:$A$1188,'Rent lookup by Building'!$B64,Dollars!$E$2:$E$1188,'Rent lookup by Building'!H$6,Dollars!$C$2:$C$1188,'Rent lookup by Building'!$C$4) -> 0 | I64: 0 | J64: 0 | K64: 0 | M64: =SUMIFS(Dollars!$G$2:$G$1188,Dollars!$A$2:$A$1188,'Rent lookup by Building'!$B64,Dollars!$E$2:$E$1188,'Rent lookup by Building'!M$6,Dollars!$C$2:$C$1188,'Rent lookup by Building'!$C$4) -> 0 | N64: =SUMIFS(Dollars!$G$2:$G$1188,Dollars!$A$2:$A$1188,'Rent lookup by Building'!$B64,Dollars!$E$2:$E$1188,'Rent lookup by Building'!N$6,Dollars!$C$2:$C$1188,'Rent lookup by Building'!$C$4) -> 0 | O64: =SUMIFS(Dollars!$G$2:$G$1188,Dollars!$A$2:$A$1188,'Rent lookup by Building'!$B64,Dollars!$E$2:$E$1188,'Rent lookup by Building'!O$6,Dollars!$C$2:$C$1188,'Rent lookup by Building'!$C$4) -> 0 | P64: 0 | Q64: 0 | R64: 0
A65: HIDE | B65: 235 | C65: 235 - Department of Labor and Industries | D65: =SUMIFS('RSF List'!C:C,'RSF List'!B:B,'Rent lookup by Building'!$C$4,'RSF List'!A:A,LEFT('Rent lookup by Building'!C65,3)) -> 0 | F65: =SUMIFS(Dollars!$F$2:$F$1188,Dollars!$A$2:$A$1188,'Rent lookup by Building'!$B65,Dollars!$E$2:$E$1188,'Rent lookup by Building'!F$6,Dollars!$C$2:$C$1188,'Rent lookup by Building'!$C$4) -> 0 | G65: =SUMIFS(Dollars!$F$2:$F$1188,Dollars!$A$2:$A$1188,'Rent lookup by Building'!$B65,Dollars!$E$2:$E$1188,'Rent lookup by Building'!G$6,Dollars!$C$2:$C$1188,'Rent lookup by Building'!$C$4) -> 0 | H65: =SUMIFS(Dollars!$F$2:$F$1188,Dollars!$A$2:$A$1188,'Rent lookup by Building'!$B65,Dollars!$E$2:$E$1188,'Rent lookup by Building'!H$6,Dollars!$C$2:$C$1188,'Rent lookup by Building'!$C$4) -> 0 | I65: 0 | J65: 0 | K65: 0 | M65: =SUMIFS(Dollars!$G$2:$G$1188,Dollars!$A$2:$A$1188,'Rent lookup by Building'!$B65,Dollars!$E$2:$E$1188,'Rent lookup by Building'!M$6,Dollars!$C$2:$C$1188,'Rent lookup by Building'!$C$4) -> 0 | N65: =SUMIFS(Dollars!$G$2:$G$1188,Dollars!$A$2:$A$1188,'Rent lookup by Building'!$B65,Dollars!$E$2:$E$1188,'Rent lookup by Building'!N$6,Dollars!$C$2:$C$1188,'Rent lookup by Building'!$C$4) -> 0 | O65: =SUMIFS(Dollars!$G$2:$G$1188,Dollars!$A$2:$A$1188,'Rent lookup by Building'!$B65,Dollars!$E$2:$E$1188,'Rent lookup by Building'!O$6,Dollars!$C$2:$C$1188,'Rent lookup by Building'!$C$4) -> 0 | P65: 0 | Q65: 0 | R65: 0
A66: HIDE | B66: 240 | C66: 240 - Department of Licensing | D66: =SUMIFS('RSF List'!C:C,'RSF List'!B:B,'Rent lookup by Building'!$C$4,'RSF List'!A:A,LEFT('Rent lookup by Building'!C66,3)) -> 0 | F66: =SUMIFS(Dollars!$F$2:$F$1188,Dollars!$A$2:$A$1188,'Rent lookup by Building'!$B66,Dollars!$E$2:$E$1188,'Rent lookup by Building'!F$6,Dollars!$C$2:$C$1188,'Rent lookup by Building'!$C$4) -> 0 | G66: =SUMIFS(Dollars!$F$2:$F$1188,Dollars!$A$2:$A$1188,'Rent lookup by Building'!$B66,Dollars!$E$2:$E$1188,'Rent lookup by Building'!G$6,Dollars!$C$2:$C$1188,'Rent lookup by Building'!$C$4) -> 0 | H66: =SUMIFS(Dollars!$F$2:$F$1188,Dollars!$A$2:$A$1188,'Rent lookup by Building'!$B66,Dollars!$E$2:$E$1188,'Rent lookup by Building'!H$6,Dollars!$C$2:$C$1188,'Rent lookup by Building'!$C$4) -> 0 | I66: 0 | J66: 0 | K66: 0 | M66: =SUMIFS(Dollars!$G$2:$G$1188,Dollars!$A$2:$A$1188,'Rent lookup by Building'!$B66,Dollars!$E$2:$E$1188,'Rent lookup by Building'!M$6,Dollars!$C$2:$C$1188,'Rent lookup by Building'!$C$4) -> 0 | N66: =SUMIFS(Dollars!$G$2:$G$1188,Dollars!$A$2:$A$1188,'Rent lookup by Building'!$B66,Dollars!$E$2:$E$1188,'Rent lookup by Building'!N$6,Dollars!$C$2:$C$1188,'Rent lookup by Building'!$C$4) -> 0 | O66: =SUMIFS(Dollars!$G$2:$G$1188,Dollars!$A$2:$A$1188,'Rent lookup by Building'!$B66,Dollars!$E$2:$E$1188,'Rent lookup by Building'!O$6,Dollars!$C$2:$C$1188,'Rent lookup by Building'!$C$4) -> 0 | P66: 0 | Q66: 0 | R66: 0
A67: HIDE | B67: 245 | C67: 245 - Military Department | D67: =SUMIFS('RSF List'!C:C,'RSF List'!B:B,'Rent lookup by Building'!$C$4,'RSF List'!A:A,LEFT('Rent lookup by Building'!C67,3)) -> 0 | F67: =SUMIFS(Dollars!$F$2:$F$1188,Dollars!$A$2:$A$1188,'Rent lookup by Building'!$B67,Dollars!$E$2:$E$1188,'Rent lookup by Building'!F$6,Dollars!$C$2:$C$1188,'Rent lookup by Building'!$C$4) -> 0 | G67: =SUMIFS(Dollars!$F$2:$F$1188,Dollars!$A$2:$A$1188,'Rent lookup by Building'!$B67,Dollars!$E$2:$E$1188,'Rent lookup by Building'!G$6,Dollars!$C$2:$C$1188,'Rent lookup by Building'!$C$4) -> 0 | H67: =SUMIFS(Dollars!$F$2:$F$1188,Dollars!$A$2:$A$1188,'Rent lookup by Building'!$B67,Dollars!$E$2:$E$1188,'Rent lookup by Building'!H$6,Dollars!$C$2:$C$1188,'Rent lookup by Building'!$C$4) -> 0 | I67: 0 | J67: 0 | K67: 0 | M67: =SUMIFS(Dollars!$G$2:$G$1188,Dollars!$A$2:$A$1188,'Rent lookup by Building'!$B67,Dollars!$E$2:$E$1188,'Rent lookup by Building'!M$6,Dollars!$C$2:$C$1188,'Rent lookup by Building'!$C$4) -> 0 | N67: =SUMIFS(Dollars!$G$2:$G$1188,Dollars!$A$2:$A$1188,'Rent lookup by Building'!$B67,Dollars!$E$2:$E$1188,'Rent lookup by Building'!N$6,Dollars!$C$2:$C$1188,'Rent lookup by Building'!$C$4) -> 0 | O67: =SUMIFS(Dollars!$G$2:$G$1188,Dollars!$A$2:$A$1188,'Rent lookup by Building'!$B67,Dollars!$E$2:$E$1188,'Rent lookup by Building'!O$6,Dollars!$C$2:$C$1188,'Rent lookup by Building'!$C$4) -> 0 | P67: 0 | Q67: 0 | R67: 0
A68: HIDE | B68: 275 | C68: 275 - Public Employment Relations Commission | D68: =SUMIFS('RSF List'!C:C,'RSF List'!B:B,'Rent lookup by Building'!$C$4,'RSF List'!A:A,LEFT('Rent lookup by Building'!C68,3)) -> 0 | F68: =SUMIFS(Dollars!$F$2:$F$1188,Dollars!$A$2:$A$1188,'Rent lookup by Building'!$B68,Dollars!$E$2:$E$1188,'Rent lookup by Building'!F$6,Dollars!$C$2:$C$1188,'Rent lookup by Building'!$C$4) -> 0 | G68: =SUMIFS(Dollars!$F$2:$F$1188,Dollars!$A$2:$A$1188,'Rent lookup by Building'!$B68,Dollars!$E$2:$E$1188,'Rent lookup by Building'!G$6,Dollars!$C$2:$C$1188,'Rent lookup by Building'!$C$4) -> 0 | H68: =SUMIFS(Dollars!$F$2:$F$1188,Dollars!$A$2:$A$1188,'Rent lookup by Building'!$B68,Dollars!$E$2:$E$1188,'Rent lookup by Building'!H$6,Dollars!$C$2:$C$1188,'Rent lookup by Building'!$C$4) -> 0 | I68: 0 | J68: 0 | K68: 0 | M68: =SUMIFS(Dollars!$G$2:$G$1188,Dollars!$A$2:$A$1188,'Rent lookup by Building'!$B68,Dollars!$E$2:$E$1188,'Rent lookup by Building'!M$6,Dollars!$C$2:$C$1188,'Rent lookup by Building'!$C$4) -> 0 | N68: =SUMIFS(Dollars!$G$2:$G$1188,Dollars!$A$2:$A$1188,'Rent lookup by Building'!$B68,Dollars!$E$2:$E$1188,'Rent lookup by Building'!N$6,Dollars!$C$2:$C$1188,'Rent lookup by Building'!$C$4) -> 0 | O68: =SUMIFS(Dollars!$G$2:$G$1188,Dollars!$A$2:$A$1188,'Rent lookup by Building'!$B68,Dollars!$E$2:$E$1188,'Rent lookup by Building'!O$6,Dollars!$C$2:$C$1188,'Rent lookup by Building'!$C$4) -> 0 | P68: 0 | Q68: 0 | R68: 0
A69: HIDE | B69: 300 | C69: 300 - Department of Social and Health Services | D69: =SUMIFS('RSF List'!C:C,'RSF List'!B:B,'Rent lookup by Building'!$C$4,'RSF List'!A:A,LEFT('Rent lookup by Building'!C69,3)) -> 0 | F69: =SUMIFS(Dollars!$F$2:$F$1188,Dollars!$A$2:$A$1188,'Rent lookup by Building'!$B69,Dollars!$E$2:$E$1188,'Rent lookup by Building'!F$6,Dollars!$C$2:$C$1188,'Rent lookup by Building'!$C$4) -> 0 | G69: =SUMIFS(Dollars!$F$2:$F$1188,Dollars!$A$2:$A$1188,'Rent lookup by Building'!$B69,Dollars!$E$2:$E$1188,'Rent lookup by Building'!G$6,Dollars!$C$2:$C$1188,'Rent lookup by Building'!$C$4) -> 0 | H69: =SUMIFS(Dollars!$F$2:$F$1188,Dollars!$A$2:$A$1188,'Rent lookup by Building'!$B69,Dollars!$E$2:$E$1188,'Rent lookup by Building'!H$6,Dollars!$C$2:$C$1188,'Rent lookup by Building'!$C$4) -> 0 | I69: 0 | J69: 0 | K69: 0 | M69: =SUMIFS(Dollars!$G$2:$G$1188,Dollars!$A$2:$A$1188,'Rent lookup by Building'!$B69,Dollars!$E$2:$E$1188,'Rent lookup by Building'!M$6,Dollars!$C$2:$C$1188,'Rent lookup by Building'!$C$4) -> 0 | N69: =SUMIFS(Dollars!$G$2:$G$1188,Dollars!$A$2:$A$1188,'Rent lookup by Building'!$B69,Dollars!$E$2:$E$1188,'Rent lookup by Building'!N$6,Dollars!$C$2:$C$1188,'Rent lookup by Building'!$C$4) -> 0 | O69: =SUMIFS(Dollars!$G$2:$G$1188,Dollars!$A$2:$A$1188,'Rent lookup by Building'!$B69,Dollars!$E$2:$E$1188,'Rent lookup by Building'!O$6,Dollars!$C$2:$C$1188,'Rent lookup by Building'!$C$4) -> 0 | P69: 0 | Q69: 0 | R69: 0
A70: HIDE | B70: 303 | C70: 303 - Department of Health | D70: =SUMIFS('RSF List'!C:C,'RSF List'!B:B,'Rent lookup by Building'!$C$4,'RSF List'!A:A,LEFT('Rent lookup by Building'!C70,3)) -> 0 | F70: =SUMIFS(Dollars!$F$2:$F$1188,Dollars!$A$2:$A$1188,'Rent lookup by Building'!$B70,Dollars!$E$2:$E$1188,'Rent lookup by Building'!F$6,Dollars!$C$2:$C$1188,'Rent lookup by Building'!$C$4) -> 0 | G70: =SUMIFS(Dollars!$F$2:$F$1188,Dollars!$A$2:$A$1188,'Rent lookup by Building'!$B70,Dollars!$E$2:$E$1188,'Rent lookup by Building'!G$6,Dollars!$C$2:$C$1188,'Rent lookup by Building'!$C$4) -> 0 | H70: =SUMIFS(Dollars!$F$2:$F$1188,Dollars!$A$2:$A$1188,'Rent lookup by Building'!$B70,Dollars!$E$2:$E$1188,'Rent lookup by Building'!H$6,Dollars!$C$2:$C$1188,'Rent lookup by Building'!$C$4) -> 0 | I70: 0 | J70: 0 | K70: 0 | M70: =SUMIFS(Dollars!$G$2:$G$1188,Dollars!$A$2:$A$1188,'Rent lookup by Building'!$B70,Dollars!$E$2:$E$1188,'Rent lookup by Building'!M$6,Dollars!$C$2:$C$1188,'Rent lookup by Building'!$C$4) -> 0 | N70: =SUMIFS(Dollars!$G$2:$G$1188,Dollars!$A$2:$A$1188,'Rent lookup by Building'!$B70,Dollars!$E$2:$E$1188,'Rent lookup by Building'!N$6,Dollars!$C$2:$C$1188,'Rent lookup by Building'!$C$4) -> 0 | O70: =SUMIFS(Dollars!$G$2:$G$1188,Dollars!$A$2:$A$1188,'Rent lookup by Building'!$B70,Dollars!$E$2:$E$1188,'Rent lookup by Building'!O$6,Dollars!$C$2:$C$1188,'Rent lookup by Building'!$C$4) -> 0 | P70: 0 | Q70: 0 | R70: 0
A71: HIDE | B71: 305 | C71: 305 - Department of Veterans Affairs | D71: =SUMIFS('RSF List'!C:C,'RSF List'!B:B,'Rent lookup by Building'!$C$4,'RSF List'!A:A,LEFT('Rent lookup by Building'!C71,3)) -> 0 | F71: =SUMIFS(Dollars!$F$2:$F$1188,Dollars!$A$2:$A$1188,'Rent lookup by Building'!$B71,Dollars!$E$2:$E$1188,'Rent lookup by Building'!F$6,Dollars!$C$2:$C$1188,'Rent lookup by Building'!$C$4) -> 0 | G71: =SUMIFS(Dollars!$F$2:$F$1188,Dollars!$A$2:$A$1188,'Rent lookup by Building'!$B71,Dollars!$E$2:$E$1188,'Rent lookup by Building'!G$6,Dollars!$C$2:$C$1188,'Rent lookup by Building'!$C$4) -> 0 | H71: =SUMIFS(Dollars!$F$2:$F$1188,Dollars!$A$2:$A$1188,'Rent lookup by Building'!$B71,Dollars!$E$2:$E$1188,'Rent lookup by Building'!H$6,Dollars!$C$2:$C$1188,'Rent lookup by Building'!$C$4) -> 0 | I71: 0 | J71: 0 | K71: 0 | M71: =SUMIFS(Dollars!$G$2:$G$1188,Dollars!$A$2:$A$1188,'Rent lookup by Building'!$B71,Dollars!$E$2:$E$1188,'Rent lookup by Building'!M$6,Dollars!$C$2:$C$1188,'Rent lookup by Building'!$C$4) -> 0 | N71: =SUMIFS(Dollars!$G$2:$G$1188,Dollars!$A$2:$A$1188,'Rent lookup by Building'!$B71,Dollars!$E$2:$E$1188,'Rent lookup by Building'!N$6,Dollars!$C$2:$C$1188,'Rent lookup by Building'!$C$4) -> 0 | O71: =SUMIFS(Dollars!$G$2:$G$1188,Dollars!$A$2:$A$1188,'Rent lookup by Building'!$B71,Dollars!$E$2:$E$1188,'Rent lookup by Building'!O$6,Dollars!$C$2:$C$1188,'Rent lookup by Building'!$C$4) -> 0 | P71: 0 | Q71: 0 | R71: 0
A72: =IF(D72=0,"HIDE","VIEW") -> HIDE | B72: =LEFT(C72,3) -> 307 | C72: 307 - DCYF | D72: =SUMIFS('RSF List'!C:C,'RSF List'!B:B,'Rent lookup by Building'!$C$4,'RSF List'!A:A,LEFT('Rent lookup by Building'!C72,3)) -> 0 | F72: =SUMIFS(Dollars!$F$2:$F$1188,Dollars!$A$2:$A$1188,'Rent lookup by Building'!$B72,Dollars!$E$2:$E$1188,'Rent lookup by Building'!F$6,Dollars!$C$2:$C$1188,'Rent lookup by Building'!$C$4) -> 0 | G72: =SUMIFS(Dollars!$F$2:$F$1188,Dollars!$A$2:$A$1188,'Rent lookup by Building'!$B72,Dollars!$E$2:$E$1188,'Rent lookup by Building'!G$6,Dollars!$C$2:$C$1188,'Rent lookup by Building'!$C$4) -> 0 | H72: =SUMIFS(Dollars!$F$2:$F$1188,Dollars!$A$2:$A$1188,'Rent lookup by Building'!$B72,Dollars!$E$2:$E$1188,'Rent lookup by Building'!H$6,Dollars!$C$2:$C$1188,'Rent lookup by Building'!$C$4) -> 0 | I72: 0 | J72: =I72/12 -> 0 | K72: 0 | M72: =SUMIFS(Dollars!$G$2:$G$1188,Dollars!$A$2:$A$1188,'Rent lookup by Building'!$B72,Dollars!$E$2:$E$1188,'Rent lookup by Building'!M$6,Dollars!$C$2:$C$1188,'Rent lookup by Building'!$C$4) -> 0 | N72: =SUMIFS(Dollars!$G$2:$G$1188,Dollars!$A$2:$A$1188,'Rent lookup by Building'!$B72,Dollars!$E$2:$E$1188,'Rent lookup by Building'!N$6,Dollars!$C$2:$C$1188,'Rent lookup by Building'!$C$4) -> 0 | O72: =SUMIFS(Dollars!$G$2:$G$1188,Dollars!$A$2:$A$1188,'Rent lookup by Building'!$B72,Dollars!$E$2:$E$1188,'Rent lookup by Building'!O$6,Dollars!$C$2:$C$1188,'Rent lookup by Building'!$C$4) -> 0 | P72: 0 | Q72: =P72/12 -> 0 | R72: 0
A73: HIDE | B73: 310 | C73: 310 - Department of Corrections | D73: =SUMIFS('RSF List'!C:C,'RSF List'!B:B,'Rent lookup by Building'!$C$4,'RSF List'!A:A,LEFT('Rent lookup by Building'!C73,3)) -> 0 | F73: =SUMIFS(Dollars!$F$2:$F$1188,Dollars!$A$2:$A$1188,'Rent lookup by Building'!$B73,Dollars!$E$2:$E$1188,'Rent lookup by Building'!F$6,Dollars!$C$2:$C$1188,'Rent lookup by Building'!$C$4) -> 0 | G73: =SUMIFS(Dollars!$F$2:$F$1188,Dollars!$A$2:$A$1188,'Rent lookup by Building'!$B73,Dollars!$E$2:$E$1188,'Rent lookup by Building'!G$6,Dollars!$C$2:$C$1188,'Rent lookup by Building'!$C$4) -> 0 | H73: =SUMIFS(Dollars!$F$2:$F$1188,Dollars!$A$2:$A$1188,'Rent lookup by Building'!$B73,Dollars!$E$2:$E$1188,'Rent lookup by Building'!H$6,Dollars!$C$2:$C$1188,'Rent lookup by Building'!$C$4) -> 0 | I73: 0 | J73: 0 | K73: 0 | M73: =SUMIFS(Dollars!$G$2:$G$1188,Dollars!$A$2:$A$1188,'Rent lookup by Building'!$B73,Dollars!$E$2:$E$1188,'Rent lookup by Building'!M$6,Dollars!$C$2:$C$1188,'Rent lookup by Building'!$C$4) -> 0 | N73: =SUMIFS(Dollars!$G$2:$G$1188,Dollars!$A$2:$A$1188,'Rent lookup by Building'!$B73,Dollars!$E$2:$E$1188,'Rent lookup by Building'!N$6,Dollars!$C$2:$C$1188,'Rent lookup by Building'!$C$4) -> 0 | O73: =SUMIFS(Dollars!$G$2:$G$1188,Dollars!$A$2:$A$1188,'Rent lookup by Building'!$B73,Dollars!$E$2:$E$1188,'Rent lookup by Building'!O$6,Dollars!$C$2:$C$1188,'Rent lookup by Building'!$C$4) -> 0 | P73: 0 | Q73: 0 | R73: 0
A74: HIDE | B74: 315 | C74: 315 - Department of Services for the Blind | D74: =SUMIFS('RSF List'!C:C,'RSF List'!B:B,'Rent lookup by Building'!$C$4,'RSF List'!A:A,LEFT('Rent lookup by Building'!C74,3)) -> 0 | F74: =SUMIFS(Dollars!$F$2:$F$1188,Dollars!$A$2:$A$1188,'Rent lookup by Building'!$B74,Dollars!$E$2:$E$1188,'Rent lookup by Building'!F$6,Dollars!$C$2:$C$1188,'Rent lookup by Building'!$C$4) -> 0 | G74: =SUMIFS(Dollars!$F$2:$F$1188,Dollars!$A$2:$A$1188,'Rent lookup by Building'!$B74,Dollars!$E$2:$E$1188,'Rent lookup by Building'!G$6,Dollars!$C$2:$C$1188,'Rent lookup by Building'!$C$4) -> 0 | H74: =SUMIFS(Dollars!$F$2:$F$1188,Dollars!$A$2:$A$1188,'Rent lookup by Building'!$B74,Dollars!$E$2:$E$1188,'Rent lookup by Building'!H$6,Dollars!$C$2:$C$1188,'Rent lookup by Building'!$C$4) -> 0 | I74: 0 | J74: 0 | K74: 0 | M74: =SUMIFS(Dollars!$G$2:$G$1188,Dollars!$A$2:$A$1188,'Rent lookup by Building'!$B74,Dollars!$E$2:$E$1188,'Rent lookup by Building'!M$6,Dollars!$C$2:$C$1188,'Rent lookup by Building'!$C$4) -> 0 | N74: =SUMIFS(Dollars!$G$2:$G$1188,Dollars!$A$2:$A$1188,'Rent lookup by Building'!$B74,Dollars!$E$2:$E$1188,'Rent lookup by Building'!N$6,Dollars!$C$2:$C$1188,'Rent lookup by Building'!$C$4) -> 0 | O74: =SUMIFS(Dollars!$G$2:$G$1188,Dollars!$A$2:$A$1188,'Rent lookup by Building'!$B74,Dollars!$E$2:$E$1188,'Rent lookup by Building'!O$6,Dollars!$C$2:$C$1188,'Rent lookup by Building'!$C$4) -> 0 | P74: 0 | Q74: 0 | R74: 0
A75: HIDE | B75: 340 | C75: 340 - Student Achievement Council | D75: =SUMIFS('RSF List'!C:C,'RSF List'!B:B,'Rent lookup by Building'!$C$4,'RSF List'!A:A,LEFT('Rent lookup by Building'!C75,3)) -> 0 | F75: =SUMIFS(Dollars!$F$2:$F$1188,Dollars!$A$2:$A$1188,'Rent lookup by Building'!$B75,Dollars!$E$2:$E$1188,'Rent lookup by Building'!F$6,Dollars!$C$2:$C$1188,'Rent lookup by Building'!$C$4) -> 0 | G75: =SUMIFS(Dollars!$F$2:$F$1188,Dollars!$A$2:$A$1188,'Rent lookup by Building'!$B75,Dollars!$E$2:$E$1188,'Rent lookup by Building'!G$6,Dollars!$C$2:$C$1188,'Rent lookup by Building'!$C$4) -> 0 | H75: =SUMIFS(Dollars!$F$2:$F$1188,Dollars!$A$2:$A$1188,'Rent lookup by Building'!$B75,Dollars!$E$2:$E$1188,'Rent lookup by Building'!H$6,Dollars!$C$2:$C$1188,'Rent lookup by Building'!$C$4) -> 0 | I75: 0 | J75: 0 | K75: 0 | M75: =SUMIFS(Dollars!$G$2:$G$1188,Dollars!$A$2:$A$1188,'Rent lookup by Building'!$B75,Dollars!$E$2:$E$1188,'Rent lookup by Building'!M$6,Dollars!$C$2:$C$1188,'Rent lookup by Building'!$C$4) -> 0 | N75: =SUMIFS(Dollars!$G$2:$G$1188,Dollars!$A$2:$A$1188,'Rent lookup by Building'!$B75,Dollars!$E$2:$E$1188,'Rent lookup by Building'!N$6,Dollars!$C$2:$C$1188,'Rent lookup by Building'!$C$4) -> 0 | O75: =SUMIFS(Dollars!$G$2:$G$1188,Dollars!$A$2:$A$1188,'Rent lookup by Building'!$B75,Dollars!$E$2:$E$1188,'Rent lookup by Building'!O$6,Dollars!$C$2:$C$1188,'Rent lookup by Building'!$C$4) -> 0 | P75: 0 | Q75: 0 | R75: 0
A76: HIDE | B76: 341 | C76: 341 - Law Enforcement Officers' & Fire Fighters' Plan 2 Retirement Board | D76: =SUMIFS('RSF List'!C:C,'RSF List'!B:B,'Rent lookup by Building'!$C$4,'RSF List'!A:A,LEFT('Rent lookup by Building'!C76,3)) -> 0 | F76: =SUMIFS(Dollars!$F$2:$F$1188,Dollars!$A$2:$A$1188,'Rent lookup by Building'!$B76,Dollars!$E$2:$E$1188,'Rent lookup by Building'!F$6,Dollars!$C$2:$C$1188,'Rent lookup by Building'!$C$4) -> 0 | G76: =SUMIFS(Dollars!$F$2:$F$1188,Dollars!$A$2:$A$1188,'Rent lookup by Building'!$B76,Dollars!$E$2:$E$1188,'Rent lookup by Building'!G$6,Dollars!$C$2:$C$1188,'Rent lookup by Building'!$C$4) -> 0 | H76: =SUMIFS(Dollars!$F$2:$F$1188,Dollars!$A$2:$A$1188,'Rent lookup by Building'!$B76,Dollars!$E$2:$E$1188,'Rent lookup by Building'!H$6,Dollars!$C$2:$C$1188,'Rent lookup by Building'!$C$4) -> 0 | I76: 0 | J76: 0 | K76: 0 | M76: =SUMIFS(Dollars!$G$2:$G$1188,Dollars!$A$2:$A$1188,'Rent lookup by Building'!$B76,Dollars!$E$2:$E$1188,'Rent lookup by Building'!M$6,Dollars!$C$2:$C$1188,'Rent lookup by Building'!$C$4) -> 0 | N76: =SUMIFS(Dollars!$G$2:$G$1188,Dollars!$A$2:$A$1188,'Rent lookup by Building'!$B76,Dollars!$E$2:$E$1188,'Rent lookup by Building'!N$6,Dollars!$C$2:$C$1188,'Rent lookup by Building'!$C$4) -> 0 | O76: =SUMIFS(Dollars!$G$2:$G$1188,Dollars!$A$2:$A$1188,'Rent lookup by Building'!$B76,Dollars!$E$2:$E$1188,'Rent lookup by Building'!O$6,Dollars!$C$2:$C$1188,'Rent lookup by Building'!$C$4) -> 0 | P76: 0 | Q76: 0 | R76: 0
A77: HIDE | B77: 350 | C77: 350 - Superintendent of Public Instruction | D77: =SUMIFS('RSF List'!C:C,'RSF List'!B:B,'Rent lookup by Building'!$C$4,'RSF List'!A:A,LEFT('Rent lookup by Building'!C77,3)) -> 0 | F77: =SUMIFS(Dollars!$F$2:$F$1188,Dollars!$A$2:$A$1188,'Rent lookup by Building'!$B77,Dollars!$E$2:$E$1188,'Rent lookup by Building'!F$6,Dollars!$C$2:$C$1188,'Rent lookup by Building'!$C$4) -> 0 | G77: =SUMIFS(Dollars!$F$2:$F$1188,Dollars!$A$2:$A$1188,'Rent lookup by Building'!$B77,Dollars!$E$2:$E$1188,'Rent lookup by Building'!G$6,Dollars!$C$2:$C$1188,'Rent lookup by Building'!$C$4) -> 0 | H77: =SUMIFS(Dollars!$F$2:$F$1188,Dollars!$A$2:$A$1188,'Rent lookup by Building'!$B77,Dollars!$E$2:$E$1188,'Rent lookup by Building'!H$6,Dollars!$C$2:$C$1188,'Rent lookup by Building'!$C$4) -> 0 | I77: 0 | J77: 0 | K77: 0 | M77: =SUMIFS(Dollars!$G$2:$G$1188,Dollars!$A$2:$A$1188,'Rent lookup by Building'!$B77,Dollars!$E$2:$E$1188,'Rent lookup by Building'!M$6,Dollars!$C$2:$C$1188,'Rent lookup by Building'!$C$4) -> 0 | N77: =SUMIFS(Dollars!$G$2:$G$1188,Dollars!$A$2:$A$1188,'Rent lookup by Building'!$B77,Dollars!$E$2:$E$1188,'Rent lookup by Building'!N$6,Dollars!$C$2:$C$1188,'Rent lookup by Building'!$C$4) -> 0 | O77: =SUMIFS(Dollars!$G$2:$G$1188,Dollars!$A$2:$A$1188,'Rent lookup by Building'!$B77,Dollars!$E$2:$E$1188,'Rent lookup by Building'!O$6,Dollars!$C$2:$C$1188,'Rent lookup by Building'!$C$4) -> 0 | P77: 0 | Q77: 0 | R77: 0
A78: HIDE | B78: 351 | C78: 351 - State School For The Blind | D78: =SUMIFS('RSF List'!C:C,'RSF List'!B:B,'Rent lookup by Building'!$C$4,'RSF List'!A:A,LEFT('Rent lookup by Building'!C78,3)) -> 0 | F78: =SUMIFS(Dollars!$F$2:$F$1188,Dollars!$A$2:$A$1188,'Rent lookup by Building'!$B78,Dollars!$E$2:$E$1188,'Rent lookup by Building'!F$6,Dollars!$C$2:$C$1188,'Rent lookup by Building'!$C$4) -> 0 | G78: =SUMIFS(Dollars!$F$2:$F$1188,Dollars!$A$2:$A$1188,'Rent lookup by Building'!$B78,Dollars!$E$2:$E$1188,'Rent lookup by Building'!G$6,Dollars!$C$2:$C$1188,'Rent lookup by Building'!$C$4) -> 0 | H78: =SUMIFS(Dollars!$F$2:$F$1188,Dollars!$A$2:$A$1188,'Rent lookup by Building'!$B78,Dollars!$E$2:$E$1188,'Rent lookup by Building'!H$6,Dollars!$C$2:$C$1188,'Rent lookup by Building'!$C$4) -> 0 | I78: 0 | J78: 0 | K78: 0 | M78: =SUMIFS(Dollars!$G$2:$G$1188,Dollars!$A$2:$A$1188,'Rent lookup by Building'!$B78,Dollars!$E$2:$E$1188,'Rent lookup by Building'!M$6,Dollars!$C$2:$C$1188,'Rent lookup by Building'!$C$4) -> 0 | N78: =SUMIFS(Dollars!$G$2:$G$1188,Dollars!$A$2:$A$1188,'Rent lookup by Building'!$B78,Dollars!$E$2:$E$1188,'Rent lookup by Building'!N$6,Dollars!$C$2:$C$1188,'Rent lookup by Building'!$C$4) -> 0 | O78: =SUMIFS(Dollars!$G$2:$G$1188,Dollars!$A$2:$A$1188,'Rent lookup by Building'!$B78,Dollars!$E$2:$E$1188,'Rent lookup by Building'!O$6,Dollars!$C$2:$C$1188,'Rent lookup by Building'!$C$4) -> 0 | P78: 0 | Q78: 0 | R78: 0
A79: HIDE | B79: 353 | C79: 353 - State Center for Childhood Deafness and Hearing Loss | D79: =SUMIFS('RSF List'!C:C,'RSF List'!B:B,'Rent lookup by Building'!$C$4,'RSF List'!A:A,LEFT('Rent lookup by Building'!C79,3)) -> 0 | F79: =SUMIFS(Dollars!$F$2:$F$1188,Dollars!$A$2:$A$1188,'Rent lookup by Building'!$B79,Dollars!$E$2:$E$1188,'Rent lookup by Building'!F$6,Dollars!$C$2:$C$1188,'Rent lookup by Building'!$C$4) -> 0 | G79: =SUMIFS(Dollars!$F$2:$F$1188,Dollars!$A$2:$A$1188,'Rent lookup by Building'!$B79,Dollars!$E$2:$E$1188,'Rent lookup by Building'!G$6,Dollars!$C$2:$C$1188,'Rent lookup by Building'!$C$4) -> 0 | H79: =SUMIFS(Dollars!$F$2:$F$1188,Dollars!$A$2:$A$1188,'Rent lookup by Building'!$B79,Dollars!$E$2:$E$1188,'Rent lookup by Building'!H$6,Dollars!$C$2:$C$1188,'Rent lookup by Building'!$C$4) -> 0 | I79: 0 | J79: 0 | K79: 0 | M79: =SUMIFS(Dollars!$G$2:$G$1188,Dollars!$A$2:$A$1188,'Rent lookup by Building'!$B79,Dollars!$E$2:$E$1188,'Rent lookup by Building'!M$6,Dollars!$C$2:$C$1188,'Rent lookup by Building'!$C$4) -> 0 | N79: =SUMIFS(Dollars!$G$2:$G$1188,Dollars!$A$2:$A$1188,'Rent lookup by Building'!$B79,Dollars!$E$2:$E$1188,'Rent lookup by Building'!N$6,Dollars!$C$2:$C$1188,'Rent lookup by Building'!$C$4) -> 0 | O79: =SUMIFS(Dollars!$G$2:$G$1188,Dollars!$A$2:$A$1188,'Rent lookup by Building'!$B79,Dollars!$E$2:$E$1188,'Rent lookup by Building'!O$6,Dollars!$C$2:$C$1188,'Rent lookup by Building'!$C$4) -> 0 | P79: 0 | Q79: 0 | R79: 0
A80: HIDE | B80: 354 | C80: 354 - Workforce Training and Education Coordinating Board | D80: =SUMIFS('RSF List'!C:C,'RSF List'!B:B,'Rent lookup by Building'!$C$4,'RSF List'!A:A,LEFT('Rent lookup by Building'!C80,3)) -> 0 | F80: =SUMIFS(Dollars!$F$2:$F$1188,Dollars!$A$2:$A$1188,'Rent lookup by Building'!$B80,Dollars!$E$2:$E$1188,'Rent lookup by Building'!F$6,Dollars!$C$2:$C$1188,'Rent lookup by Building'!$C$4) -> 0 | G80: =SUMIFS(Dollars!$F$2:$F$1188,Dollars!$A$2:$A$1188,'Rent lookup by Building'!$B80,Dollars!$E$2:$E$1188,'Rent lookup by Building'!G$6,Dollars!$C$2:$C$1188,'Rent lookup by Building'!$C$4) -> 0 | H80: =SUMIFS(Dollars!$F$2:$F$1188,Dollars!$A$2:$A$1188,'Rent lookup by Building'!$B80,Dollars!$E$2:$E$1188,'Rent lookup by Building'!H$6,Dollars!$C$2:$C$1188,'Rent lookup by Building'!$C$4) -> 0 | I80: 0 | J80: 0 | K80: 0 | M80: =SUMIFS(Dollars!$G$2:$G$1188,Dollars!$A$2:$A$1188,'Rent lookup by Building'!$B80,Dollars!$E$2:$E$1188,'Rent lookup by Building'!M$6,Dollars!$C$2:$C$1188,'Rent lookup by Building'!$C$4) -> 0 | N80: =SUMIFS(Dollars!$G$2:$G$1188,Dollars!$A$2:$A$1188,'Rent lookup by Building'!$B80,Dollars!$E$2:$E$1188,'Rent lookup by Building'!N$6,Dollars!$C$2:$C$1188,'Rent lookup by Building'!$C$4) -> 0 | O80: =SUMIFS(Dollars!$G$2:$G$1188,Dollars!$A$2:$A$1188,'Rent lookup by Building'!$B80,Dollars!$E$2:$E$1188,'Rent lookup by Building'!O$6,Dollars!$C$2:$C$1188,'Rent lookup by Building'!$C$4) -> 0 | P80: 0 | Q80: 0 | R80: 0
A81: HIDE | B81: 355 | C81: 355 - Department of Archaeology and Historic Preservation | D81: =SUMIFS('RSF List'!C:C,'RSF List'!B:B,'Rent lookup by Building'!$C$4,'RSF List'!A:A,LEFT('Rent lookup by Building'!C81,3)) -> 0 | F81: =SUMIFS(Dollars!$F$2:$F$1188,Dollars!$A$2:$A$1188,'Rent lookup by Building'!$B81,Dollars!$E$2:$E$1188,'Rent lookup by Building'!F$6,Dollars!$C$2:$C$1188,'Rent lookup by Building'!$C$4) -> 0 | G81: =SUMIFS(Dollars!$F$2:$F$1188,Dollars!$A$2:$A$1188,'Rent lookup by Building'!$B81,Dollars!$E$2:$E$1188,'Rent lookup by Building'!G$6,Dollars!$C$2:$C$1188,'Rent lookup by Building'!$C$4) -> 0 | H81: =SUMIFS(Dollars!$F$2:$F$1188,Dollars!$A$2:$A$1188,'Rent lookup by Building'!$B81,Dollars!$E$2:$E$1188,'Rent lookup by Building'!H$6,Dollars!$C$2:$C$1188,'Rent lookup by Building'!$C$4) -> 0 | I81: 0 | J81: 0 | K81: 0 | M81: =SUMIFS(Dollars!$G$2:$G$1188,Dollars!$A$2:$A$1188,'Rent lookup by Building'!$B81,Dollars!$E$2:$E$1188,'Rent lookup by Building'!M$6,Dollars!$C$2:$C$1188,'Rent lookup by Building'!$C$4) -> 0 | N81: =SUMIFS(Dollars!$G$2:$G$1188,Dollars!$A$2:$A$1188,'Rent lookup by Building'!$B81,Dollars!$E$2:$E$1188,'Rent lookup by Building'!N$6,Dollars!$C$2:$C$1188,'Rent lookup by Building'!$C$4) -> 0 | O81: =SUMIFS(Dollars!$G$2:$G$1188,Dollars!$A$2:$A$1188,'Rent lookup by Building'!$B81,Dollars!$E$2:$E$1188,'Rent lookup by Building'!O$6,Dollars!$C$2:$C$1188,'Rent lookup by Building'!$C$4) -> 0 | P81: 0 | Q81: 0 | R81: 0
A82: HIDE | B82: 357 | C82: 357 - Department of Early Learning | D82: =SUMIFS('RSF List'!C:C,'RSF List'!B:B,'Rent lookup by Building'!$C$4,'RSF List'!A:A,LEFT('Rent lookup by Building'!C82,3)) -> 0 | F82: =SUMIFS(Dollars!$F$2:$F$1188,Dollars!$A$2:$A$1188,'Rent lookup by Building'!$B82,Dollars!$E$2:$E$1188,'Rent lookup by Building'!F$6,Dollars!$C$2:$C$1188,'Rent lookup by Building'!$C$4) -> 0 | G82: =SUMIFS(Dollars!$F$2:$F$1188,Dollars!$A$2:$A$1188,'Rent lookup by Building'!$B82,Dollars!$E$2:$E$1188,'Rent lookup by Building'!G$6,Dollars!$C$2:$C$1188,'Rent lookup by Building'!$C$4) -> 0 | H82: =SUMIFS(Dollars!$F$2:$F$1188,Dollars!$A$2:$A$1188,'Rent lookup by Building'!$B82,Dollars!$E$2:$E$1188,'Rent lookup by Building'!H$6,Dollars!$C$2:$C$1188,'Rent lookup by Building'!$C$4) -> 0 | I82: 0 | J82: 0 | K82: 0 | M82: =SUMIFS(Dollars!$G$2:$G$1188,Dollars!$A$2:$A$1188,'Rent lookup by Building'!$B82,Dollars!$E$2:$E$1188,'Rent lookup by Building'!M$6,Dollars!$C$2:$C$1188,'Rent lookup by Building'!$C$4) -> 0 | N82: =SUMIFS(Dollars!$G$2:$G$1188,Dollars!$A$2:$A$1188,'Rent lookup by Building'!$B82,Dollars!$E$2:$E$1188,'Rent lookup by Building'!N$6,Dollars!$C$2:$C$1188,'Rent lookup by Building'!$C$4) -> 0 | O82: =SUMIFS(Dollars!$G$2:$G$1188,Dollars!$A$2:$A$1188,'Rent lookup by Building'!$B82,Dollars!$E$2:$E$1188,'Rent lookup by Building'!O$6,Dollars!$C$2:$C$1188,'Rent lookup by Building'!$C$4) -> 0 | P82: 0 | Q82: 0 | R82: 0
A83: HIDE | B83: 359 | C83: 359 - WA Charter School Commission | D83: =SUMIFS('RSF List'!C:C,'RSF List'!B:B,'Rent lookup by Building'!$C$4,'RSF List'!A:A,LEFT('Rent lookup by Building'!C83,3)) -> 0 | F83: =SUMIFS(Dollars!$F$2:$F$1188,Dollars!$A$2:$A$1188,'Rent lookup by Building'!$B83,Dollars!$E$2:$E$1188,'Rent lookup by Building'!F$6,Dollars!$C$2:$C$1188,'Rent lookup by Building'!$C$4) -> 0 | G83: =SUMIFS(Dollars!$F$2:$F$1188,Dollars!$A$2:$A$1188,'Rent lookup by Building'!$B83,Dollars!$E$2:$E$1188,'Rent lookup by Building'!G$6,Dollars!$C$2:$C$1188,'Rent lookup by Building'!$C$4) -> 0 | H83: =SUMIFS(Dollars!$F$2:$F$1188,Dollars!$A$2:$A$1188,'Rent lookup by Building'!$B83,Dollars!$E$2:$E$1188,'Rent lookup by Building'!H$6,Dollars!$C$2:$C$1188,'Rent lookup by Building'!$C$4) -> 0 | I83: 0 | J83: 0 | K83: 0 | M83: =SUMIFS(Dollars!$G$2:$G$1188,Dollars!$A$2:$A$1188,'Rent lookup by Building'!$B83,Dollars!$E$2:$E$1188,'Rent lookup by Building'!M$6,Dollars!$C$2:$C$1188,'Rent lookup by Building'!$C$4) -> 0 | N83: =SUMIFS(Dollars!$G$2:$G$1188,Dollars!$A$2:$A$1188,'Rent lookup by Building'!$B83,Dollars!$E$2:$E$1188,'Rent lookup by Building'!N$6,Dollars!$C$2:$C$1188,'Rent lookup by Building'!$C$4) -> 0 | O83: =SUMIFS(Dollars!$G$2:$G$1188,Dollars!$A$2:$A$1188,'Rent lookup by Building'!$B83,Dollars!$E$2:$E$1188,'Rent lookup by Building'!O$6,Dollars!$C$2:$C$1188,'Rent lookup by Building'!$C$4) -> 0 | P83: 0 | Q83: 0 | R83: 0
A84: HIDE | B84: 360 | C84: 360 - University of Washington | D84: =SUMIFS('RSF List'!C:C,'RSF List'!B:B,'Rent lookup by Building'!$C$4,'RSF List'!A:A,LEFT('Rent lookup by Building'!C84,3)) -> 0 | F84: =SUMIFS(Dollars!$F$2:$F$1188,Dollars!$A$2:$A$1188,'Rent lookup by Building'!$B84,Dollars!$E$2:$E$1188,'Rent lookup by Building'!F$6,Dollars!$C$2:$C$1188,'Rent lookup by Building'!$C$4) -> 0 | G84: =SUMIFS(Dollars!$F$2:$F$1188,Dollars!$A$2:$A$1188,'Rent lookup by Building'!$B84,Dollars!$E$2:$E$1188,'Rent lookup by Building'!G$6,Dollars!$C$2:$C$1188,'Rent lookup by Building'!$C$4) -> 0 | H84: =SUMIFS(Dollars!$F$2:$F$1188,Dollars!$A$2:$A$1188,'Rent lookup by Building'!$B84,Dollars!$E$2:$E$1188,'Rent lookup by Building'!H$6,Dollars!$C$2:$C$1188,'Rent lookup by Building'!$C$4) -> 0 | I84: 0 | J84: 0 | K84: 0 | M84: =SUMIFS(Dollars!$G$2:$G$1188,Dollars!$A$2:$A$1188,'Rent lookup by Building'!$B84,Dollars!$E$2:$E$1188,'Rent lookup by Building'!M$6,Dollars!$C$2:$C$1188,'Rent lookup by Building'!$C$4) -> 0 | N84: =SUMIFS(Dollars!$G$2:$G$1188,Dollars!$A$2:$A$1188,'Rent lookup by Building'!$B84,Dollars!$E$2:$E$1188,'Rent lookup by Building'!N$6,Dollars!$C$2:$C$1188,'Rent lookup by Building'!$C$4) -> 0 | O84: =SUMIFS(Dollars!$G$2:$G$1188,Dollars!$A$2:$A$1188,'Rent lookup by Building'!$B84,Dollars!$E$2:$E$1188,'Rent lookup by Building'!O$6,Dollars!$C$2:$C$1188,'Rent lookup by Building'!$C$4) -> 0 | P84: 0 | Q84: 0 | R84: 0
A85: HIDE | B85: 365 | C85: 365 - Washington State University | D85: =SUMIFS('RSF List'!C:C,'RSF List'!B:B,'Rent lookup by Building'!$C$4,'RSF List'!A:A,LEFT('Rent lookup by Building'!C85,3)) -> 0 | F85: =SUMIFS(Dollars!$F$2:$F$1188,Dollars!$A$2:$A$1188,'Rent lookup by Building'!$B85,Dollars!$E$2:$E$1188,'Rent lookup by Building'!F$6,Dollars!$C$2:$C$1188,'Rent lookup by Building'!$C$4) -> 0 | G85: =SUMIFS(Dollars!$F$2:$F$1188,Dollars!$A$2:$A$1188,'Rent lookup by Building'!$B85,Dollars!$E$2:$E$1188,'Rent lookup by Building'!G$6,Dollars!$C$2:$C$1188,'Rent lookup by Building'!$C$4) -> 0 | H85: =SUMIFS(Dollars!$F$2:$F$1188,Dollars!$A$2:$A$1188,'Rent lookup by Building'!$B85,Dollars!$E$2:$E$1188,'Rent lookup by Building'!H$6,Dollars!$C$2:$C$1188,'Rent lookup by Building'!$C$4) -> 0 | I85: 0 | J85: 0 | K85: 0 | M85: =SUMIFS(Dollars!$G$2:$G$1188,Dollars!$A$2:$A$1188,'Rent lookup by Building'!$B85,Dollars!$E$2:$E$1188,'Rent lookup by Building'!M$6,Dollars!$C$2:$C$1188,'Rent lookup by Building'!$C$4) -> 0 | N85: =SUMIFS(Dollars!$G$2:$G$1188,Dollars!$A$2:$A$1188,'Rent lookup by Building'!$B85,Dollars!$E$2:$E$1188,'Rent lookup by Building'!N$6,Dollars!$C$2:$C$1188,'Rent lookup by Building'!$C$4) -> 0 | O85: =SUMIFS(Dollars!$G$2:$G$1188,Dollars!$A$2:$A$1188,'Rent lookup by Building'!$B85,Dollars!$E$2:$E$1188,'Rent lookup by Building'!O$6,Dollars!$C$2:$C$1188,'Rent lookup by Building'!$C$4) -> 0 | P85: 0 | Q85: 0 | R85: 0
A86: HIDE | B86: 370 | C86: 370 - Eastern Washington University | D86: =SUMIFS('RSF List'!C:C,'RSF List'!B:B,'Rent lookup by Building'!$C$4,'RSF List'!A:A,LEFT('Rent lookup by Building'!C86,3)) -> 0 | F86: =SUMIFS(Dollars!$F$2:$F$1188,Dollars!$A$2:$A$1188,'Rent lookup by Building'!$B86,Dollars!$E$2:$E$1188,'Rent lookup by Building'!F$6,Dollars!$C$2:$C$1188,'Rent lookup by Building'!$C$4) -> 0 | G86: =SUMIFS(Dollars!$F$2:$F$1188,Dollars!$A$2:$A$1188,'Rent lookup by Building'!$B86,Dollars!$E$2:$E$1188,'Rent lookup by Building'!G$6,Dollars!$C$2:$C$1188,'Rent lookup by Building'!$C$4) -> 0 | H86: =SUMIFS(Dollars!$F$2:$F$1188,Dollars!$A$2:$A$1188,'Rent lookup by Building'!$B86,Dollars!$E$2:$E$1188,'Rent lookup by Building'!H$6,Dollars!$C$2:$C$1188,'Rent lookup by Building'!$C$4) -> 0 | I86: 0 | J86: 0 | K86: 0 | M86: =SUMIFS(Dollars!$G$2:$G$1188,Dollars!$A$2:$A$1188,'Rent lookup by Building'!$B86,Dollars!$E$2:$E$1188,'Rent lookup by Building'!M$6,Dollars!$C$2:$C$1188,'Rent lookup by Building'!$C$4) -> 0 | N86: =SUMIFS(Dollars!$G$2:$G$1188,Dollars!$A$2:$A$1188,'Rent lookup by Building'!$B86,Dollars!$E$2:$E$1188,'Rent lookup by Building'!N$6,Dollars!$C$2:$C$1188,'Rent lookup by Building'!$C$4) -> 0 | O86: =SUMIFS(Dollars!$G$2:$G$1188,Dollars!$A$2:$A$1188,'Rent lookup by Building'!$B86,Dollars!$E$2:$E$1188,'Rent lookup by Building'!O$6,Dollars!$C$2:$C$1188,'Rent lookup by Building'!$C$4) -> 0 | P86: 0 | Q86: 0 | R86: 0
A87: HIDE | B87: 375 | C87: 375 - Central Washington University | D87: =SUMIFS('RSF List'!C:C,'RSF List'!B:B,'Rent lookup by Building'!$C$4,'RSF List'!A:A,LEFT('Rent lookup by Building'!C87,3)) -> 0 | F87: =SUMIFS(Dollars!$F$2:$F$1188,Dollars!$A$2:$A$1188,'Rent lookup by Building'!$B87,Dollars!$E$2:$E$1188,'Rent lookup by Building'!F$6,Dollars!$C$2:$C$1188,'Rent lookup by Building'!$C$4) -> 0 | G87: =SUMIFS(Dollars!$F$2:$F$1188,Dollars!$A$2:$A$1188,'Rent lookup by Building'!$B87,Dollars!$E$2:$E$1188,'Rent lookup by Building'!G$6,Dollars!$C$2:$C$1188,'Rent lookup by Building'!$C$4) -> 0 | H87: =SUMIFS(Dollars!$F$2:$F$1188,Dollars!$A$2:$A$1188,'Rent lookup by Building'!$B87,Dollars!$E$2:$E$1188,'Rent lookup by Building'!H$6,Dollars!$C$2:$C$1188,'Rent lookup by Building'!$C$4) -> 0 | I87: 0 | J87: 0 | K87: 0 | M87: =SUMIFS(Dollars!$G$2:$G$1188,Dollars!$A$2:$A$1188,'Rent lookup by Building'!$B87,Dollars!$E$2:$E$1188,'Rent lookup by Building'!M$6,Dollars!$C$2:$C$1188,'Rent lookup by Building'!$C$4) -> 0 | N87: =SUMIFS(Dollars!$G$2:$G$1188,Dollars!$A$2:$A$1188,'Rent lookup by Building'!$B87,Dollars!$E$2:$E$1188,'Rent lookup by Building'!N$6,Dollars!$C$2:$C$1188,'Rent lookup by Building'!$C$4) -> 0 | O87: =SUMIFS(Dollars!$G$2:$G$1188,Dollars!$A$2:$A$1188,'Rent lookup by Building'!$B87,Dollars!$E$2:$E$1188,'Rent lookup by Building'!O$6,Dollars!$C$2:$C$1188,'Rent lookup by Building'!$C$4) -> 0 | P87: 0 | Q87: 0 | R87: 0
A88: HIDE | B88: 376 | C88: 376 - The Evergreen State College | D88: =SUMIFS('RSF List'!C:C,'RSF List'!B:B,'Rent lookup by Building'!$C$4,'RSF List'!A:A,LEFT('Rent lookup by Building'!C88,3)) -> 0 | F88: =SUMIFS(Dollars!$F$2:$F$1188,Dollars!$A$2:$A$1188,'Rent lookup by Building'!$B88,Dollars!$E$2:$E$1188,'Rent lookup by Building'!F$6,Dollars!$C$2:$C$1188,'Rent lookup by Building'!$C$4) -> 0 | G88: =SUMIFS(Dollars!$F$2:$F$1188,Dollars!$A$2:$A$1188,'Rent lookup by Building'!$B88,Dollars!$E$2:$E$1188,'Rent lookup by Building'!G$6,Dollars!$C$2:$C$1188,'Rent lookup by Building'!$C$4) -> 0 | H88: =SUMIFS(Dollars!$F$2:$F$1188,Dollars!$A$2:$A$1188,'Rent lookup by Building'!$B88,Dollars!$E$2:$E$1188,'Rent lookup by Building'!H$6,Dollars!$C$2:$C$1188,'Rent lookup by Building'!$C$4) -> 0 | I88: 0 | J88: 0 | K88: 0 | M88: =SUMIFS(Dollars!$G$2:$G$1188,Dollars!$A$2:$A$1188,'Rent lookup by Building'!$B88,Dollars!$E$2:$E$1188,'Rent lookup by Building'!M$6,Dollars!$C$2:$C$1188,'Rent lookup by Building'!$C$4) -> 0 | N88: =SUMIFS(Dollars!$G$2:$G$1188,Dollars!$A$2:$A$1188,'Rent lookup by Building'!$B88,Dollars!$E$2:$E$1188,'Rent lookup by Building'!N$6,Dollars!$C$2:$C$1188,'Rent lookup by Building'!$C$4) -> 0 | O88: =SUMIFS(Dollars!$G$2:$G$1188,Dollars!$A$2:$A$1188,'Rent lookup by Building'!$B88,Dollars!$E$2:$E$1188,'Rent lookup by Building'!O$6,Dollars!$C$2:$C$1188,'Rent lookup by Building'!$C$4) -> 0 | P88: 0 | Q88: 0 | R88: 0
A89: HIDE | B89: 380 | C89: 380 - Western Washington University | D89: =SUMIFS('RSF List'!C:C,'RSF List'!B:B,'Rent lookup by Building'!$C$4,'RSF List'!A:A,LEFT('Rent lookup by Building'!C89,3)) -> 0 | F89: =SUMIFS(Dollars!$F$2:$F$1188,Dollars!$A$2:$A$1188,'Rent lookup by Building'!$B89,Dollars!$E$2:$E$1188,'Rent lookup by Building'!F$6,Dollars!$C$2:$C$1188,'Rent lookup by Building'!$C$4) -> 0 | G89: =SUMIFS(Dollars!$F$2:$F$1188,Dollars!$A$2:$A$1188,'Rent lookup by Building'!$B89,Dollars!$E$2:$E$1188,'Rent lookup by Building'!G$6,Dollars!$C$2:$C$1188,'Rent lookup by Building'!$C$4) -> 0 | H89: =SUMIFS(Dollars!$F$2:$F$1188,Dollars!$A$2:$A$1188,'Rent lookup by Building'!$B89,Dollars!$E$2:$E$1188,'Rent lookup by Building'!H$6,Dollars!$C$2:$C$1188,'Rent lookup by Building'!$C$4) -> 0 | I89: 0 | J89: 0 | K89: 0 | M89: =SUMIFS(Dollars!$G$2:$G$1188,Dollars!$A$2:$A$1188,'Rent lookup by Building'!$B89,Dollars!$E$2:$E$1188,'Rent lookup by Building'!M$6,Dollars!$C$2:$C$1188,'Rent lookup by Building'!$C$4) -> 0 | N89: =SUMIFS(Dollars!$G$2:$G$1188,Dollars!$A$2:$A$1188,'Rent lookup by Building'!$B89,Dollars!$E$2:$E$1188,'Rent lookup by Building'!N$6,Dollars!$C$2:$C$1188,'Rent lookup by Building'!$C$4) -> 0 | O89: =SUMIFS(Dollars!$G$2:$G$1188,Dollars!$A$2:$A$1188,'Rent lookup by Building'!$B89,Dollars!$E$2:$E$1188,'Rent lookup by Building'!O$6,Dollars!$C$2:$C$1188,'Rent lookup by Building'!$C$4) -> 0 | P89: 0 | Q89: 0 | R89: 0
A90: HIDE | B90: 387 | C90: 387 - Washington State Arts Commission | D90: =SUMIFS('RSF List'!C:C,'RSF List'!B:B,'Rent lookup by Building'!$C$4,'RSF List'!A:A,LEFT('Rent lookup by Building'!C90,3)) -> 0 | F90: =SUMIFS(Dollars!$F$2:$F$1188,Dollars!$A$2:$A$1188,'Rent lookup by Building'!$B90,Dollars!$E$2:$E$1188,'Rent lookup by Building'!F$6,Dollars!$C$2:$C$1188,'Rent lookup by Building'!$C$4) -> 0 | G90: =SUMIFS(Dollars!$F$2:$F$1188,Dollars!$A$2:$A$1188,'Rent lookup by Building'!$B90,Dollars!$E$2:$E$1188,'Rent lookup by Building'!G$6,Dollars!$C$2:$C$1188,'Rent lookup by Building'!$C$4) -> 0 | H90: =SUMIFS(Dollars!$F$2:$F$1188,Dollars!$A$2:$A$1188,'Rent lookup by Building'!$B90,Dollars!$E$2:$E$1188,'Rent lookup by Building'!H$6,Dollars!$C$2:$C$1188,'Rent lookup by Building'!$C$4) -> 0 | I90: 0 | J90: 0 | K90: 0 | M90: =SUMIFS(Dollars!$G$2:$G$1188,Dollars!$A$2:$A$1188,'Rent lookup by Building'!$B90,Dollars!$E$2:$E$1188,'Rent lookup by Building'!M$6,Dollars!$C$2:$C$1188,'Rent lookup by Building'!$C$4) -> 0 | N90: =SUMIFS(Dollars!$G$2:$G$1188,Dollars!$A$2:$A$1188,'Rent lookup by Building'!$B90,Dollars!$E$2:$E$1188,'Rent lookup by Building'!N$6,Dollars!$C$2:$C$1188,'Rent lookup by Building'!$C$4) -> 0 | O90: =SUMIFS(Dollars!$G$2:$G$1188,Dollars!$A$2:$A$1188,'Rent lookup by Building'!$B90,Dollars!$E$2:$E$1188,'Rent lookup by Building'!O$6,Dollars!$C$2:$C$1188,'Rent lookup by Building'!$C$4) -> 0 | P90: 0 | Q90: 0 | R90: 0
A91: HIDE | B91: 390 | C91: 390 - Washington State Historical Society | D91: =SUMIFS('RSF List'!C:C,'RSF List'!B:B,'Rent lookup by Building'!$C$4,'RSF List'!A:A,LEFT('Rent lookup by Building'!C91,3)) -> 0 | F91: =SUMIFS(Dollars!$F$2:$F$1188,Dollars!$A$2:$A$1188,'Rent lookup by Building'!$B91,Dollars!$E$2:$E$1188,'Rent lookup by Building'!F$6,Dollars!$C$2:$C$1188,'Rent lookup by Building'!$C$4) -> 0 | G91: =SUMIFS(Dollars!$F$2:$F$1188,Dollars!$A$2:$A$1188,'Rent lookup by Building'!$B91,Dollars!$E$2:$E$1188,'Rent lookup by Building'!G$6,Dollars!$C$2:$C$1188,'Rent lookup by Building'!$C$4) -> 0 | H91: =SUMIFS(Dollars!$F$2:$F$1188,Dollars!$A$2:$A$1188,'Rent lookup by Building'!$B91,Dollars!$E$2:$E$1188,'Rent lookup by Building'!H$6,Dollars!$C$2:$C$1188,'Rent lookup by Building'!$C$4) -> 0 | I91: 0 | J91: 0 | K91: 0 | M91: =SUMIFS(Dollars!$G$2:$G$1188,Dollars!$A$2:$A$1188,'Rent lookup by Building'!$B91,Dollars!$E$2:$E$1188,'Rent lookup by Building'!M$6,Dollars!$C$2:$C$1188,'Rent lookup by Building'!$C$4) -> 0 | N91: =SUMIFS(Dollars!$G$2:$G$1188,Dollars!$A$2:$A$1188,'Rent lookup by Building'!$B91,Dollars!$E$2:$E$1188,'Rent lookup by Building'!N$6,Dollars!$C$2:$C$1188,'Rent lookup by Building'!$C$4) -> 0 | O91: =SUMIFS(Dollars!$G$2:$G$1188,Dollars!$A$2:$A$1188,'Rent lookup by Building'!$B91,Dollars!$E$2:$E$1188,'Rent lookup by Building'!O$6,Dollars!$C$2:$C$1188,'Rent lookup by Building'!$C$4) -> 0 | P91: 0 | Q91: 0 | R91: 0
A92: HIDE | B92: 395 | C92: 395 - Eastern Washington State Historical Society | D92: =SUMIFS('RSF List'!C:C,'RSF List'!B:B,'Rent lookup by Building'!$C$4,'RSF List'!A:A,LEFT('Rent lookup by Building'!C92,3)) -> 0 | F92: =SUMIFS(Dollars!$F$2:$F$1188,Dollars!$A$2:$A$1188,'Rent lookup by Building'!$B92,Dollars!$E$2:$E$1188,'Rent lookup by Building'!F$6,Dollars!$C$2:$C$1188,'Rent lookup by Building'!$C$4) -> 0 | G92: =SUMIFS(Dollars!$F$2:$F$1188,Dollars!$A$2:$A$1188,'Rent lookup by Building'!$B92,Dollars!$E$2:$E$1188,'Rent lookup by Building'!G$6,Dollars!$C$2:$C$1188,'Rent lookup by Building'!$C$4) -> 0 | H92: =SUMIFS(Dollars!$F$2:$F$1188,Dollars!$A$2:$A$1188,'Rent lookup by Building'!$B92,Dollars!$E$2:$E$1188,'Rent lookup by Building'!H$6,Dollars!$C$2:$C$1188,'Rent lookup by Building'!$C$4) -> 0 | I92: 0 | J92: 0 | K92: 0 | M92: =SUMIFS(Dollars!$G$2:$G$1188,Dollars!$A$2:$A$1188,'Rent lookup by Building'!$B92,Dollars!$E$2:$E$1188,'Rent lookup by Building'!M$6,Dollars!$C$2:$C$1188,'Rent lookup by Building'!$C$4) -> 0 | N92: =SUMIFS(Dollars!$G$2:$G$1188,Dollars!$A$2:$A$1188,'Rent lookup by Building'!$B92,Dollars!$E$2:$E$1188,'Rent lookup by Building'!N$6,Dollars!$C$2:$C$1188,'Rent lookup by Building'!$C$4) -> 0 | O92: =SUMIFS(Dollars!$G$2:$G$1188,Dollars!$A$2:$A$1188,'Rent lookup by Building'!$B92,Dollars!$E$2:$E$1188,'Rent lookup by Building'!O$6,Dollars!$C$2:$C$1188,'Rent lookup by Building'!$C$4) -> 0 | P92: 0 | Q92: 0 | R92: 0
A93: HIDE | B93: 405 | C93: 405 - Department of Transportation | D93: =SUMIFS('RSF List'!C:C,'RSF List'!B:B,'Rent lookup by Building'!$C$4,'RSF List'!A:A,LEFT('Rent lookup by Building'!C93,3)) -> 0 | F93: =SUMIFS(Dollars!$F$2:$F$1188,Dollars!$A$2:$A$1188,'Rent lookup by Building'!$B93,Dollars!$E$2:$E$1188,'Rent lookup by Building'!F$6,Dollars!$C$2:$C$1188,'Rent lookup by Building'!$C$4) -> 0 | G93: =SUMIFS(Dollars!$F$2:$F$1188,Dollars!$A$2:$A$1188,'Rent lookup by Building'!$B93,Dollars!$E$2:$E$1188,'Rent lookup by Building'!G$6,Dollars!$C$2:$C$1188,'Rent lookup by Building'!$C$4) -> 0 | H93: =SUMIFS(Dollars!$F$2:$F$1188,Dollars!$A$2:$A$1188,'Rent lookup by Building'!$B93,Dollars!$E$2:$E$1188,'Rent lookup by Building'!H$6,Dollars!$C$2:$C$1188,'Rent lookup by Building'!$C$4) -> 0 | I93: 0 | J93: 0 | K93: 0 | M93: =SUMIFS(Dollars!$G$2:$G$1188,Dollars!$A$2:$A$1188,'Rent lookup by Building'!$B93,Dollars!$E$2:$E$1188,'Rent lookup by Building'!M$6,Dollars!$C$2:$C$1188,'Rent lookup by Building'!$C$4) -> 0 | N93: =SUMIFS(Dollars!$G$2:$G$1188,Dollars!$A$2:$A$1188,'Rent lookup by Building'!$B93,Dollars!$E$2:$E$1188,'Rent lookup by Building'!N$6,Dollars!$C$2:$C$1188,'Rent lookup by Building'!$C$4) -> 0 | O93: =SUMIFS(Dollars!$G$2:$G$1188,Dollars!$A$2:$A$1188,'Rent lookup by Building'!$B93,Dollars!$E$2:$E$1188,'Rent lookup by Building'!O$6,Dollars!$C$2:$C$1188,'Rent lookup by Building'!$C$4) -> 0 | P93: 0 | Q93: 0 | R93: 0
A94: HIDE | B94: 406 | C94: 406 - County Road Administration Board | D94: =SUMIFS('RSF List'!C:C,'RSF List'!B:B,'Rent lookup by Building'!$C$4,'RSF List'!A:A,LEFT('Rent lookup by Building'!C94,3)) -> 0 | F94: =SUMIFS(Dollars!$F$2:$F$1188,Dollars!$A$2:$A$1188,'Rent lookup by Building'!$B94,Dollars!$E$2:$E$1188,'Rent lookup by Building'!F$6,Dollars!$C$2:$C$1188,'Rent lookup by Building'!$C$4) -> 0 | G94: =SUMIFS(Dollars!$F$2:$F$1188,Dollars!$A$2:$A$1188,'Rent lookup by Building'!$B94,Dollars!$E$2:$E$1188,'Rent lookup by Building'!G$6,Dollars!$C$2:$C$1188,'Rent lookup by Building'!$C$4) -> 0 | H94: =SUMIFS(Dollars!$F$2:$F$1188,Dollars!$A$2:$A$1188,'Rent lookup by Building'!$B94,Dollars!$E$2:$E$1188,'Rent lookup by Building'!H$6,Dollars!$C$2:$C$1188,'Rent lookup by Building'!$C$4) -> 0 | I94: 0 | J94: 0 | K94: 0 | M94: =SUMIFS(Dollars!$G$2:$G$1188,Dollars!$A$2:$A$1188,'Rent lookup by Building'!$B94,Dollars!$E$2:$E$1188,'Rent lookup by Building'!M$6,Dollars!$C$2:$C$1188,'Rent lookup by Building'!$C$4) -> 0 | N94: =SUMIFS(Dollars!$G$2:$G$1188,Dollars!$A$2:$A$1188,'Rent lookup by Building'!$B94,Dollars!$E$2:$E$1188,'Rent lookup by Building'!N$6,Dollars!$C$2:$C$1188,'Rent lookup by Building'!$C$4) -> 0 | O94: =SUMIFS(Dollars!$G$2:$G$1188,Dollars!$A$2:$A$1188,'Rent lookup by Building'!$B94,Dollars!$E$2:$E$1188,'Rent lookup by Building'!O$6,Dollars!$C$2:$C$1188,'Rent lookup by Building'!$C$4) -> 0 | P94: 0 | Q94: 0 | R94: 0
A95: HIDE | B95: 407 | C95: 407 - Transportation Improvement Board | D95: =SUMIFS('RSF List'!C:C,'RSF List'!B:B,'Rent lookup by Building'!$C$4,'RSF List'!A:A,LEFT('Rent lookup by Building'!C95,3)) -> 0 | F95: =SUMIFS(Dollars!$F$2:$F$1188,Dollars!$A$2:$A$1188,'Rent lookup by Building'!$B95,Dollars!$E$2:$E$1188,'Rent lookup by Building'!F$6,Dollars!$C$2:$C$1188,'Rent lookup by Building'!$C$4) -> 0 | G95: =SUMIFS(Dollars!$F$2:$F$1188,Dollars!$A$2:$A$1188,'Rent lookup by Building'!$B95,Dollars!$E$2:$E$1188,'Rent lookup by Building'!G$6,Dollars!$C$2:$C$1188,'Rent lookup by Building'!$C$4) -> 0 | H95: =SUMIFS(Dollars!$F$2:$F$1188,Dollars!$A$2:$A$1188,'Rent lookup by Building'!$B95,Dollars!$E$2:$E$1188,'Rent lookup by Building'!H$6,Dollars!$C$2:$C$1188,'Rent lookup by Building'!$C$4) -> 0 | I95: 0 | J95: 0 | K95: 0 | M95: =SUMIFS(Dollars!$G$2:$G$1188,Dollars!$A$2:$A$1188,'Rent lookup by Building'!$B95,Dollars!$E$2:$E$1188,'Rent lookup by Building'!M$6,Dollars!$C$2:$C$1188,'Rent lookup by Building'!$C$4) -> 0 | N95: =SUMIFS(Dollars!$G$2:$G$1188,Dollars!$A$2:$A$1188,'Rent lookup by Building'!$B95,Dollars!$E$2:$E$1188,'Rent lookup by Building'!N$6,Dollars!$C$2:$C$1188,'Rent lookup by Building'!$C$4) -> 0 | O95: =SUMIFS(Dollars!$G$2:$G$1188,Dollars!$A$2:$A$1188,'Rent lookup by Building'!$B95,Dollars!$E$2:$E$1188,'Rent lookup by Building'!O$6,Dollars!$C$2:$C$1188,'Rent lookup by Building'!$C$4) -> 0 | P95: 0 | Q95: 0 | R95: 0
A96: HIDE | B96: 410 | C96: 410 - Transportation Commission | D96: =SUMIFS('RSF List'!C:C,'RSF List'!B:B,'Rent lookup by Building'!$C$4,'RSF List'!A:A,LEFT('Rent lookup by Building'!C96,3)) -> 0 | F96: =SUMIFS(Dollars!$F$2:$F$1188,Dollars!$A$2:$A$1188,'Rent lookup by Building'!$B96,Dollars!$E$2:$E$1188,'Rent lookup by Building'!F$6,Dollars!$C$2:$C$1188,'Rent lookup by Building'!$C$4) -> 0 | G96: =SUMIFS(Dollars!$F$2:$F$1188,Dollars!$A$2:$A$1188,'Rent lookup by Building'!$B96,Dollars!$E$2:$E$1188,'Rent lookup by Building'!G$6,Dollars!$C$2:$C$1188,'Rent lookup by Building'!$C$4) -> 0 | H96: =SUMIFS(Dollars!$F$2:$F$1188,Dollars!$A$2:$A$1188,'Rent lookup by Building'!$B96,Dollars!$E$2:$E$1188,'Rent lookup by Building'!H$6,Dollars!$C$2:$C$1188,'Rent lookup by Building'!$C$4) -> 0 | I96: 0 | J96: 0 | K96: 0 | M96: =SUMIFS(Dollars!$G$2:$G$1188,Dollars!$A$2:$A$1188,'Rent lookup by Building'!$B96,Dollars!$E$2:$E$1188,'Rent lookup by Building'!M$6,Dollars!$C$2:$C$1188,'Rent lookup by Building'!$C$4) -> 0 | N96: =SUMIFS(Dollars!$G$2:$G$1188,Dollars!$A$2:$A$1188,'Rent lookup by Building'!$B96,Dollars!$E$2:$E$1188,'Rent lookup by Building'!N$6,Dollars!$C$2:$C$1188,'Rent lookup by Building'!$C$4) -> 0 | O96: =SUMIFS(Dollars!$G$2:$G$1188,Dollars!$A$2:$A$1188,'Rent lookup by Building'!$B96,Dollars!$E$2:$E$1188,'Rent lookup by Building'!O$6,Dollars!$C$2:$C$1188,'Rent lookup by Building'!$C$4) -> 0 | P96: 0 | Q96: 0 | R96: 0
A97: HIDE | B97: 411 | C97: 411 - Freight Mobility Strategic Investment Board | D97: =SUMIFS('RSF List'!C:C,'RSF List'!B:B,'Rent lookup by Building'!$C$4,'RSF List'!A:A,LEFT('Rent lookup by Building'!C97,3)) -> 0 | F97: =SUMIFS(Dollars!$F$2:$F$1188,Dollars!$A$2:$A$1188,'Rent lookup by Building'!$B97,Dollars!$E$2:$E$1188,'Rent lookup by Building'!F$6,Dollars!$C$2:$C$1188,'Rent lookup by Building'!$C$4) -> 0 | G97: =SUMIFS(Dollars!$F$2:$F$1188,Dollars!$A$2:$A$1188,'Rent lookup by Building'!$B97,Dollars!$E$2:$E$1188,'Rent lookup by Building'!G$6,Dollars!$C$2:$C$1188,'Rent lookup by Building'!$C$4) -> 0 | H97: =SUMIFS(Dollars!$F$2:$F$1188,Dollars!$A$2:$A$1188,'Rent lookup by Building'!$B97,Dollars!$E$2:$E$1188,'Rent lookup by Building'!H$6,Dollars!$C$2:$C$1188,'Rent lookup by Building'!$C$4) -> 0 | I97: 0 | J97: 0 | K97: 0 | M97: =SUMIFS(Dollars!$G$2:$G$1188,Dollars!$A$2:$A$1188,'Rent lookup by Building'!$B97,Dollars!$E$2:$E$1188,'Rent lookup by Building'!M$6,Dollars!$C$2:$C$1188,'Rent lookup by Building'!$C$4) -> 0 | N97: =SUMIFS(Dollars!$G$2:$G$1188,Dollars!$A$2:$A$1188,'Rent lookup by Building'!$B97,Dollars!$E$2:$E$1188,'Rent lookup by Building'!N$6,Dollars!$C$2:$C$1188,'Rent lookup by Building'!$C$4) -> 0 | O97: =SUMIFS(Dollars!$G$2:$G$1188,Dollars!$A$2:$A$1188,'Rent lookup by Building'!$B97,Dollars!$E$2:$E$1188,'Rent lookup by Building'!O$6,Dollars!$C$2:$C$1188,'Rent lookup by Building'!$C$4) -> 0 | P97: 0 | Q97: 0 | R97: 0
A98: HIDE | B98: 460 | C98: 460 - Columbia River Gorge Commission | D98: =SUMIFS('RSF List'!C:C,'RSF List'!B:B,'Rent lookup by Building'!$C$4,'RSF List'!A:A,LEFT('Rent lookup by Building'!C98,3)) -> 0 | F98: =SUMIFS(Dollars!$F$2:$F$1188,Dollars!$A$2:$A$1188,'Rent lookup by Building'!$B98,Dollars!$E$2:$E$1188,'Rent lookup by Building'!F$6,Dollars!$C$2:$C$1188,'Rent lookup by Building'!$C$4) -> 0 | G98: =SUMIFS(Dollars!$F$2:$F$1188,Dollars!$A$2:$A$1188,'Rent lookup by Building'!$B98,Dollars!$E$2:$E$1188,'Rent lookup by Building'!G$6,Dollars!$C$2:$C$1188,'Rent lookup by Building'!$C$4) -> 0 | H98: =SUMIFS(Dollars!$F$2:$F$1188,Dollars!$A$2:$A$1188,'Rent lookup by Building'!$B98,Dollars!$E$2:$E$1188,'Rent lookup by Building'!H$6,Dollars!$C$2:$C$1188,'Rent lookup by Building'!$C$4) -> 0 | I98: 0 | J98: 0 | K98: 0 | M98: =SUMIFS(Dollars!$G$2:$G$1188,Dollars!$A$2:$A$1188,'Rent lookup by Building'!$B98,Dollars!$E$2:$E$1188,'Rent lookup by Building'!M$6,Dollars!$C$2:$C$1188,'Rent lookup by Building'!$C$4) -> 0 | N98: =SUMIFS(Dollars!$G$2:$G$1188,Dollars!$A$2:$A$1188,'Rent lookup by Building'!$B98,Dollars!$E$2:$E$1188,'Rent lookup by Building'!N$6,Dollars!$C$2:$C$1188,'Rent lookup by Building'!$C$4) -> 0 | O98: =SUMIFS(Dollars!$G$2:$G$1188,Dollars!$A$2:$A$1188,'Rent lookup by Building'!$B98,Dollars!$E$2:$E$1188,'Rent lookup by Building'!O$6,Dollars!$C$2:$C$1188,'Rent lookup by Building'!$C$4) -> 0 | P98: 0 | Q98: 0 | R98: 0
A99: HIDE | B99: 461 | C99: 461 - Department of Ecology | D99: =SUMIFS('RSF List'!C:C,'RSF List'!B:B,'Rent lookup by Building'!$C$4,'RSF List'!A:A,LEFT('Rent lookup by Building'!C99,3)) -> 0 | F99: =SUMIFS(Dollars!$F$2:$F$1188,Dollars!$A$2:$A$1188,'Rent lookup by Building'!$B99,Dollars!$E$2:$E$1188,'Rent lookup by Building'!F$6,Dollars!$C$2:$C$1188,'Rent lookup by Building'!$C$4) -> 0 | G99: =SUMIFS(Dollars!$F$2:$F$1188,Dollars!$A$2:$A$1188,'Rent lookup by Building'!$B99,Dollars!$E$2:$E$1188,'Rent lookup by Building'!G$6,Dollars!$C$2:$C$1188,'Rent lookup by Building'!$C$4) -> 0 | H99: =SUMIFS(Dollars!$F$2:$F$1188,Dollars!$A$2:$A$1188,'Rent lookup by Building'!$B99,Dollars!$E$2:$E$1188,'Rent lookup by Building'!H$6,Dollars!$C$2:$C$1188,'Rent lookup by Building'!$C$4) -> 0 | I99: 0 | J99: 0 | K99: 0 | M99: =SUMIFS(Dollars!$G$2:$G$1188,Dollars!$A$2:$A$1188,'Rent lookup by Building'!$B99,Dollars!$E$2:$E$1188,'Rent lookup by Building'!M$6,Dollars!$C$2:$C$1188,'Rent lookup by Building'!$C$4) -> 0 | N99: =SUMIFS(Dollars!$G$2:$G$1188,Dollars!$A$2:$A$1188,'Rent lookup by Building'!$B99,Dollars!$E$2:$E$1188,'Rent lookup by Building'!N$6,Dollars!$C$2:$C$1188,'Rent lookup by Building'!$C$4) -> 0 | O99: =SUMIFS(Dollars!$G$2:$G$1188,Dollars!$A$2:$A$1188,'Rent lookup by Building'!$B99,Dollars!$E$2:$E$1188,'Rent lookup by Building'!O$6,Dollars!$C$2:$C$1188,'Rent lookup by Building'!$C$4) -> 0 | P99: 0 | Q99: 0 | R99: 0
A100: HIDE | B100: 462 | C100: 462 - Pollution Liability Insurance Program | D100: =SUMIFS('RSF List'!C:C,'RSF List'!B:B,'Rent lookup by Building'!$C$4,'RSF List'!A:A,LEFT('Rent lookup by Building'!C100,3)) -> 0 | F100: =SUMIFS(Dollars!$F$2:$F$1188,Dollars!$A$2:$A$1188,'Rent lookup by Building'!$B100,Dollars!$E$2:$E$1188,'Rent lookup by Building'!F$6,Dollars!$C$2:$C$1188,'Rent lookup by Building'!$C$4) -> 0 | G100: =SUMIFS(Dollars!$F$2:$F$1188,Dollars!$A$2:$A$1188,'Rent lookup by Building'!$B100,Dollars!$E$2:$E$1188,'Rent lookup by Building'!G$6,Dollars!$C$2:$C$1188,'Rent lookup by Building'!$C$4) -> 0 | H100: =SUMIFS(Dollars!$F$2:$F$1188,Dollars!$A$2:$A$1188,'Rent lookup by Building'!$B100,Dollars!$E$2:$E$1188,'Rent lookup by Building'!H$6,Dollars!$C$2:$C$1188,'Rent lookup by Building'!$C$4) -> 0 | I100: 0 | J100: 0 | K100: 0 | M100: =SUMIFS(Dollars!$G$2:$G$1188,Dollars!$A$2:$A$1188,'Rent lookup by Building'!$B100,Dollars!$E$2:$E$1188,'Rent lookup by Building'!M$6,Dollars!$C$2:$C$1188,'Rent lookup by Building'!$C$4) -> 0 | N100: =SUMIFS(Dollars!$G$2:$G$1188,Dollars!$A$2:$A$1188,'Rent lookup by Building'!$B100,Dollars!$E$2:$E$1188,'Rent lookup by Building'!N$6,Dollars!$C$2:$C$1188,'Rent lookup by Building'!$C$4) -> 0 | O100: =SUMIFS(Dollars!$G$2:$G$1188,Dollars!$A$2:$A$1188,'Rent lookup by Building'!$B100,Dollars!$E$2:$E$1188,'Rent lookup by Building'!O$6,Dollars!$C$2:$C$1188,'Rent lookup by Building'!$C$4) -> 0 | P100: 0 | Q100: 0 | R100: 0
A101: HIDE | B101: 465 | C101: 465 - State Parks and Recreation Commission | D101: =SUMIFS('RSF List'!C:C,'RSF List'!B:B,'Rent lookup by Building'!$C$4,'RSF List'!A:A,LEFT('Rent lookup by Building'!C101,3)) -> 0 | F101: =SUMIFS(Dollars!$F$2:$F$1188,Dollars!$A$2:$A$1188,'Rent lookup by Building'!$B101,Dollars!$E$2:$E$1188,'Rent lookup by Building'!F$6,Dollars!$C$2:$C$1188,'Rent lookup by Building'!$C$4) -> 0 | G101: =SUMIFS(Dollars!$F$2:$F$1188,Dollars!$A$2:$A$1188,'Rent lookup by Building'!$B101,Dollars!$E$2:$E$1188,'Rent lookup by Building'!G$6,Dollars!$C$2:$C$1188,'Rent lookup by Building'!$C$4) -> 0 | H101: =SUMIFS(Dollars!$F$2:$F$1188,Dollars!$A$2:$A$1188,'Rent lookup by Building'!$B101,Dollars!$E$2:$E$1188,'Rent lookup by Building'!H$6,Dollars!$C$2:$C$1188,'Rent lookup by Building'!$C$4) -> 0 | I101: 0 | J101: 0 | K101: 0 | M101: =SUMIFS(Dollars!$G$2:$G$1188,Dollars!$A$2:$A$1188,'Rent lookup by Building'!$B101,Dollars!$E$2:$E$1188,'Rent lookup by Building'!M$6,Dollars!$C$2:$C$1188,'Rent lookup by Building'!$C$4) -> 0 | N101: =SUMIFS(Dollars!$G$2:$G$1188,Dollars!$A$2:$A$1188,'Rent lookup by Building'!$B101,Dollars!$E$2:$E$1188,'Rent lookup by Building'!N$6,Dollars!$C$2:$C$1188,'Rent lookup by Building'!$C$4) -> 0 | O101: =SUMIFS(Dollars!$G$2:$G$1188,Dollars!$A$2:$A$1188,'Rent lookup by Building'!$B101,Dollars!$E$2:$E$1188,'Rent lookup by Building'!O$6,Dollars!$C$2:$C$1188,'Rent lookup by Building'!$C$4) -> 0 | P101: 0 | Q101: 0 | R101: 0
A102: HIDE | B102: 467 | C102: 467 - Recreation and Conservation Funding Board | D102: =SUMIFS('RSF List'!C:C,'RSF List'!B:B,'Rent lookup by Building'!$C$4,'RSF List'!A:A,LEFT('Rent lookup by Building'!C102,3)) -> 0 | F102: =SUMIFS(Dollars!$F$2:$F$1188,Dollars!$A$2:$A$1188,'Rent lookup by Building'!$B102,Dollars!$E$2:$E$1188,'Rent lookup by Building'!F$6,Dollars!$C$2:$C$1188,'Rent lookup by Building'!$C$4) -> 0 | G102: =SUMIFS(Dollars!$F$2:$F$1188,Dollars!$A$2:$A$1188,'Rent lookup by Building'!$B102,Dollars!$E$2:$E$1188,'Rent lookup by Building'!G$6,Dollars!$C$2:$C$1188,'Rent lookup by Building'!$C$4) -> 0 | H102: =SUMIFS(Dollars!$F$2:$F$1188,Dollars!$A$2:$A$1188,'Rent lookup by Building'!$B102,Dollars!$E$2:$E$1188,'Rent lookup by Building'!H$6,Dollars!$C$2:$C$1188,'Rent lookup by Building'!$C$4) -> 0 | I102: 0 | J102: 0 | K102: 0 | M102: =SUMIFS(Dollars!$G$2:$G$1188,Dollars!$A$2:$A$1188,'Rent lookup by Building'!$B102,Dollars!$E$2:$E$1188,'Rent lookup by Building'!M$6,Dollars!$C$2:$C$1188,'Rent lookup by Building'!$C$4) -> 0 | N102: =SUMIFS(Dollars!$G$2:$G$1188,Dollars!$A$2:$A$1188,'Rent lookup by Building'!$B102,Dollars!$E$2:$E$1188,'Rent lookup by Building'!N$6,Dollars!$C$2:$C$1188,'Rent lookup by Building'!$C$4) -> 0 | O102: =SUMIFS(Dollars!$G$2:$G$1188,Dollars!$A$2:$A$1188,'Rent lookup by Building'!$B102,Dollars!$E$2:$E$1188,'Rent lookup by Building'!O$6,Dollars!$C$2:$C$1188,'Rent lookup by Building'!$C$4) -> 0 | P102: 0 | Q102: 0 | R102: 0
A103: HIDE | B103: 468 | C103: 468 - Environmental and Land Use Hearings Office | D103: =SUMIFS('RSF List'!C:C,'RSF List'!B:B,'Rent lookup by Building'!$C$4,'RSF List'!A:A,LEFT('Rent lookup by Building'!C103,3)) -> 0 | F103: =SUMIFS(Dollars!$F$2:$F$1188,Dollars!$A$2:$A$1188,'Rent lookup by Building'!$B103,Dollars!$E$2:$E$1188,'Rent lookup by Building'!F$6,Dollars!$C$2:$C$1188,'Rent lookup by Building'!$C$4) -> 0 | G103: =SUMIFS(Dollars!$F$2:$F$1188,Dollars!$A$2:$A$1188,'Rent lookup by Building'!$B103,Dollars!$E$2:$E$1188,'Rent lookup by Building'!G$6,Dollars!$C$2:$C$1188,'Rent lookup by Building'!$C$4) -> 0 | H103: =SUMIFS(Dollars!$F$2:$F$1188,Dollars!$A$2:$A$1188,'Rent lookup by Building'!$B103,Dollars!$E$2:$E$1188,'Rent lookup by Building'!H$6,Dollars!$C$2:$C$1188,'Rent lookup by Building'!$C$4) -> 0 | I103: =SUM(F103:H103) -> 0 | J103: 0 | K103: =IFERROR(I103/D103,0) -> 0 | M103: =SUMIFS(Dollars!$G$2:$G$1188,Dollars!$A$2:$A$1188,'Rent lookup by Building'!$B103,Dollars!$E$2:$E$1188,'Rent lookup by Building'!M$6,Dollars!$C$2:$C$1188,'Rent lookup by Building'!$C$4) -> 0 | N103: =SUMIFS(Dollars!$G$2:$G$1188,Dollars!$A$2:$A$1188,'Rent lookup by Building'!$B103,Dollars!$E$2:$E$1188,'Rent lookup by Building'!N$6,Dollars!$C$2:$C$1188,'Rent lookup by Building'!$C$4) -> 0 | O103: =SUMIFS(Dollars!$G$2:$G$1188,Dollars!$A$2:$A$1188,'Rent lookup by Building'!$B103,Dollars!$E$2:$E$1188,'Rent lookup by Building'!O$6,Dollars!$C$2:$C$1188,'Rent lookup by Building'!$C$4) -> 0 | P103: =SUM(M103:O103) -> 0 | Q103: 0 | R103: =IFERROR(P103/D103,0) -> 0
A104: HIDE | B104: 471 | C104: 471 - State Conservation Commission | D104: =SUMIFS('RSF List'!C:C,'RSF List'!B:B,'Rent lookup by Building'!$C$4,'RSF List'!A:A,LEFT('Rent lookup by Building'!C104,3)) -> 0 | F104: =SUMIFS(Dollars!$F$2:$F$1188,Dollars!$A$2:$A$1188,'Rent lookup by Building'!$B104,Dollars!$E$2:$E$1188,'Rent lookup by Building'!F$6,Dollars!$C$2:$C$1188,'Rent lookup by Building'!$C$4) -> 0 | G104: =SUMIFS(Dollars!$F$2:$F$1188,Dollars!$A$2:$A$1188,'Rent lookup by Building'!$B104,Dollars!$E$2:$E$1188,'Rent lookup by Building'!G$6,Dollars!$C$2:$C$1188,'Rent lookup by Building'!$C$4) -> 0 | H104: =SUMIFS(Dollars!$F$2:$F$1188,Dollars!$A$2:$A$1188,'Rent lookup by Building'!$B104,Dollars!$E$2:$E$1188,'Rent lookup by Building'!H$6,Dollars!$C$2:$C$1188,'Rent lookup by Building'!$C$4) -> 0 | I104: 0 | J104: 0 | K104: 0 | M104: =SUMIFS(Dollars!$G$2:$G$1188,Dollars!$A$2:$A$1188,'Rent lookup by Building'!$B104,Dollars!$E$2:$E$1188,'Rent lookup by Building'!M$6,Dollars!$C$2:$C$1188,'Rent lookup by Building'!$C$4) -> 0 | N104: =SUMIFS(Dollars!$G$2:$G$1188,Dollars!$A$2:$A$1188,'Rent lookup by Building'!$B104,Dollars!$E$2:$E$1188,'Rent lookup by Building'!N$6,Dollars!$C$2:$C$1188,'Rent lookup by Building'!$C$4) -> 0 | O104: =SUMIFS(Dollars!$G$2:$G$1188,Dollars!$A$2:$A$1188,'Rent lookup by Building'!$B104,Dollars!$E$2:$E$1188,'Rent lookup by Building'!O$6,Dollars!$C$2:$C$1188,'Rent lookup by Building'!$C$4) -> 0 | P104: 0 | Q104: 0 | R104: 0
A105: HIDE | B105: 477 | C105: 477 - Department of Fish and Wildlife | D105: =SUMIFS('RSF List'!C:C,'RSF List'!B:B,'Rent lookup by Building'!$C$4,'RSF List'!A:A,LEFT('Rent lookup by Building'!C105,3)) -> 0 | F105: =SUMIFS(Dollars!$F$2:$F$1188,Dollars!$A$2:$A$1188,'Rent lookup by Building'!$B105,Dollars!$E$2:$E$1188,'Rent lookup by Building'!F$6,Dollars!$C$2:$C$1188,'Rent lookup by Building'!$C$4) -> 0 | G105: =SUMIFS(Dollars!$F$2:$F$1188,Dollars!$A$2:$A$1188,'Rent lookup by Building'!$B105,Dollars!$E$2:$E$1188,'Rent lookup by Building'!G$6,Dollars!$C$2:$C$1188,'Rent lookup by Building'!$C$4) -> 0 | H105: =SUMIFS(Dollars!$F$2:$F$1188,Dollars!$A$2:$A$1188,'Rent lookup by Building'!$B105,Dollars!$E$2:$E$1188,'Rent lookup by Building'!H$6,Dollars!$C$2:$C$1188,'Rent lookup by Building'!$C$4) -> 0 | I105: 0 | J105: 0 | K105: 0 | M105: =SUMIFS(Dollars!$G$2:$G$1188,Dollars!$A$2:$A$1188,'Rent lookup by Building'!$B105,Dollars!$E$2:$E$1188,'Rent lookup by Building'!M$6,Dollars!$C$2:$C$1188,'Rent lookup by Building'!$C$4) -> 0 | N105: =SUMIFS(Dollars!$G$2:$G$1188,Dollars!$A$2:$A$1188,'Rent lookup by Building'!$B105,Dollars!$E$2:$E$1188,'Rent lookup by Building'!N$6,Dollars!$C$2:$C$1188,'Rent lookup by Building'!$C$4) -> 0 | O105: =SUMIFS(Dollars!$G$2:$G$1188,Dollars!$A$2:$A$1188,'Rent lookup by Building'!$B105,Dollars!$E$2:$E$1188,'Rent lookup by Building'!O$6,Dollars!$C$2:$C$1188,'Rent lookup by Building'!$C$4) -> 0 | P105: 0 | Q105: 0 | R105: 0
A106: HIDE | B106: 478 | C106: 478 - Puget Sound Partnership | D106: =SUMIFS('RSF List'!C:C,'RSF List'!B:B,'Rent lookup by Building'!$C$4,'RSF List'!A:A,LEFT('Rent lookup by Building'!C106,3)) -> 0 | F106: =SUMIFS(Dollars!$F$2:$F$1188,Dollars!$A$2:$A$1188,'Rent lookup by Building'!$B106,Dollars!$E$2:$E$1188,'Rent lookup by Building'!F$6,Dollars!$C$2:$C$1188,'Rent lookup by Building'!$C$4) -> 0 | G106: =SUMIFS(Dollars!$F$2:$F$1188,Dollars!$A$2:$A$1188,'Rent lookup by Building'!$B106,Dollars!$E$2:$E$1188,'Rent lookup by Building'!G$6,Dollars!$C$2:$C$1188,'Rent lookup by Building'!$C$4) -> 0 | H106: =SUMIFS(Dollars!$F$2:$F$1188,Dollars!$A$2:$A$1188,'Rent lookup by Building'!$B106,Dollars!$E$2:$E$1188,'Rent lookup by Building'!H$6,Dollars!$C$2:$C$1188,'Rent lookup by Building'!$C$4) -> 0 | I106: 0 | J106: 0 | K106: 0 | M106: =SUMIFS(Dollars!$G$2:$G$1188,Dollars!$A$2:$A$1188,'Rent lookup by Building'!$B106,Dollars!$E$2:$E$1188,'Rent lookup by Building'!M$6,Dollars!$C$2:$C$1188,'Rent lookup by Building'!$C$4) -> 0 | N106: =SUMIFS(Dollars!$G$2:$G$1188,Dollars!$A$2:$A$1188,'Rent lookup by Building'!$B106,Dollars!$E$2:$E$1188,'Rent lookup by Building'!N$6,Dollars!$C$2:$C$1188,'Rent lookup by Building'!$C$4) -> 0 | O106: =SUMIFS(Dollars!$G$2:$G$1188,Dollars!$A$2:$A$1188,'Rent lookup by Building'!$B106,Dollars!$E$2:$E$1188,'Rent lookup by Building'!O$6,Dollars!$C$2:$C$1188,'Rent lookup by Building'!$C$4) -> 0 | P106: 0 | Q106: 0 | R106: 0
A107: HIDE | B107: 490 | C107: 490 - Department of Natural Resources | D107: =SUMIFS('RSF List'!C:C,'RSF List'!B:B,'Rent lookup by Building'!$C$4,'RSF List'!A:A,LEFT('Rent lookup by Building'!C107,3)) -> 0 | F107: =SUMIFS(Dollars!$F$2:$F$1188,Dollars!$A$2:$A$1188,'Rent lookup by Building'!$B107,Dollars!$E$2:$E$1188,'Rent lookup by Building'!F$6,Dollars!$C$2:$C$1188,'Rent lookup by Building'!$C$4) -> 0 | G107: =SUMIFS(Dollars!$F$2:$F$1188,Dollars!$A$2:$A$1188,'Rent lookup by Building'!$B107,Dollars!$E$2:$E$1188,'Rent lookup by Building'!G$6,Dollars!$C$2:$C$1188,'Rent lookup by Building'!$C$4) -> 0 | H107: =SUMIFS(Dollars!$F$2:$F$1188,Dollars!$A$2:$A$1188,'Rent lookup by Building'!$B107,Dollars!$E$2:$E$1188,'Rent lookup by Building'!H$6,Dollars!$C$2:$C$1188,'Rent lookup by Building'!$C$4) -> 0 | I107: 0 | J107: 0 | K107: 0 | M107: =SUMIFS(Dollars!$G$2:$G$1188,Dollars!$A$2:$A$1188,'Rent lookup by Building'!$B107,Dollars!$E$2:$E$1188,'Rent lookup by Building'!M$6,Dollars!$C$2:$C$1188,'Rent lookup by Building'!$C$4) -> 0 | N107: =SUMIFS(Dollars!$G$2:$G$1188,Dollars!$A$2:$A$1188,'Rent lookup by Building'!$B107,Dollars!$E$2:$E$1188,'Rent lookup by Building'!N$6,Dollars!$C$2:$C$1188,'Rent lookup by Building'!$C$4) -> 0 | O107: =SUMIFS(Dollars!$G$2:$G$1188,Dollars!$A$2:$A$1188,'Rent lookup by Building'!$B107,Dollars!$E$2:$E$1188,'Rent lookup by Building'!O$6,Dollars!$C$2:$C$1188,'Rent lookup by Building'!$C$4) -> 0 | P107: 0 | Q107: 0 | R107: 0
A108: HIDE | B108: 495 | C108: 495 - Department of Agriculture | D108: =SUMIFS('RSF List'!C:C,'RSF List'!B:B,'Rent lookup by Building'!$C$4,'RSF List'!A:A,LEFT('Rent lookup by Building'!C108,3)) -> 0 | F108: =SUMIFS(Dollars!$F$2:$F$1188,Dollars!$A$2:$A$1188,'Rent lookup by Building'!$B108,Dollars!$E$2:$E$1188,'Rent lookup by Building'!F$6,Dollars!$C$2:$C$1188,'Rent lookup by Building'!$C$4) -> 0 | G108: =SUMIFS(Dollars!$F$2:$F$1188,Dollars!$A$2:$A$1188,'Rent lookup by Building'!$B108,Dollars!$E$2:$E$1188,'Rent lookup by Building'!G$6,Dollars!$C$2:$C$1188,'Rent lookup by Building'!$C$4) -> 0 | H108: =SUMIFS(Dollars!$F$2:$F$1188,Dollars!$A$2:$A$1188,'Rent lookup by Building'!$B108,Dollars!$E$2:$E$1188,'Rent lookup by Building'!H$6,Dollars!$C$2:$C$1188,'Rent lookup by Building'!$C$4) -> 0 | I108: 0 | J108: 0 | K108: 0 | M108: =SUMIFS(Dollars!$G$2:$G$1188,Dollars!$A$2:$A$1188,'Rent lookup by Building'!$B108,Dollars!$E$2:$E$1188,'Rent lookup by Building'!M$6,Dollars!$C$2:$C$1188,'Rent lookup by Building'!$C$4) -> 0 | N108: =SUMIFS(Dollars!$G$2:$G$1188,Dollars!$A$2:$A$1188,'Rent lookup by Building'!$B108,Dollars!$E$2:$E$1188,'Rent lookup by Building'!N$6,Dollars!$C$2:$C$1188,'Rent lookup by Building'!$C$4) -> 0 | O108: =SUMIFS(Dollars!$G$2:$G$1188,Dollars!$A$2:$A$1188,'Rent lookup by Building'!$B108,Dollars!$E$2:$E$1188,'Rent lookup by Building'!O$6,Dollars!$C$2:$C$1188,'Rent lookup by Building'!$C$4) -> 0 | P108: 0 | Q108: 0 | R108: 0
A109: HIDE | B109: 540 | C109: 540 - Employment Security Department | D109: =SUMIFS('RSF List'!C:C,'RSF List'!B:B,'Rent lookup by Building'!$C$4,'RSF List'!A:A,LEFT('Rent lookup by Building'!C109,3)) -> 0 | F109: =SUMIFS(Dollars!$F$2:$F$1188,Dollars!$A$2:$A$1188,'Rent lookup by Building'!$B109,Dollars!$E$2:$E$1188,'Rent lookup by Building'!F$6,Dollars!$C$2:$C$1188,'Rent lookup by Building'!$C$4) -> 0 | G109: =SUMIFS(Dollars!$F$2:$F$1188,Dollars!$A$2:$A$1188,'Rent lookup by Building'!$B109,Dollars!$E$2:$E$1188,'Rent lookup by Building'!G$6,Dollars!$C$2:$C$1188,'Rent lookup by Building'!$C$4) -> 0 | H109: =SUMIFS(Dollars!$F$2:$F$1188,Dollars!$A$2:$A$1188,'Rent lookup by Building'!$B109,Dollars!$E$2:$E$1188,'Rent lookup by Building'!H$6,Dollars!$C$2:$C$1188,'Rent lookup by Building'!$C$4) -> 0 | I109: 0 | J109: 0 | K109: 0 | M109: =SUMIFS(Dollars!$G$2:$G$1188,Dollars!$A$2:$A$1188,'Rent lookup by Building'!$B109,Dollars!$E$2:$E$1188,'Rent lookup by Building'!M$6,Dollars!$C$2:$C$1188,'Rent lookup by Building'!$C$4) -> 0 | N109: =SUMIFS(Dollars!$G$2:$G$1188,Dollars!$A$2:$A$1188,'Rent lookup by Building'!$B109,Dollars!$E$2:$E$1188,'Rent lookup by Building'!N$6,Dollars!$C$2:$C$1188,'Rent lookup by Building'!$C$4) -> 0 | O109: =SUMIFS(Dollars!$G$2:$G$1188,Dollars!$A$2:$A$1188,'Rent lookup by Building'!$B109,Dollars!$E$2:$E$1188,'Rent lookup by Building'!O$6,Dollars!$C$2:$C$1188,'Rent lookup by Building'!$C$4) -> 0 | P109: 0 | Q109: 0 | R109: 0
A110: HIDE | B110: 699 | C110: 699 - Community Colleges | D110: =SUMIFS('RSF List'!C:C,'RSF List'!B:B,'Rent lookup by Building'!$C$4,'RSF List'!A:A,LEFT('Rent lookup by Building'!C110,3)) -> 0 | F110: =SUMIFS(Dollars!$F$2:$F$1188,Dollars!$A$2:$A$1188,'Rent lookup by Building'!$B110,Dollars!$E$2:$E$1188,'Rent lookup by Building'!F$6,Dollars!$C$2:$C$1188,'Rent lookup by Building'!$C$4) -> 0 | G110: =SUMIFS(Dollars!$F$2:$F$1188,Dollars!$A$2:$A$1188,'Rent lookup by Building'!$B110,Dollars!$E$2:$E$1188,'Rent lookup by Building'!G$6,Dollars!$C$2:$C$1188,'Rent lookup by Building'!$C$4) -> 0 | H110: =SUMIFS(Dollars!$F$2:$F$1188,Dollars!$A$2:$A$1188,'Rent lookup by Building'!$B110,Dollars!$E$2:$E$1188,'Rent lookup by Building'!H$6,Dollars!$C$2:$C$1188,'Rent lookup by Building'!$C$4) -> 0 | I110: 0 | J110: 0 | K110: 0 | M110: =SUMIFS(Dollars!$G$2:$G$1188,Dollars!$A$2:$A$1188,'Rent lookup by Building'!$B110,Dollars!$E$2:$E$1188,'Rent lookup by Building'!M$6,Dollars!$C$2:$C$1188,'Rent lookup by Building'!$C$4) -> 0 | N110: =SUMIFS(Dollars!$G$2:$G$1188,Dollars!$A$2:$A$1188,'Rent lookup by Building'!$B110,Dollars!$E$2:$E$1188,'Rent lookup by Building'!N$6,Dollars!$C$2:$C$1188,'Rent lookup by Building'!$C$4) -> 0 | O110: =SUMIFS(Dollars!$G$2:$G$1188,Dollars!$A$2:$A$1188,'Rent lookup by Building'!$B110,Dollars!$E$2:$E$1188,'Rent lookup by Building'!O$6,Dollars!$C$2:$C$1188,'Rent lookup by Building'!$C$4) -> 0 | P110: 0 | Q110: 0 | R110: 0
A111: VIEW | C111: TOTAL | D111: =SUM(D7:D110) -> 77281 | E111: =SUM(E7:E110) -> 0 | F111: 1157203.275 | G111: 0 | H111: 35396.86806 | I111: 1192600.143 | J111: 99383.34528 | K111: =I111/D111 -> 15.43199678 | M111: =SUM(M7:M110) -> 1172017.595 | N111: =SUM(N7:N110) -> 0 | O111: =SUM(O7:O110) -> 35396.86806 | P111: =SUM(P7:P110) -> 1207414.463 | Q111: =SUM(Q7:Q110) -> 100617.8719 | R111: =P111/D111 -> 15.62369099
A112: VIEW
A113: VIEW | C113: Notes:
A114: =IF(C4="Tacoma Rhodes","VIEW","HIDE") -> HIDE | C114: o Tacoma Rhodes: This building was recently sold to private ownership. DES will work with OFM to have this building removed from the CSM in the Supplemental 22 Budget.
A115: VIEW | C115: o Campus Contracts (CC) is invoiced in three parts:
A116: VIEW | C116: 1) CC Bldg pays for CC services within the buildings (see rent tab)
A117: VIEW | C117: 2) CC Parking pays for CC services within parking garages and lots (see Other Facility Related Costs tab)
A118: VIEW | C118: 3) CC PHF pays for CC services in public & historic spaces (see Other Facility Related Costs tab) Note* Public and Historic Facilities may not be eligible for Federal Funding or Reimbursement
A119: VIEW | C119: o Facilities and Services charges for the House (011), Senate (012), LSS (037), LSC (038) and Statute Law (040) for traditionally "on-campus" buildings are funded by an appropriation to DES and will not be invoiced.
A120: VIEW | C120: o Rent Abatement was provided for DSB (Agency 315) Deli spaces , and will not be invoiced.
A121: VIEW
A122: VIEW | I122: Prepared by DES Budget, Finance Division. For question relating to CSM charges from DES, please contact DesBudget@des.wa.gov
A123: VIEW
A124: VIEW
A125: VIEW
A126: VIEW
A127: VIEW
A128: VIEW
A129: VIEW
A130: VIEW
A131: VIEW
A132: VIEW
A133: VIEW
A134: VIEW
A135: VIEW
A136: VIEW
A137: VIEW
A138: VIEW
A139: VIEW
A140: VIEW
A141: VIEW
A142: VIEW
A143: VIEW
A144: VIEW
A145: VIEW

Sheet Other Facility Related Costs
A1: VIEW
A2: VIEW | C2: Other Facility related Costs in the Central Service Model | P2: Department of Enterprise Services
A3: VIEW | C3: Agency | P3: scroll right for FY25 è
A4: VIEW | C4: 011 - House of Representatives | G4: ç Select Agency Here
A5: VIEW | F5: Fiscal Year 24 | R5: Fiscal Year 25
A6: VIEW | C6: Building | D6: occupied RSF | E6: Thurston FTEs | G6: Parking Surcharge | H6: Capital Project Surcharge | I6: Campus Contracts CSM (Parking) | J6: Campus Contracts CSM (PHF) | K6: Public Historic Facilities | L6: Perry St. & Capitol Childcare | M6: Security on Campus | N6: TOTAL Annual Cost | O6: Monthly Charge | P6: Rate/(RSF or Thurston FTE) | R6: Parking Surcharge | S6: Capital Project Surcharge | T6: Campus Contracts CSM (Parking) | U6: Campus Contracts CSM (PHF) | V6: Public Historic Facilities | W6: Perry St. & Capitol Childcare | X6: Security on Campus | Y6: TOTAL RENT Annual Cost | Z6: Monthly Charge | AA6: Rate/(RSF or Thurston FTE)
A7: =IF(D7=0,"HIDE","VIEW") -> HIDE | C7: Cherberg | D7: =VLOOKUP(LEFT($C$4,3),RSF!$A$3:$AJ$108,MATCH($C7,RSF!$A$3:$AK$3,0),FALSE) -> 0 | G7: =SUMIFS(Dollars!$F$2:$F$1188,Dollars!$E$2:$E$1188,'Other Facility Related Costs'!G$6,Dollars!$C$2:$C$1188,'Other Facility Related Costs'!$C7,Dollars!$A$2:$A$1188,LEFT('Other Facility Related Costs'!$C$4,3)) -> 0 | H7: =SUMIFS(Dollars!$F$2:$F$1188,Dollars!$E$2:$E$1188,'Other Facility Related Costs'!H$6,Dollars!$C$2:$C$1188,'Other Facility Related Costs'!$C7,Dollars!$A$2:$A$1188,LEFT('Other Facility Related Costs'!$C$4,3)) -> 0 | I7: =SUMIFS(Dollars!$F$2:$F$1188,Dollars!$E$2:$E$1188,'Other Facility Related Costs'!I$6,Dollars!$C$2:$C$1188,'Other Facility Related Costs'!$C7,Dollars!$A$2:$A$1188,LEFT('Other Facility Related Costs'!$C$4,3)) -> 0 | J7: =SUMIFS(Dollars!$F$2:$F$1188,Dollars!$E$2:$E$1188,'Other Facility Related Costs'!J$6,Dollars!$C$2:$C$1188,'Other Facility Related Costs'!$C7,Dollars!$A$2:$A$1188,LEFT('Other Facility Related Costs'!$C$4,3)) -> 0 | K7: =SUMIFS(Dollars!$F$2:$F$1188,Dollars!$E$2:$E$1188,'Other Facility Related Costs'!K$6,Dollars!$C$2:$C$1188,'Other Facility Related Costs'!$C7,Dollars!$A$2:$A$1188,LEFT('Other Facility Related Costs'!$C$4,3)) -> 0 | L7: =SUMIFS(Dollars!$F$2:$F$1188,Dollars!$E$2:$E$1188,'Other Facility Related Costs'!L$6,Dollars!$C$2:$C$1188,'Other Facility Related Costs'!$C7,Dollars!$A$2:$A$1188,LEFT('Other Facility Related Costs'!$C$4,3)) -> 0 | M7: =SUMIFS(Dollars!$F$2:$F$1188,Dollars!$E$2:$E$1188,'Other Facility Related Costs'!M$6,Dollars!$C$2:$C$1188,'Other Facility Related Costs'!$C7,Dollars!$A$2:$A$1188,LEFT('Other Facility Related Costs'!$C$4,3)) -> 0 | N7: =SUM(G7:M7) -> 0 | O7: =N7/12 -> 0 | P7: =IFERROR(N7/D7,0) -> 0 | R7: =SUMIFS(Dollars!$G$2:$G$1188,Dollars!$E$2:$E$1188,'Other Facility Related Costs'!R$6,Dollars!$C$2:$C$1188,'Other Facility Related Costs'!$C7,Dollars!$A$2:$A$1188,LEFT('Other Facility Related Costs'!$C$4,3)) -> 0 | S7: =SUMIFS(Dollars!$G$2:$G$1188,Dollars!$E$2:$E$1188,'Other Facility Related Costs'!S$6,Dollars!$C$2:$C$1188,'Other Facility Related Costs'!$C7,Dollars!$A$2:$A$1188,LEFT('Other Facility Related Costs'!$C$4,3)) -> 0 | T7: =SUMIFS(Dollars!$G$2:$G$1188,Dollars!$E$2:$E$1188,'Other Facility Related Costs'!T$6,Dollars!$C$2:$C$1188,'Other Facility Related Costs'!$C7,Dollars!$A$2:$A$1188,LEFT('Other Facility Related Costs'!$C$4,3)) -> 0 | U7: =SUMIFS(Dollars!$G$2:$G$1188,Dollars!$E$2:$E$1188,'Other Facility Related Costs'!U$6,Dollars!$C$2:$C$1188,'Other Facility Related Costs'!$C7,Dollars!$A$2:$A$1188,LEFT('Other Facility Related Costs'!$C$4,3)) -> 0 | V7: =SUMIFS(Dollars!$G$2:$G$1188,Dollars!$E$2:$E$1188,'Other Facility Related Costs'!V$6,Dollars!$C$2:$C$1188,'Other Facility Related Costs'!$C7,Dollars!$A$2:$A$1188,LEFT('Other Facility Related Costs'!$C$4,3)) -> 0 | W7: =SUMIFS(Dollars!$G$2:$G$1188,Dollars!$E$2:$E$1188,'Other Facility Related Costs'!W$6,Dollars!$C$2:$C$1188,'Other Facility Related Costs'!$C7,Dollars!$A$2:$A$1188,LEFT('Other Facility Related Costs'!$C$4,3)) -> 0 | X7: =SUMIFS(Dollars!$G$2:$G$1188,Dollars!$E$2:$E$1188,'Other Facility Related Costs'!X$6,Dollars!$C$2:$C$1188,'Other Facility Related Costs'!$C7,Dollars!$A$2:$A$1188,LEFT('Other Facility Related Costs'!$C$4,3)) -> 0 | Y7: =SUM(R7:X7) -> 0 | Z7: =Y7/12 -> 0 | AA7: =IFERROR(Y7/D7,0) -> 0
A8: =IF(D8=0,"HIDE","VIEW") -> VIEW | C8: O'Brien | D8: =VLOOKUP(LEFT($C$4,3),RSF!$A$3:$AJ$108,MATCH($C8,RSF!$A$3:$AK$3,0),FALSE) -> 78594 | G8: =SUMIFS(Dollars!$F$2:$F$1188,Dollars!$E$2:$E$1188,'Other Facility Related Costs'!G$6,Dollars!$C$2:$C$1188,'Other Facility Related Costs'!$C8,Dollars!$A$2:$A$1188,LEFT('Other Facility Related Costs'!$C$4,3)) -> 73503.21944 | H8: =SUMIFS(Dollars!$F$2:$F$1188,Dollars!$E$2:$E$1188,'Other Facility Related Costs'!H$6,Dollars!$C$2:$C$1188,'Other Facility Related Costs'!$C8,Dollars!$A$2:$A$1188,LEFT('Other Facility Related Costs'!$C$4,3)) -> 186647.5125 | I8: =SUMIFS(Dollars!$F$2:$F$1188,Dollars!$E$2:$E$1188,'Other Facility Related Costs'!I$6,Dollars!$C$2:$C$1188,'Other Facility Related Costs'!$C8,Dollars!$A$2:$A$1188,LEFT('Other Facility Related Costs'!$C$4,3)) -> 16938.71313 | J8: =SUMIFS(Dollars!$F$2:$F$1188,Dollars!$E$2:$E$1188,'Other Facility Related Costs'!J$6,Dollars!$C$2:$C$1188,'Other Facility Related Costs'!$C8,Dollars!$A$2:$A$1188,LEFT('Other Facility Related Costs'!$C$4,3)) -> 0 | K8: =SUMIFS(Dollars!$F$2:$F$1188,Dollars!$E$2:$E$1188,'Other Facility Related Costs'!K$6,Dollars!$C$2:$C$1188,'Other Facility Related Costs'!$C8,Dollars!$A$2:$A$1188,LEFT('Other Facility Related Costs'!$C$4,3)) -> 0 | L8: =SUMIFS(Dollars!$F$2:$F$1188,Dollars!$E$2:$E$1188,'Other Facility Related Costs'!L$6,Dollars!$C$2:$C$1188,'Other Facility Related Costs'!$C8,Dollars!$A$2:$A$1188,LEFT('Other Facility Related Costs'!$C$4,3)) -> 0 | M8: =SUMIFS(Dollars!$F$2:$F$1188,Dollars!$E$2:$E$1188,'Other Facility Related Costs'!M$6,Dollars!$C$2:$C$1188,'Other Facility Related Costs'!$C8,Dollars!$A$2:$A$1188,LEFT('Other Facility Related Costs'!$C$4,3)) -> 121457.5925 | N8: =SUM(G8:M8) -> 398547.0376 | O8: =N8/12 -> 33212.25313 | P8: =IFERROR(N8/D8,0) -> 5.070960094 | R8: =SUMIFS(Dollars!$G$2:$G$1188,Dollars!$E$2:$E$1188,'Other Facility Related Costs'!R$6,Dollars!$C$2:$C$1188,'Other Facility Related Costs'!$C8,Dollars!$A$2:$A$1188,LEFT('Other Facility Related Costs'!$C$4,3)) -> 73786.90051 | S8: =SUMIFS(Dollars!$G$2:$G$1188,Dollars!$E$2:$E$1188,'Other Facility Related Costs'!S$6,Dollars!$C$2:$C$1188,'Other Facility Related Costs'!$C8,Dollars!$A$2:$A$1188,LEFT('Other Facility Related Costs'!$C$4,3)) -> 186691.9925 | T8: =SUMIFS(Dollars!$G$2:$G$1188,Dollars!$E$2:$E$1188,'Other Facility Related Costs'!T$6,Dollars!$C$2:$C$1188,'Other Facility Related Costs'!$C8,Dollars!$A$2:$A$1188,LEFT('Other Facility Related Costs'!$C$4,3)) -> 0 | U8: =SUMIFS(Dollars!$G$2:$G$1188,Dollars!$E$2:$E$1188,'Other Facility Related Costs'!U$6,Dollars!$C$2:$C$1188,'Other Facility Related Costs'!$C8,Dollars!$A$2:$A$1188,LEFT('Other Facility Related Costs'!$C$4,3)) -> 0 | V8: =SUMIFS(Dollars!$G$2:$G$1188,Dollars!$E$2:$E$1188,'Other Facility Related Costs'!V$6,Dollars!$C$2:$C$1188,'Other Facility Related Costs'!$C8,Dollars!$A$2:$A$1188,LEFT('Other Facility Related Costs'!$C$4,3)) -> 0 | W8: =SUMIFS(Dollars!$G$2:$G$1188,Dollars!$E$2:$E$1188,'Other Facility Related Costs'!W$6,Dollars!$C$2:$C$1188,'Other Facility Related Costs'!$C8,Dollars!$A$2:$A$1188,LEFT('Other Facility Related Costs'!$C$4,3)) -> 0 | X8: =SUMIFS(Dollars!$G$2:$G$1188,Dollars!$E$2:$E$1188,'Other Facility Related Costs'!X$6,Dollars!$C$2:$C$1188,'Other Facility Related Costs'!$C8,Dollars!$A$2:$A$1188,LEFT('Other Facility Related Costs'!$C$4,3)) -> 121573.9168 | Y8: 382052.8098 | Z8: =Y8/12 -> 31837.73415 | AA8: 4.861093847
A9: VIEW | C9: Legislative | D9: =VLOOKUP(LEFT($C$4,3),RSF!$A$3:$AJ$108,MATCH($C9,RSF!$A$3:$AK$3,0),FALSE) -> 45304 | G9: =SUMIFS(Dollars!$F$2:$F$1188,Dollars!$E$2:$E$1188,'Other Facility Related Costs'!G$6,Dollars!$C$2:$C$1188,'Other Facility Related Costs'!$C9,Dollars!$A$2:$A$1188,LEFT('Other Facility Related Costs'!$C$4,3)) -> 42369.51744 | H9: =SUMIFS(Dollars!$F$2:$F$1188,Dollars!$E$2:$E$1188,'Other Facility Related Costs'!H$6,Dollars!$C$2:$C$1188,'Other Facility Related Costs'!$C9,Dollars!$A$2:$A$1188,LEFT('Other Facility Related Costs'!$C$4,3)) -> 107589.3695 | I9: =SUMIFS(Dollars!$F$2:$F$1188,Dollars!$E$2:$E$1188,'Other Facility Related Costs'!I$6,Dollars!$C$2:$C$1188,'Other Facility Related Costs'!$C9,Dollars!$A$2:$A$1188,LEFT('Other Facility Related Costs'!$C$4,3)) -> 9763.995468 | J9: =SUMIFS(Dollars!$F$2:$F$1188,Dollars!$E$2:$E$1188,'Other Facility Related Costs'!J$6,Dollars!$C$2:$C$1188,'Other Facility Related Costs'!$C9,Dollars!$A$2:$A$1188,LEFT('Other Facility Related Costs'!$C$4,3)) -> 0 | K9: =SUMIFS(Dollars!$F$2:$F$1188,Dollars!$E$2:$E$1188,'Other Facility Related Costs'!K$6,Dollars!$C$2:$C$1188,'Other Facility Related Costs'!$C9,Dollars!$A$2:$A$1188,LEFT('Other Facility Related Costs'!$C$4,3)) -> 0 | L9: =SUMIFS(Dollars!$F$2:$F$1188,Dollars!$E$2:$E$1188,'Other Facility Related Costs'!L$6,Dollars!$C$2:$C$1188,'Other Facility Related Costs'!$C9,Dollars!$A$2:$A$1188,LEFT('Other Facility Related Costs'!$C$4,3)) -> 0 | M9: =SUMIFS(Dollars!$F$2:$F$1188,Dollars!$E$2:$E$1188,'Other Facility Related Costs'!M$6,Dollars!$C$2:$C$1188,'Other Facility Related Costs'!$C9,Dollars!$A$2:$A$1188,LEFT('Other Facility Related Costs'!$C$4,3)) -> 70011.89366 | N9: 229734.7761 | O9: 19144.56467 | P9: 5.070960094 | R9: =SUMIFS(Dollars!$G$2:$G$1188,Dollars!$E$2:$E$1188,'Other Facility Related Costs'!R$6,Dollars!$C$2:$C$1188,'Other Facility Related Costs'!$C9,Dollars!$A$2:$A$1188,LEFT('Other Facility Related Costs'!$C$4,3)) -> 42533.03994 | S9: =SUMIFS(Dollars!$G$2:$G$1188,Dollars!$E$2:$E$1188,'Other Facility Related Costs'!S$6,Dollars!$C$2:$C$1188,'Other Facility Related Costs'!$C9,Dollars!$A$2:$A$1188,LEFT('Other Facility Related Costs'!$C$4,3)) -> 107615.0092 | T9: =SUMIFS(Dollars!$G$2:$G$1188,Dollars!$E$2:$E$1188,'Other Facility Related Costs'!T$6,Dollars!$C$2:$C$1188,'Other Facility Related Costs'!$C9,Dollars!$A$2:$A$1188,LEFT('Other Facility Related Costs'!$C$4,3)) -> 0 | U9: =SUMIFS(Dollars!$G$2:$G$1188,Dollars!$E$2:$E$1188,'Other Facility Related Costs'!U$6,Dollars!$C$2:$C$1188,'Other Facility Related Costs'!$C9,Dollars!$A$2:$A$1188,LEFT('Other Facility Related Costs'!$C$4,3)) -> 0 | V9: =SUMIFS(Dollars!$G$2:$G$1188,Dollars!$E$2:$E$1188,'Other Facility Related Costs'!V$6,Dollars!$C$2:$C$1188,'Other Facility Related Costs'!$C9,Dollars!$A$2:$A$1188,LEFT('Other Facility Related Costs'!$C$4,3)) -> 0 | W9: =SUMIFS(Dollars!$G$2:$G$1188,Dollars!$E$2:$E$1188,'Other Facility Related Costs'!W$6,Dollars!$C$2:$C$1188,'Other Facility Related Costs'!$C9,Dollars!$A$2:$A$1188,LEFT('Other Facility Related Costs'!$C$4,3)) -> 0 | X9: =SUMIFS(Dollars!$G$2:$G$1188,Dollars!$E$2:$E$1188,'Other Facility Related Costs'!X$6,Dollars!$C$2:$C$1188,'Other Facility Related Costs'!$C9,Dollars!$A$2:$A$1188,LEFT('Other Facility Related Costs'!$C$4,3)) -> 70078.94657 | Y9: 220226.9957 | Z9: 18352.24964 | AA9: 4.861093847
A10: HIDE | C10: Pritchard | D10: =VLOOKUP(LEFT($C$4,3),RSF!$A$3:$AJ$108,MATCH($C10,RSF!$A$3:$AK$3,0),FALSE) -> 0 | G10: =SUMIFS(Dollars!$F$2:$F$1188,Dollars!$E$2:$E$1188,'Other Facility Related Costs'!G$6,Dollars!$C$2:$C$1188,'Other Facility Related Costs'!$C10,Dollars!$A$2:$A$1188,LEFT('Other Facility Related Costs'!$C$4,3)) -> 0 | H10: =SUMIFS(Dollars!$F$2:$F$1188,Dollars!$E$2:$E$1188,'Other Facility Related Costs'!H$6,Dollars!$C$2:$C$1188,'Other Facility Related Costs'!$C10,Dollars!$A$2:$A$1188,LEFT('Other Facility Related Costs'!$C$4,3)) -> 0 | I10: =SUMIFS(Dollars!$F$2:$F$1188,Dollars!$E$2:$E$1188,'Other Facility Related Costs'!I$6,Dollars!$C$2:$C$1188,'Other Facility Related Costs'!$C10,Dollars!$A$2:$A$1188,LEFT('Other Facility Related Costs'!$C$4,3)) -> 0 | J10: =SUMIFS(Dollars!$F$2:$F$1188,Dollars!$E$2:$E$1188,'Other Facility Related Costs'!J$6,Dollars!$C$2:$C$1188,'Other Facility Related Costs'!$C10,Dollars!$A$2:$A$1188,LEFT('Other Facility Related Costs'!$C$4,3)) -> 0 | K10: =SUMIFS(Dollars!$F$2:$F$1188,Dollars!$E$2:$E$1188,'Other Facility Related Costs'!K$6,Dollars!$C$2:$C$1188,'Other Facility Related Costs'!$C10,Dollars!$A$2:$A$1188,LEFT('Other Facility Related Costs'!$C$4,3)) -> 0 | L10: =SUMIFS(Dollars!$F$2:$F$1188,Dollars!$E$2:$E$1188,'Other Facility Related Costs'!L$6,Dollars!$C$2:$C$1188,'Other Facility Related Costs'!$C10,Dollars!$A$2:$A$1188,LEFT('Other Facility Related Costs'!$C$4,3)) -> 0 | M10: =SUMIFS(Dollars!$F$2:$F$1188,Dollars!$E$2:$E$1188,'Other Facility Related Costs'!M$6,Dollars!$C$2:$C$1188,'Other Facility Related Costs'!$C10,Dollars!$A$2:$A$1188,LEFT('Other Facility Related Costs'!$C$4,3)) -> 0 | N10: 0 | O10: 0 | P10: 0 | R10: =SUMIFS(Dollars!$G$2:$G$1188,Dollars!$E$2:$E$1188,'Other Facility Related Costs'!R$6,Dollars!$C$2:$C$1188,'Other Facility Related Costs'!$C10,Dollars!$A$2:$A$1188,LEFT('Other Facility Related Costs'!$C$4,3)) -> 0 | S10: =SUMIFS(Dollars!$G$2:$G$1188,Dollars!$E$2:$E$1188,'Other Facility Related Costs'!S$6,Dollars!$C$2:$C$1188,'Other Facility Related Costs'!$C10,Dollars!$A$2:$A$1188,LEFT('Other Facility Related Costs'!$C$4,3)) -> 0 | T10: =SUMIFS(Dollars!$G$2:$G$1188,Dollars!$E$2:$E$1188,'Other Facility Related Costs'!T$6,Dollars!$C$2:$C$1188,'Other Facility Related Costs'!$C10,Dollars!$A$2:$A$1188,LEFT('Other Facility Related Costs'!$C$4,3)) -> 0 | U10: =SUMIFS(Dollars!$G$2:$G$1188,Dollars!$E$2:$E$1188,'Other Facility Related Costs'!U$6,Dollars!$C$2:$C$1188,'Other Facility Related Costs'!$C10,Dollars!$A$2:$A$1188,LEFT('Other Facility Related Costs'!$C$4,3)) -> 0 | V10: =SUMIFS(Dollars!$G$2:$G$1188,Dollars!$E$2:$E$1188,'Other Facility Related Costs'!V$6,Dollars!$C$2:$C$1188,'Other Facility Related Costs'!$C10,Dollars!$A$2:$A$1188,LEFT('Other Facility Related Costs'!$C$4,3)) -> 0 | W10: =SUMIFS(Dollars!$G$2:$G$1188,Dollars!$E$2:$E$1188,'Other Facility Related Costs'!W$6,Dollars!$C$2:$C$1188,'Other Facility Related Costs'!$C10,Dollars!$A$2:$A$1188,LEFT('Other Facility Related Costs'!$C$4,3)) -> 0 | X10: =SUMIFS(Dollars!$G$2:$G$1188,Dollars!$E$2:$E$1188,'Other Facility Related Costs'!X$6,Dollars!$C$2:$C$1188,'Other Facility Related Costs'!$C10,Dollars!$A$2:$A$1188,LEFT('Other Facility Related Costs'!$C$4,3)) -> 0 | Y10: 0 | Z10: 0 | AA10: 0
A11: HIDE | C11: HLB | D11: =VLOOKUP(LEFT($C$4,3),RSF!$A$3:$AJ$108,MATCH($C11,RSF!$A$3:$AK$3,0),FALSE) -> 0 | G11: =SUMIFS(Dollars!$F$2:$F$1188,Dollars!$E$2:$E$1188,'Other Facility Related Costs'!G$6,Dollars!$C$2:$C$1188,'Other Facility Related Costs'!$C11,Dollars!$A$2:$A$1188,LEFT('Other Facility Related Costs'!$C$4,3)) -> 0 | H11: =SUMIFS(Dollars!$F$2:$F$1188,Dollars!$E$2:$E$1188,'Other Facility Related Costs'!H$6,Dollars!$C$2:$C$1188,'Other Facility Related Costs'!$C11,Dollars!$A$2:$A$1188,LEFT('Other Facility Related Costs'!$C$4,3)) -> 0 | I11: =SUMIFS(Dollars!$F$2:$F$1188,Dollars!$E$2:$E$1188,'Other Facility Related Costs'!I$6,Dollars!$C$2:$C$1188,'Other Facility Related Costs'!$C11,Dollars!$A$2:$A$1188,LEFT('Other Facility Related Costs'!$C$4,3)) -> 0 | J11: =SUMIFS(Dollars!$F$2:$F$1188,Dollars!$E$2:$E$1188,'Other Facility Related Costs'!J$6,Dollars!$C$2:$C$1188,'Other Facility Related Costs'!$C11,Dollars!$A$2:$A$1188,LEFT('Other Facility Related Costs'!$C$4,3)) -> 0 | K11: =SUMIFS(Dollars!$F$2:$F$1188,Dollars!$E$2:$E$1188,'Other Facility Related Costs'!K$6,Dollars!$C$2:$C$1188,'Other Facility Related Costs'!$C11,Dollars!$A$2:$A$1188,LEFT('Other Facility Related Costs'!$C$4,3)) -> 0 | L11: =SUMIFS(Dollars!$F$2:$F$1188,Dollars!$E$2:$E$1188,'Other Facility Related Costs'!L$6,Dollars!$C$2:$C$1188,'Other Facility Related Costs'!$C11,Dollars!$A$2:$A$1188,LEFT('Other Facility Related Costs'!$C$4,3)) -> 0 | M11: =SUMIFS(Dollars!$F$2:$F$1188,Dollars!$E$2:$E$1188,'Other Facility Related Costs'!M$6,Dollars!$C$2:$C$1188,'Other Facility Related Costs'!$C11,Dollars!$A$2:$A$1188,LEFT('Other Facility Related Costs'!$C$4,3)) -> 0 | N11: 0 | O11: 0 | P11: 0 | R11: =SUMIFS(Dollars!$G$2:$G$1188,Dollars!$E$2:$E$1188,'Other Facility Related Costs'!R$6,Dollars!$C$2:$C$1188,'Other Facility Related Costs'!$C11,Dollars!$A$2:$A$1188,LEFT('Other Facility Related Costs'!$C$4,3)) -> 0 | S11: =SUMIFS(Dollars!$G$2:$G$1188,Dollars!$E$2:$E$1188,'Other Facility Related Costs'!S$6,Dollars!$C$2:$C$1188,'Other Facility Related Costs'!$C11,Dollars!$A$2:$A$1188,LEFT('Other Facility Related Costs'!$C$4,3)) -> 0 | T11: =SUMIFS(Dollars!$G$2:$G$1188,Dollars!$E$2:$E$1188,'Other Facility Related Costs'!T$6,Dollars!$C$2:$C$1188,'Other Facility Related Costs'!$C11,Dollars!$A$2:$A$1188,LEFT('Other Facility Related Costs'!$C$4,3)) -> 0 | U11: =SUMIFS(Dollars!$G$2:$G$1188,Dollars!$E$2:$E$1188,'Other Facility Related Costs'!U$6,Dollars!$C$2:$C$1188,'Other Facility Related Costs'!$C11,Dollars!$A$2:$A$1188,LEFT('Other Facility Related Costs'!$C$4,3)) -> 0 | V11: =SUMIFS(Dollars!$G$2:$G$1188,Dollars!$E$2:$E$1188,'Other Facility Related Costs'!V$6,Dollars!$C$2:$C$1188,'Other Facility Related Costs'!$C11,Dollars!$A$2:$A$1188,LEFT('Other Facility Related Costs'!$C$4,3)) -> 0 | W11: =SUMIFS(Dollars!$G$2:$G$1188,Dollars!$E$2:$E$1188,'Other Facility Related Costs'!W$6,Dollars!$C$2:$C$1188,'Other Facility Related Costs'!$C11,Dollars!$A$2:$A$1188,LEFT('Other Facility Related Costs'!$C$4,3)) -> 0 | X11: =SUMIFS(Dollars!$G$2:$G$1188,Dollars!$E$2:$E$1188,'Other Facility Related Costs'!X$6,Dollars!$C$2:$C$1188,'Other Facility Related Costs'!$C11,Dollars!$A$2:$A$1188,LEFT('Other Facility Related Costs'!$C$4,3)) -> 0 | Y11: 0 | Z11: 0 | AA11: 0
A12: HIDE | C12: OB2 | D12: =VLOOKUP(LEFT($C$4,3),RSF!$A$3:$AJ$108,MATCH($C12,RSF!$A$3:$AK$3,0),FALSE) -> 0 | G12: =SUMIFS(Dollars!$F$2:$F$1188,Dollars!$E$2:$E$1188,'Other Facility Related Costs'!G$6,Dollars!$C$2:$C$1188,'Other Facility Related Costs'!$C12,Dollars!$A$2:$A$1188,LEFT('Other Facility Related Costs'!$C$4,3)) -> 0 | H12: =SUMIFS(Dollars!$F$2:$F$1188,Dollars!$E$2:$E$1188,'Other Facility Related Costs'!H$6,Dollars!$C$2:$C$1188,'Other Facility Related Costs'!$C12,Dollars!$A$2:$A$1188,LEFT('Other Facility Related Costs'!$C$4,3)) -> 0 | I12: =SUMIFS(Dollars!$F$2:$F$1188,Dollars!$E$2:$E$1188,'Other Facility Related Costs'!I$6,Dollars!$C$2:$C$1188,'Other Facility Related Costs'!$C12,Dollars!$A$2:$A$1188,LEFT('Other Facility Related Costs'!$C$4,3)) -> 0 | J12: =SUMIFS(Dollars!$F$2:$F$1188,Dollars!$E$2:$E$1188,'Other Facility Related Costs'!J$6,Dollars!$C$2:$C$1188,'Other Facility Related Costs'!$C12,Dollars!$A$2:$A$1188,LEFT('Other Facility Related Costs'!$C$4,3)) -> 0 | K12: =SUMIFS(Dollars!$F$2:$F$1188,Dollars!$E$2:$E$1188,'Other Facility Related Costs'!K$6,Dollars!$C$2:$C$1188,'Other Facility Related Costs'!$C12,Dollars!$A$2:$A$1188,LEFT('Other Facility Related Costs'!$C$4,3)) -> 0 | L12: =SUMIFS(Dollars!$F$2:$F$1188,Dollars!$E$2:$E$1188,'Other Facility Related Costs'!L$6,Dollars!$C$2:$C$1188,'Other Facility Related Costs'!$C12,Dollars!$A$2:$A$1188,LEFT('Other Facility Related Costs'!$C$4,3)) -> 0 | M12: =SUMIFS(Dollars!$F$2:$F$1188,Dollars!$E$2:$E$1188,'Other Facility Related Costs'!M$6,Dollars!$C$2:$C$1188,'Other Facility Related Costs'!$C12,Dollars!$A$2:$A$1188,LEFT('Other Facility Related Costs'!$C$4,3)) -> 0 | N12: 0 | O12: 0 | P12: 0 | R12: =SUMIFS(Dollars!$G$2:$G$1188,Dollars!$E$2:$E$1188,'Other Facility Related Costs'!R$6,Dollars!$C$2:$C$1188,'Other Facility Related Costs'!$C12,Dollars!$A$2:$A$1188,LEFT('Other Facility Related Costs'!$C$4,3)) -> 0 | S12: =SUMIFS(Dollars!$G$2:$G$1188,Dollars!$E$2:$E$1188,'Other Facility Related Costs'!S$6,Dollars!$C$2:$C$1188,'Other Facility Related Costs'!$C12,Dollars!$A$2:$A$1188,LEFT('Other Facility Related Costs'!$C$4,3)) -> 0 | T12: =SUMIFS(Dollars!$G$2:$G$1188,Dollars!$E$2:$E$1188,'Other Facility Related Costs'!T$6,Dollars!$C$2:$C$1188,'Other Facility Related Costs'!$C12,Dollars!$A$2:$A$1188,LEFT('Other Facility Related Costs'!$C$4,3)) -> 0 | U12: =SUMIFS(Dollars!$G$2:$G$1188,Dollars!$E$2:$E$1188,'Other Facility Related Costs'!U$6,Dollars!$C$2:$C$1188,'Other Facility Related Costs'!$C12,Dollars!$A$2:$A$1188,LEFT('Other Facility Related Costs'!$C$4,3)) -> 0 | V12: =SUMIFS(Dollars!$G$2:$G$1188,Dollars!$E$2:$E$1188,'Other Facility Related Costs'!V$6,Dollars!$C$2:$C$1188,'Other Facility Related Costs'!$C12,Dollars!$A$2:$A$1188,LEFT('Other Facility Related Costs'!$C$4,3)) -> 0 | W12: =SUMIFS(Dollars!$G$2:$G$1188,Dollars!$E$2:$E$1188,'Other Facility Related Costs'!W$6,Dollars!$C$2:$C$1188,'Other Facility Related Costs'!$C12,Dollars!$A$2:$A$1188,LEFT('Other Facility Related Costs'!$C$4,3)) -> 0 | X12: =SUMIFS(Dollars!$G$2:$G$1188,Dollars!$E$2:$E$1188,'Other Facility Related Costs'!X$6,Dollars!$C$2:$C$1188,'Other Facility Related Costs'!$C12,Dollars!$A$2:$A$1188,LEFT('Other Facility Related Costs'!$C$4,3)) -> 0 | Y12: 0 | Z12: 0 | AA12: 0
A13: HIDE | C13: Archives | D13: =VLOOKUP(LEFT($C$4,3),RSF!$A$3:$AJ$108,MATCH($C13,RSF!$A$3:$AK$3,0),FALSE) -> 0 | G13: =SUMIFS(Dollars!$F$2:$F$1188,Dollars!$E$2:$E$1188,'Other Facility Related Costs'!G$6,Dollars!$C$2:$C$1188,'Other Facility Related Costs'!$C13,Dollars!$A$2:$A$1188,LEFT('Other Facility Related Costs'!$C$4,3)) -> 0 | H13: =SUMIFS(Dollars!$F$2:$F$1188,Dollars!$E$2:$E$1188,'Other Facility Related Costs'!H$6,Dollars!$C$2:$C$1188,'Other Facility Related Costs'!$C13,Dollars!$A$2:$A$1188,LEFT('Other Facility Related Costs'!$C$4,3)) -> 0 | I13: =SUMIFS(Dollars!$F$2:$F$1188,Dollars!$E$2:$E$1188,'Other Facility Related Costs'!I$6,Dollars!$C$2:$C$1188,'Other Facility Related Costs'!$C13,Dollars!$A$2:$A$1188,LEFT('Other Facility Related Costs'!$C$4,3)) -> 0 | J13: =SUMIFS(Dollars!$F$2:$F$1188,Dollars!$E$2:$E$1188,'Other Facility Related Costs'!J$6,Dollars!$C$2:$C$1188,'Other Facility Related Costs'!$C13,Dollars!$A$2:$A$1188,LEFT('Other Facility Related Costs'!$C$4,3)) -> 0 | K13: =SUMIFS(Dollars!$F$2:$F$1188,Dollars!$E$2:$E$1188,'Other Facility Related Costs'!K$6,Dollars!$C$2:$C$1188,'Other Facility Related Costs'!$C13,Dollars!$A$2:$A$1188,LEFT('Other Facility Related Costs'!$C$4,3)) -> 0 | L13: =SUMIFS(Dollars!$F$2:$F$1188,Dollars!$E$2:$E$1188,'Other Facility Related Costs'!L$6,Dollars!$C$2:$C$1188,'Other Facility Related Costs'!$C13,Dollars!$A$2:$A$1188,LEFT('Other Facility Related Costs'!$C$4,3)) -> 0 | M13: =SUMIFS(Dollars!$F$2:$F$1188,Dollars!$E$2:$E$1188,'Other Facility Related Costs'!M$6,Dollars!$C$2:$C$1188,'Other Facility Related Costs'!$C13,Dollars!$A$2:$A$1188,LEFT('Other Facility Related Costs'!$C$4,3)) -> 0 | N13: 0 | O13: 0 | P13: 0 | R13: =SUMIFS(Dollars!$G$2:$G$1188,Dollars!$E$2:$E$1188,'Other Facility Related Costs'!R$6,Dollars!$C$2:$C$1188,'Other Facility Related Costs'!$C13,Dollars!$A$2:$A$1188,LEFT('Other Facility Related Costs'!$C$4,3)) -> 0 | S13: =SUMIFS(Dollars!$G$2:$G$1188,Dollars!$E$2:$E$1188,'Other Facility Related Costs'!S$6,Dollars!$C$2:$C$1188,'Other Facility Related Costs'!$C13,Dollars!$A$2:$A$1188,LEFT('Other Facility Related Costs'!$C$4,3)) -> 0 | T13: =SUMIFS(Dollars!$G$2:$G$1188,Dollars!$E$2:$E$1188,'Other Facility Related Costs'!T$6,Dollars!$C$2:$C$1188,'Other Facility Related Costs'!$C13,Dollars!$A$2:$A$1188,LEFT('Other Facility Related Costs'!$C$4,3)) -> 0 | U13: =SUMIFS(Dollars!$G$2:$G$1188,Dollars!$E$2:$E$1188,'Other Facility Related Costs'!U$6,Dollars!$C$2:$C$1188,'Other Facility Related Costs'!$C13,Dollars!$A$2:$A$1188,LEFT('Other Facility Related Costs'!$C$4,3)) -> 0 | V13: =SUMIFS(Dollars!$G$2:$G$1188,Dollars!$E$2:$E$1188,'Other Facility Related Costs'!V$6,Dollars!$C$2:$C$1188,'Other Facility Related Costs'!$C13,Dollars!$A$2:$A$1188,LEFT('Other Facility Related Costs'!$C$4,3)) -> 0 | W13: =SUMIFS(Dollars!$G$2:$G$1188,Dollars!$E$2:$E$1188,'Other Facility Related Costs'!W$6,Dollars!$C$2:$C$1188,'Other Facility Related Costs'!$C13,Dollars!$A$2:$A$1188,LEFT('Other Facility Related Costs'!$C$4,3)) -> 0 | X13: =SUMIFS(Dollars!$G$2:$G$1188,Dollars!$E$2:$E$1188,'Other Facility Related Costs'!X$6,Dollars!$C$2:$C$1188,'Other Facility Related Costs'!$C13,Dollars!$A$2:$A$1188,LEFT('Other Facility Related Costs'!$C$4,3)) -> 0 | Y13: 0 | Z13: 0 | AA13: 0
A14: HIDE | C14: NRB | D14: =VLOOKUP(LEFT($C$4,3),RSF!$A$3:$AJ$108,MATCH($C14,RSF!$A$3:$AK$3,0),FALSE) -> 0 | G14: =SUMIFS(Dollars!$F$2:$F$1188,Dollars!$E$2:$E$1188,'Other Facility Related Costs'!G$6,Dollars!$C$2:$C$1188,'Other Facility Related Costs'!$C14,Dollars!$A$2:$A$1188,LEFT('Other Facility Related Costs'!$C$4,3)) -> 0 | H14: =SUMIFS(Dollars!$F$2:$F$1188,Dollars!$E$2:$E$1188,'Other Facility Related Costs'!H$6,Dollars!$C$2:$C$1188,'Other Facility Related Costs'!$C14,Dollars!$A$2:$A$1188,LEFT('Other Facility Related Costs'!$C$4,3)) -> 0 | I14: =SUMIFS(Dollars!$F$2:$F$1188,Dollars!$E$2:$E$1188,'Other Facility Related Costs'!I$6,Dollars!$C$2:$C$1188,'Other Facility Related Costs'!$C14,Dollars!$A$2:$A$1188,LEFT('Other Facility Related Costs'!$C$4,3)) -> 0 | J14: =SUMIFS(Dollars!$F$2:$F$1188,Dollars!$E$2:$E$1188,'Other Facility Related Costs'!J$6,Dollars!$C$2:$C$1188,'Other Facility Related Costs'!$C14,Dollars!$A$2:$A$1188,LEFT('Other Facility Related Costs'!$C$4,3)) -> 0 | K14: =SUMIFS(Dollars!$F$2:$F$1188,Dollars!$E$2:$E$1188,'Other Facility Related Costs'!K$6,Dollars!$C$2:$C$1188,'Other Facility Related Costs'!$C14,Dollars!$A$2:$A$1188,LEFT('Other Facility Related Costs'!$C$4,3)) -> 0 | L14: =SUMIFS(Dollars!$F$2:$F$1188,Dollars!$E$2:$E$1188,'Other Facility Related Costs'!L$6,Dollars!$C$2:$C$1188,'Other Facility Related Costs'!$C14,Dollars!$A$2:$A$1188,LEFT('Other Facility Related Costs'!$C$4,3)) -> 0 | M14: =SUMIFS(Dollars!$F$2:$F$1188,Dollars!$E$2:$E$1188,'Other Facility Related Costs'!M$6,Dollars!$C$2:$C$1188,'Other Facility Related Costs'!$C14,Dollars!$A$2:$A$1188,LEFT('Other Facility Related Costs'!$C$4,3)) -> 0 | N14: 0 | O14: 0 | P14: 0 | R14: =SUMIFS(Dollars!$G$2:$G$1188,Dollars!$E$2:$E$1188,'Other Facility Related Costs'!R$6,Dollars!$C$2:$C$1188,'Other Facility Related Costs'!$C14,Dollars!$A$2:$A$1188,LEFT('Other Facility Related Costs'!$C$4,3)) -> 0 | S14: =SUMIFS(Dollars!$G$2:$G$1188,Dollars!$E$2:$E$1188,'Other Facility Related Costs'!S$6,Dollars!$C$2:$C$1188,'Other Facility Related Costs'!$C14,Dollars!$A$2:$A$1188,LEFT('Other Facility Related Costs'!$C$4,3)) -> 0 | T14: =SUMIFS(Dollars!$G$2:$G$1188,Dollars!$E$2:$E$1188,'Other Facility Related Costs'!T$6,Dollars!$C$2:$C$1188,'Other Facility Related Costs'!$C14,Dollars!$A$2:$A$1188,LEFT('Other Facility Related Costs'!$C$4,3)) -> 0 | U14: =SUMIFS(Dollars!$G$2:$G$1188,Dollars!$E$2:$E$1188,'Other Facility Related Costs'!U$6,Dollars!$C$2:$C$1188,'Other Facility Related Costs'!$C14,Dollars!$A$2:$A$1188,LEFT('Other Facility Related Costs'!$C$4,3)) -> 0 | V14: =SUMIFS(Dollars!$G$2:$G$1188,Dollars!$E$2:$E$1188,'Other Facility Related Costs'!V$6,Dollars!$C$2:$C$1188,'Other Facility Related Costs'!$C14,Dollars!$A$2:$A$1188,LEFT('Other Facility Related Costs'!$C$4,3)) -> 0 | W14: =SUMIFS(Dollars!$G$2:$G$1188,Dollars!$E$2:$E$1188,'Other Facility Related Costs'!W$6,Dollars!$C$2:$C$1188,'Other Facility Related Costs'!$C14,Dollars!$A$2:$A$1188,LEFT('Other Facility Related Costs'!$C$4,3)) -> 0 | X14: =SUMIFS(Dollars!$G$2:$G$1188,Dollars!$E$2:$E$1188,'Other Facility Related Costs'!X$6,Dollars!$C$2:$C$1188,'Other Facility Related Costs'!$C14,Dollars!$A$2:$A$1188,LEFT('Other Facility Related Costs'!$C$4,3)) -> 0 | Y14: 0 | Z14: 0 | AA14: 0
A15: HIDE | C15: Emp Sec | D15: =VLOOKUP(LEFT($C$4,3),RSF!$A$3:$AJ$108,MATCH($C15,RSF!$A$3:$AK$3,0),FALSE) -> 0 | G15: =SUMIFS(Dollars!$F$2:$F$1188,Dollars!$E$2:$E$1188,'Other Facility Related Costs'!G$6,Dollars!$C$2:$C$1188,'Other Facility Related Costs'!$C15,Dollars!$A$2:$A$1188,LEFT('Other Facility Related Costs'!$C$4,3)) -> 0 | H15: =SUMIFS(Dollars!$F$2:$F$1188,Dollars!$E$2:$E$1188,'Other Facility Related Costs'!H$6,Dollars!$C$2:$C$1188,'Other Facility Related Costs'!$C15,Dollars!$A$2:$A$1188,LEFT('Other Facility Related Costs'!$C$4,3)) -> 0 | I15: =SUMIFS(Dollars!$F$2:$F$1188,Dollars!$E$2:$E$1188,'Other Facility Related Costs'!I$6,Dollars!$C$2:$C$1188,'Other Facility Related Costs'!$C15,Dollars!$A$2:$A$1188,LEFT('Other Facility Related Costs'!$C$4,3)) -> 0 | J15: =SUMIFS(Dollars!$F$2:$F$1188,Dollars!$E$2:$E$1188,'Other Facility Related Costs'!J$6,Dollars!$C$2:$C$1188,'Other Facility Related Costs'!$C15,Dollars!$A$2:$A$1188,LEFT('Other Facility Related Costs'!$C$4,3)) -> 0 | K15: =SUMIFS(Dollars!$F$2:$F$1188,Dollars!$E$2:$E$1188,'Other Facility Related Costs'!K$6,Dollars!$C$2:$C$1188,'Other Facility Related Costs'!$C15,Dollars!$A$2:$A$1188,LEFT('Other Facility Related Costs'!$C$4,3)) -> 0 | L15: =SUMIFS(Dollars!$F$2:$F$1188,Dollars!$E$2:$E$1188,'Other Facility Related Costs'!L$6,Dollars!$C$2:$C$1188,'Other Facility Related Costs'!$C15,Dollars!$A$2:$A$1188,LEFT('Other Facility Related Costs'!$C$4,3)) -> 0 | M15: =SUMIFS(Dollars!$F$2:$F$1188,Dollars!$E$2:$E$1188,'Other Facility Related Costs'!M$6,Dollars!$C$2:$C$1188,'Other Facility Related Costs'!$C15,Dollars!$A$2:$A$1188,LEFT('Other Facility Related Costs'!$C$4,3)) -> 0 | N15: 0 | O15: 0 | P15: 0 | R15: =SUMIFS(Dollars!$G$2:$G$1188,Dollars!$E$2:$E$1188,'Other Facility Related Costs'!R$6,Dollars!$C$2:$C$1188,'Other Facility Related Costs'!$C15,Dollars!$A$2:$A$1188,LEFT('Other Facility Related Costs'!$C$4,3)) -> 0 | S15: =SUMIFS(Dollars!$G$2:$G$1188,Dollars!$E$2:$E$1188,'Other Facility Related Costs'!S$6,Dollars!$C$2:$C$1188,'Other Facility Related Costs'!$C15,Dollars!$A$2:$A$1188,LEFT('Other Facility Related Costs'!$C$4,3)) -> 0 | T15: =SUMIFS(Dollars!$G$2:$G$1188,Dollars!$E$2:$E$1188,'Other Facility Related Costs'!T$6,Dollars!$C$2:$C$1188,'Other Facility Related Costs'!$C15,Dollars!$A$2:$A$1188,LEFT('Other Facility Related Costs'!$C$4,3)) -> 0 | U15: =SUMIFS(Dollars!$G$2:$G$1188,Dollars!$E$2:$E$1188,'Other Facility Related Costs'!U$6,Dollars!$C$2:$C$1188,'Other Facility Related Costs'!$C15,Dollars!$A$2:$A$1188,LEFT('Other Facility Related Costs'!$C$4,3)) -> 0 | V15: =SUMIFS(Dollars!$G$2:$G$1188,Dollars!$E$2:$E$1188,'Other Facility Related Costs'!V$6,Dollars!$C$2:$C$1188,'Other Facility Related Costs'!$C15,Dollars!$A$2:$A$1188,LEFT('Other Facility Related Costs'!$C$4,3)) -> 0 | W15: =SUMIFS(Dollars!$G$2:$G$1188,Dollars!$E$2:$E$1188,'Other Facility Related Costs'!W$6,Dollars!$C$2:$C$1188,'Other Facility Related Costs'!$C15,Dollars!$A$2:$A$1188,LEFT('Other Facility Related Costs'!$C$4,3)) -> 0 | X15: =SUMIFS(Dollars!$G$2:$G$1188,Dollars!$E$2:$E$1188,'Other Facility Related Costs'!X$6,Dollars!$C$2:$C$1188,'Other Facility Related Costs'!$C15,Dollars!$A$2:$A$1188,LEFT('Other Facility Related Costs'!$C$4,3)) -> 0 | Y15: 0 | Z15: 0 | AA15: 0
A16: HIDE | C16: Transportation | D16: =VLOOKUP(LEFT($C$4,3),RSF!$A$3:$AJ$108,MATCH($C16,RSF!$A$3:$AK$3,0),FALSE) -> 0 | G16: =SUMIFS(Dollars!$F$2:$F$1188,Dollars!$E$2:$E$1188,'Other Facility Related Costs'!G$6,Dollars!$C$2:$C$1188,'Other Facility Related Costs'!$C16,Dollars!$A$2:$A$1188,LEFT('Other Facility Related Costs'!$C$4,3)) -> 0 | H16: =SUMIFS(Dollars!$F$2:$F$1188,Dollars!$E$2:$E$1188,'Other Facility Related Costs'!H$6,Dollars!$C$2:$C$1188,'Other Facility Related Costs'!$C16,Dollars!$A$2:$A$1188,LEFT('Other Facility Related Costs'!$C$4,3)) -> 0 | I16: =SUMIFS(Dollars!$F$2:$F$1188,Dollars!$E$2:$E$1188,'Other Facility Related Costs'!I$6,Dollars!$C$2:$C$1188,'Other Facility Related Costs'!$C16,Dollars!$A$2:$A$1188,LEFT('Other Facility Related Costs'!$C$4,3)) -> 0 | J16: =SUMIFS(Dollars!$F$2:$F$1188,Dollars!$E$2:$E$1188,'Other Facility Related Costs'!J$6,Dollars!$C$2:$C$1188,'Other Facility Related Costs'!$C16,Dollars!$A$2:$A$1188,LEFT('Other Facility Related Costs'!$C$4,3)) -> 0 | K16: =SUMIFS(Dollars!$F$2:$F$1188,Dollars!$E$2:$E$1188,'Other Facility Related Costs'!K$6,Dollars!$C$2:$C$1188,'Other Facility Related Costs'!$C16,Dollars!$A$2:$A$1188,LEFT('Other Facility Related Costs'!$C$4,3)) -> 0 | L16: =SUMIFS(Dollars!$F$2:$F$1188,Dollars!$E$2:$E$1188,'Other Facility Related Costs'!L$6,Dollars!$C$2:$C$1188,'Other Facility Related Costs'!$C16,Dollars!$A$2:$A$1188,LEFT('Other Facility Related Costs'!$C$4,3)) -> 0 | M16: =SUMIFS(Dollars!$F$2:$F$1188,Dollars!$E$2:$E$1188,'Other Facility Related Costs'!M$6,Dollars!$C$2:$C$1188,'Other Facility Related Costs'!$C16,Dollars!$A$2:$A$1188,LEFT('Other Facility Related Costs'!$C$4,3)) -> 0 | N16: 0 | O16: 0 | P16: 0 | R16: =SUMIFS(Dollars!$G$2:$G$1188,Dollars!$E$2:$E$1188,'Other Facility Related Costs'!R$6,Dollars!$C$2:$C$1188,'Other Facility Related Costs'!$C16,Dollars!$A$2:$A$1188,LEFT('Other Facility Related Costs'!$C$4,3)) -> 0 | S16: =SUMIFS(Dollars!$G$2:$G$1188,Dollars!$E$2:$E$1188,'Other Facility Related Costs'!S$6,Dollars!$C$2:$C$1188,'Other Facility Related Costs'!$C16,Dollars!$A$2:$A$1188,LEFT('Other Facility Related Costs'!$C$4,3)) -> 0 | T16: =SUMIFS(Dollars!$G$2:$G$1188,Dollars!$E$2:$E$1188,'Other Facility Related Costs'!T$6,Dollars!$C$2:$C$1188,'Other Facility Related Costs'!$C16,Dollars!$A$2:$A$1188,LEFT('Other Facility Related Costs'!$C$4,3)) -> 0 | U16: =SUMIFS(Dollars!$G$2:$G$1188,Dollars!$E$2:$E$1188,'Other Facility Related Costs'!U$6,Dollars!$C$2:$C$1188,'Other Facility Related Costs'!$C16,Dollars!$A$2:$A$1188,LEFT('Other Facility Related Costs'!$C$4,3)) -> 0 | V16: =SUMIFS(Dollars!$G$2:$G$1188,Dollars!$E$2:$E$1188,'Other Facility Related Costs'!V$6,Dollars!$C$2:$C$1188,'Other Facility Related Costs'!$C16,Dollars!$A$2:$A$1188,LEFT('Other Facility Related Costs'!$C$4,3)) -> 0 | W16: =SUMIFS(Dollars!$G$2:$G$1188,Dollars!$E$2:$E$1188,'Other Facility Related Costs'!W$6,Dollars!$C$2:$C$1188,'Other Facility Related Costs'!$C16,Dollars!$A$2:$A$1188,LEFT('Other Facility Related Costs'!$C$4,3)) -> 0 | X16: =SUMIFS(Dollars!$G$2:$G$1188,Dollars!$E$2:$E$1188,'Other Facility Related Costs'!X$6,Dollars!$C$2:$C$1188,'Other Facility Related Costs'!$C16,Dollars!$A$2:$A$1188,LEFT('Other Facility Related Costs'!$C$4,3)) -> 0 | Y16: 0 | Z16: 0 | AA16: 0
A17: HIDE | C17: Insurance | D17: =VLOOKUP(LEFT($C$4,3),RSF!$A$3:$AJ$108,MATCH($C17,RSF!$A$3:$AK$3,0),FALSE) -> 0 | G17: =SUMIFS(Dollars!$F$2:$F$1188,Dollars!$E$2:$E$1188,'Other Facility Related Costs'!G$6,Dollars!$C$2:$C$1188,'Other Facility Related Costs'!$C17,Dollars!$A$2:$A$1188,LEFT('Other Facility Related Costs'!$C$4,3)) -> 0 | H17: =SUMIFS(Dollars!$F$2:$F$1188,Dollars!$E$2:$E$1188,'Other Facility Related Costs'!H$6,Dollars!$C$2:$C$1188,'Other Facility Related Costs'!$C17,Dollars!$A$2:$A$1188,LEFT('Other Facility Related Costs'!$C$4,3)) -> 0 | I17: =SUMIFS(Dollars!$F$2:$F$1188,Dollars!$E$2:$E$1188,'Other Facility Related Costs'!I$6,Dollars!$C$2:$C$1188,'Other Facility Related Costs'!$C17,Dollars!$A$2:$A$1188,LEFT('Other Facility Related Costs'!$C$4,3)) -> 0 | J17: =SUMIFS(Dollars!$F$2:$F$1188,Dollars!$E$2:$E$1188,'Other Facility Related Costs'!J$6,Dollars!$C$2:$C$1188,'Other Facility Related Costs'!$C17,Dollars!$A$2:$A$1188,LEFT('Other Facility Related Costs'!$C$4,3)) -> 0 | K17: =SUMIFS(Dollars!$F$2:$F$1188,Dollars!$E$2:$E$1188,'Other Facility Related Costs'!K$6,Dollars!$C$2:$C$1188,'Other Facility Related Costs'!$C17,Dollars!$A$2:$A$1188,LEFT('Other Facility Related Costs'!$C$4,3)) -> 0 | L17: =SUMIFS(Dollars!$F$2:$F$1188,Dollars!$E$2:$E$1188,'Other Facility Related Costs'!L$6,Dollars!$C$2:$C$1188,'Other Facility Related Costs'!$C17,Dollars!$A$2:$A$1188,LEFT('Other Facility Related Costs'!$C$4,3)) -> 0 | M17: =SUMIFS(Dollars!$F$2:$F$1188,Dollars!$E$2:$E$1188,'Other Facility Related Costs'!M$6,Dollars!$C$2:$C$1188,'Other Facility Related Costs'!$C17,Dollars!$A$2:$A$1188,LEFT('Other Facility Related Costs'!$C$4,3)) -> 0 | N17: 0 | O17: 0 | P17: 0 | R17: =SUMIFS(Dollars!$G$2:$G$1188,Dollars!$E$2:$E$1188,'Other Facility Related Costs'!R$6,Dollars!$C$2:$C$1188,'Other Facility Related Costs'!$C17,Dollars!$A$2:$A$1188,LEFT('Other Facility Related Costs'!$C$4,3)) -> 0 | S17: =SUMIFS(Dollars!$G$2:$G$1188,Dollars!$E$2:$E$1188,'Other Facility Related Costs'!S$6,Dollars!$C$2:$C$1188,'Other Facility Related Costs'!$C17,Dollars!$A$2:$A$1188,LEFT('Other Facility Related Costs'!$C$4,3)) -> 0 | T17: =SUMIFS(Dollars!$G$2:$G$1188,Dollars!$E$2:$E$1188,'Other Facility Related Costs'!T$6,Dollars!$C$2:$C$1188,'Other Facility Related Costs'!$C17,Dollars!$A$2:$A$1188,LEFT('Other Facility Related Costs'!$C$4,3)) -> 0 | U17: =SUMIFS(Dollars!$G$2:$G$1188,Dollars!$E$2:$E$1188,'Other Facility Related Costs'!U$6,Dollars!$C$2:$C$1188,'Other Facility Related Costs'!$C17,Dollars!$A$2:$A$1188,LEFT('Other Facility Related Costs'!$C$4,3)) -> 0 | V17: =SUMIFS(Dollars!$G$2:$G$1188,Dollars!$E$2:$E$1188,'Other Facility Related Costs'!V$6,Dollars!$C$2:$C$1188,'Other Facility Related Costs'!$C17,Dollars!$A$2:$A$1188,LEFT('Other Facility Related Costs'!$C$4,3)) -> 0 | W17: =SUMIFS(Dollars!$G$2:$G$1188,Dollars!$E$2:$E$1188,'Other Facility Related Costs'!W$6,Dollars!$C$2:$C$1188,'Other Facility Related Costs'!$C17,Dollars!$A$2:$A$1188,LEFT('Other Facility Related Costs'!$C$4,3)) -> 0 | X17: =SUMIFS(Dollars!$G$2:$G$1188,Dollars!$E$2:$E$1188,'Other Facility Related Costs'!X$6,Dollars!$C$2:$C$1188,'Other Facility Related Costs'!$C17,Dollars!$A$2:$A$1188,LEFT('Other Facility Related Costs'!$C$4,3)) -> 0 | Y17: 0 | Z17: 0 | AA17: 0
A18: HIDE | C18: Old Cap | D18: =VLOOKUP(LEFT($C$4,3),RSF!$A$3:$AJ$108,MATCH($C18,RSF!$A$3:$AK$3,0),FALSE) -> 0 | G18: =SUMIFS(Dollars!$F$2:$F$1188,Dollars!$E$2:$E$1188,'Other Facility Related Costs'!G$6,Dollars!$C$2:$C$1188,'Other Facility Related Costs'!$C18,Dollars!$A$2:$A$1188,LEFT('Other Facility Related Costs'!$C$4,3)) -> 0 | H18: =SUMIFS(Dollars!$F$2:$F$1188,Dollars!$E$2:$E$1188,'Other Facility Related Costs'!H$6,Dollars!$C$2:$C$1188,'Other Facility Related Costs'!$C18,Dollars!$A$2:$A$1188,LEFT('Other Facility Related Costs'!$C$4,3)) -> 0 | I18: =SUMIFS(Dollars!$F$2:$F$1188,Dollars!$E$2:$E$1188,'Other Facility Related Costs'!I$6,Dollars!$C$2:$C$1188,'Other Facility Related Costs'!$C18,Dollars!$A$2:$A$1188,LEFT('Other Facility Related Costs'!$C$4,3)) -> 0 | J18: =SUMIFS(Dollars!$F$2:$F$1188,Dollars!$E$2:$E$1188,'Other Facility Related Costs'!J$6,Dollars!$C$2:$C$1188,'Other Facility Related Costs'!$C18,Dollars!$A$2:$A$1188,LEFT('Other Facility Related Costs'!$C$4,3)) -> 0 | K18: =SUMIFS(Dollars!$F$2:$F$1188,Dollars!$E$2:$E$1188,'Other Facility Related Costs'!K$6,Dollars!$C$2:$C$1188,'Other Facility Related Costs'!$C18,Dollars!$A$2:$A$1188,LEFT('Other Facility Related Costs'!$C$4,3)) -> 0 | L18: =SUMIFS(Dollars!$F$2:$F$1188,Dollars!$E$2:$E$1188,'Other Facility Related Costs'!L$6,Dollars!$C$2:$C$1188,'Other Facility Related Costs'!$C18,Dollars!$A$2:$A$1188,LEFT('Other Facility Related Costs'!$C$4,3)) -> 0 | M18: =SUMIFS(Dollars!$F$2:$F$1188,Dollars!$E$2:$E$1188,'Other Facility Related Costs'!M$6,Dollars!$C$2:$C$1188,'Other Facility Related Costs'!$C18,Dollars!$A$2:$A$1188,LEFT('Other Facility Related Costs'!$C$4,3)) -> 0 | N18: 0 | O18: 0 | P18: 0 | R18: =SUMIFS(Dollars!$G$2:$G$1188,Dollars!$E$2:$E$1188,'Other Facility Related Costs'!R$6,Dollars!$C$2:$C$1188,'Other Facility Related Costs'!$C18,Dollars!$A$2:$A$1188,LEFT('Other Facility Related Costs'!$C$4,3)) -> 0 | S18: =SUMIFS(Dollars!$G$2:$G$1188,Dollars!$E$2:$E$1188,'Other Facility Related Costs'!S$6,Dollars!$C$2:$C$1188,'Other Facility Related Costs'!$C18,Dollars!$A$2:$A$1188,LEFT('Other Facility Related Costs'!$C$4,3)) -> 0 | T18: =SUMIFS(Dollars!$G$2:$G$1188,Dollars!$E$2:$E$1188,'Other Facility Related Costs'!T$6,Dollars!$C$2:$C$1188,'Other Facility Related Costs'!$C18,Dollars!$A$2:$A$1188,LEFT('Other Facility Related Costs'!$C$4,3)) -> 0 | U18: =SUMIFS(Dollars!$G$2:$G$1188,Dollars!$E$2:$E$1188,'Other Facility Related Costs'!U$6,Dollars!$C$2:$C$1188,'Other Facility Related Costs'!$C18,Dollars!$A$2:$A$1188,LEFT('Other Facility Related Costs'!$C$4,3)) -> 0 | V18: =SUMIFS(Dollars!$G$2:$G$1188,Dollars!$E$2:$E$1188,'Other Facility Related Costs'!V$6,Dollars!$C$2:$C$1188,'Other Facility Related Costs'!$C18,Dollars!$A$2:$A$1188,LEFT('Other Facility Related Costs'!$C$4,3)) -> 0 | W18: =SUMIFS(Dollars!$G$2:$G$1188,Dollars!$E$2:$E$1188,'Other Facility Related Costs'!W$6,Dollars!$C$2:$C$1188,'Other Facility Related Costs'!$C18,Dollars!$A$2:$A$1188,LEFT('Other Facility Related Costs'!$C$4,3)) -> 0 | X18: =SUMIFS(Dollars!$G$2:$G$1188,Dollars!$E$2:$E$1188,'Other Facility Related Costs'!X$6,Dollars!$C$2:$C$1188,'Other Facility Related Costs'!$C18,Dollars!$A$2:$A$1188,LEFT('Other Facility Related Costs'!$C$4,3)) -> 0 | Y18: 0 | Z18: 0 | AA18: 0
A19: HIDE | C19: TOJ | D19: =VLOOKUP(LEFT($C$4,3),RSF!$A$3:$AJ$108,MATCH($C19,RSF!$A$3:$AK$3,0),FALSE) -> 0 | G19: =SUMIFS(Dollars!$F$2:$F$1188,Dollars!$E$2:$E$1188,'Other Facility Related Costs'!G$6,Dollars!$C$2:$C$1188,'Other Facility Related Costs'!$C19,Dollars!$A$2:$A$1188,LEFT('Other Facility Related Costs'!$C$4,3)) -> 0 | H19: =SUMIFS(Dollars!$F$2:$F$1188,Dollars!$E$2:$E$1188,'Other Facility Related Costs'!H$6,Dollars!$C$2:$C$1188,'Other Facility Related Costs'!$C19,Dollars!$A$2:$A$1188,LEFT('Other Facility Related Costs'!$C$4,3)) -> 0 | I19: =SUMIFS(Dollars!$F$2:$F$1188,Dollars!$E$2:$E$1188,'Other Facility Related Costs'!I$6,Dollars!$C$2:$C$1188,'Other Facility Related Costs'!$C19,Dollars!$A$2:$A$1188,LEFT('Other Facility Related Costs'!$C$4,3)) -> 0 | J19: =SUMIFS(Dollars!$F$2:$F$1188,Dollars!$E$2:$E$1188,'Other Facility Related Costs'!J$6,Dollars!$C$2:$C$1188,'Other Facility Related Costs'!$C19,Dollars!$A$2:$A$1188,LEFT('Other Facility Related Costs'!$C$4,3)) -> 0 | K19: =SUMIFS(Dollars!$F$2:$F$1188,Dollars!$E$2:$E$1188,'Other Facility Related Costs'!K$6,Dollars!$C$2:$C$1188,'Other Facility Related Costs'!$C19,Dollars!$A$2:$A$1188,LEFT('Other Facility Related Costs'!$C$4,3)) -> 0 | L19: =SUMIFS(Dollars!$F$2:$F$1188,Dollars!$E$2:$E$1188,'Other Facility Related Costs'!L$6,Dollars!$C$2:$C$1188,'Other Facility Related Costs'!$C19,Dollars!$A$2:$A$1188,LEFT('Other Facility Related Costs'!$C$4,3)) -> 0 | M19: =SUMIFS(Dollars!$F$2:$F$1188,Dollars!$E$2:$E$1188,'Other Facility Related Costs'!M$6,Dollars!$C$2:$C$1188,'Other Facility Related Costs'!$C19,Dollars!$A$2:$A$1188,LEFT('Other Facility Related Costs'!$C$4,3)) -> 0 | N19: 0 | O19: 0 | P19: 0 | R19: =SUMIFS(Dollars!$G$2:$G$1188,Dollars!$E$2:$E$1188,'Other Facility Related Costs'!R$6,Dollars!$C$2:$C$1188,'Other Facility Related Costs'!$C19,Dollars!$A$2:$A$1188,LEFT('Other Facility Related Costs'!$C$4,3)) -> 0 | S19: =SUMIFS(Dollars!$G$2:$G$1188,Dollars!$E$2:$E$1188,'Other Facility Related Costs'!S$6,Dollars!$C$2:$C$1188,'Other Facility Related Costs'!$C19,Dollars!$A$2:$A$1188,LEFT('Other Facility Related Costs'!$C$4,3)) -> 0 | T19: =SUMIFS(Dollars!$G$2:$G$1188,Dollars!$E$2:$E$1188,'Other Facility Related Costs'!T$6,Dollars!$C$2:$C$1188,'Other Facility Related Costs'!$C19,Dollars!$A$2:$A$1188,LEFT('Other Facility Related Costs'!$C$4,3)) -> 0 | U19: =SUMIFS(Dollars!$G$2:$G$1188,Dollars!$E$2:$E$1188,'Other Facility Related Costs'!U$6,Dollars!$C$2:$C$1188,'Other Facility Related Costs'!$C19,Dollars!$A$2:$A$1188,LEFT('Other Facility Related Costs'!$C$4,3)) -> 0 | V19: =SUMIFS(Dollars!$G$2:$G$1188,Dollars!$E$2:$E$1188,'Other Facility Related Costs'!V$6,Dollars!$C$2:$C$1188,'Other Facility Related Costs'!$C19,Dollars!$A$2:$A$1188,LEFT('Other Facility Related Costs'!$C$4,3)) -> 0 | W19: =SUMIFS(Dollars!$G$2:$G$1188,Dollars!$E$2:$E$1188,'Other Facility Related Costs'!W$6,Dollars!$C$2:$C$1188,'Other Facility Related Costs'!$C19,Dollars!$A$2:$A$1188,LEFT('Other Facility Related Costs'!$C$4,3)) -> 0 | X19: =SUMIFS(Dollars!$G$2:$G$1188,Dollars!$E$2:$E$1188,'Other Facility Related Costs'!X$6,Dollars!$C$2:$C$1188,'Other Facility Related Costs'!$C19,Dollars!$A$2:$A$1188,LEFT('Other Facility Related Costs'!$C$4,3)) -> 0 | Y19: 0 | Z19: 0 | AA19: 0
A20: HIDE | C20: Newhouse | D20: =VLOOKUP(LEFT($C$4,3),RSF!$A$3:$AJ$108,MATCH($C20,RSF!$A$3:$AK$3,0),FALSE) -> 0 | G20: =SUMIFS(Dollars!$F$2:$F$1188,Dollars!$E$2:$E$1188,'Other Facility Related Costs'!G$6,Dollars!$C$2:$C$1188,'Other Facility Related Costs'!$C20,Dollars!$A$2:$A$1188,LEFT('Other Facility Related Costs'!$C$4,3)) -> 0 | H20: =SUMIFS(Dollars!$F$2:$F$1188,Dollars!$E$2:$E$1188,'Other Facility Related Costs'!H$6,Dollars!$C$2:$C$1188,'Other Facility Related Costs'!$C20,Dollars!$A$2:$A$1188,LEFT('Other Facility Related Costs'!$C$4,3)) -> 0 | I20: =SUMIFS(Dollars!$F$2:$F$1188,Dollars!$E$2:$E$1188,'Other Facility Related Costs'!I$6,Dollars!$C$2:$C$1188,'Other Facility Related Costs'!$C20,Dollars!$A$2:$A$1188,LEFT('Other Facility Related Costs'!$C$4,3)) -> 0 | J20: =SUMIFS(Dollars!$F$2:$F$1188,Dollars!$E$2:$E$1188,'Other Facility Related Costs'!J$6,Dollars!$C$2:$C$1188,'Other Facility Related Costs'!$C20,Dollars!$A$2:$A$1188,LEFT('Other Facility Related Costs'!$C$4,3)) -> 0 | K20: =SUMIFS(Dollars!$F$2:$F$1188,Dollars!$E$2:$E$1188,'Other Facility Related Costs'!K$6,Dollars!$C$2:$C$1188,'Other Facility Related Costs'!$C20,Dollars!$A$2:$A$1188,LEFT('Other Facility Related Costs'!$C$4,3)) -> 0 | L20: =SUMIFS(Dollars!$F$2:$F$1188,Dollars!$E$2:$E$1188,'Other Facility Related Costs'!L$6,Dollars!$C$2:$C$1188,'Other Facility Related Costs'!$C20,Dollars!$A$2:$A$1188,LEFT('Other Facility Related Costs'!$C$4,3)) -> 0 | M20: =SUMIFS(Dollars!$F$2:$F$1188,Dollars!$E$2:$E$1188,'Other Facility Related Costs'!M$6,Dollars!$C$2:$C$1188,'Other Facility Related Costs'!$C20,Dollars!$A$2:$A$1188,LEFT('Other Facility Related Costs'!$C$4,3)) -> 0 | N20: 0 | O20: 0 | P20: 0 | R20: =SUMIFS(Dollars!$G$2:$G$1188,Dollars!$E$2:$E$1188,'Other Facility Related Costs'!R$6,Dollars!$C$2:$C$1188,'Other Facility Related Costs'!$C20,Dollars!$A$2:$A$1188,LEFT('Other Facility Related Costs'!$C$4,3)) -> 0 | S20: =SUMIFS(Dollars!$G$2:$G$1188,Dollars!$E$2:$E$1188,'Other Facility Related Costs'!S$6,Dollars!$C$2:$C$1188,'Other Facility Related Costs'!$C20,Dollars!$A$2:$A$1188,LEFT('Other Facility Related Costs'!$C$4,3)) -> 0 | T20: =SUMIFS(Dollars!$G$2:$G$1188,Dollars!$E$2:$E$1188,'Other Facility Related Costs'!T$6,Dollars!$C$2:$C$1188,'Other Facility Related Costs'!$C20,Dollars!$A$2:$A$1188,LEFT('Other Facility Related Costs'!$C$4,3)) -> 0 | U20: =SUMIFS(Dollars!$G$2:$G$1188,Dollars!$E$2:$E$1188,'Other Facility Related Costs'!U$6,Dollars!$C$2:$C$1188,'Other Facility Related Costs'!$C20,Dollars!$A$2:$A$1188,LEFT('Other Facility Related Costs'!$C$4,3)) -> 0 | V20: =SUMIFS(Dollars!$G$2:$G$1188,Dollars!$E$2:$E$1188,'Other Facility Related Costs'!V$6,Dollars!$C$2:$C$1188,'Other Facility Related Costs'!$C20,Dollars!$A$2:$A$1188,LEFT('Other Facility Related Costs'!$C$4,3)) -> 0 | W20: =SUMIFS(Dollars!$G$2:$G$1188,Dollars!$E$2:$E$1188,'Other Facility Related Costs'!W$6,Dollars!$C$2:$C$1188,'Other Facility Related Costs'!$C20,Dollars!$A$2:$A$1188,LEFT('Other Facility Related Costs'!$C$4,3)) -> 0 | X20: =SUMIFS(Dollars!$G$2:$G$1188,Dollars!$E$2:$E$1188,'Other Facility Related Costs'!X$6,Dollars!$C$2:$C$1188,'Other Facility Related Costs'!$C20,Dollars!$A$2:$A$1188,LEFT('Other Facility Related Costs'!$C$4,3)) -> 0 | Y20: 0 | Z20: 0 | AA20: 0
A21: HIDE | C21: Modular Bldg | D21: =VLOOKUP(LEFT($C$4,3),RSF!$A$3:$AJ$108,MATCH($C21,RSF!$A$3:$AK$3,0),FALSE) -> 0 | G21: =SUMIFS(Dollars!$F$2:$F$1188,Dollars!$E$2:$E$1188,'Other Facility Related Costs'!G$6,Dollars!$C$2:$C$1188,'Other Facility Related Costs'!$C21,Dollars!$A$2:$A$1188,LEFT('Other Facility Related Costs'!$C$4,3)) -> 0 | H21: =SUMIFS(Dollars!$F$2:$F$1188,Dollars!$E$2:$E$1188,'Other Facility Related Costs'!H$6,Dollars!$C$2:$C$1188,'Other Facility Related Costs'!$C21,Dollars!$A$2:$A$1188,LEFT('Other Facility Related Costs'!$C$4,3)) -> 0 | I21: =SUMIFS(Dollars!$F$2:$F$1188,Dollars!$E$2:$E$1188,'Other Facility Related Costs'!I$6,Dollars!$C$2:$C$1188,'Other Facility Related Costs'!$C21,Dollars!$A$2:$A$1188,LEFT('Other Facility Related Costs'!$C$4,3)) -> 0 | J21: =SUMIFS(Dollars!$F$2:$F$1188,Dollars!$E$2:$E$1188,'Other Facility Related Costs'!J$6,Dollars!$C$2:$C$1188,'Other Facility Related Costs'!$C21,Dollars!$A$2:$A$1188,LEFT('Other Facility Related Costs'!$C$4,3)) -> 0 | K21: =SUMIFS(Dollars!$F$2:$F$1188,Dollars!$E$2:$E$1188,'Other Facility Related Costs'!K$6,Dollars!$C$2:$C$1188,'Other Facility Related Costs'!$C21,Dollars!$A$2:$A$1188,LEFT('Other Facility Related Costs'!$C$4,3)) -> 0 | L21: =SUMIFS(Dollars!$F$2:$F$1188,Dollars!$E$2:$E$1188,'Other Facility Related Costs'!L$6,Dollars!$C$2:$C$1188,'Other Facility Related Costs'!$C21,Dollars!$A$2:$A$1188,LEFT('Other Facility Related Costs'!$C$4,3)) -> 0 | M21: =SUMIFS(Dollars!$F$2:$F$1188,Dollars!$E$2:$E$1188,'Other Facility Related Costs'!M$6,Dollars!$C$2:$C$1188,'Other Facility Related Costs'!$C21,Dollars!$A$2:$A$1188,LEFT('Other Facility Related Costs'!$C$4,3)) -> 0 | N21: 0 | O21: 0 | P21: 0 | R21: =SUMIFS(Dollars!$G$2:$G$1188,Dollars!$E$2:$E$1188,'Other Facility Related Costs'!R$6,Dollars!$C$2:$C$1188,'Other Facility Related Costs'!$C21,Dollars!$A$2:$A$1188,LEFT('Other Facility Related Costs'!$C$4,3)) -> 0 | S21: =SUMIFS(Dollars!$G$2:$G$1188,Dollars!$E$2:$E$1188,'Other Facility Related Costs'!S$6,Dollars!$C$2:$C$1188,'Other Facility Related Costs'!$C21,Dollars!$A$2:$A$1188,LEFT('Other Facility Related Costs'!$C$4,3)) -> 0 | T21: =SUMIFS(Dollars!$G$2:$G$1188,Dollars!$E$2:$E$1188,'Other Facility Related Costs'!T$6,Dollars!$C$2:$C$1188,'Other Facility Related Costs'!$C21,Dollars!$A$2:$A$1188,LEFT('Other Facility Related Costs'!$C$4,3)) -> 0 | U21: =SUMIFS(Dollars!$G$2:$G$1188,Dollars!$E$2:$E$1188,'Other Facility Related Costs'!U$6,Dollars!$C$2:$C$1188,'Other Facility Related Costs'!$C21,Dollars!$A$2:$A$1188,LEFT('Other Facility Related Costs'!$C$4,3)) -> 0 | V21: =SUMIFS(Dollars!$G$2:$G$1188,Dollars!$E$2:$E$1188,'Other Facility Related Costs'!V$6,Dollars!$C$2:$C$1188,'Other Facility Related Costs'!$C21,Dollars!$A$2:$A$1188,LEFT('Other Facility Related Costs'!$C$4,3)) -> 0 | W21: =SUMIFS(Dollars!$G$2:$G$1188,Dollars!$E$2:$E$1188,'Other Facility Related Costs'!W$6,Dollars!$C$2:$C$1188,'Other Facility Related Costs'!$C21,Dollars!$A$2:$A$1188,LEFT('Other Facility Related Costs'!$C$4,3)) -> 0 | X21: =SUMIFS(Dollars!$G$2:$G$1188,Dollars!$E$2:$E$1188,'Other Facility Related Costs'!X$6,Dollars!$C$2:$C$1188,'Other Facility Related Costs'!$C21,Dollars!$A$2:$A$1188,LEFT('Other Facility Related Costs'!$C$4,3)) -> 0 | Y21: 0 | Z21: 0 | AA21: 0
A22: HIDE | C22: Isabella Bush | D22: =VLOOKUP(LEFT($C$4,3),RSF!$A$3:$AJ$108,MATCH($C22,RSF!$A$3:$AK$3,0),FALSE) -> 0 | G22: =SUMIFS(Dollars!$F$2:$F$1188,Dollars!$E$2:$E$1188,'Other Facility Related Costs'!G$6,Dollars!$C$2:$C$1188,'Other Facility Related Costs'!$C22,Dollars!$A$2:$A$1188,LEFT('Other Facility Related Costs'!$C$4,3)) -> 0 | H22: =SUMIFS(Dollars!$F$2:$F$1188,Dollars!$E$2:$E$1188,'Other Facility Related Costs'!H$6,Dollars!$C$2:$C$1188,'Other Facility Related Costs'!$C22,Dollars!$A$2:$A$1188,LEFT('Other Facility Related Costs'!$C$4,3)) -> 0 | I22: =SUMIFS(Dollars!$F$2:$F$1188,Dollars!$E$2:$E$1188,'Other Facility Related Costs'!I$6,Dollars!$C$2:$C$1188,'Other Facility Related Costs'!$C22,Dollars!$A$2:$A$1188,LEFT('Other Facility Related Costs'!$C$4,3)) -> 0 | J22: =SUMIFS(Dollars!$F$2:$F$1188,Dollars!$E$2:$E$1188,'Other Facility Related Costs'!J$6,Dollars!$C$2:$C$1188,'Other Facility Related Costs'!$C22,Dollars!$A$2:$A$1188,LEFT('Other Facility Related Costs'!$C$4,3)) -> 0 | K22: =SUMIFS(Dollars!$F$2:$F$1188,Dollars!$E$2:$E$1188,'Other Facility Related Costs'!K$6,Dollars!$C$2:$C$1188,'Other Facility Related Costs'!$C22,Dollars!$A$2:$A$1188,LEFT('Other Facility Related Costs'!$C$4,3)) -> 0 | L22: =SUMIFS(Dollars!$F$2:$F$1188,Dollars!$E$2:$E$1188,'Other Facility Related Costs'!L$6,Dollars!$C$2:$C$1188,'Other Facility Related Costs'!$C22,Dollars!$A$2:$A$1188,LEFT('Other Facility Related Costs'!$C$4,3)) -> 0 | M22: =SUMIFS(Dollars!$F$2:$F$1188,Dollars!$E$2:$E$1188,'Other Facility Related Costs'!M$6,Dollars!$C$2:$C$1188,'Other Facility Related Costs'!$C22,Dollars!$A$2:$A$1188,LEFT('Other Facility Related Costs'!$C$4,3)) -> 0 | N22: 0 | O22: 0 | P22: 0 | R22: =SUMIFS(Dollars!$G$2:$G$1188,Dollars!$E$2:$E$1188,'Other Facility Related Costs'!R$6,Dollars!$C$2:$C$1188,'Other Facility Related Costs'!$C22,Dollars!$A$2:$A$1188,LEFT('Other Facility Related Costs'!$C$4,3)) -> 0 | S22: =SUMIFS(Dollars!$G$2:$G$1188,Dollars!$E$2:$E$1188,'Other Facility Related Costs'!S$6,Dollars!$C$2:$C$1188,'Other Facility Related Costs'!$C22,Dollars!$A$2:$A$1188,LEFT('Other Facility Related Costs'!$C$4,3)) -> 0 | T22: =SUMIFS(Dollars!$G$2:$G$1188,Dollars!$E$2:$E$1188,'Other Facility Related Costs'!T$6,Dollars!$C$2:$C$1188,'Other Facility Related Costs'!$C22,Dollars!$A$2:$A$1188,LEFT('Other Facility Related Costs'!$C$4,3)) -> 0 | U22: =SUMIFS(Dollars!$G$2:$G$1188,Dollars!$E$2:$E$1188,'Other Facility Related Costs'!U$6,Dollars!$C$2:$C$1188,'Other Facility Related Costs'!$C22,Dollars!$A$2:$A$1188,LEFT('Other Facility Related Costs'!$C$4,3)) -> 0 | V22: =SUMIFS(Dollars!$G$2:$G$1188,Dollars!$E$2:$E$1188,'Other Facility Related Costs'!V$6,Dollars!$C$2:$C$1188,'Other Facility Related Costs'!$C22,Dollars!$A$2:$A$1188,LEFT('Other Facility Related Costs'!$C$4,3)) -> 0 | W22: =SUMIFS(Dollars!$G$2:$G$1188,Dollars!$E$2:$E$1188,'Other Facility Related Costs'!W$6,Dollars!$C$2:$C$1188,'Other Facility Related Costs'!$C22,Dollars!$A$2:$A$1188,LEFT('Other Facility Related Costs'!$C$4,3)) -> 0 | X22: =SUMIFS(Dollars!$G$2:$G$1188,Dollars!$E$2:$E$1188,'Other Facility Related Costs'!X$6,Dollars!$C$2:$C$1188,'Other Facility Related Costs'!$C22,Dollars!$A$2:$A$1188,LEFT('Other Facility Related Costs'!$C$4,3)) -> 0 | Y22: 0 | Z22: 0 | AA22: 0
A23: HIDE | C23: 1007 Washington | D23: =VLOOKUP(LEFT($C$4,3),RSF!$A$3:$AJ$108,MATCH($C23,RSF!$A$3:$AK$3,0),FALSE) -> 0 | G23: =SUMIFS(Dollars!$F$2:$F$1188,Dollars!$E$2:$E$1188,'Other Facility Related Costs'!G$6,Dollars!$C$2:$C$1188,'Other Facility Related Costs'!$C23,Dollars!$A$2:$A$1188,LEFT('Other Facility Related Costs'!$C$4,3)) -> 0 | H23: =SUMIFS(Dollars!$F$2:$F$1188,Dollars!$E$2:$E$1188,'Other Facility Related Costs'!H$6,Dollars!$C$2:$C$1188,'Other Facility Related Costs'!$C23,Dollars!$A$2:$A$1188,LEFT('Other Facility Related Costs'!$C$4,3)) -> 0 | I23: =SUMIFS(Dollars!$F$2:$F$1188,Dollars!$E$2:$E$1188,'Other Facility Related Costs'!I$6,Dollars!$C$2:$C$1188,'Other Facility Related Costs'!$C23,Dollars!$A$2:$A$1188,LEFT('Other Facility Related Costs'!$C$4,3)) -> 0 | J23: =SUMIFS(Dollars!$F$2:$F$1188,Dollars!$E$2:$E$1188,'Other Facility Related Costs'!J$6,Dollars!$C$2:$C$1188,'Other Facility Related Costs'!$C23,Dollars!$A$2:$A$1188,LEFT('Other Facility Related Costs'!$C$4,3)) -> 0 | K23: =SUMIFS(Dollars!$F$2:$F$1188,Dollars!$E$2:$E$1188,'Other Facility Related Costs'!K$6,Dollars!$C$2:$C$1188,'Other Facility Related Costs'!$C23,Dollars!$A$2:$A$1188,LEFT('Other Facility Related Costs'!$C$4,3)) -> 0 | L23: =SUMIFS(Dollars!$F$2:$F$1188,Dollars!$E$2:$E$1188,'Other Facility Related Costs'!L$6,Dollars!$C$2:$C$1188,'Other Facility Related Costs'!$C23,Dollars!$A$2:$A$1188,LEFT('Other Facility Related Costs'!$C$4,3)) -> 0 | M23: =SUMIFS(Dollars!$F$2:$F$1188,Dollars!$E$2:$E$1188,'Other Facility Related Costs'!M$6,Dollars!$C$2:$C$1188,'Other Facility Related Costs'!$C23,Dollars!$A$2:$A$1188,LEFT('Other Facility Related Costs'!$C$4,3)) -> 0 | N23: 0 | O23: 0 | P23: 0 | R23: =SUMIFS(Dollars!$G$2:$G$1188,Dollars!$E$2:$E$1188,'Other Facility Related Costs'!R$6,Dollars!$C$2:$C$1188,'Other Facility Related Costs'!$C23,Dollars!$A$2:$A$1188,LEFT('Other Facility Related Costs'!$C$4,3)) -> 0 | S23: =SUMIFS(Dollars!$G$2:$G$1188,Dollars!$E$2:$E$1188,'Other Facility Related Costs'!S$6,Dollars!$C$2:$C$1188,'Other Facility Related Costs'!$C23,Dollars!$A$2:$A$1188,LEFT('Other Facility Related Costs'!$C$4,3)) -> 0 | T23: =SUMIFS(Dollars!$G$2:$G$1188,Dollars!$E$2:$E$1188,'Other Facility Related Costs'!T$6,Dollars!$C$2:$C$1188,'Other Facility Related Costs'!$C23,Dollars!$A$2:$A$1188,LEFT('Other Facility Related Costs'!$C$4,3)) -> 0 | U23: =SUMIFS(Dollars!$G$2:$G$1188,Dollars!$E$2:$E$1188,'Other Facility Related Costs'!U$6,Dollars!$C$2:$C$1188,'Other Facility Related Costs'!$C23,Dollars!$A$2:$A$1188,LEFT('Other Facility Related Costs'!$C$4,3)) -> 0 | V23: =SUMIFS(Dollars!$G$2:$G$1188,Dollars!$E$2:$E$1188,'Other Facility Related Costs'!V$6,Dollars!$C$2:$C$1188,'Other Facility Related Costs'!$C23,Dollars!$A$2:$A$1188,LEFT('Other Facility Related Costs'!$C$4,3)) -> 0 | W23: =SUMIFS(Dollars!$G$2:$G$1188,Dollars!$E$2:$E$1188,'Other Facility Related Costs'!W$6,Dollars!$C$2:$C$1188,'Other Facility Related Costs'!$C23,Dollars!$A$2:$A$1188,LEFT('Other Facility Related Costs'!$C$4,3)) -> 0 | X23: =SUMIFS(Dollars!$G$2:$G$1188,Dollars!$E$2:$E$1188,'Other Facility Related Costs'!X$6,Dollars!$C$2:$C$1188,'Other Facility Related Costs'!$C23,Dollars!$A$2:$A$1188,LEFT('Other Facility Related Costs'!$C$4,3)) -> 0 | Y23: 0 | Z23: 0 | AA23: 0
A24: HIDE | C24: 120 E Union Avenue | D24: =VLOOKUP(LEFT($C$4,3),RSF!$A$3:$AJ$108,MATCH($C24,RSF!$A$3:$AK$3,0),FALSE) -> 0 | G24: =SUMIFS(Dollars!$F$2:$F$1188,Dollars!$E$2:$E$1188,'Other Facility Related Costs'!G$6,Dollars!$C$2:$C$1188,'Other Facility Related Costs'!$C24,Dollars!$A$2:$A$1188,LEFT('Other Facility Related Costs'!$C$4,3)) -> 0 | H24: =SUMIFS(Dollars!$F$2:$F$1188,Dollars!$E$2:$E$1188,'Other Facility Related Costs'!H$6,Dollars!$C$2:$C$1188,'Other Facility Related Costs'!$C24,Dollars!$A$2:$A$1188,LEFT('Other Facility Related Costs'!$C$4,3)) -> 0 | I24: =SUMIFS(Dollars!$F$2:$F$1188,Dollars!$E$2:$E$1188,'Other Facility Related Costs'!I$6,Dollars!$C$2:$C$1188,'Other Facility Related Costs'!$C24,Dollars!$A$2:$A$1188,LEFT('Other Facility Related Costs'!$C$4,3)) -> 0 | J24: =SUMIFS(Dollars!$F$2:$F$1188,Dollars!$E$2:$E$1188,'Other Facility Related Costs'!J$6,Dollars!$C$2:$C$1188,'Other Facility Related Costs'!$C24,Dollars!$A$2:$A$1188,LEFT('Other Facility Related Costs'!$C$4,3)) -> 0 | K24: =SUMIFS(Dollars!$F$2:$F$1188,Dollars!$E$2:$E$1188,'Other Facility Related Costs'!K$6,Dollars!$C$2:$C$1188,'Other Facility Related Costs'!$C24,Dollars!$A$2:$A$1188,LEFT('Other Facility Related Costs'!$C$4,3)) -> 0 | L24: =SUMIFS(Dollars!$F$2:$F$1188,Dollars!$E$2:$E$1188,'Other Facility Related Costs'!L$6,Dollars!$C$2:$C$1188,'Other Facility Related Costs'!$C24,Dollars!$A$2:$A$1188,LEFT('Other Facility Related Costs'!$C$4,3)) -> 0 | M24: =SUMIFS(Dollars!$F$2:$F$1188,Dollars!$E$2:$E$1188,'Other Facility Related Costs'!M$6,Dollars!$C$2:$C$1188,'Other Facility Related Costs'!$C24,Dollars!$A$2:$A$1188,LEFT('Other Facility Related Costs'!$C$4,3)) -> 0 | N24: 0 | O24: 0 | P24: 0 | R24: =SUMIFS(Dollars!$G$2:$G$1188,Dollars!$E$2:$E$1188,'Other Facility Related Costs'!R$6,Dollars!$C$2:$C$1188,'Other Facility Related Costs'!$C24,Dollars!$A$2:$A$1188,LEFT('Other Facility Related Costs'!$C$4,3)) -> 0 | S24: =SUMIFS(Dollars!$G$2:$G$1188,Dollars!$E$2:$E$1188,'Other Facility Related Costs'!S$6,Dollars!$C$2:$C$1188,'Other Facility Related Costs'!$C24,Dollars!$A$2:$A$1188,LEFT('Other Facility Related Costs'!$C$4,3)) -> 0 | T24: =SUMIFS(Dollars!$G$2:$G$1188,Dollars!$E$2:$E$1188,'Other Facility Related Costs'!T$6,Dollars!$C$2:$C$1188,'Other Facility Related Costs'!$C24,Dollars!$A$2:$A$1188,LEFT('Other Facility Related Costs'!$C$4,3)) -> 0 | U24: =SUMIFS(Dollars!$G$2:$G$1188,Dollars!$E$2:$E$1188,'Other Facility Related Costs'!U$6,Dollars!$C$2:$C$1188,'Other Facility Related Costs'!$C24,Dollars!$A$2:$A$1188,LEFT('Other Facility Related Costs'!$C$4,3)) -> 0 | V24: =SUMIFS(Dollars!$G$2:$G$1188,Dollars!$E$2:$E$1188,'Other Facility Related Costs'!V$6,Dollars!$C$2:$C$1188,'Other Facility Related Costs'!$C24,Dollars!$A$2:$A$1188,LEFT('Other Facility Related Costs'!$C$4,3)) -> 0 | W24: =SUMIFS(Dollars!$G$2:$G$1188,Dollars!$E$2:$E$1188,'Other Facility Related Costs'!W$6,Dollars!$C$2:$C$1188,'Other Facility Related Costs'!$C24,Dollars!$A$2:$A$1188,LEFT('Other Facility Related Costs'!$C$4,3)) -> 0 | X24: =SUMIFS(Dollars!$G$2:$G$1188,Dollars!$E$2:$E$1188,'Other Facility Related Costs'!X$6,Dollars!$C$2:$C$1188,'Other Facility Related Costs'!$C24,Dollars!$A$2:$A$1188,LEFT('Other Facility Related Costs'!$C$4,3)) -> 0 | Y24: 0 | Z24: 0 | AA24: 0
A25: HIDE | C25: Capital Court | D25: =VLOOKUP(LEFT($C$4,3),RSF!$A$3:$AJ$108,MATCH($C25,RSF!$A$3:$AK$3,0),FALSE) -> 0 | G25: =SUMIFS(Dollars!$F$2:$F$1188,Dollars!$E$2:$E$1188,'Other Facility Related Costs'!G$6,Dollars!$C$2:$C$1188,'Other Facility Related Costs'!$C25,Dollars!$A$2:$A$1188,LEFT('Other Facility Related Costs'!$C$4,3)) -> 0 | H25: =SUMIFS(Dollars!$F$2:$F$1188,Dollars!$E$2:$E$1188,'Other Facility Related Costs'!H$6,Dollars!$C$2:$C$1188,'Other Facility Related Costs'!$C25,Dollars!$A$2:$A$1188,LEFT('Other Facility Related Costs'!$C$4,3)) -> 0 | I25: =SUMIFS(Dollars!$F$2:$F$1188,Dollars!$E$2:$E$1188,'Other Facility Related Costs'!I$6,Dollars!$C$2:$C$1188,'Other Facility Related Costs'!$C25,Dollars!$A$2:$A$1188,LEFT('Other Facility Related Costs'!$C$4,3)) -> 0 | J25: =SUMIFS(Dollars!$F$2:$F$1188,Dollars!$E$2:$E$1188,'Other Facility Related Costs'!J$6,Dollars!$C$2:$C$1188,'Other Facility Related Costs'!$C25,Dollars!$A$2:$A$1188,LEFT('Other Facility Related Costs'!$C$4,3)) -> 0 | K25: =SUMIFS(Dollars!$F$2:$F$1188,Dollars!$E$2:$E$1188,'Other Facility Related Costs'!K$6,Dollars!$C$2:$C$1188,'Other Facility Related Costs'!$C25,Dollars!$A$2:$A$1188,LEFT('Other Facility Related Costs'!$C$4,3)) -> 0 | L25: =SUMIFS(Dollars!$F$2:$F$1188,Dollars!$E$2:$E$1188,'Other Facility Related Costs'!L$6,Dollars!$C$2:$C$1188,'Other Facility Related Costs'!$C25,Dollars!$A$2:$A$1188,LEFT('Other Facility Related Costs'!$C$4,3)) -> 0 | M25: =SUMIFS(Dollars!$F$2:$F$1188,Dollars!$E$2:$E$1188,'Other Facility Related Costs'!M$6,Dollars!$C$2:$C$1188,'Other Facility Related Costs'!$C25,Dollars!$A$2:$A$1188,LEFT('Other Facility Related Costs'!$C$4,3)) -> 0 | N25: 0 | O25: 0 | P25: 0 | R25: =SUMIFS(Dollars!$G$2:$G$1188,Dollars!$E$2:$E$1188,'Other Facility Related Costs'!R$6,Dollars!$C$2:$C$1188,'Other Facility Related Costs'!$C25,Dollars!$A$2:$A$1188,LEFT('Other Facility Related Costs'!$C$4,3)) -> 0 | S25: =SUMIFS(Dollars!$G$2:$G$1188,Dollars!$E$2:$E$1188,'Other Facility Related Costs'!S$6,Dollars!$C$2:$C$1188,'Other Facility Related Costs'!$C25,Dollars!$A$2:$A$1188,LEFT('Other Facility Related Costs'!$C$4,3)) -> 0 | T25: =SUMIFS(Dollars!$G$2:$G$1188,Dollars!$E$2:$E$1188,'Other Facility Related Costs'!T$6,Dollars!$C$2:$C$1188,'Other Facility Related Costs'!$C25,Dollars!$A$2:$A$1188,LEFT('Other Facility Related Costs'!$C$4,3)) -> 0 | U25: =SUMIFS(Dollars!$G$2:$G$1188,Dollars!$E$2:$E$1188,'Other Facility Related Costs'!U$6,Dollars!$C$2:$C$1188,'Other Facility Related Costs'!$C25,Dollars!$A$2:$A$1188,LEFT('Other Facility Related Costs'!$C$4,3)) -> 0 | V25: =SUMIFS(Dollars!$G$2:$G$1188,Dollars!$E$2:$E$1188,'Other Facility Related Costs'!V$6,Dollars!$C$2:$C$1188,'Other Facility Related Costs'!$C25,Dollars!$A$2:$A$1188,LEFT('Other Facility Related Costs'!$C$4,3)) -> 0 | W25: =SUMIFS(Dollars!$G$2:$G$1188,Dollars!$E$2:$E$1188,'Other Facility Related Costs'!W$6,Dollars!$C$2:$C$1188,'Other Facility Related Costs'!$C25,Dollars!$A$2:$A$1188,LEFT('Other Facility Related Costs'!$C$4,3)) -> 0 | X25: =SUMIFS(Dollars!$G$2:$G$1188,Dollars!$E$2:$E$1188,'Other Facility Related Costs'!X$6,Dollars!$C$2:$C$1188,'Other Facility Related Costs'!$C25,Dollars!$A$2:$A$1188,LEFT('Other Facility Related Costs'!$C$4,3)) -> 0 | Y25: 0 | Z25: 0 | AA25: 0
A26: HIDE | C26: James Dolliver Building | D26: =VLOOKUP(LEFT($C$4,3),RSF!$A$3:$AJ$108,MATCH($C26,RSF!$A$3:$AK$3,0),FALSE) -> 0 | G26: =SUMIFS(Dollars!$F$2:$F$1188,Dollars!$E$2:$E$1188,'Other Facility Related Costs'!G$6,Dollars!$C$2:$C$1188,'Other Facility Related Costs'!$C26,Dollars!$A$2:$A$1188,LEFT('Other Facility Related Costs'!$C$4,3)) -> 0 | H26: =SUMIFS(Dollars!$F$2:$F$1188,Dollars!$E$2:$E$1188,'Other Facility Related Costs'!H$6,Dollars!$C$2:$C$1188,'Other Facility Related Costs'!$C26,Dollars!$A$2:$A$1188,LEFT('Other Facility Related Costs'!$C$4,3)) -> 0 | I26: =SUMIFS(Dollars!$F$2:$F$1188,Dollars!$E$2:$E$1188,'Other Facility Related Costs'!I$6,Dollars!$C$2:$C$1188,'Other Facility Related Costs'!$C26,Dollars!$A$2:$A$1188,LEFT('Other Facility Related Costs'!$C$4,3)) -> 0 | J26: =SUMIFS(Dollars!$F$2:$F$1188,Dollars!$E$2:$E$1188,'Other Facility Related Costs'!J$6,Dollars!$C$2:$C$1188,'Other Facility Related Costs'!$C26,Dollars!$A$2:$A$1188,LEFT('Other Facility Related Costs'!$C$4,3)) -> 0 | K26: =SUMIFS(Dollars!$F$2:$F$1188,Dollars!$E$2:$E$1188,'Other Facility Related Costs'!K$6,Dollars!$C$2:$C$1188,'Other Facility Related Costs'!$C26,Dollars!$A$2:$A$1188,LEFT('Other Facility Related Costs'!$C$4,3)) -> 0 | L26: =SUMIFS(Dollars!$F$2:$F$1188,Dollars!$E$2:$E$1188,'Other Facility Related Costs'!L$6,Dollars!$C$2:$C$1188,'Other Facility Related Costs'!$C26,Dollars!$A$2:$A$1188,LEFT('Other Facility Related Costs'!$C$4,3)) -> 0 | M26: =SUMIFS(Dollars!$F$2:$F$1188,Dollars!$E$2:$E$1188,'Other Facility Related Costs'!M$6,Dollars!$C$2:$C$1188,'Other Facility Related Costs'!$C26,Dollars!$A$2:$A$1188,LEFT('Other Facility Related Costs'!$C$4,3)) -> 0 | N26: 0 | O26: 0 | P26: 0 | R26: =SUMIFS(Dollars!$G$2:$G$1188,Dollars!$E$2:$E$1188,'Other Facility Related Costs'!R$6,Dollars!$C$2:$C$1188,'Other Facility Related Costs'!$C26,Dollars!$A$2:$A$1188,LEFT('Other Facility Related Costs'!$C$4,3)) -> 0 | S26: =SUMIFS(Dollars!$G$2:$G$1188,Dollars!$E$2:$E$1188,'Other Facility Related Costs'!S$6,Dollars!$C$2:$C$1188,'Other Facility Related Costs'!$C26,Dollars!$A$2:$A$1188,LEFT('Other Facility Related Costs'!$C$4,3)) -> 0 | T26: =SUMIFS(Dollars!$G$2:$G$1188,Dollars!$E$2:$E$1188,'Other Facility Related Costs'!T$6,Dollars!$C$2:$C$1188,'Other Facility Related Costs'!$C26,Dollars!$A$2:$A$1188,LEFT('Other Facility Related Costs'!$C$4,3)) -> 0 | U26: =SUMIFS(Dollars!$G$2:$G$1188,Dollars!$E$2:$E$1188,'Other Facility Related Costs'!U$6,Dollars!$C$2:$C$1188,'Other Facility Related Costs'!$C26,Dollars!$A$2:$A$1188,LEFT('Other Facility Related Costs'!$C$4,3)) -> 0 | V26: =SUMIFS(Dollars!$G$2:$G$1188,Dollars!$E$2:$E$1188,'Other Facility Related Costs'!V$6,Dollars!$C$2:$C$1188,'Other Facility Related Costs'!$C26,Dollars!$A$2:$A$1188,LEFT('Other Facility Related Costs'!$C$4,3)) -> 0 | W26: =SUMIFS(Dollars!$G$2:$G$1188,Dollars!$E$2:$E$1188,'Other Facility Related Costs'!W$6,Dollars!$C$2:$C$1188,'Other Facility Related Costs'!$C26,Dollars!$A$2:$A$1188,LEFT('Other Facility Related Costs'!$C$4,3)) -> 0 | X26: =SUMIFS(Dollars!$G$2:$G$1188,Dollars!$E$2:$E$1188,'Other Facility Related Costs'!X$6,Dollars!$C$2:$C$1188,'Other Facility Related Costs'!$C26,Dollars!$A$2:$A$1188,LEFT('Other Facility Related Costs'!$C$4,3)) -> 0 | Y26: 0 | Z26: 0 | AA26: 0
A27: HIDE | C27: Undeveloped Properties | D27: =VLOOKUP(LEFT($C$4,3),RSF!$A$3:$AJ$108,MATCH($C27,RSF!$A$3:$AK$3,0),FALSE) -> 0 | G27: =SUMIFS(Dollars!$F$2:$F$1188,Dollars!$E$2:$E$1188,'Other Facility Related Costs'!G$6,Dollars!$C$2:$C$1188,'Other Facility Related Costs'!$C27,Dollars!$A$2:$A$1188,LEFT('Other Facility Related Costs'!$C$4,3)) -> 0 | H27: =SUMIFS(Dollars!$F$2:$F$1188,Dollars!$E$2:$E$1188,'Other Facility Related Costs'!H$6,Dollars!$C$2:$C$1188,'Other Facility Related Costs'!$C27,Dollars!$A$2:$A$1188,LEFT('Other Facility Related Costs'!$C$4,3)) -> 0 | I27: =SUMIFS(Dollars!$F$2:$F$1188,Dollars!$E$2:$E$1188,'Other Facility Related Costs'!I$6,Dollars!$C$2:$C$1188,'Other Facility Related Costs'!$C27,Dollars!$A$2:$A$1188,LEFT('Other Facility Related Costs'!$C$4,3)) -> 0 | J27: =SUMIFS(Dollars!$F$2:$F$1188,Dollars!$E$2:$E$1188,'Other Facility Related Costs'!J$6,Dollars!$C$2:$C$1188,'Other Facility Related Costs'!$C27,Dollars!$A$2:$A$1188,LEFT('Other Facility Related Costs'!$C$4,3)) -> 0 | K27: =SUMIFS(Dollars!$F$2:$F$1188,Dollars!$E$2:$E$1188,'Other Facility Related Costs'!K$6,Dollars!$C$2:$C$1188,'Other Facility Related Costs'!$C27,Dollars!$A$2:$A$1188,LEFT('Other Facility Related Costs'!$C$4,3)) -> 0 | L27: =SUMIFS(Dollars!$F$2:$F$1188,Dollars!$E$2:$E$1188,'Other Facility Related Costs'!L$6,Dollars!$C$2:$C$1188,'Other Facility Related Costs'!$C27,Dollars!$A$2:$A$1188,LEFT('Other Facility Related Costs'!$C$4,3)) -> 0 | M27: =SUMIFS(Dollars!$F$2:$F$1188,Dollars!$E$2:$E$1188,'Other Facility Related Costs'!M$6,Dollars!$C$2:$C$1188,'Other Facility Related Costs'!$C27,Dollars!$A$2:$A$1188,LEFT('Other Facility Related Costs'!$C$4,3)) -> 0 | N27: 0 | O27: 0 | P27: 0 | R27: =SUMIFS(Dollars!$G$2:$G$1188,Dollars!$E$2:$E$1188,'Other Facility Related Costs'!R$6,Dollars!$C$2:$C$1188,'Other Facility Related Costs'!$C27,Dollars!$A$2:$A$1188,LEFT('Other Facility Related Costs'!$C$4,3)) -> 0 | S27: =SUMIFS(Dollars!$G$2:$G$1188,Dollars!$E$2:$E$1188,'Other Facility Related Costs'!S$6,Dollars!$C$2:$C$1188,'Other Facility Related Costs'!$C27,Dollars!$A$2:$A$1188,LEFT('Other Facility Related Costs'!$C$4,3)) -> 0 | T27: =SUMIFS(Dollars!$G$2:$G$1188,Dollars!$E$2:$E$1188,'Other Facility Related Costs'!T$6,Dollars!$C$2:$C$1188,'Other Facility Related Costs'!$C27,Dollars!$A$2:$A$1188,LEFT('Other Facility Related Costs'!$C$4,3)) -> 0 | U27: =SUMIFS(Dollars!$G$2:$G$1188,Dollars!$E$2:$E$1188,'Other Facility Related Costs'!U$6,Dollars!$C$2:$C$1188,'Other Facility Related Costs'!$C27,Dollars!$A$2:$A$1188,LEFT('Other Facility Related Costs'!$C$4,3)) -> 0 | V27: =SUMIFS(Dollars!$G$2:$G$1188,Dollars!$E$2:$E$1188,'Other Facility Related Costs'!V$6,Dollars!$C$2:$C$1188,'Other Facility Related Costs'!$C27,Dollars!$A$2:$A$1188,LEFT('Other Facility Related Costs'!$C$4,3)) -> 0 | W27: =SUMIFS(Dollars!$G$2:$G$1188,Dollars!$E$2:$E$1188,'Other Facility Related Costs'!W$6,Dollars!$C$2:$C$1188,'Other Facility Related Costs'!$C27,Dollars!$A$2:$A$1188,LEFT('Other Facility Related Costs'!$C$4,3)) -> 0 | X27: =SUMIFS(Dollars!$G$2:$G$1188,Dollars!$E$2:$E$1188,'Other Facility Related Costs'!X$6,Dollars!$C$2:$C$1188,'Other Facility Related Costs'!$C27,Dollars!$A$2:$A$1188,LEFT('Other Facility Related Costs'!$C$4,3)) -> 0 | Y27: 0 | Z27: 0 | AA27: 0
A28: HIDE | C28: 1068 WA Street SE (ST Farm) | D28: =VLOOKUP(LEFT($C$4,3),RSF!$A$3:$AJ$108,MATCH($C28,RSF!$A$3:$AK$3,0),FALSE) -> 0 | G28: =SUMIFS(Dollars!$F$2:$F$1188,Dollars!$E$2:$E$1188,'Other Facility Related Costs'!G$6,Dollars!$C$2:$C$1188,'Other Facility Related Costs'!$C28,Dollars!$A$2:$A$1188,LEFT('Other Facility Related Costs'!$C$4,3)) -> 0 | H28: =SUMIFS(Dollars!$F$2:$F$1188,Dollars!$E$2:$E$1188,'Other Facility Related Costs'!H$6,Dollars!$C$2:$C$1188,'Other Facility Related Costs'!$C28,Dollars!$A$2:$A$1188,LEFT('Other Facility Related Costs'!$C$4,3)) -> 0 | I28: =SUMIFS(Dollars!$F$2:$F$1188,Dollars!$E$2:$E$1188,'Other Facility Related Costs'!I$6,Dollars!$C$2:$C$1188,'Other Facility Related Costs'!$C28,Dollars!$A$2:$A$1188,LEFT('Other Facility Related Costs'!$C$4,3)) -> 0 | J28: =SUMIFS(Dollars!$F$2:$F$1188,Dollars!$E$2:$E$1188,'Other Facility Related Costs'!J$6,Dollars!$C$2:$C$1188,'Other Facility Related Costs'!$C28,Dollars!$A$2:$A$1188,LEFT('Other Facility Related Costs'!$C$4,3)) -> 0 | K28: =SUMIFS(Dollars!$F$2:$F$1188,Dollars!$E$2:$E$1188,'Other Facility Related Costs'!K$6,Dollars!$C$2:$C$1188,'Other Facility Related Costs'!$C28,Dollars!$A$2:$A$1188,LEFT('Other Facility Related Costs'!$C$4,3)) -> 0 | L28: =SUMIFS(Dollars!$F$2:$F$1188,Dollars!$E$2:$E$1188,'Other Facility Related Costs'!L$6,Dollars!$C$2:$C$1188,'Other Facility Related Costs'!$C28,Dollars!$A$2:$A$1188,LEFT('Other Facility Related Costs'!$C$4,3)) -> 0 | M28: =SUMIFS(Dollars!$F$2:$F$1188,Dollars!$E$2:$E$1188,'Other Facility Related Costs'!M$6,Dollars!$C$2:$C$1188,'Other Facility Related Costs'!$C28,Dollars!$A$2:$A$1188,LEFT('Other Facility Related Costs'!$C$4,3)) -> 0 | N28: 0 | O28: 0 | P28: 0 | R28: =SUMIFS(Dollars!$G$2:$G$1188,Dollars!$E$2:$E$1188,'Other Facility Related Costs'!R$6,Dollars!$C$2:$C$1188,'Other Facility Related Costs'!$C28,Dollars!$A$2:$A$1188,LEFT('Other Facility Related Costs'!$C$4,3)) -> 0 | S28: =SUMIFS(Dollars!$G$2:$G$1188,Dollars!$E$2:$E$1188,'Other Facility Related Costs'!S$6,Dollars!$C$2:$C$1188,'Other Facility Related Costs'!$C28,Dollars!$A$2:$A$1188,LEFT('Other Facility Related Costs'!$C$4,3)) -> 0 | T28: =SUMIFS(Dollars!$G$2:$G$1188,Dollars!$E$2:$E$1188,'Other Facility Related Costs'!T$6,Dollars!$C$2:$C$1188,'Other Facility Related Costs'!$C28,Dollars!$A$2:$A$1188,LEFT('Other Facility Related Costs'!$C$4,3)) -> 0 | U28: =SUMIFS(Dollars!$G$2:$G$1188,Dollars!$E$2:$E$1188,'Other Facility Related Costs'!U$6,Dollars!$C$2:$C$1188,'Other Facility Related Costs'!$C28,Dollars!$A$2:$A$1188,LEFT('Other Facility Related Costs'!$C$4,3)) -> 0 | V28: =SUMIFS(Dollars!$G$2:$G$1188,Dollars!$E$2:$E$1188,'Other Facility Related Costs'!V$6,Dollars!$C$2:$C$1188,'Other Facility Related Costs'!$C28,Dollars!$A$2:$A$1188,LEFT('Other Facility Related Costs'!$C$4,3)) -> 0 | W28: =SUMIFS(Dollars!$G$2:$G$1188,Dollars!$E$2:$E$1188,'Other Facility Related Costs'!W$6,Dollars!$C$2:$C$1188,'Other Facility Related Costs'!$C28,Dollars!$A$2:$A$1188,LEFT('Other Facility Related Costs'!$C$4,3)) -> 0 | X28: =SUMIFS(Dollars!$G$2:$G$1188,Dollars!$E$2:$E$1188,'Other Facility Related Costs'!X$6,Dollars!$C$2:$C$1188,'Other Facility Related Costs'!$C28,Dollars!$A$2:$A$1188,LEFT('Other Facility Related Costs'!$C$4,3)) -> 0 | Y28: 0 | Z28: 0 | AA28: 0
A29: HIDE | C29: 232 Perry Street | D29: =VLOOKUP(LEFT($C$4,3),RSF!$A$3:$AJ$108,MATCH($C29,RSF!$A$3:$AK$3,0),FALSE) -> 0 | G29: =SUMIFS(Dollars!$F$2:$F$1188,Dollars!$E$2:$E$1188,'Other Facility Related Costs'!G$6,Dollars!$C$2:$C$1188,'Other Facility Related Costs'!$C29,Dollars!$A$2:$A$1188,LEFT('Other Facility Related Costs'!$C$4,3)) -> 0 | H29: =SUMIFS(Dollars!$F$2:$F$1188,Dollars!$E$2:$E$1188,'Other Facility Related Costs'!H$6,Dollars!$C$2:$C$1188,'Other Facility Related Costs'!$C29,Dollars!$A$2:$A$1188,LEFT('Other Facility Related Costs'!$C$4,3)) -> 0 | I29: =SUMIFS(Dollars!$F$2:$F$1188,Dollars!$E$2:$E$1188,'Other Facility Related Costs'!I$6,Dollars!$C$2:$C$1188,'Other Facility Related Costs'!$C29,Dollars!$A$2:$A$1188,LEFT('Other Facility Related Costs'!$C$4,3)) -> 0 | J29: =SUMIFS(Dollars!$F$2:$F$1188,Dollars!$E$2:$E$1188,'Other Facility Related Costs'!J$6,Dollars!$C$2:$C$1188,'Other Facility Related Costs'!$C29,Dollars!$A$2:$A$1188,LEFT('Other Facility Related Costs'!$C$4,3)) -> 0 | K29: =SUMIFS(Dollars!$F$2:$F$1188,Dollars!$E$2:$E$1188,'Other Facility Related Costs'!K$6,Dollars!$C$2:$C$1188,'Other Facility Related Costs'!$C29,Dollars!$A$2:$A$1188,LEFT('Other Facility Related Costs'!$C$4,3)) -> 0 | L29: =SUMIFS(Dollars!$F$2:$F$1188,Dollars!$E$2:$E$1188,'Other Facility Related Costs'!L$6,Dollars!$C$2:$C$1188,'Other Facility Related Costs'!$C29,Dollars!$A$2:$A$1188,LEFT('Other Facility Related Costs'!$C$4,3)) -> 0 | M29: =SUMIFS(Dollars!$F$2:$F$1188,Dollars!$E$2:$E$1188,'Other Facility Related Costs'!M$6,Dollars!$C$2:$C$1188,'Other Facility Related Costs'!$C29,Dollars!$A$2:$A$1188,LEFT('Other Facility Related Costs'!$C$4,3)) -> 0 | N29: 0 | O29: 0 | P29: 0 | R29: =SUMIFS(Dollars!$G$2:$G$1188,Dollars!$E$2:$E$1188,'Other Facility Related Costs'!R$6,Dollars!$C$2:$C$1188,'Other Facility Related Costs'!$C29,Dollars!$A$2:$A$1188,LEFT('Other Facility Related Costs'!$C$4,3)) -> 0 | S29: =SUMIFS(Dollars!$G$2:$G$1188,Dollars!$E$2:$E$1188,'Other Facility Related Costs'!S$6,Dollars!$C$2:$C$1188,'Other Facility Related Costs'!$C29,Dollars!$A$2:$A$1188,LEFT('Other Facility Related Costs'!$C$4,3)) -> 0 | T29: =SUMIFS(Dollars!$G$2:$G$1188,Dollars!$E$2:$E$1188,'Other Facility Related Costs'!T$6,Dollars!$C$2:$C$1188,'Other Facility Related Costs'!$C29,Dollars!$A$2:$A$1188,LEFT('Other Facility Related Costs'!$C$4,3)) -> 0 | U29: =SUMIFS(Dollars!$G$2:$G$1188,Dollars!$E$2:$E$1188,'Other Facility Related Costs'!U$6,Dollars!$C$2:$C$1188,'Other Facility Related Costs'!$C29,Dollars!$A$2:$A$1188,LEFT('Other Facility Related Costs'!$C$4,3)) -> 0 | V29: =SUMIFS(Dollars!$G$2:$G$1188,Dollars!$E$2:$E$1188,'Other Facility Related Costs'!V$6,Dollars!$C$2:$C$1188,'Other Facility Related Costs'!$C29,Dollars!$A$2:$A$1188,LEFT('Other Facility Related Costs'!$C$4,3)) -> 0 | W29: =SUMIFS(Dollars!$G$2:$G$1188,Dollars!$E$2:$E$1188,'Other Facility Related Costs'!W$6,Dollars!$C$2:$C$1188,'Other Facility Related Costs'!$C29,Dollars!$A$2:$A$1188,LEFT('Other Facility Related Costs'!$C$4,3)) -> 0 | X29: =SUMIFS(Dollars!$G$2:$G$1188,Dollars!$E$2:$E$1188,'Other Facility Related Costs'!X$6,Dollars!$C$2:$C$1188,'Other Facility Related Costs'!$C29,Dollars!$A$2:$A$1188,LEFT('Other Facility Related Costs'!$C$4,3)) -> 0 | Y29: 0 | Z29: 0 | AA29: 0
A30: HIDE | C30: 208 11th Avenue SE (Pro Arts) | D30: =VLOOKUP(LEFT($C$4,3),RSF!$A$3:$AJ$108,MATCH($C30,RSF!$A$3:$AK$3,0),FALSE) -> 0 | G30: =SUMIFS(Dollars!$F$2:$F$1188,Dollars!$E$2:$E$1188,'Other Facility Related Costs'!G$6,Dollars!$C$2:$C$1188,'Other Facility Related Costs'!$C30,Dollars!$A$2:$A$1188,LEFT('Other Facility Related Costs'!$C$4,3)) -> 0 | H30: =SUMIFS(Dollars!$F$2:$F$1188,Dollars!$E$2:$E$1188,'Other Facility Related Costs'!H$6,Dollars!$C$2:$C$1188,'Other Facility Related Costs'!$C30,Dollars!$A$2:$A$1188,LEFT('Other Facility Related Costs'!$C$4,3)) -> 0 | I30: =SUMIFS(Dollars!$F$2:$F$1188,Dollars!$E$2:$E$1188,'Other Facility Related Costs'!I$6,Dollars!$C$2:$C$1188,'Other Facility Related Costs'!$C30,Dollars!$A$2:$A$1188,LEFT('Other Facility Related Costs'!$C$4,3)) -> 0 | J30: =SUMIFS(Dollars!$F$2:$F$1188,Dollars!$E$2:$E$1188,'Other Facility Related Costs'!J$6,Dollars!$C$2:$C$1188,'Other Facility Related Costs'!$C30,Dollars!$A$2:$A$1188,LEFT('Other Facility Related Costs'!$C$4,3)) -> 0 | K30: =SUMIFS(Dollars!$F$2:$F$1188,Dollars!$E$2:$E$1188,'Other Facility Related Costs'!K$6,Dollars!$C$2:$C$1188,'Other Facility Related Costs'!$C30,Dollars!$A$2:$A$1188,LEFT('Other Facility Related Costs'!$C$4,3)) -> 0 | L30: =SUMIFS(Dollars!$F$2:$F$1188,Dollars!$E$2:$E$1188,'Other Facility Related Costs'!L$6,Dollars!$C$2:$C$1188,'Other Facility Related Costs'!$C30,Dollars!$A$2:$A$1188,LEFT('Other Facility Related Costs'!$C$4,3)) -> 0 | M30: =SUMIFS(Dollars!$F$2:$F$1188,Dollars!$E$2:$E$1188,'Other Facility Related Costs'!M$6,Dollars!$C$2:$C$1188,'Other Facility Related Costs'!$C30,Dollars!$A$2:$A$1188,LEFT('Other Facility Related Costs'!$C$4,3)) -> 0 | N30: 0 | O30: 0 | P30: 0 | R30: =SUMIFS(Dollars!$G$2:$G$1188,Dollars!$E$2:$E$1188,'Other Facility Related Costs'!R$6,Dollars!$C$2:$C$1188,'Other Facility Related Costs'!$C30,Dollars!$A$2:$A$1188,LEFT('Other Facility Related Costs'!$C$4,3)) -> 0 | S30: =SUMIFS(Dollars!$G$2:$G$1188,Dollars!$E$2:$E$1188,'Other Facility Related Costs'!S$6,Dollars!$C$2:$C$1188,'Other Facility Related Costs'!$C30,Dollars!$A$2:$A$1188,LEFT('Other Facility Related Costs'!$C$4,3)) -> 0 | T30: =SUMIFS(Dollars!$G$2:$G$1188,Dollars!$E$2:$E$1188,'Other Facility Related Costs'!T$6,Dollars!$C$2:$C$1188,'Other Facility Related Costs'!$C30,Dollars!$A$2:$A$1188,LEFT('Other Facility Related Costs'!$C$4,3)) -> 0 | U30: =SUMIFS(Dollars!$G$2:$G$1188,Dollars!$E$2:$E$1188,'Other Facility Related Costs'!U$6,Dollars!$C$2:$C$1188,'Other Facility Related Costs'!$C30,Dollars!$A$2:$A$1188,LEFT('Other Facility Related Costs'!$C$4,3)) -> 0 | V30: =SUMIFS(Dollars!$G$2:$G$1188,Dollars!$E$2:$E$1188,'Other Facility Related Costs'!V$6,Dollars!$C$2:$C$1188,'Other Facility Related Costs'!$C30,Dollars!$A$2:$A$1188,LEFT('Other Facility Related Costs'!$C$4,3)) -> 0 | W30: =SUMIFS(Dollars!$G$2:$G$1188,Dollars!$E$2:$E$1188,'Other Facility Related Costs'!W$6,Dollars!$C$2:$C$1188,'Other Facility Related Costs'!$C30,Dollars!$A$2:$A$1188,LEFT('Other Facility Related Costs'!$C$4,3)) -> 0 | X30: =SUMIFS(Dollars!$G$2:$G$1188,Dollars!$E$2:$E$1188,'Other Facility Related Costs'!X$6,Dollars!$C$2:$C$1188,'Other Facility Related Costs'!$C30,Dollars!$A$2:$A$1188,LEFT('Other Facility Related Costs'!$C$4,3)) -> 0 | Y30: 0 | Z30: 0 | AA30: 0
A31: HIDE | C31: Press Houses Ayer(White); Carlyon(Blue) | D31: =VLOOKUP(LEFT($C$4,3),RSF!$A$3:$AJ$108,MATCH($C31,RSF!$A$3:$AK$3,0),FALSE) -> 0 | G31: =SUMIFS(Dollars!$F$2:$F$1188,Dollars!$E$2:$E$1188,'Other Facility Related Costs'!G$6,Dollars!$C$2:$C$1188,'Other Facility Related Costs'!$C31,Dollars!$A$2:$A$1188,LEFT('Other Facility Related Costs'!$C$4,3)) -> 0 | H31: =SUMIFS(Dollars!$F$2:$F$1188,Dollars!$E$2:$E$1188,'Other Facility Related Costs'!H$6,Dollars!$C$2:$C$1188,'Other Facility Related Costs'!$C31,Dollars!$A$2:$A$1188,LEFT('Other Facility Related Costs'!$C$4,3)) -> 0 | I31: =SUMIFS(Dollars!$F$2:$F$1188,Dollars!$E$2:$E$1188,'Other Facility Related Costs'!I$6,Dollars!$C$2:$C$1188,'Other Facility Related Costs'!$C31,Dollars!$A$2:$A$1188,LEFT('Other Facility Related Costs'!$C$4,3)) -> 0 | J31: =SUMIFS(Dollars!$F$2:$F$1188,Dollars!$E$2:$E$1188,'Other Facility Related Costs'!J$6,Dollars!$C$2:$C$1188,'Other Facility Related Costs'!$C31,Dollars!$A$2:$A$1188,LEFT('Other Facility Related Costs'!$C$4,3)) -> 0 | K31: =SUMIFS(Dollars!$F$2:$F$1188,Dollars!$E$2:$E$1188,'Other Facility Related Costs'!K$6,Dollars!$C$2:$C$1188,'Other Facility Related Costs'!$C31,Dollars!$A$2:$A$1188,LEFT('Other Facility Related Costs'!$C$4,3)) -> 0 | L31: =SUMIFS(Dollars!$F$2:$F$1188,Dollars!$E$2:$E$1188,'Other Facility Related Costs'!L$6,Dollars!$C$2:$C$1188,'Other Facility Related Costs'!$C31,Dollars!$A$2:$A$1188,LEFT('Other Facility Related Costs'!$C$4,3)) -> 0 | M31: =SUMIFS(Dollars!$F$2:$F$1188,Dollars!$E$2:$E$1188,'Other Facility Related Costs'!M$6,Dollars!$C$2:$C$1188,'Other Facility Related Costs'!$C31,Dollars!$A$2:$A$1188,LEFT('Other Facility Related Costs'!$C$4,3)) -> 0 | N31: 0 | O31: 0 | P31: 0 | R31: =SUMIFS(Dollars!$G$2:$G$1188,Dollars!$E$2:$E$1188,'Other Facility Related Costs'!R$6,Dollars!$C$2:$C$1188,'Other Facility Related Costs'!$C31,Dollars!$A$2:$A$1188,LEFT('Other Facility Related Costs'!$C$4,3)) -> 0 | S31: =SUMIFS(Dollars!$G$2:$G$1188,Dollars!$E$2:$E$1188,'Other Facility Related Costs'!S$6,Dollars!$C$2:$C$1188,'Other Facility Related Costs'!$C31,Dollars!$A$2:$A$1188,LEFT('Other Facility Related Costs'!$C$4,3)) -> 0 | T31: =SUMIFS(Dollars!$G$2:$G$1188,Dollars!$E$2:$E$1188,'Other Facility Related Costs'!T$6,Dollars!$C$2:$C$1188,'Other Facility Related Costs'!$C31,Dollars!$A$2:$A$1188,LEFT('Other Facility Related Costs'!$C$4,3)) -> 0 | U31: =SUMIFS(Dollars!$G$2:$G$1188,Dollars!$E$2:$E$1188,'Other Facility Related Costs'!U$6,Dollars!$C$2:$C$1188,'Other Facility Related Costs'!$C31,Dollars!$A$2:$A$1188,LEFT('Other Facility Related Costs'!$C$4,3)) -> 0 | V31: =SUMIFS(Dollars!$G$2:$G$1188,Dollars!$E$2:$E$1188,'Other Facility Related Costs'!V$6,Dollars!$C$2:$C$1188,'Other Facility Related Costs'!$C31,Dollars!$A$2:$A$1188,LEFT('Other Facility Related Costs'!$C$4,3)) -> 0 | W31: =SUMIFS(Dollars!$G$2:$G$1188,Dollars!$E$2:$E$1188,'Other Facility Related Costs'!W$6,Dollars!$C$2:$C$1188,'Other Facility Related Costs'!$C31,Dollars!$A$2:$A$1188,LEFT('Other Facility Related Costs'!$C$4,3)) -> 0 | X31: =SUMIFS(Dollars!$G$2:$G$1188,Dollars!$E$2:$E$1188,'Other Facility Related Costs'!X$6,Dollars!$C$2:$C$1188,'Other Facility Related Costs'!$C31,Dollars!$A$2:$A$1188,LEFT('Other Facility Related Costs'!$C$4,3)) -> 0 | Y31: 0 | Z31: 0 | AA31: 0
A32: HIDE | C32: Visitor Center | D32: =VLOOKUP(LEFT($C$4,3),RSF!$A$3:$AJ$108,MATCH($C32,RSF!$A$3:$AK$3,0),FALSE) -> 0 | G32: =SUMIFS(Dollars!$F$2:$F$1188,Dollars!$E$2:$E$1188,'Other Facility Related Costs'!G$6,Dollars!$C$2:$C$1188,'Other Facility Related Costs'!$C32,Dollars!$A$2:$A$1188,LEFT('Other Facility Related Costs'!$C$4,3)) -> 0 | H32: =SUMIFS(Dollars!$F$2:$F$1188,Dollars!$E$2:$E$1188,'Other Facility Related Costs'!H$6,Dollars!$C$2:$C$1188,'Other Facility Related Costs'!$C32,Dollars!$A$2:$A$1188,LEFT('Other Facility Related Costs'!$C$4,3)) -> 0 | I32: =SUMIFS(Dollars!$F$2:$F$1188,Dollars!$E$2:$E$1188,'Other Facility Related Costs'!I$6,Dollars!$C$2:$C$1188,'Other Facility Related Costs'!$C32,Dollars!$A$2:$A$1188,LEFT('Other Facility Related Costs'!$C$4,3)) -> 0 | J32: =SUMIFS(Dollars!$F$2:$F$1188,Dollars!$E$2:$E$1188,'Other Facility Related Costs'!J$6,Dollars!$C$2:$C$1188,'Other Facility Related Costs'!$C32,Dollars!$A$2:$A$1188,LEFT('Other Facility Related Costs'!$C$4,3)) -> 0 | K32: =SUMIFS(Dollars!$F$2:$F$1188,Dollars!$E$2:$E$1188,'Other Facility Related Costs'!K$6,Dollars!$C$2:$C$1188,'Other Facility Related Costs'!$C32,Dollars!$A$2:$A$1188,LEFT('Other Facility Related Costs'!$C$4,3)) -> 0 | L32: =SUMIFS(Dollars!$F$2:$F$1188,Dollars!$E$2:$E$1188,'Other Facility Related Costs'!L$6,Dollars!$C$2:$C$1188,'Other Facility Related Costs'!$C32,Dollars!$A$2:$A$1188,LEFT('Other Facility Related Costs'!$C$4,3)) -> 0 | M32: =SUMIFS(Dollars!$F$2:$F$1188,Dollars!$E$2:$E$1188,'Other Facility Related Costs'!M$6,Dollars!$C$2:$C$1188,'Other Facility Related Costs'!$C32,Dollars!$A$2:$A$1188,LEFT('Other Facility Related Costs'!$C$4,3)) -> 0 | N32: 0 | O32: 0 | P32: 0 | R32: =SUMIFS(Dollars!$G$2:$G$1188,Dollars!$E$2:$E$1188,'Other Facility Related Costs'!R$6,Dollars!$C$2:$C$1188,'Other Facility Related Costs'!$C32,Dollars!$A$2:$A$1188,LEFT('Other Facility Related Costs'!$C$4,3)) -> 0 | S32: =SUMIFS(Dollars!$G$2:$G$1188,Dollars!$E$2:$E$1188,'Other Facility Related Costs'!S$6,Dollars!$C$2:$C$1188,'Other Facility Related Costs'!$C32,Dollars!$A$2:$A$1188,LEFT('Other Facility Related Costs'!$C$4,3)) -> 0 | T32: =SUMIFS(Dollars!$G$2:$G$1188,Dollars!$E$2:$E$1188,'Other Facility Related Costs'!T$6,Dollars!$C$2:$C$1188,'Other Facility Related Costs'!$C32,Dollars!$A$2:$A$1188,LEFT('Other Facility Related Costs'!$C$4,3)) -> 0 | U32: =SUMIFS(Dollars!$G$2:$G$1188,Dollars!$E$2:$E$1188,'Other Facility Related Costs'!U$6,Dollars!$C$2:$C$1188,'Other Facility Related Costs'!$C32,Dollars!$A$2:$A$1188,LEFT('Other Facility Related Costs'!$C$4,3)) -> 0 | V32: =SUMIFS(Dollars!$G$2:$G$1188,Dollars!$E$2:$E$1188,'Other Facility Related Costs'!V$6,Dollars!$C$2:$C$1188,'Other Facility Related Costs'!$C32,Dollars!$A$2:$A$1188,LEFT('Other Facility Related Costs'!$C$4,3)) -> 0 | W32: =SUMIFS(Dollars!$G$2:$G$1188,Dollars!$E$2:$E$1188,'Other Facility Related Costs'!W$6,Dollars!$C$2:$C$1188,'Other Facility Related Costs'!$C32,Dollars!$A$2:$A$1188,LEFT('Other Facility Related Costs'!$C$4,3)) -> 0 | X32: =SUMIFS(Dollars!$G$2:$G$1188,Dollars!$E$2:$E$1188,'Other Facility Related Costs'!X$6,Dollars!$C$2:$C$1188,'Other Facility Related Costs'!$C32,Dollars!$A$2:$A$1188,LEFT('Other Facility Related Costs'!$C$4,3)) -> 0 | Y32: 0 | Z32: 0 | AA32: 0
A33: HIDE | C33: Helen Sommers | D33: =VLOOKUP(LEFT($C$4,3),RSF!$A$3:$AJ$108,MATCH($C33,RSF!$A$3:$AK$3,0),FALSE) -> 0 | G33: =SUMIFS(Dollars!$F$2:$F$1188,Dollars!$E$2:$E$1188,'Other Facility Related Costs'!G$6,Dollars!$C$2:$C$1188,'Other Facility Related Costs'!$C33,Dollars!$A$2:$A$1188,LEFT('Other Facility Related Costs'!$C$4,3)) -> 0 | H33: =SUMIFS(Dollars!$F$2:$F$1188,Dollars!$E$2:$E$1188,'Other Facility Related Costs'!H$6,Dollars!$C$2:$C$1188,'Other Facility Related Costs'!$C33,Dollars!$A$2:$A$1188,LEFT('Other Facility Related Costs'!$C$4,3)) -> 0 | I33: =SUMIFS(Dollars!$F$2:$F$1188,Dollars!$E$2:$E$1188,'Other Facility Related Costs'!I$6,Dollars!$C$2:$C$1188,'Other Facility Related Costs'!$C33,Dollars!$A$2:$A$1188,LEFT('Other Facility Related Costs'!$C$4,3)) -> 0 | J33: =SUMIFS(Dollars!$F$2:$F$1188,Dollars!$E$2:$E$1188,'Other Facility Related Costs'!J$6,Dollars!$C$2:$C$1188,'Other Facility Related Costs'!$C33,Dollars!$A$2:$A$1188,LEFT('Other Facility Related Costs'!$C$4,3)) -> 0 | K33: =SUMIFS(Dollars!$F$2:$F$1188,Dollars!$E$2:$E$1188,'Other Facility Related Costs'!K$6,Dollars!$C$2:$C$1188,'Other Facility Related Costs'!$C33,Dollars!$A$2:$A$1188,LEFT('Other Facility Related Costs'!$C$4,3)) -> 0 | L33: =SUMIFS(Dollars!$F$2:$F$1188,Dollars!$E$2:$E$1188,'Other Facility Related Costs'!L$6,Dollars!$C$2:$C$1188,'Other Facility Related Costs'!$C33,Dollars!$A$2:$A$1188,LEFT('Other Facility Related Costs'!$C$4,3)) -> 0 | M33: =SUMIFS(Dollars!$F$2:$F$1188,Dollars!$E$2:$E$1188,'Other Facility Related Costs'!M$6,Dollars!$C$2:$C$1188,'Other Facility Related Costs'!$C33,Dollars!$A$2:$A$1188,LEFT('Other Facility Related Costs'!$C$4,3)) -> 0 | N33: 0 | O33: 0 | P33: 0 | R33: =SUMIFS(Dollars!$G$2:$G$1188,Dollars!$E$2:$E$1188,'Other Facility Related Costs'!R$6,Dollars!$C$2:$C$1188,'Other Facility Related Costs'!$C33,Dollars!$A$2:$A$1188,LEFT('Other Facility Related Costs'!$C$4,3)) -> 0 | S33: =SUMIFS(Dollars!$G$2:$G$1188,Dollars!$E$2:$E$1188,'Other Facility Related Costs'!S$6,Dollars!$C$2:$C$1188,'Other Facility Related Costs'!$C33,Dollars!$A$2:$A$1188,LEFT('Other Facility Related Costs'!$C$4,3)) -> 0 | T33: =SUMIFS(Dollars!$G$2:$G$1188,Dollars!$E$2:$E$1188,'Other Facility Related Costs'!T$6,Dollars!$C$2:$C$1188,'Other Facility Related Costs'!$C33,Dollars!$A$2:$A$1188,LEFT('Other Facility Related Costs'!$C$4,3)) -> 0 | U33: =SUMIFS(Dollars!$G$2:$G$1188,Dollars!$E$2:$E$1188,'Other Facility Related Costs'!U$6,Dollars!$C$2:$C$1188,'Other Facility Related Costs'!$C33,Dollars!$A$2:$A$1188,LEFT('Other Facility Related Costs'!$C$4,3)) -> 0 | V33: =SUMIFS(Dollars!$G$2:$G$1188,Dollars!$E$2:$E$1188,'Other Facility Related Costs'!V$6,Dollars!$C$2:$C$1188,'Other Facility Related Costs'!$C33,Dollars!$A$2:$A$1188,LEFT('Other Facility Related Costs'!$C$4,3)) -> 0 | W33: =SUMIFS(Dollars!$G$2:$G$1188,Dollars!$E$2:$E$1188,'Other Facility Related Costs'!W$6,Dollars!$C$2:$C$1188,'Other Facility Related Costs'!$C33,Dollars!$A$2:$A$1188,LEFT('Other Facility Related Costs'!$C$4,3)) -> 0 | X33: =SUMIFS(Dollars!$G$2:$G$1188,Dollars!$E$2:$E$1188,'Other Facility Related Costs'!X$6,Dollars!$C$2:$C$1188,'Other Facility Related Costs'!$C33,Dollars!$A$2:$A$1188,LEFT('Other Facility Related Costs'!$C$4,3)) -> 0 | Y33: 0 | Z33: 0 | AA33: 0
A34: HIDE | C34: Kelso Building | D34: =VLOOKUP(LEFT($C$4,3),RSF!$A$3:$AJ$108,MATCH($C34,RSF!$A$3:$AK$3,0),FALSE) -> 0 | G34: =SUMIFS(Dollars!$F$2:$F$1188,Dollars!$E$2:$E$1188,'Other Facility Related Costs'!G$6,Dollars!$C$2:$C$1188,'Other Facility Related Costs'!$C34,Dollars!$A$2:$A$1188,LEFT('Other Facility Related Costs'!$C$4,3)) -> 0 | H34: =SUMIFS(Dollars!$F$2:$F$1188,Dollars!$E$2:$E$1188,'Other Facility Related Costs'!H$6,Dollars!$C$2:$C$1188,'Other Facility Related Costs'!$C34,Dollars!$A$2:$A$1188,LEFT('Other Facility Related Costs'!$C$4,3)) -> 0 | I34: =SUMIFS(Dollars!$F$2:$F$1188,Dollars!$E$2:$E$1188,'Other Facility Related Costs'!I$6,Dollars!$C$2:$C$1188,'Other Facility Related Costs'!$C34,Dollars!$A$2:$A$1188,LEFT('Other Facility Related Costs'!$C$4,3)) -> 0 | J34: =SUMIFS(Dollars!$F$2:$F$1188,Dollars!$E$2:$E$1188,'Other Facility Related Costs'!J$6,Dollars!$C$2:$C$1188,'Other Facility Related Costs'!$C34,Dollars!$A$2:$A$1188,LEFT('Other Facility Related Costs'!$C$4,3)) -> 0 | K34: =SUMIFS(Dollars!$F$2:$F$1188,Dollars!$E$2:$E$1188,'Other Facility Related Costs'!K$6,Dollars!$C$2:$C$1188,'Other Facility Related Costs'!$C34,Dollars!$A$2:$A$1188,LEFT('Other Facility Related Costs'!$C$4,3)) -> 0 | L34: =SUMIFS(Dollars!$F$2:$F$1188,Dollars!$E$2:$E$1188,'Other Facility Related Costs'!L$6,Dollars!$C$2:$C$1188,'Other Facility Related Costs'!$C34,Dollars!$A$2:$A$1188,LEFT('Other Facility Related Costs'!$C$4,3)) -> 0 | M34: =SUMIFS(Dollars!$F$2:$F$1188,Dollars!$E$2:$E$1188,'Other Facility Related Costs'!M$6,Dollars!$C$2:$C$1188,'Other Facility Related Costs'!$C34,Dollars!$A$2:$A$1188,LEFT('Other Facility Related Costs'!$C$4,3)) -> 0 | N34: 0 | O34: 0 | P34: 0 | R34: =SUMIFS(Dollars!$G$2:$G$1188,Dollars!$E$2:$E$1188,'Other Facility Related Costs'!R$6,Dollars!$C$2:$C$1188,'Other Facility Related Costs'!$C34,Dollars!$A$2:$A$1188,LEFT('Other Facility Related Costs'!$C$4,3)) -> 0 | S34: =SUMIFS(Dollars!$G$2:$G$1188,Dollars!$E$2:$E$1188,'Other Facility Related Costs'!S$6,Dollars!$C$2:$C$1188,'Other Facility Related Costs'!$C34,Dollars!$A$2:$A$1188,LEFT('Other Facility Related Costs'!$C$4,3)) -> 0 | T34: =SUMIFS(Dollars!$G$2:$G$1188,Dollars!$E$2:$E$1188,'Other Facility Related Costs'!T$6,Dollars!$C$2:$C$1188,'Other Facility Related Costs'!$C34,Dollars!$A$2:$A$1188,LEFT('Other Facility Related Costs'!$C$4,3)) -> 0 | U34: =SUMIFS(Dollars!$G$2:$G$1188,Dollars!$E$2:$E$1188,'Other Facility Related Costs'!U$6,Dollars!$C$2:$C$1188,'Other Facility Related Costs'!$C34,Dollars!$A$2:$A$1188,LEFT('Other Facility Related Costs'!$C$4,3)) -> 0 | V34: =SUMIFS(Dollars!$G$2:$G$1188,Dollars!$E$2:$E$1188,'Other Facility Related Costs'!V$6,Dollars!$C$2:$C$1188,'Other Facility Related Costs'!$C34,Dollars!$A$2:$A$1188,LEFT('Other Facility Related Costs'!$C$4,3)) -> 0 | W34: =SUMIFS(Dollars!$G$2:$G$1188,Dollars!$E$2:$E$1188,'Other Facility Related Costs'!W$6,Dollars!$C$2:$C$1188,'Other Facility Related Costs'!$C34,Dollars!$A$2:$A$1188,LEFT('Other Facility Related Costs'!$C$4,3)) -> 0 | X34: =SUMIFS(Dollars!$G$2:$G$1188,Dollars!$E$2:$E$1188,'Other Facility Related Costs'!X$6,Dollars!$C$2:$C$1188,'Other Facility Related Costs'!$C34,Dollars!$A$2:$A$1188,LEFT('Other Facility Related Costs'!$C$4,3)) -> 0 | Y34: 0 | Z34: 0 | AA34: 0
A35: HIDE | C35: Yakima Building | D35: =VLOOKUP(LEFT($C$4,3),RSF!$A$3:$AJ$108,MATCH($C35,RSF!$A$3:$AK$3,0),FALSE) -> 0 | G35: =SUMIFS(Dollars!$F$2:$F$1188,Dollars!$E$2:$E$1188,'Other Facility Related Costs'!G$6,Dollars!$C$2:$C$1188,'Other Facility Related Costs'!$C35,Dollars!$A$2:$A$1188,LEFT('Other Facility Related Costs'!$C$4,3)) -> 0 | H35: =SUMIFS(Dollars!$F$2:$F$1188,Dollars!$E$2:$E$1188,'Other Facility Related Costs'!H$6,Dollars!$C$2:$C$1188,'Other Facility Related Costs'!$C35,Dollars!$A$2:$A$1188,LEFT('Other Facility Related Costs'!$C$4,3)) -> 0 | I35: =SUMIFS(Dollars!$F$2:$F$1188,Dollars!$E$2:$E$1188,'Other Facility Related Costs'!I$6,Dollars!$C$2:$C$1188,'Other Facility Related Costs'!$C35,Dollars!$A$2:$A$1188,LEFT('Other Facility Related Costs'!$C$4,3)) -> 0 | J35: =SUMIFS(Dollars!$F$2:$F$1188,Dollars!$E$2:$E$1188,'Other Facility Related Costs'!J$6,Dollars!$C$2:$C$1188,'Other Facility Related Costs'!$C35,Dollars!$A$2:$A$1188,LEFT('Other Facility Related Costs'!$C$4,3)) -> 0 | K35: =SUMIFS(Dollars!$F$2:$F$1188,Dollars!$E$2:$E$1188,'Other Facility Related Costs'!K$6,Dollars!$C$2:$C$1188,'Other Facility Related Costs'!$C35,Dollars!$A$2:$A$1188,LEFT('Other Facility Related Costs'!$C$4,3)) -> 0 | L35: =SUMIFS(Dollars!$F$2:$F$1188,Dollars!$E$2:$E$1188,'Other Facility Related Costs'!L$6,Dollars!$C$2:$C$1188,'Other Facility Related Costs'!$C35,Dollars!$A$2:$A$1188,LEFT('Other Facility Related Costs'!$C$4,3)) -> 0 | M35: =SUMIFS(Dollars!$F$2:$F$1188,Dollars!$E$2:$E$1188,'Other Facility Related Costs'!M$6,Dollars!$C$2:$C$1188,'Other Facility Related Costs'!$C35,Dollars!$A$2:$A$1188,LEFT('Other Facility Related Costs'!$C$4,3)) -> 0 | N35: 0 | O35: 0 | P35: 0 | R35: =SUMIFS(Dollars!$G$2:$G$1188,Dollars!$E$2:$E$1188,'Other Facility Related Costs'!R$6,Dollars!$C$2:$C$1188,'Other Facility Related Costs'!$C35,Dollars!$A$2:$A$1188,LEFT('Other Facility Related Costs'!$C$4,3)) -> 0 | S35: =SUMIFS(Dollars!$G$2:$G$1188,Dollars!$E$2:$E$1188,'Other Facility Related Costs'!S$6,Dollars!$C$2:$C$1188,'Other Facility Related Costs'!$C35,Dollars!$A$2:$A$1188,LEFT('Other Facility Related Costs'!$C$4,3)) -> 0 | T35: =SUMIFS(Dollars!$G$2:$G$1188,Dollars!$E$2:$E$1188,'Other Facility Related Costs'!T$6,Dollars!$C$2:$C$1188,'Other Facility Related Costs'!$C35,Dollars!$A$2:$A$1188,LEFT('Other Facility Related Costs'!$C$4,3)) -> 0 | U35: =SUMIFS(Dollars!$G$2:$G$1188,Dollars!$E$2:$E$1188,'Other Facility Related Costs'!U$6,Dollars!$C$2:$C$1188,'Other Facility Related Costs'!$C35,Dollars!$A$2:$A$1188,LEFT('Other Facility Related Costs'!$C$4,3)) -> 0 | V35: =SUMIFS(Dollars!$G$2:$G$1188,Dollars!$E$2:$E$1188,'Other Facility Related Costs'!V$6,Dollars!$C$2:$C$1188,'Other Facility Related Costs'!$C35,Dollars!$A$2:$A$1188,LEFT('Other Facility Related Costs'!$C$4,3)) -> 0 | W35: =SUMIFS(Dollars!$G$2:$G$1188,Dollars!$E$2:$E$1188,'Other Facility Related Costs'!W$6,Dollars!$C$2:$C$1188,'Other Facility Related Costs'!$C35,Dollars!$A$2:$A$1188,LEFT('Other Facility Related Costs'!$C$4,3)) -> 0 | X35: =SUMIFS(Dollars!$G$2:$G$1188,Dollars!$E$2:$E$1188,'Other Facility Related Costs'!X$6,Dollars!$C$2:$C$1188,'Other Facility Related Costs'!$C35,Dollars!$A$2:$A$1188,LEFT('Other Facility Related Costs'!$C$4,3)) -> 0 | Y35: 0 | Z35: 0 | AA35: 0
